Workbook

Sheet 工作表1
A1: 員工健康檢查管制程式（111.2.5 版）
A2: 使用單位： | D2: 審計部臺北市審計處 | L2: 管制起始年度： | Q2: 109
A3: 年度合計補助金額 | G3: =SUM(J6:J505) -> 7000 | L3: =SUM(O6:O505) -> 7000 | Q3: =SUM(U6:U505) -> 0 | V3: =SUM(Z6:Z505) -> 0 | AA3: =SUM(AE6:AE505) -> 0 | AF3: =SUM(AJ6:AJ505) -> 0 | AK3: =SUM(AO6:AO505) -> 0 | AP3: =SUM(AT6:AT505) -> 0 | AU3: =SUM(AY6:AY505) -> 0 | AZ3: =SUM(BD6:BD505) -> 0
A4: 序號 | B4: 職稱 | C4: 姓名 | D4: 出生日期 | E4: =Q4&"年當年" -> 111年當年 | G4: =Q2 -> 109 | L4: =G4+1 -> 110 | Q4: =L4+1 -> 111 | V4: =Q4+1 -> 112 | AA4: =V4+1 -> 113 | AF4: =AA4+1 -> 114 | AK4: =AF4+1 -> 115 | AP4: =AK4+1 -> 116 | AU4: =AP4+1 -> 117 | AZ4: =AU4+1 -> 118
E5: 年齡 | F5: 類別 | G5: 姓名 | H5: 年齡 | I5: 申請日期 | J5: 補助金額 | L5: 姓名 | M5: 年齡 | N5: 申請日期 | O5: 補助金額 | Q5: 姓名 | R5: 年齡 | S5: 申請日期 | T5: 檢核結果 | U5: 補助金額 | V5: 姓名 | W5: 年齡 | X5: 申請日期 | Y5: 檢核結果 | Z5: 補助金額 | AA5: 姓名 | AB5: 年齡 | AC5: 申請日期 | AD5: 檢核結果 | AE5: 補助金額 | AF5: 姓名 | AG5: 年齡 | AH5: 申請日期 | AI5: 檢核結果 | AJ5: 補助金額 | AK5: 姓名 | AL5: 年齡 | AM5: 申請日期 | AN5: 檢核結果 | AO5: 補助金額 | AP5: 姓名 | AQ5: 年齡 | AR5: 申請日期 | AS5: 檢核結果 | AT5: 補助金額 | AU5: 姓名 | AV5: 年齡 | AW5: 申請日期 | AX5: 檢核結果 | AY5: 補助金額 | AZ5: 姓名 | BA5: 年齡 | BB5: 申請日期 | BC5: 檢核結果 | BD5: 補助金額
A6: 1 | B6: 處長 | C6: 王一 | D6: 540522 | E6: =IF(C6="","",$Q$4-LEFT(D6,2)-1) -> 56 | F6: 一年一次 | G6: 王一 | H6: =IF(G6="","",IFERROR(G$4-LEFT(VLOOKUP(G6,$C$6:$D$1899,2,0),2)-1,"未建檔")) -> 54 | I6: 1091127 | J6: 3500 | L6: 張三 | M6: =IF(L6="","",IFERROR(L$4-LEFT(VLOOKUP(L6,$C$6:$D$1899,2,0),2)-1,"未建檔")) -> 58 | N6: 1101122 | O6: 3500 | Q6: 王一 | R6: =IF(Q6="","",IFERROR(Q$4-LEFT(VLOOKUP(Q6,$C$6:$D$1899,2,0),2)-1,"未建檔")) -> 56 | T6: =IF(Q6="","",IF(VLOOKUP(Q6,$C$6:$F$1899,4,0)="未符資格","未符資格",IF(VLOOKUP(Q6,$C$6:$F$1899,4,0)="一年一次","核符",IF(VLOOKUP(Q6,$C$6:$F$1899,4,0)="二年一次",IF(IFERROR(VLOOKUP(Q6,L$5:L$1899,1,0),"")=Q6,"前一年申請有案","核符"),IF(VLOOKUP(Q6,$C$6:$F$1899,4,0)="三年一次",IF(IFERROR(VLOOKUP(Q6,L$5:L$1899,1,0),"")&IFERROR(VLOOKUP(Q6,G$5:G$1899,1,0),"")=Q6,"前二年申請有案","核符")))))) -> 核符 | W6: =IF(V6="","",IFERROR(V$4-LEFT(VLOOKUP(V6,$C$6:$D$1899,2,0),2)-1,"未建檔")) ->  | Y6: =IF(V6="","",IF(VLOOKUP(V6,$C$6:$F$1899,4,0)="未符資格","未符資格",IF(VLOOKUP(V6,$C$6:$F$1899,4,0)="一年一次","核符",IF(VLOOKUP(V6,$C$6:$F$1899,4,0)="二年一次",IF(IFERROR(VLOOKUP(V6,Q$5:Q$1899,1,0),"")=V6,"前一年申請有案","核符"),IF(VLOOKUP(V6,$C$6:$F$1899,4,0)="三年一次",IF(IFERROR(VLOOKUP(V6,Q$5:Q$1899,1,0),"")&IFERROR(VLOOKUP(V6,L$5:L$1899,1,0),"")=V6,"前二年申請有案","核符")))))) ->  | AB6: =IF(AA6="","",IFERROR(AA$4-LEFT(VLOOKUP(AA6,$C$6:$D$1899,2,0),2)-1,"未建檔")) ->  | AD6: =IF(AA6="","",IF(VLOOKUP(AA6,$C$6:$F$1899,4,0)="未符資格","未符資格",IF(VLOOKUP(AA6,$C$6:$F$1899,4,0)="一年一次","核符",IF(VLOOKUP(AA6,$C$6:$F$1899,4,0)="二年一次",IF(IFERROR(VLOOKUP(AA6,V$5:V$1899,1,0),"")=AA6,"前一年申請有案","核符"),IF(VLOOKUP(AA6,$C$6:$F$1899,4,0)="三年一次",IF(IFERROR(VLOOKUP(AA6,V$5:V$1899,1,0),"")&IFERROR(VLOOKUP(AA6,Q$5:Q$1899,1,0),"")=AA6,"前二年申請有案","核符")))))) ->  | AG6: =IF(AF6="","",IFERROR(AF$4-LEFT(VLOOKUP(AF6,$C$6:$D$1899,2,0),2)-1,"未建檔")) ->  | AI6: =IF(AF6="","",IF(VLOOKUP(AF6,$C$6:$F$1899,4,0)="未符資格","未符資格",IF(VLOOKUP(AF6,$C$6:$F$1899,4,0)="一年一次","核符",IF(VLOOKUP(AF6,$C$6:$F$1899,4,0)="二年一次",IF(IFERROR(VLOOKUP(AF6,AA$5:AA$1899,1,0),"")=AF6,"前一年申請有案","核符"),IF(VLOOKUP(AF6,$C$6:$F$1899,4,0)="三年一次",IF(IFERROR(VLOOKUP(AF6,AA$5:AA$1899,1,0),"")&IFERROR(VLOOKUP(AF6,V$5:V$1899,1,0),"")=AF6,"前二年申請有案","核符")))))) ->  | AL6: =IF(AK6="","",IFERROR(AK$4-LEFT(VLOOKUP(AK6,$C$6:$D$1899,2,0),2)-1,"未建檔")) ->  | AN6: =IF(AK6="","",IF(VLOOKUP(AK6,$C$6:$F$1899,4,0)="未符資格","未符資格",IF(VLOOKUP(AK6,$C$6:$F$1899,4,0)="一年一次","核符",IF(VLOOKUP(AK6,$C$6:$F$1899,4,0)="二年一次",IF(IFERROR(VLOOKUP(AK6,AF$5:AF$1899,1,0),"")=AK6,"前一年申請有案","核符"),IF(VLOOKUP(AK6,$C$6:$F$1899,4,0)="三年一次",IF(IFERROR(VLOOKUP(AK6,AF$5:AF$1899,1,0),"")&IFERROR(VLOOKUP(AK6,AA$5:AA$1899,1,0),"")=AK6,"前二年申請有案","核符")))))) ->  | AQ6: =IF(AP6="","",IFERROR(AP$4-LEFT(VLOOKUP(AP6,$C$6:$D$1899,2,0),2)-1,"未建檔")) ->  | AS6: =IF(AP6="","",IF(VLOOKUP(AP6,$C$6:$F$1899,4,0)="未符資格","未符資格",IF(VLOOKUP(AP6,$C$6:$F$1899,4,0)="一年一次","核符",IF(VLOOKUP(AP6,$C$6:$F$1899,4,0)="二年一次",IF(IFERROR(VLOOKUP(AP6,AK$5:AK$1899,1,0),"")=AP6,"前一年申請有案","核符"),IF(VLOOKUP(AP6,$C$6:$F$1899,4,0)="三年一次",IF(IFERROR(VLOOKUP(AP6,AK$5:AK$1899,1,0),"")&IFERROR(VLOOKUP(AP6,AF$5:AF$1899,1,0),"")=AP6,"前二年申請有案","核符")))))) ->  | AV6: =IF(AU6="","",IFERROR(AU$4-LEFT(VLOOKUP(AU6,$C$6:$D$1899,2,0),2)-1,"未建檔")) ->  | AX6: =IF(AU6="","",IF(VLOOKUP(AU6,$C$6:$F$1899,4,0)="未符資格","未符資格",IF(VLOOKUP(AU6,$C$6:$F$1899,4,0)="一年一次","核符",IF(VLOOKUP(AU6,$C$6:$F$1899,4,0)="二年一次",IF(IFERROR(VLOOKUP(AU6,AP$5:AP$1899,1,0),"")=AU6,"前一年申請有案","核符"),IF(VLOOKUP(AU6,$C$6:$F$1899,4,0)="三年一次",IF(IFERROR(VLOOKUP(AU6,AP$5:AP$1899,1,0),"")&IFERROR(VLOOKUP(AU6,AK$5:AK$1899,1,0),"")=AU6,"前二年申請有案","核符")))))) ->  | BA6: =IF(AZ6="","",IFERROR(AZ$4-LEFT(VLOOKUP(AZ6,$C$6:$D$1899,2,0),2)-1,"未建檔")) ->  | BC6: =IF(AZ6="","",IF(VLOOKUP(AZ6,$C$6:$F$1899,4,0)="未符資格","未符資格",IF(VLOOKUP(AZ6,$C$6:$F$1899,4,0)="一年一次","核符",IF(VLOOKUP(AZ6,$C$6:$F$1899,4,0)="二年一次",IF(IFERROR(VLOOKUP(AZ6,AU$5:AU$1899,1,0),"")=AZ6,"前一年申請有案","核符"),IF(VLOOKUP(AZ6,$C$6:$F$1899,4,0)="三年一次",IF(IFERROR(VLOOKUP(AZ6,AU$5:AU$1899,1,0),"")&IFERROR(VLOOKUP(AZ6,AP$5:AP$1899,1,0),"")=AZ6,"前二年申請有案","核符")))))) -> 
A7: 2 | B7: 科長 | C7: 張三 | D7: 511106 | E7: =IF(C7="","",$Q$4-LEFT(D7,2)-1) -> 59 | F7: 二年一次 | G7: 錢六 | H7: =IF(G7="","",IFERROR(G$4-LEFT(VLOOKUP(G7,$C$6:$D$1899,2,0),2)-1,"未建檔")) -> 42 | I7: 1091201 | J7: 3500 | L7: 王一 | M7: =IF(L7="","",IFERROR(L$4-LEFT(VLOOKUP(L7,$C$6:$D$1899,2,0),2)-1,"未建檔")) -> 55 | N7: 1101201 | O7: 3500 | Q7: 高五 | R7: =IF(Q7="","",IFERROR(Q$4-LEFT(VLOOKUP(Q7,$C$6:$D$1899,2,0),2)-1,"未建檔")) -> 50 | T7: =IF(Q7="","",IF(VLOOKUP(Q7,$C$6:$F$1899,4,0)="未符資格","未符資格",IF(VLOOKUP(Q7,$C$6:$F$1899,4,0)="一年一次","核符",IF(VLOOKUP(Q7,$C$6:$F$1899,4,0)="二年一次",IF(IFERROR(VLOOKUP(Q7,L$5:L$1899,1,0),"")=Q7,"前一年申請有案","核符"),IF(VLOOKUP(Q7,$C$6:$F$1899,4,0)="三年一次",IF(IFERROR(VLOOKUP(Q7,L$5:L$1899,1,0),"")&IFERROR(VLOOKUP(Q7,G$5:G$1899,1,0),"")=Q7,"前二年申請有案","核符")))))) -> 前一年申請有案 | W7: =IF(V7="","",IFERROR(V$4-LEFT(VLOOKUP(V7,$C$6:$D$1899,2,0),2)-1,"未建檔")) ->  | Y7: =IF(V7="","",IF(VLOOKUP(V7,$C$6:$F$1899,4,0)="未符資格","未符資格",IF(VLOOKUP(V7,$C$6:$F$1899,4,0)="一年一次","核符",IF(VLOOKUP(V7,$C$6:$F$1899,4,0)="二年一次",IF(IFERROR(VLOOKUP(V7,Q$5:Q$1899,1,0),"")=V7,"前一年申請有案","核符"),IF(VLOOKUP(V7,$C$6:$F$1899,4,0)="三年一次",IF(IFERROR(VLOOKUP(V7,Q$5:Q$1899,1,0),"")&IFERROR(VLOOKUP(V7,L$5:L$1899,1,0),"")=V7,"前二年申請有案","核符")))))) ->  | AB7: =IF(AA7="","",IFERROR(AA$4-LEFT(VLOOKUP(AA7,$C$6:$D$1899,2,0),2)-1,"未建檔")) ->  | AD7: =IF(AA7="","",IF(VLOOKUP(AA7,$C$6:$F$1899,4,0)="未符資格","未符資格",IF(VLOOKUP(AA7,$C$6:$F$1899,4,0)="一年一次","核符",IF(VLOOKUP(AA7,$C$6:$F$1899,4,0)="二年一次",IF(IFERROR(VLOOKUP(AA7,V$5:V$1899,1,0),"")=AA7,"前一年申請有案","核符"),IF(VLOOKUP(AA7,$C$6:$F$1899,4,0)="三年一次",IF(IFERROR(VLOOKUP(AA7,V$5:V$1899,1,0),"")&IFERROR(VLOOKUP(AA7,Q$5:Q$1899,1,0),"")=AA7,"前二年申請有案","核符")))))) ->  | AG7: =IF(AF7="","",IFERROR(AF$4-LEFT(VLOOKUP(AF7,$C$6:$D$1899,2,0),2)-1,"未建檔")) ->  | AI7: =IF(AF7="","",IF(VLOOKUP(AF7,$C$6:$F$1899,4,0)="未符資格","未符資格",IF(VLOOKUP(AF7,$C$6:$F$1899,4,0)="一年一次","核符",IF(VLOOKUP(AF7,$C$6:$F$1899,4,0)="二年一次",IF(IFERROR(VLOOKUP(AF7,AA$5:AA$1899,1,0),"")=AF7,"前一年申請有案","核符"),IF(VLOOKUP(AF7,$C$6:$F$1899,4,0)="三年一次",IF(IFERROR(VLOOKUP(AF7,AA$5:AA$1899,1,0),"")&IFERROR(VLOOKUP(AF7,V$5:V$1899,1,0),"")=AF7,"前二年申請有案","核符")))))) ->  | AL7: =IF(AK7="","",IFERROR(AK$4-LEFT(VLOOKUP(AK7,$C$6:$D$1899,2,0),2)-1,"未建檔")) ->  | AN7: =IF(AK7="","",IF(VLOOKUP(AK7,$C$6:$F$1899,4,0)="未符資格","未符資格",IF(VLOOKUP(AK7,$C$6:$F$1899,4,0)="一年一次","核符",IF(VLOOKUP(AK7,$C$6:$F$1899,4,0)="二年一次",IF(IFERROR(VLOOKUP(AK7,AF$5:AF$1899,1,0),"")=AK7,"前一年申請有案","核符"),IF(VLOOKUP(AK7,$C$6:$F$1899,4,0)="三年一次",IF(IFERROR(VLOOKUP(AK7,AF$5:AF$1899,1,0),"")&IFERROR(VLOOKUP(AK7,AA$5:AA$1899,1,0),"")=AK7,"前二年申請有案","核符")))))) ->  | AQ7: =IF(AP7="","",IFERROR(AP$4-LEFT(VLOOKUP(AP7,$C$6:$D$1899,2,0),2)-1,"未建檔")) ->  | AS7: =IF(AP7="","",IF(VLOOKUP(AP7,$C$6:$F$1899,4,0)="未符資格","未符資格",IF(VLOOKUP(AP7,$C$6:$F$1899,4,0)="一年一次","核符",IF(VLOOKUP(AP7,$C$6:$F$1899,4,0)="二年一次",IF(IFERROR(VLOOKUP(AP7,AK$5:AK$1899,1,0),"")=AP7,"前一年申請有案","核符"),IF(VLOOKUP(AP7,$C$6:$F$1899,4,0)="三年一次",IF(IFERROR(VLOOKUP(AP7,AK$5:AK$1899,1,0),"")&IFERROR(VLOOKUP(AP7,AF$5:AF$1899,1,0),"")=AP7,"前二年申請有案","核符")))))) ->  | AV7: =IF(AU7="","",IFERROR(AU$4-LEFT(VLOOKUP(AU7,$C$6:$D$1899,2,0),2)-1,"未建檔")) ->  | AX7: =IF(AU7="","",IF(VLOOKUP(AU7,$C$6:$F$1899,4,0)="未符資格","未符資格",IF(VLOOKUP(AU7,$C$6:$F$1899,4,0)="一年一次","核符",IF(VLOOKUP(AU7,$C$6:$F$1899,4,0)="二年一次",IF(IFERROR(VLOOKUP(AU7,AP$5:AP$1899,1,0),"")=AU7,"前一年申請有案","核符"),IF(VLOOKUP(AU7,$C$6:$F$1899,4,0)="三年一次",IF(IFERROR(VLOOKUP(AU7,AP$5:AP$1899,1,0),"")&IFERROR(VLOOKUP(AU7,AK$5:AK$1899,1,0),"")=AU7,"前二年申請有案","核符")))))) ->  | BA7: =IF(AZ7="","",IFERROR(AZ$4-LEFT(VLOOKUP(AZ7,$C$6:$D$1899,2,0),2)-1,"未建檔")) ->  | BC7: =IF(AZ7="","",IF(VLOOKUP(AZ7,$C$6:$F$1899,4,0)="未符資格","未符資格",IF(VLOOKUP(AZ7,$C$6:$F$1899,4,0)="一年一次","核符",IF(VLOOKUP(AZ7,$C$6:$F$1899,4,0)="二年一次",IF(IFERROR(VLOOKUP(AZ7,AU$5:AU$1899,1,0),"")=AZ7,"前一年申請有案","核符"),IF(VLOOKUP(AZ7,$C$6:$F$1899,4,0)="三年一次",IF(IFERROR(VLOOKUP(AZ7,AU$5:AU$1899,1,0),"")&IFERROR(VLOOKUP(AZ7,AP$5:AP$1899,1,0),"")=AZ7,"前二年申請有案","核符")))))) -> 
A8: 3 | B8: 專員 | C8: 許二 | D8: 560314 | E8: =IF(C8="","",$Q$4-LEFT(D8,2)-1) -> 54 | F8: 二年一次 | G8: 林四 | H8: =IF(G8="","",IFERROR(G$4-LEFT(VLOOKUP(G8,$C$6:$D$1899,2,0),2)-1,"未建檔")) -> 38 | I8: 1090929 | J8: 自費公假 | L8: 高五 | M8: =IF(L8="","",IFERROR(L$4-LEFT(VLOOKUP(L8,$C$6:$D$1899,2,0),2)-1,"未建檔")) -> 49 | R8: =IF(Q8="","",IFERROR(Q$4-LEFT(VLOOKUP(Q8,$C$6:$D$1899,2,0),2)-1,"未建檔")) ->  | T8: =IF(Q8="","",IF(VLOOKUP(Q8,$C$6:$F$1899,4,0)="未符資格","未符資格",IF(VLOOKUP(Q8,$C$6:$F$1899,4,0)="一年一次","核符",IF(VLOOKUP(Q8,$C$6:$F$1899,4,0)="二年一次",IF(IFERROR(VLOOKUP(Q8,L$5:L$1899,1,0),"")=Q8,"前一年申請有案","核符"),IF(VLOOKUP(Q8,$C$6:$F$1899,4,0)="三年一次",IF(IFERROR(VLOOKUP(Q8,L$5:L$1899,1,0),"")&IFERROR(VLOOKUP(Q8,G$5:G$1899,1,0),"")=Q8,"前二年申請有案","核符")))))) ->  | W8: =IF(V8="","",IFERROR(V$4-LEFT(VLOOKUP(V8,$C$6:$D$1899,2,0),2)-1,"未建檔")) ->  | Y8: =IF(V8="","",IF(VLOOKUP(V8,$C$6:$F$1899,4,0)="未符資格","未符資格",IF(VLOOKUP(V8,$C$6:$F$1899,4,0)="一年一次","核符",IF(VLOOKUP(V8,$C$6:$F$1899,4,0)="二年一次",IF(IFERROR(VLOOKUP(V8,Q$5:Q$1899,1,0),"")=V8,"前一年申請有案","核符"),IF(VLOOKUP(V8,$C$6:$F$1899,4,0)="三年一次",IF(IFERROR(VLOOKUP(V8,Q$5:Q$1899,1,0),"")&IFERROR(VLOOKUP(V8,L$5:L$1899,1,0),"")=V8,"前二年申請有案","核符")))))) ->  | AB8: =IF(AA8="","",IFERROR(AA$4-LEFT(VLOOKUP(AA8,$C$6:$D$1899,2,0),2)-1,"未建檔")) ->  | AD8: =IF(AA8="","",IF(VLOOKUP(AA8,$C$6:$F$1899,4,0)="未符資格","未符資格",IF(VLOOKUP(AA8,$C$6:$F$1899,4,0)="一年一次","核符",IF(VLOOKUP(AA8,$C$6:$F$1899,4,0)="二年一次",IF(IFERROR(VLOOKUP(AA8,V$5:V$1899,1,0),"")=AA8,"前一年申請有案","核符"),IF(VLOOKUP(AA8,$C$6:$F$1899,4,0)="三年一次",IF(IFERROR(VLOOKUP(AA8,V$5:V$1899,1,0),"")&IFERROR(VLOOKUP(AA8,Q$5:Q$1899,1,0),"")=AA8,"前二年申請有案","核符")))))) ->  | AG8: =IF(AF8="","",IFERROR(AF$4-LEFT(VLOOKUP(AF8,$C$6:$D$1899,2,0),2)-1,"未建檔")) ->  | AI8: =IF(AF8="","",IF(VLOOKUP(AF8,$C$6:$F$1899,4,0)="未符資格","未符資格",IF(VLOOKUP(AF8,$C$6:$F$1899,4,0)="一年一次","核符",IF(VLOOKUP(AF8,$C$6:$F$1899,4,0)="二年一次",IF(IFERROR(VLOOKUP(AF8,AA$5:AA$1899,1,0),"")=AF8,"前一年申請有案","核符"),IF(VLOOKUP(AF8,$C$6:$F$1899,4,0)="三年一次",IF(IFERROR(VLOOKUP(AF8,AA$5:AA$1899,1,0),"")&IFERROR(VLOOKUP(AF8,V$5:V$1899,1,0),"")=AF8,"前二年申請有案","核符")))))) ->  | AL8: =IF(AK8="","",IFERROR(AK$4-LEFT(VLOOKUP(AK8,$C$6:$D$1899,2,0),2)-1,"未建檔")) ->  | AN8: =IF(AK8="","",IF(VLOOKUP(AK8,$C$6:$F$1899,4,0)="未符資格","未符資格",IF(VLOOKUP(AK8,$C$6:$F$1899,4,0)="一年一次","核符",IF(VLOOKUP(AK8,$C$6:$F$1899,4,0)="二年一次",IF(IFERROR(VLOOKUP(AK8,AF$5:AF$1899,1,0),"")=AK8,"前一年申請有案","核符"),IF(VLOOKUP(AK8,$C$6:$F$1899,4,0)="三年一次",IF(IFERROR(VLOOKUP(AK8,AF$5:AF$1899,1,0),"")&IFERROR(VLOOKUP(AK8,AA$5:AA$1899,1,0),"")=AK8,"前二年申請有案","核符")))))) ->  | AQ8: =IF(AP8="","",IFERROR(AP$4-LEFT(VLOOKUP(AP8,$C$6:$D$1899,2,0),2)-1,"未建檔")) ->  | AS8: =IF(AP8="","",IF(VLOOKUP(AP8,$C$6:$F$1899,4,0)="未符資格","未符資格",IF(VLOOKUP(AP8,$C$6:$F$1899,4,0)="一年一次","核符",IF(VLOOKUP(AP8,$C$6:$F$1899,4,0)="二年一次",IF(IFERROR(VLOOKUP(AP8,AK$5:AK$1899,1,0),"")=AP8,"前一年申請有案","核符"),IF(VLOOKUP(AP8,$C$6:$F$1899,4,0)="三年一次",IF(IFERROR(VLOOKUP(AP8,AK$5:AK$1899,1,0),"")&IFERROR(VLOOKUP(AP8,AF$5:AF$1899,1,0),"")=AP8,"前二年申請有案","核符")))))) ->  | AV8: =IF(AU8="","",IFERROR(AU$4-LEFT(VLOOKUP(AU8,$C$6:$D$1899,2,0),2)-1,"未建檔")) ->  | AX8: =IF(AU8="","",IF(VLOOKUP(AU8,$C$6:$F$1899,4,0)="未符資格","未符資格",IF(VLOOKUP(AU8,$C$6:$F$1899,4,0)="一年一次","核符",IF(VLOOKUP(AU8,$C$6:$F$1899,4,0)="二年一次",IF(IFERROR(VLOOKUP(AU8,AP$5:AP$1899,1,0),"")=AU8,"前一年申請有案","核符"),IF(VLOOKUP(AU8,$C$6:$F$1899,4,0)="三年一次",IF(IFERROR(VLOOKUP(AU8,AP$5:AP$1899,1,0),"")&IFERROR(VLOOKUP(AU8,AK$5:AK$1899,1,0),"")=AU8,"前二年申請有案","核符")))))) ->  | BA8: =IF(AZ8="","",IFERROR(AZ$4-LEFT(VLOOKUP(AZ8,$C$6:$D$1899,2,0),2)-1,"未建檔")) ->  | BC8: =IF(AZ8="","",IF(VLOOKUP(AZ8,$C$6:$F$1899,4,0)="未符資格","未符資格",IF(VLOOKUP(AZ8,$C$6:$F$1899,4,0)="一年一次","核符",IF(VLOOKUP(AZ8,$C$6:$F$1899,4,0)="二年一次",IF(IFERROR(VLOOKUP(AZ8,AU$5:AU$1899,1,0),"")=AZ8,"前一年申請有案","核符"),IF(VLOOKUP(AZ8,$C$6:$F$1899,4,0)="三年一次",IF(IFERROR(VLOOKUP(AZ8,AU$5:AU$1899,1,0),"")&IFERROR(VLOOKUP(AZ8,AP$5:AP$1899,1,0),"")=AZ8,"前二年申請有案","核符")))))) -> 
A9: 4 | B9: 科員 | C9: 高五 | D9: 600124 | E9: =IF(C9="","",$Q$4-LEFT(D9,2)-1) -> 50 | F9: 二年一次 | H9: =IF(G9="","",IFERROR(G$4-LEFT(VLOOKUP(G9,$C$6:$D$1899,2,0),2)-1,"未建檔")) ->  | L9: 錢六 | M9: =IF(L9="","",IFERROR(L$4-LEFT(VLOOKUP(L9,$C$6:$D$1899,2,0),2)-1,"未建檔")) -> 43 | R9: =IF(Q9="","",IFERROR(Q$4-LEFT(VLOOKUP(Q9,$C$6:$D$1899,2,0),2)-1,"未建檔")) ->  | T9: =IF(Q9="","",IF(VLOOKUP(Q9,$C$6:$F$1899,4,0)="未符資格","未符資格",IF(VLOOKUP(Q9,$C$6:$F$1899,4,0)="一年一次","核符",IF(VLOOKUP(Q9,$C$6:$F$1899,4,0)="二年一次",IF(IFERROR(VLOOKUP(Q9,L$5:L$1899,1,0),"")=Q9,"前一年申請有案","核符"),IF(VLOOKUP(Q9,$C$6:$F$1899,4,0)="三年一次",IF(IFERROR(VLOOKUP(Q9,L$5:L$1899,1,0),"")&IFERROR(VLOOKUP(Q9,G$5:G$1899,1,0),"")=Q9,"前二年申請有案","核符")))))) ->  | W9: =IF(V9="","",IFERROR(V$4-LEFT(VLOOKUP(V9,$C$6:$D$1899,2,0),2)-1,"未建檔")) ->  | Y9: =IF(V9="","",IF(VLOOKUP(V9,$C$6:$F$1899,4,0)="未符資格","未符資格",IF(VLOOKUP(V9,$C$6:$F$1899,4,0)="一年一次","核符",IF(VLOOKUP(V9,$C$6:$F$1899,4,0)="二年一次",IF(IFERROR(VLOOKUP(V9,Q$5:Q$1899,1,0),"")=V9,"前一年申請有案","核符"),IF(VLOOKUP(V9,$C$6:$F$1899,4,0)="三年一次",IF(IFERROR(VLOOKUP(V9,Q$5:Q$1899,1,0),"")&IFERROR(VLOOKUP(V9,L$5:L$1899,1,0),"")=V9,"前二年申請有案","核符")))))) ->  | AB9: =IF(AA9="","",IFERROR(AA$4-LEFT(VLOOKUP(AA9,$C$6:$D$1899,2,0),2)-1,"未建檔")) ->  | AD9: =IF(AA9="","",IF(VLOOKUP(AA9,$C$6:$F$1899,4,0)="未符資格","未符資格",IF(VLOOKUP(AA9,$C$6:$F$1899,4,0)="一年一次","核符",IF(VLOOKUP(AA9,$C$6:$F$1899,4,0)="二年一次",IF(IFERROR(VLOOKUP(AA9,V$5:V$1899,1,0),"")=AA9,"前一年申請有案","核符"),IF(VLOOKUP(AA9,$C$6:$F$1899,4,0)="三年一次",IF(IFERROR(VLOOKUP(AA9,V$5:V$1899,1,0),"")&IFERROR(VLOOKUP(AA9,Q$5:Q$1899,1,0),"")=AA9,"前二年申請有案","核符")))))) ->  | AG9: =IF(AF9="","",IFERROR(AF$4-LEFT(VLOOKUP(AF9,$C$6:$D$1899,2,0),2)-1,"未建檔")) ->  | AI9: =IF(AF9="","",IF(VLOOKUP(AF9,$C$6:$F$1899,4,0)="未符資格","未符資格",IF(VLOOKUP(AF9,$C$6:$F$1899,4,0)="一年一次","核符",IF(VLOOKUP(AF9,$C$6:$F$1899,4,0)="二年一次",IF(IFERROR(VLOOKUP(AF9,AA$5:AA$1899,1,0),"")=AF9,"前一年申請有案","核符"),IF(VLOOKUP(AF9,$C$6:$F$1899,4,0)="三年一次",IF(IFERROR(VLOOKUP(AF9,AA$5:AA$1899,1,0),"")&IFERROR(VLOOKUP(AF9,V$5:V$1899,1,0),"")=AF9,"前二年申請有案","核符")))))) ->  | AL9: =IF(AK9="","",IFERROR(AK$4-LEFT(VLOOKUP(AK9,$C$6:$D$1899,2,0),2)-1,"未建檔")) ->  | AN9: =IF(AK9="","",IF(VLOOKUP(AK9,$C$6:$F$1899,4,0)="未符資格","未符資格",IF(VLOOKUP(AK9,$C$6:$F$1899,4,0)="一年一次","核符",IF(VLOOKUP(AK9,$C$6:$F$1899,4,0)="二年一次",IF(IFERROR(VLOOKUP(AK9,AF$5:AF$1899,1,0),"")=AK9,"前一年申請有案","核符"),IF(VLOOKUP(AK9,$C$6:$F$1899,4,0)="三年一次",IF(IFERROR(VLOOKUP(AK9,AF$5:AF$1899,1,0),"")&IFERROR(VLOOKUP(AK9,AA$5:AA$1899,1,0),"")=AK9,"前二年申請有案","核符")))))) ->  | AQ9: =IF(AP9="","",IFERROR(AP$4-LEFT(VLOOKUP(AP9,$C$6:$D$1899,2,0),2)-1,"未建檔")) ->  | AS9: =IF(AP9="","",IF(VLOOKUP(AP9,$C$6:$F$1899,4,0)="未符資格","未符資格",IF(VLOOKUP(AP9,$C$6:$F$1899,4,0)="一年一次","核符",IF(VLOOKUP(AP9,$C$6:$F$1899,4,0)="二年一次",IF(IFERROR(VLOOKUP(AP9,AK$5:AK$1899,1,0),"")=AP9,"前一年申請有案","核符"),IF(VLOOKUP(AP9,$C$6:$F$1899,4,0)="三年一次",IF(IFERROR(VLOOKUP(AP9,AK$5:AK$1899,1,0),"")&IFERROR(VLOOKUP(AP9,AF$5:AF$1899,1,0),"")=AP9,"前二年申請有案","核符")))))) ->  | AV9: =IF(AU9="","",IFERROR(AU$4-LEFT(VLOOKUP(AU9,$C$6:$D$1899,2,0),2)-1,"未建檔")) ->  | AX9: =IF(AU9="","",IF(VLOOKUP(AU9,$C$6:$F$1899,4,0)="未符資格","未符資格",IF(VLOOKUP(AU9,$C$6:$F$1899,4,0)="一年一次","核符",IF(VLOOKUP(AU9,$C$6:$F$1899,4,0)="二年一次",IF(IFERROR(VLOOKUP(AU9,AP$5:AP$1899,1,0),"")=AU9,"前一年申請有案","核符"),IF(VLOOKUP(AU9,$C$6:$F$1899,4,0)="三年一次",IF(IFERROR(VLOOKUP(AU9,AP$5:AP$1899,1,0),"")&IFERROR(VLOOKUP(AU9,AK$5:AK$1899,1,0),"")=AU9,"前二年申請有案","核符")))))) ->  | BA9: =IF(AZ9="","",IFERROR(AZ$4-LEFT(VLOOKUP(AZ9,$C$6:$D$1899,2,0),2)-1,"未建檔")) ->  | BC9: =IF(AZ9="","",IF(VLOOKUP(AZ9,$C$6:$F$1899,4,0)="未符資格","未符資格",IF(VLOOKUP(AZ9,$C$6:$F$1899,4,0)="一年一次","核符",IF(VLOOKUP(AZ9,$C$6:$F$1899,4,0)="二年一次",IF(IFERROR(VLOOKUP(AZ9,AU$5:AU$1899,1,0),"")=AZ9,"前一年申請有案","核符"),IF(VLOOKUP(AZ9,$C$6:$F$1899,4,0)="三年一次",IF(IFERROR(VLOOKUP(AZ9,AU$5:AU$1899,1,0),"")&IFERROR(VLOOKUP(AZ9,AP$5:AP$1899,1,0),"")=AZ9,"前二年申請有案","核符")))))) -> 
A10: 5 | B10: 科員 | C10: 錢六 | D10: 661105 | E10: =IF(C10="","",$Q$4-LEFT(D10,2)-1) -> 44 | F10: 二年一次 | H10: =IF(G10="","",IFERROR(G$4-LEFT(VLOOKUP(G10,$C$6:$D$1899,2,0),2)-1,"未建檔")) ->  | L10: 柯七 | M10: =IF(L10="","",IFERROR(L$4-LEFT(VLOOKUP(L10,$C$6:$D$1899,2,0),2)-1,"未建檔")) -> 36 | R10: =IF(Q10="","",IFERROR(Q$4-LEFT(VLOOKUP(Q10,$C$6:$D$1899,2,0),2)-1,"未建檔")) ->  | T10: =IF(Q10="","",IF(VLOOKUP(Q10,$C$6:$F$1899,4,0)="未符資格","未符資格",IF(VLOOKUP(Q10,$C$6:$F$1899,4,0)="一年一次","核符",IF(VLOOKUP(Q10,$C$6:$F$1899,4,0)="二年一次",IF(IFERROR(VLOOKUP(Q10,L$5:L$1899,1,0),"")=Q10,"前一年申請有案","核符"),IF(VLOOKUP(Q10,$C$6:$F$1899,4,0)="三年一次",IF(IFERROR(VLOOKUP(Q10,L$5:L$1899,1,0),"")&IFERROR(VLOOKUP(Q10,G$5:G$1899,1,0),"")=Q10,"前二年申請有案","核符")))))) ->  | W10: =IF(V10="","",IFERROR(V$4-LEFT(VLOOKUP(V10,$C$6:$D$1899,2,0),2)-1,"未建檔")) ->  | Y10: =IF(V10="","",IF(VLOOKUP(V10,$C$6:$F$1899,4,0)="未符資格","未符資格",IF(VLOOKUP(V10,$C$6:$F$1899,4,0)="一年一次","核符",IF(VLOOKUP(V10,$C$6:$F$1899,4,0)="二年一次",IF(IFERROR(VLOOKUP(V10,Q$5:Q$1899,1,0),"")=V10,"前一年申請有案","核符"),IF(VLOOKUP(V10,$C$6:$F$1899,4,0)="三年一次",IF(IFERROR(VLOOKUP(V10,Q$5:Q$1899,1,0),"")&IFERROR(VLOOKUP(V10,L$5:L$1899,1,0),"")=V10,"前二年申請有案","核符")))))) ->  | AB10: =IF(AA10="","",IFERROR(AA$4-LEFT(VLOOKUP(AA10,$C$6:$D$1899,2,0),2)-1,"未建檔")) ->  | AD10: =IF(AA10="","",IF(VLOOKUP(AA10,$C$6:$F$1899,4,0)="未符資格","未符資格",IF(VLOOKUP(AA10,$C$6:$F$1899,4,0)="一年一次","核符",IF(VLOOKUP(AA10,$C$6:$F$1899,4,0)="二年一次",IF(IFERROR(VLOOKUP(AA10,V$5:V$1899,1,0),"")=AA10,"前一年申請有案","核符"),IF(VLOOKUP(AA10,$C$6:$F$1899,4,0)="三年一次",IF(IFERROR(VLOOKUP(AA10,V$5:V$1899,1,0),"")&IFERROR(VLOOKUP(AA10,Q$5:Q$1899,1,0),"")=AA10,"前二年申請有案","核符")))))) ->  | AG10: =IF(AF10="","",IFERROR(AF$4-LEFT(VLOOKUP(AF10,$C$6:$D$1899,2,0),2)-1,"未建檔")) ->  | AI10: =IF(AF10="","",IF(VLOOKUP(AF10,$C$6:$F$1899,4,0)="未符資格","未符資格",IF(VLOOKUP(AF10,$C$6:$F$1899,4,0)="一年一次","核符",IF(VLOOKUP(AF10,$C$6:$F$1899,4,0)="二年一次",IF(IFERROR(VLOOKUP(AF10,AA$5:AA$1899,1,0),"")=AF10,"前一年申請有案","核符"),IF(VLOOKUP(AF10,$C$6:$F$1899,4,0)="三年一次",IF(IFERROR(VLOOKUP(AF10,AA$5:AA$1899,1,0),"")&IFERROR(VLOOKUP(AF10,V$5:V$1899,1,0),"")=AF10,"前二年申請有案","核符")))))) ->  | AL10: =IF(AK10="","",IFERROR(AK$4-LEFT(VLOOKUP(AK10,$C$6:$D$1899,2,0),2)-1,"未建檔")) ->  | AN10: =IF(AK10="","",IF(VLOOKUP(AK10,$C$6:$F$1899,4,0)="未符資格","未符資格",IF(VLOOKUP(AK10,$C$6:$F$1899,4,0)="一年一次","核符",IF(VLOOKUP(AK10,$C$6:$F$1899,4,0)="二年一次",IF(IFERROR(VLOOKUP(AK10,AF$5:AF$1899,1,0),"")=AK10,"前一年申請有案","核符"),IF(VLOOKUP(AK10,$C$6:$F$1899,4,0)="三年一次",IF(IFERROR(VLOOKUP(AK10,AF$5:AF$1899,1,0),"")&IFERROR(VLOOKUP(AK10,AA$5:AA$1899,1,0),"")=AK10,"前二年申請有案","核符")))))) ->  | AQ10: =IF(AP10="","",IFERROR(AP$4-LEFT(VLOOKUP(AP10,$C$6:$D$1899,2,0),2)-1,"未建檔")) ->  | AS10: =IF(AP10="","",IF(VLOOKUP(AP10,$C$6:$F$1899,4,0)="未符資格","未符資格",IF(VLOOKUP(AP10,$C$6:$F$1899,4,0)="一年一次","核符",IF(VLOOKUP(AP10,$C$6:$F$1899,4,0)="二年一次",IF(IFERROR(VLOOKUP(AP10,AK$5:AK$1899,1,0),"")=AP10,"前一年申請有案","核符"),IF(VLOOKUP(AP10,$C$6:$F$1899,4,0)="三年一次",IF(IFERROR(VLOOKUP(AP10,AK$5:AK$1899,1,0),"")&IFERROR(VLOOKUP(AP10,AF$5:AF$1899,1,0),"")=AP10,"前二年申請有案","核符")))))) ->  | AV10: =IF(AU10="","",IFERROR(AU$4-LEFT(VLOOKUP(AU10,$C$6:$D$1899,2,0),2)-1,"未建檔")) ->  | AX10: =IF(AU10="","",IF(VLOOKUP(AU10,$C$6:$F$1899,4,0)="未符資格","未符資格",IF(VLOOKUP(AU10,$C$6:$F$1899,4,0)="一年一次","核符",IF(VLOOKUP(AU10,$C$6:$F$1899,4,0)="二年一次",IF(IFERROR(VLOOKUP(AU10,AP$5:AP$1899,1,0),"")=AU10,"前一年申請有案","核符"),IF(VLOOKUP(AU10,$C$6:$F$1899,4,0)="三年一次",IF(IFERROR(VLOOKUP(AU10,AP$5:AP$1899,1,0),"")&IFERROR(VLOOKUP(AU10,AK$5:AK$1899,1,0),"")=AU10,"前二年申請有案","核符")))))) ->  | BA10: =IF(AZ10="","",IFERROR(AZ$4-LEFT(VLOOKUP(AZ10,$C$6:$D$1899,2,0),2)-1,"未建檔")) ->  | BC10: =IF(AZ10="","",IF(VLOOKUP(AZ10,$C$6:$F$1899,4,0)="未符資格","未符資格",IF(VLOOKUP(AZ10,$C$6:$F$1899,4,0)="一年一次","核符",IF(VLOOKUP(AZ10,$C$6:$F$1899,4,0)="二年一次",IF(IFERROR(VLOOKUP(AZ10,AU$5:AU$1899,1,0),"")=AZ10,"前一年申請有案","核符"),IF(VLOOKUP(AZ10,$C$6:$F$1899,4,0)="三年一次",IF(IFERROR(VLOOKUP(AZ10,AU$5:AU$1899,1,0),"")&IFERROR(VLOOKUP(AZ10,AP$5:AP$1899,1,0),"")=AZ10,"前二年申請有案","核符")))))) -> 
A11: 6 | B11: 科員 | C11: 林四 | D11: 700505 | E11: =IF(C11="","",$Q$4-LEFT(D11,2)-1) -> 40 | F11: 二年一次 | H11: =IF(G11="","",IFERROR(G$4-LEFT(VLOOKUP(G11,$C$6:$D$1899,2,0),2)-1,"未建檔")) ->  | M11: =IF(L11="","",IFERROR(L$4-LEFT(VLOOKUP(L11,$C$6:$D$1899,2,0),2)-1,"未建檔")) ->  | R11: =IF(Q11="","",IFERROR(Q$4-LEFT(VLOOKUP(Q11,$C$6:$D$1899,2,0),2)-1,"未建檔")) ->  | T11: =IF(Q11="","",IF(VLOOKUP(Q11,$C$6:$F$1899,4,0)="未符資格","未符資格",IF(VLOOKUP(Q11,$C$6:$F$1899,4,0)="一年一次","核符",IF(VLOOKUP(Q11,$C$6:$F$1899,4,0)="二年一次",IF(IFERROR(VLOOKUP(Q11,L$5:L$1899,1,0),"")=Q11,"前一年申請有案","核符"),IF(VLOOKUP(Q11,$C$6:$F$1899,4,0)="三年一次",IF(IFERROR(VLOOKUP(Q11,L$5:L$1899,1,0),"")&IFERROR(VLOOKUP(Q11,G$5:G$1899,1,0),"")=Q11,"前二年申請有案","核符")))))) ->  | W11: =IF(V11="","",IFERROR(V$4-LEFT(VLOOKUP(V11,$C$6:$D$1899,2,0),2)-1,"未建檔")) ->  | Y11: =IF(V11="","",IF(VLOOKUP(V11,$C$6:$F$1899,4,0)="未符資格","未符資格",IF(VLOOKUP(V11,$C$6:$F$1899,4,0)="一年一次","核符",IF(VLOOKUP(V11,$C$6:$F$1899,4,0)="二年一次",IF(IFERROR(VLOOKUP(V11,Q$5:Q$1899,1,0),"")=V11,"前一年申請有案","核符"),IF(VLOOKUP(V11,$C$6:$F$1899,4,0)="三年一次",IF(IFERROR(VLOOKUP(V11,Q$5:Q$1899,1,0),"")&IFERROR(VLOOKUP(V11,L$5:L$1899,1,0),"")=V11,"前二年申請有案","核符")))))) ->  | AB11: =IF(AA11="","",IFERROR(AA$4-LEFT(VLOOKUP(AA11,$C$6:$D$1899,2,0),2)-1,"未建檔")) ->  | AD11: =IF(AA11="","",IF(VLOOKUP(AA11,$C$6:$F$1899,4,0)="未符資格","未符資格",IF(VLOOKUP(AA11,$C$6:$F$1899,4,0)="一年一次","核符",IF(VLOOKUP(AA11,$C$6:$F$1899,4,0)="二年一次",IF(IFERROR(VLOOKUP(AA11,V$5:V$1899,1,0),"")=AA11,"前一年申請有案","核符"),IF(VLOOKUP(AA11,$C$6:$F$1899,4,0)="三年一次",IF(IFERROR(VLOOKUP(AA11,V$5:V$1899,1,0),"")&IFERROR(VLOOKUP(AA11,Q$5:Q$1899,1,0),"")=AA11,"前二年申請有案","核符")))))) ->  | AG11: =IF(AF11="","",IFERROR(AF$4-LEFT(VLOOKUP(AF11,$C$6:$D$1899,2,0),2)-1,"未建檔")) ->  | AI11: =IF(AF11="","",IF(VLOOKUP(AF11,$C$6:$F$1899,4,0)="未符資格","未符資格",IF(VLOOKUP(AF11,$C$6:$F$1899,4,0)="一年一次","核符",IF(VLOOKUP(AF11,$C$6:$F$1899,4,0)="二年一次",IF(IFERROR(VLOOKUP(AF11,AA$5:AA$1899,1,0),"")=AF11,"前一年申請有案","核符"),IF(VLOOKUP(AF11,$C$6:$F$1899,4,0)="三年一次",IF(IFERROR(VLOOKUP(AF11,AA$5:AA$1899,1,0),"")&IFERROR(VLOOKUP(AF11,V$5:V$1899,1,0),"")=AF11,"前二年申請有案","核符")))))) ->  | AL11: =IF(AK11="","",IFERROR(AK$4-LEFT(VLOOKUP(AK11,$C$6:$D$1899,2,0),2)-1,"未建檔")) ->  | AN11: =IF(AK11="","",IF(VLOOKUP(AK11,$C$6:$F$1899,4,0)="未符資格","未符資格",IF(VLOOKUP(AK11,$C$6:$F$1899,4,0)="一年一次","核符",IF(VLOOKUP(AK11,$C$6:$F$1899,4,0)="二年一次",IF(IFERROR(VLOOKUP(AK11,AF$5:AF$1899,1,0),"")=AK11,"前一年申請有案","核符"),IF(VLOOKUP(AK11,$C$6:$F$1899,4,0)="三年一次",IF(IFERROR(VLOOKUP(AK11,AF$5:AF$1899,1,0),"")&IFERROR(VLOOKUP(AK11,AA$5:AA$1899,1,0),"")=AK11,"前二年申請有案","核符")))))) ->  | AQ11: =IF(AP11="","",IFERROR(AP$4-LEFT(VLOOKUP(AP11,$C$6:$D$1899,2,0),2)-1,"未建檔")) ->  | AS11: =IF(AP11="","",IF(VLOOKUP(AP11,$C$6:$F$1899,4,0)="未符資格","未符資格",IF(VLOOKUP(AP11,$C$6:$F$1899,4,0)="一年一次","核符",IF(VLOOKUP(AP11,$C$6:$F$1899,4,0)="二年一次",IF(IFERROR(VLOOKUP(AP11,AK$5:AK$1899,1,0),"")=AP11,"前一年申請有案","核符"),IF(VLOOKUP(AP11,$C$6:$F$1899,4,0)="三年一次",IF(IFERROR(VLOOKUP(AP11,AK$5:AK$1899,1,0),"")&IFERROR(VLOOKUP(AP11,AF$5:AF$1899,1,0),"")=AP11,"前二年申請有案","核符")))))) ->  | AV11: =IF(AU11="","",IFERROR(AU$4-LEFT(VLOOKUP(AU11,$C$6:$D$1899,2,0),2)-1,"未建檔")) ->  | AX11: =IF(AU11="","",IF(VLOOKUP(AU11,$C$6:$F$1899,4,0)="未符資格","未符資格",IF(VLOOKUP(AU11,$C$6:$F$1899,4,0)="一年一次","核符",IF(VLOOKUP(AU11,$C$6:$F$1899,4,0)="二年一次",IF(IFERROR(VLOOKUP(AU11,AP$5:AP$1899,1,0),"")=AU11,"前一年申請有案","核符"),IF(VLOOKUP(AU11,$C$6:$F$1899,4,0)="三年一次",IF(IFERROR(VLOOKUP(AU11,AP$5:AP$1899,1,0),"")&IFERROR(VLOOKUP(AU11,AK$5:AK$1899,1,0),"")=AU11,"前二年申請有案","核符")))))) ->  | BA11: =IF(AZ11="","",IFERROR(AZ$4-LEFT(VLOOKUP(AZ11,$C$6:$D$1899,2,0),2)-1,"未建檔")) ->  | BC11: =IF(AZ11="","",IF(VLOOKUP(AZ11,$C$6:$F$1899,4,0)="未符資格","未符資格",IF(VLOOKUP(AZ11,$C$6:$F$1899,4,0)="一年一次","核符",IF(VLOOKUP(AZ11,$C$6:$F$1899,4,0)="二年一次",IF(IFERROR(VLOOKUP(AZ11,AU$5:AU$1899,1,0),"")=AZ11,"前一年申請有案","核符"),IF(VLOOKUP(AZ11,$C$6:$F$1899,4,0)="三年一次",IF(IFERROR(VLOOKUP(AZ11,AU$5:AU$1899,1,0),"")&IFERROR(VLOOKUP(AZ11,AP$5:AP$1899,1,0),"")=AZ11,"前二年申請有案","核符")))))) -> 
A12: 7 | B12: 科員 | C12: 柯七 | D12: 730522 | E12: =IF(C12="","",$Q$4-LEFT(D12,2)-1) -> 37 | F12: 二年一次 | H12: =IF(G12="","",IFERROR(G$4-LEFT(VLOOKUP(G12,$C$6:$D$1899,2,0),2)-1,"未建檔")) ->  | M12: =IF(L12="","",IFERROR(L$4-LEFT(VLOOKUP(L12,$C$6:$D$1899,2,0),2)-1,"未建檔")) ->  | R12: =IF(Q12="","",IFERROR(Q$4-LEFT(VLOOKUP(Q12,$C$6:$D$1899,2,0),2)-1,"未建檔")) ->  | T12: =IF(Q12="","",IF(VLOOKUP(Q12,$C$6:$F$1899,4,0)="未符資格","未符資格",IF(VLOOKUP(Q12,$C$6:$F$1899,4,0)="一年一次","核符",IF(VLOOKUP(Q12,$C$6:$F$1899,4,0)="二年一次",IF(IFERROR(VLOOKUP(Q12,L$5:L$1899,1,0),"")=Q12,"前一年申請有案","核符"),IF(VLOOKUP(Q12,$C$6:$F$1899,4,0)="三年一次",IF(IFERROR(VLOOKUP(Q12,L$5:L$1899,1,0),"")&IFERROR(VLOOKUP(Q12,G$5:G$1899,1,0),"")=Q12,"前二年申請有案","核符")))))) ->  | W12: =IF(V12="","",IFERROR(V$4-LEFT(VLOOKUP(V12,$C$6:$D$1899,2,0),2)-1,"未建檔")) ->  | Y12: =IF(V12="","",IF(VLOOKUP(V12,$C$6:$F$1899,4,0)="未符資格","未符資格",IF(VLOOKUP(V12,$C$6:$F$1899,4,0)="一年一次","核符",IF(VLOOKUP(V12,$C$6:$F$1899,4,0)="二年一次",IF(IFERROR(VLOOKUP(V12,Q$5:Q$1899,1,0),"")=V12,"前一年申請有案","核符"),IF(VLOOKUP(V12,$C$6:$F$1899,4,0)="三年一次",IF(IFERROR(VLOOKUP(V12,Q$5:Q$1899,1,0),"")&IFERROR(VLOOKUP(V12,L$5:L$1899,1,0),"")=V12,"前二年申請有案","核符")))))) ->  | AB12: =IF(AA12="","",IFERROR(AA$4-LEFT(VLOOKUP(AA12,$C$6:$D$1899,2,0),2)-1,"未建檔")) ->  | AD12: =IF(AA12="","",IF(VLOOKUP(AA12,$C$6:$F$1899,4,0)="未符資格","未符資格",IF(VLOOKUP(AA12,$C$6:$F$1899,4,0)="一年一次","核符",IF(VLOOKUP(AA12,$C$6:$F$1899,4,0)="二年一次",IF(IFERROR(VLOOKUP(AA12,V$5:V$1899,1,0),"")=AA12,"前一年申請有案","核符"),IF(VLOOKUP(AA12,$C$6:$F$1899,4,0)="三年一次",IF(IFERROR(VLOOKUP(AA12,V$5:V$1899,1,0),"")&IFERROR(VLOOKUP(AA12,Q$5:Q$1899,1,0),"")=AA12,"前二年申請有案","核符")))))) ->  | AG12: =IF(AF12="","",IFERROR(AF$4-LEFT(VLOOKUP(AF12,$C$6:$D$1899,2,0),2)-1,"未建檔")) ->  | AI12: =IF(AF12="","",IF(VLOOKUP(AF12,$C$6:$F$1899,4,0)="未符資格","未符資格",IF(VLOOKUP(AF12,$C$6:$F$1899,4,0)="一年一次","核符",IF(VLOOKUP(AF12,$C$6:$F$1899,4,0)="二年一次",IF(IFERROR(VLOOKUP(AF12,AA$5:AA$1899,1,0),"")=AF12,"前一年申請有案","核符"),IF(VLOOKUP(AF12,$C$6:$F$1899,4,0)="三年一次",IF(IFERROR(VLOOKUP(AF12,AA$5:AA$1899,1,0),"")&IFERROR(VLOOKUP(AF12,V$5:V$1899,1,0),"")=AF12,"前二年申請有案","核符")))))) ->  | AL12: =IF(AK12="","",IFERROR(AK$4-LEFT(VLOOKUP(AK12,$C$6:$D$1899,2,0),2)-1,"未建檔")) ->  | AN12: =IF(AK12="","",IF(VLOOKUP(AK12,$C$6:$F$1899,4,0)="未符資格","未符資格",IF(VLOOKUP(AK12,$C$6:$F$1899,4,0)="一年一次","核符",IF(VLOOKUP(AK12,$C$6:$F$1899,4,0)="二年一次",IF(IFERROR(VLOOKUP(AK12,AF$5:AF$1899,1,0),"")=AK12,"前一年申請有案","核符"),IF(VLOOKUP(AK12,$C$6:$F$1899,4,0)="三年一次",IF(IFERROR(VLOOKUP(AK12,AF$5:AF$1899,1,0),"")&IFERROR(VLOOKUP(AK12,AA$5:AA$1899,1,0),"")=AK12,"前二年申請有案","核符")))))) ->  | AQ12: =IF(AP12="","",IFERROR(AP$4-LEFT(VLOOKUP(AP12,$C$6:$D$1899,2,0),2)-1,"未建檔")) ->  | AS12: =IF(AP12="","",IF(VLOOKUP(AP12,$C$6:$F$1899,4,0)="未符資格","未符資格",IF(VLOOKUP(AP12,$C$6:$F$1899,4,0)="一年一次","核符",IF(VLOOKUP(AP12,$C$6:$F$1899,4,0)="二年一次",IF(IFERROR(VLOOKUP(AP12,AK$5:AK$1899,1,0),"")=AP12,"前一年申請有案","核符"),IF(VLOOKUP(AP12,$C$6:$F$1899,4,0)="三年一次",IF(IFERROR(VLOOKUP(AP12,AK$5:AK$1899,1,0),"")&IFERROR(VLOOKUP(AP12,AF$5:AF$1899,1,0),"")=AP12,"前二年申請有案","核符")))))) ->  | AV12: =IF(AU12="","",IFERROR(AU$4-LEFT(VLOOKUP(AU12,$C$6:$D$1899,2,0),2)-1,"未建檔")) ->  | AX12: =IF(AU12="","",IF(VLOOKUP(AU12,$C$6:$F$1899,4,0)="未符資格","未符資格",IF(VLOOKUP(AU12,$C$6:$F$1899,4,0)="一年一次","核符",IF(VLOOKUP(AU12,$C$6:$F$1899,4,0)="二年一次",IF(IFERROR(VLOOKUP(AU12,AP$5:AP$1899,1,0),"")=AU12,"前一年申請有案","核符"),IF(VLOOKUP(AU12,$C$6:$F$1899,4,0)="三年一次",IF(IFERROR(VLOOKUP(AU12,AP$5:AP$1899,1,0),"")&IFERROR(VLOOKUP(AU12,AK$5:AK$1899,1,0),"")=AU12,"前二年申請有案","核符")))))) ->  | BA12: =IF(AZ12="","",IFERROR(AZ$4-LEFT(VLOOKUP(AZ12,$C$6:$D$1899,2,0),2)-1,"未建檔")) ->  | BC12: =IF(AZ12="","",IF(VLOOKUP(AZ12,$C$6:$F$1899,4,0)="未符資格","未符資格",IF(VLOOKUP(AZ12,$C$6:$F$1899,4,0)="一年一次","核符",IF(VLOOKUP(AZ12,$C$6:$F$1899,4,0)="二年一次",IF(IFERROR(VLOOKUP(AZ12,AU$5:AU$1899,1,0),"")=AZ12,"前一年申請有案","核符"),IF(VLOOKUP(AZ12,$C$6:$F$1899,4,0)="三年一次",IF(IFERROR(VLOOKUP(AZ12,AU$5:AU$1899,1,0),"")&IFERROR(VLOOKUP(AZ12,AP$5:AP$1899,1,0),"")=AZ12,"前二年申請有案","核符")))))) -> 
A13: 8 | E13: =IF(C13="","",$Q$4-LEFT(D13,2)-1) ->  | H13: =IF(G13="","",IFERROR(G$4-LEFT(VLOOKUP(G13,$C$6:$D$1899,2,0),2)-1,"未建檔")) ->  | M13: =IF(L13="","",IFERROR(L$4-LEFT(VLOOKUP(L13,$C$6:$D$1899,2,0),2)-1,"未建檔")) ->  | R13: =IF(Q13="","",IFERROR(Q$4-LEFT(VLOOKUP(Q13,$C$6:$D$1899,2,0),2)-1,"未建檔")) ->  | T13: =IF(Q13="","",IF(VLOOKUP(Q13,$C$6:$F$1899,4,0)="未符資格","未符資格",IF(VLOOKUP(Q13,$C$6:$F$1899,4,0)="一年一次","核符",IF(VLOOKUP(Q13,$C$6:$F$1899,4,0)="二年一次",IF(IFERROR(VLOOKUP(Q13,L$5:L$1899,1,0),"")=Q13,"前一年申請有案","核符"),IF(VLOOKUP(Q13,$C$6:$F$1899,4,0)="三年一次",IF(IFERROR(VLOOKUP(Q13,L$5:L$1899,1,0),"")&IFERROR(VLOOKUP(Q13,G$5:G$1899,1,0),"")=Q13,"前二年申請有案","核符")))))) ->  | W13: =IF(V13="","",IFERROR(V$4-LEFT(VLOOKUP(V13,$C$6:$D$1899,2,0),2)-1,"未建檔")) ->  | Y13: =IF(V13="","",IF(VLOOKUP(V13,$C$6:$F$1899,4,0)="未符資格","未符資格",IF(VLOOKUP(V13,$C$6:$F$1899,4,0)="一年一次","核符",IF(VLOOKUP(V13,$C$6:$F$1899,4,0)="二年一次",IF(IFERROR(VLOOKUP(V13,Q$5:Q$1899,1,0),"")=V13,"前一年申請有案","核符"),IF(VLOOKUP(V13,$C$6:$F$1899,4,0)="三年一次",IF(IFERROR(VLOOKUP(V13,Q$5:Q$1899,1,0),"")&IFERROR(VLOOKUP(V13,L$5:L$1899,1,0),"")=V13,"前二年申請有案","核符")))))) ->  | AB13: =IF(AA13="","",IFERROR(AA$4-LEFT(VLOOKUP(AA13,$C$6:$D$1899,2,0),2)-1,"未建檔")) ->  | AD13: =IF(AA13="","",IF(VLOOKUP(AA13,$C$6:$F$1899,4,0)="未符資格","未符資格",IF(VLOOKUP(AA13,$C$6:$F$1899,4,0)="一年一次","核符",IF(VLOOKUP(AA13,$C$6:$F$1899,4,0)="二年一次",IF(IFERROR(VLOOKUP(AA13,V$5:V$1899,1,0),"")=AA13,"前一年申請有案","核符"),IF(VLOOKUP(AA13,$C$6:$F$1899,4,0)="三年一次",IF(IFERROR(VLOOKUP(AA13,V$5:V$1899,1,0),"")&IFERROR(VLOOKUP(AA13,Q$5:Q$1899,1,0),"")=AA13,"前二年申請有案","核符")))))) ->  | AG13: =IF(AF13="","",IFERROR(AF$4-LEFT(VLOOKUP(AF13,$C$6:$D$1899,2,0),2)-1,"未建檔")) ->  | AI13: =IF(AF13="","",IF(VLOOKUP(AF13,$C$6:$F$1899,4,0)="未符資格","未符資格",IF(VLOOKUP(AF13,$C$6:$F$1899,4,0)="一年一次","核符",IF(VLOOKUP(AF13,$C$6:$F$1899,4,0)="二年一次",IF(IFERROR(VLOOKUP(AF13,AA$5:AA$1899,1,0),"")=AF13,"前一年申請有案","核符"),IF(VLOOKUP(AF13,$C$6:$F$1899,4,0)="三年一次",IF(IFERROR(VLOOKUP(AF13,AA$5:AA$1899,1,0),"")&IFERROR(VLOOKUP(AF13,V$5:V$1899,1,0),"")=AF13,"前二年申請有案","核符")))))) ->  | AL13: =IF(AK13="","",IFERROR(AK$4-LEFT(VLOOKUP(AK13,$C$6:$D$1899,2,0),2)-1,"未建檔")) ->  | AN13: =IF(AK13="","",IF(VLOOKUP(AK13,$C$6:$F$1899,4,0)="未符資格","未符資格",IF(VLOOKUP(AK13,$C$6:$F$1899,4,0)="一年一次","核符",IF(VLOOKUP(AK13,$C$6:$F$1899,4,0)="二年一次",IF(IFERROR(VLOOKUP(AK13,AF$5:AF$1899,1,0),"")=AK13,"前一年申請有案","核符"),IF(VLOOKUP(AK13,$C$6:$F$1899,4,0)="三年一次",IF(IFERROR(VLOOKUP(AK13,AF$5:AF$1899,1,0),"")&IFERROR(VLOOKUP(AK13,AA$5:AA$1899,1,0),"")=AK13,"前二年申請有案","核符")))))) ->  | AQ13: =IF(AP13="","",IFERROR(AP$4-LEFT(VLOOKUP(AP13,$C$6:$D$1899,2,0),2)-1,"未建檔")) ->  | AS13: =IF(AP13="","",IF(VLOOKUP(AP13,$C$6:$F$1899,4,0)="未符資格","未符資格",IF(VLOOKUP(AP13,$C$6:$F$1899,4,0)="一年一次","核符",IF(VLOOKUP(AP13,$C$6:$F$1899,4,0)="二年一次",IF(IFERROR(VLOOKUP(AP13,AK$5:AK$1899,1,0),"")=AP13,"前一年申請有案","核符"),IF(VLOOKUP(AP13,$C$6:$F$1899,4,0)="三年一次",IF(IFERROR(VLOOKUP(AP13,AK$5:AK$1899,1,0),"")&IFERROR(VLOOKUP(AP13,AF$5:AF$1899,1,0),"")=AP13,"前二年申請有案","核符")))))) ->  | AV13: =IF(AU13="","",IFERROR(AU$4-LEFT(VLOOKUP(AU13,$C$6:$D$1899,2,0),2)-1,"未建檔")) ->  | AX13: =IF(AU13="","",IF(VLOOKUP(AU13,$C$6:$F$1899,4,0)="未符資格","未符資格",IF(VLOOKUP(AU13,$C$6:$F$1899,4,0)="一年一次","核符",IF(VLOOKUP(AU13,$C$6:$F$1899,4,0)="二年一次",IF(IFERROR(VLOOKUP(AU13,AP$5:AP$1899,1,0),"")=AU13,"前一年申請有案","核符"),IF(VLOOKUP(AU13,$C$6:$F$1899,4,0)="三年一次",IF(IFERROR(VLOOKUP(AU13,AP$5:AP$1899,1,0),"")&IFERROR(VLOOKUP(AU13,AK$5:AK$1899,1,0),"")=AU13,"前二年申請有案","核符")))))) ->  | BA13: =IF(AZ13="","",IFERROR(AZ$4-LEFT(VLOOKUP(AZ13,$C$6:$D$1899,2,0),2)-1,"未建檔")) ->  | BC13: =IF(AZ13="","",IF(VLOOKUP(AZ13,$C$6:$F$1899,4,0)="未符資格","未符資格",IF(VLOOKUP(AZ13,$C$6:$F$1899,4,0)="一年一次","核符",IF(VLOOKUP(AZ13,$C$6:$F$1899,4,0)="二年一次",IF(IFERROR(VLOOKUP(AZ13,AU$5:AU$1899,1,0),"")=AZ13,"前一年申請有案","核符"),IF(VLOOKUP(AZ13,$C$6:$F$1899,4,0)="三年一次",IF(IFERROR(VLOOKUP(AZ13,AU$5:AU$1899,1,0),"")&IFERROR(VLOOKUP(AZ13,AP$5:AP$1899,1,0),"")=AZ13,"前二年申請有案","核符")))))) -> 
A14: 9 | E14: =IF(C14="","",$Q$4-LEFT(D14,2)-1) ->  | H14: =IF(G14="","",IFERROR(G$4-LEFT(VLOOKUP(G14,$C$6:$D$1899,2,0),2)-1,"未建檔")) ->  | M14: =IF(L14="","",IFERROR(L$4-LEFT(VLOOKUP(L14,$C$6:$D$1899,2,0),2)-1,"未建檔")) ->  | R14: =IF(Q14="","",IFERROR(Q$4-LEFT(VLOOKUP(Q14,$C$6:$D$1899,2,0),2)-1,"未建檔")) ->  | T14: =IF(Q14="","",IF(VLOOKUP(Q14,$C$6:$F$1899,4,0)="未符資格","未符資格",IF(VLOOKUP(Q14,$C$6:$F$1899,4,0)="一年一次","核符",IF(VLOOKUP(Q14,$C$6:$F$1899,4,0)="二年一次",IF(IFERROR(VLOOKUP(Q14,L$5:L$1899,1,0),"")=Q14,"前一年申請有案","核符"),IF(VLOOKUP(Q14,$C$6:$F$1899,4,0)="三年一次",IF(IFERROR(VLOOKUP(Q14,L$5:L$1899,1,0),"")&IFERROR(VLOOKUP(Q14,G$5:G$1899,1,0),"")=Q14,"前二年申請有案","核符")))))) ->  | W14: =IF(V14="","",IFERROR(V$4-LEFT(VLOOKUP(V14,$C$6:$D$1899,2,0),2)-1,"未建檔")) ->  | Y14: =IF(V14="","",IF(VLOOKUP(V14,$C$6:$F$1899,4,0)="未符資格","未符資格",IF(VLOOKUP(V14,$C$6:$F$1899,4,0)="一年一次","核符",IF(VLOOKUP(V14,$C$6:$F$1899,4,0)="二年一次",IF(IFERROR(VLOOKUP(V14,Q$5:Q$1899,1,0),"")=V14,"前一年申請有案","核符"),IF(VLOOKUP(V14,$C$6:$F$1899,4,0)="三年一次",IF(IFERROR(VLOOKUP(V14,Q$5:Q$1899,1,0),"")&IFERROR(VLOOKUP(V14,L$5:L$1899,1,0),"")=V14,"前二年申請有案","核符")))))) ->  | AB14: =IF(AA14="","",IFERROR(AA$4-LEFT(VLOOKUP(AA14,$C$6:$D$1899,2,0),2)-1,"未建檔")) ->  | AD14: =IF(AA14="","",IF(VLOOKUP(AA14,$C$6:$F$1899,4,0)="未符資格","未符資格",IF(VLOOKUP(AA14,$C$6:$F$1899,4,0)="一年一次","核符",IF(VLOOKUP(AA14,$C$6:$F$1899,4,0)="二年一次",IF(IFERROR(VLOOKUP(AA14,V$5:V$1899,1,0),"")=AA14,"前一年申請有案","核符"),IF(VLOOKUP(AA14,$C$6:$F$1899,4,0)="三年一次",IF(IFERROR(VLOOKUP(AA14,V$5:V$1899,1,0),"")&IFERROR(VLOOKUP(AA14,Q$5:Q$1899,1,0),"")=AA14,"前二年申請有案","核符")))))) ->  | AG14: =IF(AF14="","",IFERROR(AF$4-LEFT(VLOOKUP(AF14,$C$6:$D$1899,2,0),2)-1,"未建檔")) ->  | AI14: =IF(AF14="","",IF(VLOOKUP(AF14,$C$6:$F$1899,4,0)="未符資格","未符資格",IF(VLOOKUP(AF14,$C$6:$F$1899,4,0)="一年一次","核符",IF(VLOOKUP(AF14,$C$6:$F$1899,4,0)="二年一次",IF(IFERROR(VLOOKUP(AF14,AA$5:AA$1899,1,0),"")=AF14,"前一年申請有案","核符"),IF(VLOOKUP(AF14,$C$6:$F$1899,4,0)="三年一次",IF(IFERROR(VLOOKUP(AF14,AA$5:AA$1899,1,0),"")&IFERROR(VLOOKUP(AF14,V$5:V$1899,1,0),"")=AF14,"前二年申請有案","核符")))))) ->  | AL14: =IF(AK14="","",IFERROR(AK$4-LEFT(VLOOKUP(AK14,$C$6:$D$1899,2,0),2)-1,"未建檔")) ->  | AN14: =IF(AK14="","",IF(VLOOKUP(AK14,$C$6:$F$1899,4,0)="未符資格","未符資格",IF(VLOOKUP(AK14,$C$6:$F$1899,4,0)="一年一次","核符",IF(VLOOKUP(AK14,$C$6:$F$1899,4,0)="二年一次",IF(IFERROR(VLOOKUP(AK14,AF$5:AF$1899,1,0),"")=AK14,"前一年申請有案","核符"),IF(VLOOKUP(AK14,$C$6:$F$1899,4,0)="三年一次",IF(IFERROR(VLOOKUP(AK14,AF$5:AF$1899,1,0),"")&IFERROR(VLOOKUP(AK14,AA$5:AA$1899,1,0),"")=AK14,"前二年申請有案","核符")))))) ->  | AQ14: =IF(AP14="","",IFERROR(AP$4-LEFT(VLOOKUP(AP14,$C$6:$D$1899,2,0),2)-1,"未建檔")) ->  | AS14: =IF(AP14="","",IF(VLOOKUP(AP14,$C$6:$F$1899,4,0)="未符資格","未符資格",IF(VLOOKUP(AP14,$C$6:$F$1899,4,0)="一年一次","核符",IF(VLOOKUP(AP14,$C$6:$F$1899,4,0)="二年一次",IF(IFERROR(VLOOKUP(AP14,AK$5:AK$1899,1,0),"")=AP14,"前一年申請有案","核符"),IF(VLOOKUP(AP14,$C$6:$F$1899,4,0)="三年一次",IF(IFERROR(VLOOKUP(AP14,AK$5:AK$1899,1,0),"")&IFERROR(VLOOKUP(AP14,AF$5:AF$1899,1,0),"")=AP14,"前二年申請有案","核符")))))) ->  | AV14: =IF(AU14="","",IFERROR(AU$4-LEFT(VLOOKUP(AU14,$C$6:$D$1899,2,0),2)-1,"未建檔")) ->  | AX14: =IF(AU14="","",IF(VLOOKUP(AU14,$C$6:$F$1899,4,0)="未符資格","未符資格",IF(VLOOKUP(AU14,$C$6:$F$1899,4,0)="一年一次","核符",IF(VLOOKUP(AU14,$C$6:$F$1899,4,0)="二年一次",IF(IFERROR(VLOOKUP(AU14,AP$5:AP$1899,1,0),"")=AU14,"前一年申請有案","核符"),IF(VLOOKUP(AU14,$C$6:$F$1899,4,0)="三年一次",IF(IFERROR(VLOOKUP(AU14,AP$5:AP$1899,1,0),"")&IFERROR(VLOOKUP(AU14,AK$5:AK$1899,1,0),"")=AU14,"前二年申請有案","核符")))))) ->  | BA14: =IF(AZ14="","",IFERROR(AZ$4-LEFT(VLOOKUP(AZ14,$C$6:$D$1899,2,0),2)-1,"未建檔")) ->  | BC14: =IF(AZ14="","",IF(VLOOKUP(AZ14,$C$6:$F$1899,4,0)="未符資格","未符資格",IF(VLOOKUP(AZ14,$C$6:$F$1899,4,0)="一年一次","核符",IF(VLOOKUP(AZ14,$C$6:$F$1899,4,0)="二年一次",IF(IFERROR(VLOOKUP(AZ14,AU$5:AU$1899,1,0),"")=AZ14,"前一年申請有案","核符"),IF(VLOOKUP(AZ14,$C$6:$F$1899,4,0)="三年一次",IF(IFERROR(VLOOKUP(AZ14,AU$5:AU$1899,1,0),"")&IFERROR(VLOOKUP(AZ14,AP$5:AP$1899,1,0),"")=AZ14,"前二年申請有案","核符")))))) -> 
A15: 10 | E15: =IF(C15="","",$Q$4-LEFT(D15,2)-1) ->  | H15: =IF(G15="","",IFERROR(G$4-LEFT(VLOOKUP(G15,$C$6:$D$1899,2,0),2)-1,"未建檔")) ->  | M15: =IF(L15="","",IFERROR(L$4-LEFT(VLOOKUP(L15,$C$6:$D$1899,2,0),2)-1,"未建檔")) ->  | R15: =IF(Q15="","",IFERROR(Q$4-LEFT(VLOOKUP(Q15,$C$6:$D$1899,2,0),2)-1,"未建檔")) ->  | T15: =IF(Q15="","",IF(VLOOKUP(Q15,$C$6:$F$1899,4,0)="未符資格","未符資格",IF(VLOOKUP(Q15,$C$6:$F$1899,4,0)="一年一次","核符",IF(VLOOKUP(Q15,$C$6:$F$1899,4,0)="二年一次",IF(IFERROR(VLOOKUP(Q15,L$5:L$1899,1,0),"")=Q15,"前一年申請有案","核符"),IF(VLOOKUP(Q15,$C$6:$F$1899,4,0)="三年一次",IF(IFERROR(VLOOKUP(Q15,L$5:L$1899,1,0),"")&IFERROR(VLOOKUP(Q15,G$5:G$1899,1,0),"")=Q15,"前二年申請有案","核符")))))) ->  | W15: =IF(V15="","",IFERROR(V$4-LEFT(VLOOKUP(V15,$C$6:$D$1899,2,0),2)-1,"未建檔")) ->  | Y15: =IF(V15="","",IF(VLOOKUP(V15,$C$6:$F$1899,4,0)="未符資格","未符資格",IF(VLOOKUP(V15,$C$6:$F$1899,4,0)="一年一次","核符",IF(VLOOKUP(V15,$C$6:$F$1899,4,0)="二年一次",IF(IFERROR(VLOOKUP(V15,Q$5:Q$1899,1,0),"")=V15,"前一年申請有案","核符"),IF(VLOOKUP(V15,$C$6:$F$1899,4,0)="三年一次",IF(IFERROR(VLOOKUP(V15,Q$5:Q$1899,1,0),"")&IFERROR(VLOOKUP(V15,L$5:L$1899,1,0),"")=V15,"前二年申請有案","核符")))))) ->  | AB15: =IF(AA15="","",IFERROR(AA$4-LEFT(VLOOKUP(AA15,$C$6:$D$1899,2,0),2)-1,"未建檔")) ->  | AD15: =IF(AA15="","",IF(VLOOKUP(AA15,$C$6:$F$1899,4,0)="未符資格","未符資格",IF(VLOOKUP(AA15,$C$6:$F$1899,4,0)="一年一次","核符",IF(VLOOKUP(AA15,$C$6:$F$1899,4,0)="二年一次",IF(IFERROR(VLOOKUP(AA15,V$5:V$1899,1,0),"")=AA15,"前一年申請有案","核符"),IF(VLOOKUP(AA15,$C$6:$F$1899,4,0)="三年一次",IF(IFERROR(VLOOKUP(AA15,V$5:V$1899,1,0),"")&IFERROR(VLOOKUP(AA15,Q$5:Q$1899,1,0),"")=AA15,"前二年申請有案","核符")))))) ->  | AG15: =IF(AF15="","",IFERROR(AF$4-LEFT(VLOOKUP(AF15,$C$6:$D$1899,2,0),2)-1,"未建檔")) ->  | AI15: =IF(AF15="","",IF(VLOOKUP(AF15,$C$6:$F$1899,4,0)="未符資格","未符資格",IF(VLOOKUP(AF15,$C$6:$F$1899,4,0)="一年一次","核符",IF(VLOOKUP(AF15,$C$6:$F$1899,4,0)="二年一次",IF(IFERROR(VLOOKUP(AF15,AA$5:AA$1899,1,0),"")=AF15,"前一年申請有案","核符"),IF(VLOOKUP(AF15,$C$6:$F$1899,4,0)="三年一次",IF(IFERROR(VLOOKUP(AF15,AA$5:AA$1899,1,0),"")&IFERROR(VLOOKUP(AF15,V$5:V$1899,1,0),"")=AF15,"前二年申請有案","核符")))))) ->  | AL15: =IF(AK15="","",IFERROR(AK$4-LEFT(VLOOKUP(AK15,$C$6:$D$1899,2,0),2)-1,"未建檔")) ->  | AN15: =IF(AK15="","",IF(VLOOKUP(AK15,$C$6:$F$1899,4,0)="未符資格","未符資格",IF(VLOOKUP(AK15,$C$6:$F$1899,4,0)="一年一次","核符",IF(VLOOKUP(AK15,$C$6:$F$1899,4,0)="二年一次",IF(IFERROR(VLOOKUP(AK15,AF$5:AF$1899,1,0),"")=AK15,"前一年申請有案","核符"),IF(VLOOKUP(AK15,$C$6:$F$1899,4,0)="三年一次",IF(IFERROR(VLOOKUP(AK15,AF$5:AF$1899,1,0),"")&IFERROR(VLOOKUP(AK15,AA$5:AA$1899,1,0),"")=AK15,"前二年申請有案","核符")))))) ->  | AQ15: =IF(AP15="","",IFERROR(AP$4-LEFT(VLOOKUP(AP15,$C$6:$D$1899,2,0),2)-1,"未建檔")) ->  | AS15: =IF(AP15="","",IF(VLOOKUP(AP15,$C$6:$F$1899,4,0)="未符資格","未符資格",IF(VLOOKUP(AP15,$C$6:$F$1899,4,0)="一年一次","核符",IF(VLOOKUP(AP15,$C$6:$F$1899,4,0)="二年一次",IF(IFERROR(VLOOKUP(AP15,AK$5:AK$1899,1,0),"")=AP15,"前一年申請有案","核符"),IF(VLOOKUP(AP15,$C$6:$F$1899,4,0)="三年一次",IF(IFERROR(VLOOKUP(AP15,AK$5:AK$1899,1,0),"")&IFERROR(VLOOKUP(AP15,AF$5:AF$1899,1,0),"")=AP15,"前二年申請有案","核符")))))) ->  | AV15: =IF(AU15="","",IFERROR(AU$4-LEFT(VLOOKUP(AU15,$C$6:$D$1899,2,0),2)-1,"未建檔")) ->  | AX15: =IF(AU15="","",IF(VLOOKUP(AU15,$C$6:$F$1899,4,0)="未符資格","未符資格",IF(VLOOKUP(AU15,$C$6:$F$1899,4,0)="一年一次","核符",IF(VLOOKUP(AU15,$C$6:$F$1899,4,0)="二年一次",IF(IFERROR(VLOOKUP(AU15,AP$5:AP$1899,1,0),"")=AU15,"前一年申請有案","核符"),IF(VLOOKUP(AU15,$C$6:$F$1899,4,0)="三年一次",IF(IFERROR(VLOOKUP(AU15,AP$5:AP$1899,1,0),"")&IFERROR(VLOOKUP(AU15,AK$5:AK$1899,1,0),"")=AU15,"前二年申請有案","核符")))))) ->  | BA15: =IF(AZ15="","",IFERROR(AZ$4-LEFT(VLOOKUP(AZ15,$C$6:$D$1899,2,0),2)-1,"未建檔")) ->  | BC15: =IF(AZ15="","",IF(VLOOKUP(AZ15,$C$6:$F$1899,4,0)="未符資格","未符資格",IF(VLOOKUP(AZ15,$C$6:$F$1899,4,0)="一年一次","核符",IF(VLOOKUP(AZ15,$C$6:$F$1899,4,0)="二年一次",IF(IFERROR(VLOOKUP(AZ15,AU$5:AU$1899,1,0),"")=AZ15,"前一年申請有案","核符"),IF(VLOOKUP(AZ15,$C$6:$F$1899,4,0)="三年一次",IF(IFERROR(VLOOKUP(AZ15,AU$5:AU$1899,1,0),"")&IFERROR(VLOOKUP(AZ15,AP$5:AP$1899,1,0),"")=AZ15,"前二年申請有案","核符")))))) -> 
A16: 11 | E16: =IF(C16="","",$Q$4-LEFT(D16,2)-1) ->  | H16: =IF(G16="","",IFERROR(G$4-LEFT(VLOOKUP(G16,$C$6:$D$1899,2,0),2)-1,"未建檔")) ->  | M16: =IF(L16="","",IFERROR(L$4-LEFT(VLOOKUP(L16,$C$6:$D$1899,2,0),2)-1,"未建檔")) ->  | R16: =IF(Q16="","",IFERROR(Q$4-LEFT(VLOOKUP(Q16,$C$6:$D$1899,2,0),2)-1,"未建檔")) ->  | T16: =IF(Q16="","",IF(VLOOKUP(Q16,$C$6:$F$1899,4,0)="未符資格","未符資格",IF(VLOOKUP(Q16,$C$6:$F$1899,4,0)="一年一次","核符",IF(VLOOKUP(Q16,$C$6:$F$1899,4,0)="二年一次",IF(IFERROR(VLOOKUP(Q16,L$5:L$1899,1,0),"")=Q16,"前一年申請有案","核符"),IF(VLOOKUP(Q16,$C$6:$F$1899,4,0)="三年一次",IF(IFERROR(VLOOKUP(Q16,L$5:L$1899,1,0),"")&IFERROR(VLOOKUP(Q16,G$5:G$1899,1,0),"")=Q16,"前二年申請有案","核符")))))) ->  | W16: =IF(V16="","",IFERROR(V$4-LEFT(VLOOKUP(V16,$C$6:$D$1899,2,0),2)-1,"未建檔")) ->  | Y16: =IF(V16="","",IF(VLOOKUP(V16,$C$6:$F$1899,4,0)="未符資格","未符資格",IF(VLOOKUP(V16,$C$6:$F$1899,4,0)="一年一次","核符",IF(VLOOKUP(V16,$C$6:$F$1899,4,0)="二年一次",IF(IFERROR(VLOOKUP(V16,Q$5:Q$1899,1,0),"")=V16,"前一年申請有案","核符"),IF(VLOOKUP(V16,$C$6:$F$1899,4,0)="三年一次",IF(IFERROR(VLOOKUP(V16,Q$5:Q$1899,1,0),"")&IFERROR(VLOOKUP(V16,L$5:L$1899,1,0),"")=V16,"前二年申請有案","核符")))))) ->  | AB16: =IF(AA16="","",IFERROR(AA$4-LEFT(VLOOKUP(AA16,$C$6:$D$1899,2,0),2)-1,"未建檔")) ->  | AD16: =IF(AA16="","",IF(VLOOKUP(AA16,$C$6:$F$1899,4,0)="未符資格","未符資格",IF(VLOOKUP(AA16,$C$6:$F$1899,4,0)="一年一次","核符",IF(VLOOKUP(AA16,$C$6:$F$1899,4,0)="二年一次",IF(IFERROR(VLOOKUP(AA16,V$5:V$1899,1,0),"")=AA16,"前一年申請有案","核符"),IF(VLOOKUP(AA16,$C$6:$F$1899,4,0)="三年一次",IF(IFERROR(VLOOKUP(AA16,V$5:V$1899,1,0),"")&IFERROR(VLOOKUP(AA16,Q$5:Q$1899,1,0),"")=AA16,"前二年申請有案","核符")))))) ->  | AG16: =IF(AF16="","",IFERROR(AF$4-LEFT(VLOOKUP(AF16,$C$6:$D$1899,2,0),2)-1,"未建檔")) ->  | AI16: =IF(AF16="","",IF(VLOOKUP(AF16,$C$6:$F$1899,4,0)="未符資格","未符資格",IF(VLOOKUP(AF16,$C$6:$F$1899,4,0)="一年一次","核符",IF(VLOOKUP(AF16,$C$6:$F$1899,4,0)="二年一次",IF(IFERROR(VLOOKUP(AF16,AA$5:AA$1899,1,0),"")=AF16,"前一年申請有案","核符"),IF(VLOOKUP(AF16,$C$6:$F$1899,4,0)="三年一次",IF(IFERROR(VLOOKUP(AF16,AA$5:AA$1899,1,0),"")&IFERROR(VLOOKUP(AF16,V$5:V$1899,1,0),"")=AF16,"前二年申請有案","核符")))))) ->  | AL16: =IF(AK16="","",IFERROR(AK$4-LEFT(VLOOKUP(AK16,$C$6:$D$1899,2,0),2)-1,"未建檔")) ->  | AN16: =IF(AK16="","",IF(VLOOKUP(AK16,$C$6:$F$1899,4,0)="未符資格","未符資格",IF(VLOOKUP(AK16,$C$6:$F$1899,4,0)="一年一次","核符",IF(VLOOKUP(AK16,$C$6:$F$1899,4,0)="二年一次",IF(IFERROR(VLOOKUP(AK16,AF$5:AF$1899,1,0),"")=AK16,"前一年申請有案","核符"),IF(VLOOKUP(AK16,$C$6:$F$1899,4,0)="三年一次",IF(IFERROR(VLOOKUP(AK16,AF$5:AF$1899,1,0),"")&IFERROR(VLOOKUP(AK16,AA$5:AA$1899,1,0),"")=AK16,"前二年申請有案","核符")))))) ->  | AQ16: =IF(AP16="","",IFERROR(AP$4-LEFT(VLOOKUP(AP16,$C$6:$D$1899,2,0),2)-1,"未建檔")) ->  | AS16: =IF(AP16="","",IF(VLOOKUP(AP16,$C$6:$F$1899,4,0)="未符資格","未符資格",IF(VLOOKUP(AP16,$C$6:$F$1899,4,0)="一年一次","核符",IF(VLOOKUP(AP16,$C$6:$F$1899,4,0)="二年一次",IF(IFERROR(VLOOKUP(AP16,AK$5:AK$1899,1,0),"")=AP16,"前一年申請有案","核符"),IF(VLOOKUP(AP16,$C$6:$F$1899,4,0)="三年一次",IF(IFERROR(VLOOKUP(AP16,AK$5:AK$1899,1,0),"")&IFERROR(VLOOKUP(AP16,AF$5:AF$1899,1,0),"")=AP16,"前二年申請有案","核符")))))) ->  | AV16: =IF(AU16="","",IFERROR(AU$4-LEFT(VLOOKUP(AU16,$C$6:$D$1899,2,0),2)-1,"未建檔")) ->  | AX16: =IF(AU16="","",IF(VLOOKUP(AU16,$C$6:$F$1899,4,0)="未符資格","未符資格",IF(VLOOKUP(AU16,$C$6:$F$1899,4,0)="一年一次","核符",IF(VLOOKUP(AU16,$C$6:$F$1899,4,0)="二年一次",IF(IFERROR(VLOOKUP(AU16,AP$5:AP$1899,1,0),"")=AU16,"前一年申請有案","核符"),IF(VLOOKUP(AU16,$C$6:$F$1899,4,0)="三年一次",IF(IFERROR(VLOOKUP(AU16,AP$5:AP$1899,1,0),"")&IFERROR(VLOOKUP(AU16,AK$5:AK$1899,1,0),"")=AU16,"前二年申請有案","核符")))))) ->  | BA16: =IF(AZ16="","",IFERROR(AZ$4-LEFT(VLOOKUP(AZ16,$C$6:$D$1899,2,0),2)-1,"未建檔")) ->  | BC16: =IF(AZ16="","",IF(VLOOKUP(AZ16,$C$6:$F$1899,4,0)="未符資格","未符資格",IF(VLOOKUP(AZ16,$C$6:$F$1899,4,0)="一年一次","核符",IF(VLOOKUP(AZ16,$C$6:$F$1899,4,0)="二年一次",IF(IFERROR(VLOOKUP(AZ16,AU$5:AU$1899,1,0),"")=AZ16,"前一年申請有案","核符"),IF(VLOOKUP(AZ16,$C$6:$F$1899,4,0)="三年一次",IF(IFERROR(VLOOKUP(AZ16,AU$5:AU$1899,1,0),"")&IFERROR(VLOOKUP(AZ16,AP$5:AP$1899,1,0),"")=AZ16,"前二年申請有案","核符")))))) -> 
A17: 12 | E17: =IF(C17="","",$Q$4-LEFT(D17,2)-1) ->  | H17: =IF(G17="","",IFERROR(G$4-LEFT(VLOOKUP(G17,$C$6:$D$1899,2,0),2)-1,"未建檔")) ->  | M17: =IF(L17="","",IFERROR(L$4-LEFT(VLOOKUP(L17,$C$6:$D$1899,2,0),2)-1,"未建檔")) ->  | R17: =IF(Q17="","",IFERROR(Q$4-LEFT(VLOOKUP(Q17,$C$6:$D$1899,2,0),2)-1,"未建檔")) ->  | T17: =IF(Q17="","",IF(VLOOKUP(Q17,$C$6:$F$1899,4,0)="未符資格","未符資格",IF(VLOOKUP(Q17,$C$6:$F$1899,4,0)="一年一次","核符",IF(VLOOKUP(Q17,$C$6:$F$1899,4,0)="二年一次",IF(IFERROR(VLOOKUP(Q17,L$5:L$1899,1,0),"")=Q17,"前一年申請有案","核符"),IF(VLOOKUP(Q17,$C$6:$F$1899,4,0)="三年一次",IF(IFERROR(VLOOKUP(Q17,L$5:L$1899,1,0),"")&IFERROR(VLOOKUP(Q17,G$5:G$1899,1,0),"")=Q17,"前二年申請有案","核符")))))) ->  | W17: =IF(V17="","",IFERROR(V$4-LEFT(VLOOKUP(V17,$C$6:$D$1899,2,0),2)-1,"未建檔")) ->  | Y17: =IF(V17="","",IF(VLOOKUP(V17,$C$6:$F$1899,4,0)="未符資格","未符資格",IF(VLOOKUP(V17,$C$6:$F$1899,4,0)="一年一次","核符",IF(VLOOKUP(V17,$C$6:$F$1899,4,0)="二年一次",IF(IFERROR(VLOOKUP(V17,Q$5:Q$1899,1,0),"")=V17,"前一年申請有案","核符"),IF(VLOOKUP(V17,$C$6:$F$1899,4,0)="三年一次",IF(IFERROR(VLOOKUP(V17,Q$5:Q$1899,1,0),"")&IFERROR(VLOOKUP(V17,L$5:L$1899,1,0),"")=V17,"前二年申請有案","核符")))))) ->  | AB17: =IF(AA17="","",IFERROR(AA$4-LEFT(VLOOKUP(AA17,$C$6:$D$1899,2,0),2)-1,"未建檔")) ->  | AD17: =IF(AA17="","",IF(VLOOKUP(AA17,$C$6:$F$1899,4,0)="未符資格","未符資格",IF(VLOOKUP(AA17,$C$6:$F$1899,4,0)="一年一次","核符",IF(VLOOKUP(AA17,$C$6:$F$1899,4,0)="二年一次",IF(IFERROR(VLOOKUP(AA17,V$5:V$1899,1,0),"")=AA17,"前一年申請有案","核符"),IF(VLOOKUP(AA17,$C$6:$F$1899,4,0)="三年一次",IF(IFERROR(VLOOKUP(AA17,V$5:V$1899,1,0),"")&IFERROR(VLOOKUP(AA17,Q$5:Q$1899,1,0),"")=AA17,"前二年申請有案","核符")))))) ->  | AG17: =IF(AF17="","",IFERROR(AF$4-LEFT(VLOOKUP(AF17,$C$6:$D$1899,2,0),2)-1,"未建檔")) ->  | AI17: =IF(AF17="","",IF(VLOOKUP(AF17,$C$6:$F$1899,4,0)="未符資格","未符資格",IF(VLOOKUP(AF17,$C$6:$F$1899,4,0)="一年一次","核符",IF(VLOOKUP(AF17,$C$6:$F$1899,4,0)="二年一次",IF(IFERROR(VLOOKUP(AF17,AA$5:AA$1899,1,0),"")=AF17,"前一年申請有案","核符"),IF(VLOOKUP(AF17,$C$6:$F$1899,4,0)="三年一次",IF(IFERROR(VLOOKUP(AF17,AA$5:AA$1899,1,0),"")&IFERROR(VLOOKUP(AF17,V$5:V$1899,1,0),"")=AF17,"前二年申請有案","核符")))))) ->  | AL17: =IF(AK17="","",IFERROR(AK$4-LEFT(VLOOKUP(AK17,$C$6:$D$1899,2,0),2)-1,"未建檔")) ->  | AN17: =IF(AK17="","",IF(VLOOKUP(AK17,$C$6:$F$1899,4,0)="未符資格","未符資格",IF(VLOOKUP(AK17,$C$6:$F$1899,4,0)="一年一次","核符",IF(VLOOKUP(AK17,$C$6:$F$1899,4,0)="二年一次",IF(IFERROR(VLOOKUP(AK17,AF$5:AF$1899,1,0),"")=AK17,"前一年申請有案","核符"),IF(VLOOKUP(AK17,$C$6:$F$1899,4,0)="三年一次",IF(IFERROR(VLOOKUP(AK17,AF$5:AF$1899,1,0),"")&IFERROR(VLOOKUP(AK17,AA$5:AA$1899,1,0),"")=AK17,"前二年申請有案","核符")))))) ->  | AQ17: =IF(AP17="","",IFERROR(AP$4-LEFT(VLOOKUP(AP17,$C$6:$D$1899,2,0),2)-1,"未建檔")) ->  | AS17: =IF(AP17="","",IF(VLOOKUP(AP17,$C$6:$F$1899,4,0)="未符資格","未符資格",IF(VLOOKUP(AP17,$C$6:$F$1899,4,0)="一年一次","核符",IF(VLOOKUP(AP17,$C$6:$F$1899,4,0)="二年一次",IF(IFERROR(VLOOKUP(AP17,AK$5:AK$1899,1,0),"")=AP17,"前一年申請有案","核符"),IF(VLOOKUP(AP17,$C$6:$F$1899,4,0)="三年一次",IF(IFERROR(VLOOKUP(AP17,AK$5:AK$1899,1,0),"")&IFERROR(VLOOKUP(AP17,AF$5:AF$1899,1,0),"")=AP17,"前二年申請有案","核符")))))) ->  | AV17: =IF(AU17="","",IFERROR(AU$4-LEFT(VLOOKUP(AU17,$C$6:$D$1899,2,0),2)-1,"未建檔")) ->  | AX17: =IF(AU17="","",IF(VLOOKUP(AU17,$C$6:$F$1899,4,0)="未符資格","未符資格",IF(VLOOKUP(AU17,$C$6:$F$1899,4,0)="一年一次","核符",IF(VLOOKUP(AU17,$C$6:$F$1899,4,0)="二年一次",IF(IFERROR(VLOOKUP(AU17,AP$5:AP$1899,1,0),"")=AU17,"前一年申請有案","核符"),IF(VLOOKUP(AU17,$C$6:$F$1899,4,0)="三年一次",IF(IFERROR(VLOOKUP(AU17,AP$5:AP$1899,1,0),"")&IFERROR(VLOOKUP(AU17,AK$5:AK$1899,1,0),"")=AU17,"前二年申請有案","核符")))))) ->  | BA17: =IF(AZ17="","",IFERROR(AZ$4-LEFT(VLOOKUP(AZ17,$C$6:$D$1899,2,0),2)-1,"未建檔")) ->  | BC17: =IF(AZ17="","",IF(VLOOKUP(AZ17,$C$6:$F$1899,4,0)="未符資格","未符資格",IF(VLOOKUP(AZ17,$C$6:$F$1899,4,0)="一年一次","核符",IF(VLOOKUP(AZ17,$C$6:$F$1899,4,0)="二年一次",IF(IFERROR(VLOOKUP(AZ17,AU$5:AU$1899,1,0),"")=AZ17,"前一年申請有案","核符"),IF(VLOOKUP(AZ17,$C$6:$F$1899,4,0)="三年一次",IF(IFERROR(VLOOKUP(AZ17,AU$5:AU$1899,1,0),"")&IFERROR(VLOOKUP(AZ17,AP$5:AP$1899,1,0),"")=AZ17,"前二年申請有案","核符")))))) -> 
A18: 13 | E18: =IF(C18="","",$Q$4-LEFT(D18,2)-1) ->  | H18: =IF(G18="","",IFERROR(G$4-LEFT(VLOOKUP(G18,$C$6:$D$1899,2,0),2)-1,"未建檔")) ->  | M18: =IF(L18="","",IFERROR(L$4-LEFT(VLOOKUP(L18,$C$6:$D$1899,2,0),2)-1,"未建檔")) ->  | R18: =IF(Q18="","",IFERROR(Q$4-LEFT(VLOOKUP(Q18,$C$6:$D$1899,2,0),2)-1,"未建檔")) ->  | T18: =IF(Q18="","",IF(VLOOKUP(Q18,$C$6:$F$1899,4,0)="未符資格","未符資格",IF(VLOOKUP(Q18,$C$6:$F$1899,4,0)="一年一次","核符",IF(VLOOKUP(Q18,$C$6:$F$1899,4,0)="二年一次",IF(IFERROR(VLOOKUP(Q18,L$5:L$1899,1,0),"")=Q18,"前一年申請有案","核符"),IF(VLOOKUP(Q18,$C$6:$F$1899,4,0)="三年一次",IF(IFERROR(VLOOKUP(Q18,L$5:L$1899,1,0),"")&IFERROR(VLOOKUP(Q18,G$5:G$1899,1,0),"")=Q18,"前二年申請有案","核符")))))) ->  | W18: =IF(V18="","",IFERROR(V$4-LEFT(VLOOKUP(V18,$C$6:$D$1899,2,0),2)-1,"未建檔")) ->  | Y18: =IF(V18="","",IF(VLOOKUP(V18,$C$6:$F$1899,4,0)="未符資格","未符資格",IF(VLOOKUP(V18,$C$6:$F$1899,4,0)="一年一次","核符",IF(VLOOKUP(V18,$C$6:$F$1899,4,0)="二年一次",IF(IFERROR(VLOOKUP(V18,Q$5:Q$1899,1,0),"")=V18,"前一年申請有案","核符"),IF(VLOOKUP(V18,$C$6:$F$1899,4,0)="三年一次",IF(IFERROR(VLOOKUP(V18,Q$5:Q$1899,1,0),"")&IFERROR(VLOOKUP(V18,L$5:L$1899,1,0),"")=V18,"前二年申請有案","核符")))))) ->  | AB18: =IF(AA18="","",IFERROR(AA$4-LEFT(VLOOKUP(AA18,$C$6:$D$1899,2,0),2)-1,"未建檔")) ->  | AD18: =IF(AA18="","",IF(VLOOKUP(AA18,$C$6:$F$1899,4,0)="未符資格","未符資格",IF(VLOOKUP(AA18,$C$6:$F$1899,4,0)="一年一次","核符",IF(VLOOKUP(AA18,$C$6:$F$1899,4,0)="二年一次",IF(IFERROR(VLOOKUP(AA18,V$5:V$1899,1,0),"")=AA18,"前一年申請有案","核符"),IF(VLOOKUP(AA18,$C$6:$F$1899,4,0)="三年一次",IF(IFERROR(VLOOKUP(AA18,V$5:V$1899,1,0),"")&IFERROR(VLOOKUP(AA18,Q$5:Q$1899,1,0),"")=AA18,"前二年申請有案","核符")))))) ->  | AG18: =IF(AF18="","",IFERROR(AF$4-LEFT(VLOOKUP(AF18,$C$6:$D$1899,2,0),2)-1,"未建檔")) ->  | AI18: =IF(AF18="","",IF(VLOOKUP(AF18,$C$6:$F$1899,4,0)="未符資格","未符資格",IF(VLOOKUP(AF18,$C$6:$F$1899,4,0)="一年一次","核符",IF(VLOOKUP(AF18,$C$6:$F$1899,4,0)="二年一次",IF(IFERROR(VLOOKUP(AF18,AA$5:AA$1899,1,0),"")=AF18,"前一年申請有案","核符"),IF(VLOOKUP(AF18,$C$6:$F$1899,4,0)="三年一次",IF(IFERROR(VLOOKUP(AF18,AA$5:AA$1899,1,0),"")&IFERROR(VLOOKUP(AF18,V$5:V$1899,1,0),"")=AF18,"前二年申請有案","核符")))))) ->  | AL18: =IF(AK18="","",IFERROR(AK$4-LEFT(VLOOKUP(AK18,$C$6:$D$1899,2,0),2)-1,"未建檔")) ->  | AN18: =IF(AK18="","",IF(VLOOKUP(AK18,$C$6:$F$1899,4,0)="未符資格","未符資格",IF(VLOOKUP(AK18,$C$6:$F$1899,4,0)="一年一次","核符",IF(VLOOKUP(AK18,$C$6:$F$1899,4,0)="二年一次",IF(IFERROR(VLOOKUP(AK18,AF$5:AF$1899,1,0),"")=AK18,"前一年申請有案","核符"),IF(VLOOKUP(AK18,$C$6:$F$1899,4,0)="三年一次",IF(IFERROR(VLOOKUP(AK18,AF$5:AF$1899,1,0),"")&IFERROR(VLOOKUP(AK18,AA$5:AA$1899,1,0),"")=AK18,"前二年申請有案","核符")))))) ->  | AQ18: =IF(AP18="","",IFERROR(AP$4-LEFT(VLOOKUP(AP18,$C$6:$D$1899,2,0),2)-1,"未建檔")) ->  | AS18: =IF(AP18="","",IF(VLOOKUP(AP18,$C$6:$F$1899,4,0)="未符資格","未符資格",IF(VLOOKUP(AP18,$C$6:$F$1899,4,0)="一年一次","核符",IF(VLOOKUP(AP18,$C$6:$F$1899,4,0)="二年一次",IF(IFERROR(VLOOKUP(AP18,AK$5:AK$1899,1,0),"")=AP18,"前一年申請有案","核符"),IF(VLOOKUP(AP18,$C$6:$F$1899,4,0)="三年一次",IF(IFERROR(VLOOKUP(AP18,AK$5:AK$1899,1,0),"")&IFERROR(VLOOKUP(AP18,AF$5:AF$1899,1,0),"")=AP18,"前二年申請有案","核符")))))) ->  | AV18: =IF(AU18="","",IFERROR(AU$4-LEFT(VLOOKUP(AU18,$C$6:$D$1899,2,0),2)-1,"未建檔")) ->  | AX18: =IF(AU18="","",IF(VLOOKUP(AU18,$C$6:$F$1899,4,0)="未符資格","未符資格",IF(VLOOKUP(AU18,$C$6:$F$1899,4,0)="一年一次","核符",IF(VLOOKUP(AU18,$C$6:$F$1899,4,0)="二年一次",IF(IFERROR(VLOOKUP(AU18,AP$5:AP$1899,1,0),"")=AU18,"前一年申請有案","核符"),IF(VLOOKUP(AU18,$C$6:$F$1899,4,0)="三年一次",IF(IFERROR(VLOOKUP(AU18,AP$5:AP$1899,1,0),"")&IFERROR(VLOOKUP(AU18,AK$5:AK$1899,1,0),"")=AU18,"前二年申請有案","核符")))))) ->  | BA18: =IF(AZ18="","",IFERROR(AZ$4-LEFT(VLOOKUP(AZ18,$C$6:$D$1899,2,0),2)-1,"未建檔")) ->  | BC18: =IF(AZ18="","",IF(VLOOKUP(AZ18,$C$6:$F$1899,4,0)="未符資格","未符資格",IF(VLOOKUP(AZ18,$C$6:$F$1899,4,0)="一年一次","核符",IF(VLOOKUP(AZ18,$C$6:$F$1899,4,0)="二年一次",IF(IFERROR(VLOOKUP(AZ18,AU$5:AU$1899,1,0),"")=AZ18,"前一年申請有案","核符"),IF(VLOOKUP(AZ18,$C$6:$F$1899,4,0)="三年一次",IF(IFERROR(VLOOKUP(AZ18,AU$5:AU$1899,1,0),"")&IFERROR(VLOOKUP(AZ18,AP$5:AP$1899,1,0),"")=AZ18,"前二年申請有案","核符")))))) -> 
A19: 14 | E19: =IF(C19="","",$Q$4-LEFT(D19,2)-1) ->  | H19: =IF(G19="","",IFERROR(G$4-LEFT(VLOOKUP(G19,$C$6:$D$1899,2,0),2)-1,"未建檔")) ->  | M19: =IF(L19="","",IFERROR(L$4-LEFT(VLOOKUP(L19,$C$6:$D$1899,2,0),2)-1,"未建檔")) ->  | R19: =IF(Q19="","",IFERROR(Q$4-LEFT(VLOOKUP(Q19,$C$6:$D$1899,2,0),2)-1,"未建檔")) ->  | T19: =IF(Q19="","",IF(VLOOKUP(Q19,$C$6:$F$1899,4,0)="未符資格","未符資格",IF(VLOOKUP(Q19,$C$6:$F$1899,4,0)="一年一次","核符",IF(VLOOKUP(Q19,$C$6:$F$1899,4,0)="二年一次",IF(IFERROR(VLOOKUP(Q19,L$5:L$1899,1,0),"")=Q19,"前一年申請有案","核符"),IF(VLOOKUP(Q19,$C$6:$F$1899,4,0)="三年一次",IF(IFERROR(VLOOKUP(Q19,L$5:L$1899,1,0),"")&IFERROR(VLOOKUP(Q19,G$5:G$1899,1,0),"")=Q19,"前二年申請有案","核符")))))) ->  | W19: =IF(V19="","",IFERROR(V$4-LEFT(VLOOKUP(V19,$C$6:$D$1899,2,0),2)-1,"未建檔")) ->  | Y19: =IF(V19="","",IF(VLOOKUP(V19,$C$6:$F$1899,4,0)="未符資格","未符資格",IF(VLOOKUP(V19,$C$6:$F$1899,4,0)="一年一次","核符",IF(VLOOKUP(V19,$C$6:$F$1899,4,0)="二年一次",IF(IFERROR(VLOOKUP(V19,Q$5:Q$1899,1,0),"")=V19,"前一年申請有案","核符"),IF(VLOOKUP(V19,$C$6:$F$1899,4,0)="三年一次",IF(IFERROR(VLOOKUP(V19,Q$5:Q$1899,1,0),"")&IFERROR(VLOOKUP(V19,L$5:L$1899,1,0),"")=V19,"前二年申請有案","核符")))))) ->  | AB19: =IF(AA19="","",IFERROR(AA$4-LEFT(VLOOKUP(AA19,$C$6:$D$1899,2,0),2)-1,"未建檔")) ->  | AD19: =IF(AA19="","",IF(VLOOKUP(AA19,$C$6:$F$1899,4,0)="未符資格","未符資格",IF(VLOOKUP(AA19,$C$6:$F$1899,4,0)="一年一次","核符",IF(VLOOKUP(AA19,$C$6:$F$1899,4,0)="二年一次",IF(IFERROR(VLOOKUP(AA19,V$5:V$1899,1,0),"")=AA19,"前一年申請有案","核符"),IF(VLOOKUP(AA19,$C$6:$F$1899,4,0)="三年一次",IF(IFERROR(VLOOKUP(AA19,V$5:V$1899,1,0),"")&IFERROR(VLOOKUP(AA19,Q$5:Q$1899,1,0),"")=AA19,"前二年申請有案","核符")))))) ->  | AG19: =IF(AF19="","",IFERROR(AF$4-LEFT(VLOOKUP(AF19,$C$6:$D$1899,2,0),2)-1,"未建檔")) ->  | AI19: =IF(AF19="","",IF(VLOOKUP(AF19,$C$6:$F$1899,4,0)="未符資格","未符資格",IF(VLOOKUP(AF19,$C$6:$F$1899,4,0)="一年一次","核符",IF(VLOOKUP(AF19,$C$6:$F$1899,4,0)="二年一次",IF(IFERROR(VLOOKUP(AF19,AA$5:AA$1899,1,0),"")=AF19,"前一年申請有案","核符"),IF(VLOOKUP(AF19,$C$6:$F$1899,4,0)="三年一次",IF(IFERROR(VLOOKUP(AF19,AA$5:AA$1899,1,0),"")&IFERROR(VLOOKUP(AF19,V$5:V$1899,1,0),"")=AF19,"前二年申請有案","核符")))))) ->  | AL19: =IF(AK19="","",IFERROR(AK$4-LEFT(VLOOKUP(AK19,$C$6:$D$1899,2,0),2)-1,"未建檔")) ->  | AN19: =IF(AK19="","",IF(VLOOKUP(AK19,$C$6:$F$1899,4,0)="未符資格","未符資格",IF(VLOOKUP(AK19,$C$6:$F$1899,4,0)="一年一次","核符",IF(VLOOKUP(AK19,$C$6:$F$1899,4,0)="二年一次",IF(IFERROR(VLOOKUP(AK19,AF$5:AF$1899,1,0),"")=AK19,"前一年申請有案","核符"),IF(VLOOKUP(AK19,$C$6:$F$1899,4,0)="三年一次",IF(IFERROR(VLOOKUP(AK19,AF$5:AF$1899,1,0),"")&IFERROR(VLOOKUP(AK19,AA$5:AA$1899,1,0),"")=AK19,"前二年申請有案","核符")))))) ->  | AQ19: =IF(AP19="","",IFERROR(AP$4-LEFT(VLOOKUP(AP19,$C$6:$D$1899,2,0),2)-1,"未建檔")) ->  | AS19: =IF(AP19="","",IF(VLOOKUP(AP19,$C$6:$F$1899,4,0)="未符資格","未符資格",IF(VLOOKUP(AP19,$C$6:$F$1899,4,0)="一年一次","核符",IF(VLOOKUP(AP19,$C$6:$F$1899,4,0)="二年一次",IF(IFERROR(VLOOKUP(AP19,AK$5:AK$1899,1,0),"")=AP19,"前一年申請有案","核符"),IF(VLOOKUP(AP19,$C$6:$F$1899,4,0)="三年一次",IF(IFERROR(VLOOKUP(AP19,AK$5:AK$1899,1,0),"")&IFERROR(VLOOKUP(AP19,AF$5:AF$1899,1,0),"")=AP19,"前二年申請有案","核符")))))) ->  | AV19: =IF(AU19="","",IFERROR(AU$4-LEFT(VLOOKUP(AU19,$C$6:$D$1899,2,0),2)-1,"未建檔")) ->  | AX19: =IF(AU19="","",IF(VLOOKUP(AU19,$C$6:$F$1899,4,0)="未符資格","未符資格",IF(VLOOKUP(AU19,$C$6:$F$1899,4,0)="一年一次","核符",IF(VLOOKUP(AU19,$C$6:$F$1899,4,0)="二年一次",IF(IFERROR(VLOOKUP(AU19,AP$5:AP$1899,1,0),"")=AU19,"前一年申請有案","核符"),IF(VLOOKUP(AU19,$C$6:$F$1899,4,0)="三年一次",IF(IFERROR(VLOOKUP(AU19,AP$5:AP$1899,1,0),"")&IFERROR(VLOOKUP(AU19,AK$5:AK$1899,1,0),"")=AU19,"前二年申請有案","核符")))))) ->  | BA19: =IF(AZ19="","",IFERROR(AZ$4-LEFT(VLOOKUP(AZ19,$C$6:$D$1899,2,0),2)-1,"未建檔")) ->  | BC19: =IF(AZ19="","",IF(VLOOKUP(AZ19,$C$6:$F$1899,4,0)="未符資格","未符資格",IF(VLOOKUP(AZ19,$C$6:$F$1899,4,0)="一年一次","核符",IF(VLOOKUP(AZ19,$C$6:$F$1899,4,0)="二年一次",IF(IFERROR(VLOOKUP(AZ19,AU$5:AU$1899,1,0),"")=AZ19,"前一年申請有案","核符"),IF(VLOOKUP(AZ19,$C$6:$F$1899,4,0)="三年一次",IF(IFERROR(VLOOKUP(AZ19,AU$5:AU$1899,1,0),"")&IFERROR(VLOOKUP(AZ19,AP$5:AP$1899,1,0),"")=AZ19,"前二年申請有案","核符")))))) -> 
A20: 15 | E20: =IF(C20="","",$Q$4-LEFT(D20,2)-1) ->  | H20: =IF(G20="","",IFERROR(G$4-LEFT(VLOOKUP(G20,$C$6:$D$1899,2,0),2)-1,"未建檔")) ->  | M20: =IF(L20="","",IFERROR(L$4-LEFT(VLOOKUP(L20,$C$6:$D$1899,2,0),2)-1,"未建檔")) ->  | R20: =IF(Q20="","",IFERROR(Q$4-LEFT(VLOOKUP(Q20,$C$6:$D$1899,2,0),2)-1,"未建檔")) ->  | T20: =IF(Q20="","",IF(VLOOKUP(Q20,$C$6:$F$1899,4,0)="未符資格","未符資格",IF(VLOOKUP(Q20,$C$6:$F$1899,4,0)="一年一次","核符",IF(VLOOKUP(Q20,$C$6:$F$1899,4,0)="二年一次",IF(IFERROR(VLOOKUP(Q20,L$5:L$1899,1,0),"")=Q20,"前一年申請有案","核符"),IF(VLOOKUP(Q20,$C$6:$F$1899,4,0)="三年一次",IF(IFERROR(VLOOKUP(Q20,L$5:L$1899,1,0),"")&IFERROR(VLOOKUP(Q20,G$5:G$1899,1,0),"")=Q20,"前二年申請有案","核符")))))) ->  | W20: =IF(V20="","",IFERROR(V$4-LEFT(VLOOKUP(V20,$C$6:$D$1899,2,0),2)-1,"未建檔")) ->  | Y20: =IF(V20="","",IF(VLOOKUP(V20,$C$6:$F$1899,4,0)="未符資格","未符資格",IF(VLOOKUP(V20,$C$6:$F$1899,4,0)="一年一次","核符",IF(VLOOKUP(V20,$C$6:$F$1899,4,0)="二年一次",IF(IFERROR(VLOOKUP(V20,Q$5:Q$1899,1,0),"")=V20,"前一年申請有案","核符"),IF(VLOOKUP(V20,$C$6:$F$1899,4,0)="三年一次",IF(IFERROR(VLOOKUP(V20,Q$5:Q$1899,1,0),"")&IFERROR(VLOOKUP(V20,L$5:L$1899,1,0),"")=V20,"前二年申請有案","核符")))))) ->  | AB20: =IF(AA20="","",IFERROR(AA$4-LEFT(VLOOKUP(AA20,$C$6:$D$1899,2,0),2)-1,"未建檔")) ->  | AD20: =IF(AA20="","",IF(VLOOKUP(AA20,$C$6:$F$1899,4,0)="未符資格","未符資格",IF(VLOOKUP(AA20,$C$6:$F$1899,4,0)="一年一次","核符",IF(VLOOKUP(AA20,$C$6:$F$1899,4,0)="二年一次",IF(IFERROR(VLOOKUP(AA20,V$5:V$1899,1,0),"")=AA20,"前一年申請有案","核符"),IF(VLOOKUP(AA20,$C$6:$F$1899,4,0)="三年一次",IF(IFERROR(VLOOKUP(AA20,V$5:V$1899,1,0),"")&IFERROR(VLOOKUP(AA20,Q$5:Q$1899,1,0),"")=AA20,"前二年申請有案","核符")))))) ->  | AG20: =IF(AF20="","",IFERROR(AF$4-LEFT(VLOOKUP(AF20,$C$6:$D$1899,2,0),2)-1,"未建檔")) ->  | AI20: =IF(AF20="","",IF(VLOOKUP(AF20,$C$6:$F$1899,4,0)="未符資格","未符資格",IF(VLOOKUP(AF20,$C$6:$F$1899,4,0)="一年一次","核符",IF(VLOOKUP(AF20,$C$6:$F$1899,4,0)="二年一次",IF(IFERROR(VLOOKUP(AF20,AA$5:AA$1899,1,0),"")=AF20,"前一年申請有案","核符"),IF(VLOOKUP(AF20,$C$6:$F$1899,4,0)="三年一次",IF(IFERROR(VLOOKUP(AF20,AA$5:AA$1899,1,0),"")&IFERROR(VLOOKUP(AF20,V$5:V$1899,1,0),"")=AF20,"前二年申請有案","核符")))))) ->  | AL20: =IF(AK20="","",IFERROR(AK$4-LEFT(VLOOKUP(AK20,$C$6:$D$1899,2,0),2)-1,"未建檔")) ->  | AN20: =IF(AK20="","",IF(VLOOKUP(AK20,$C$6:$F$1899,4,0)="未符資格","未符資格",IF(VLOOKUP(AK20,$C$6:$F$1899,4,0)="一年一次","核符",IF(VLOOKUP(AK20,$C$6:$F$1899,4,0)="二年一次",IF(IFERROR(VLOOKUP(AK20,AF$5:AF$1899,1,0),"")=AK20,"前一年申請有案","核符"),IF(VLOOKUP(AK20,$C$6:$F$1899,4,0)="三年一次",IF(IFERROR(VLOOKUP(AK20,AF$5:AF$1899,1,0),"")&IFERROR(VLOOKUP(AK20,AA$5:AA$1899,1,0),"")=AK20,"前二年申請有案","核符")))))) ->  | AQ20: =IF(AP20="","",IFERROR(AP$4-LEFT(VLOOKUP(AP20,$C$6:$D$1899,2,0),2)-1,"未建檔")) ->  | AS20: =IF(AP20="","",IF(VLOOKUP(AP20,$C$6:$F$1899,4,0)="未符資格","未符資格",IF(VLOOKUP(AP20,$C$6:$F$1899,4,0)="一年一次","核符",IF(VLOOKUP(AP20,$C$6:$F$1899,4,0)="二年一次",IF(IFERROR(VLOOKUP(AP20,AK$5:AK$1899,1,0),"")=AP20,"前一年申請有案","核符"),IF(VLOOKUP(AP20,$C$6:$F$1899,4,0)="三年一次",IF(IFERROR(VLOOKUP(AP20,AK$5:AK$1899,1,0),"")&IFERROR(VLOOKUP(AP20,AF$5:AF$1899,1,0),"")=AP20,"前二年申請有案","核符")))))) ->  | AV20: =IF(AU20="","",IFERROR(AU$4-LEFT(VLOOKUP(AU20,$C$6:$D$1899,2,0),2)-1,"未建檔")) ->  | AX20: =IF(AU20="","",IF(VLOOKUP(AU20,$C$6:$F$1899,4,0)="未符資格","未符資格",IF(VLOOKUP(AU20,$C$6:$F$1899,4,0)="一年一次","核符",IF(VLOOKUP(AU20,$C$6:$F$1899,4,0)="二年一次",IF(IFERROR(VLOOKUP(AU20,AP$5:AP$1899,1,0),"")=AU20,"前一年申請有案","核符"),IF(VLOOKUP(AU20,$C$6:$F$1899,4,0)="三年一次",IF(IFERROR(VLOOKUP(AU20,AP$5:AP$1899,1,0),"")&IFERROR(VLOOKUP(AU20,AK$5:AK$1899,1,0),"")=AU20,"前二年申請有案","核符")))))) ->  | BA20: =IF(AZ20="","",IFERROR(AZ$4-LEFT(VLOOKUP(AZ20,$C$6:$D$1899,2,0),2)-1,"未建檔")) ->  | BC20: =IF(AZ20="","",IF(VLOOKUP(AZ20,$C$6:$F$1899,4,0)="未符資格","未符資格",IF(VLOOKUP(AZ20,$C$6:$F$1899,4,0)="一年一次","核符",IF(VLOOKUP(AZ20,$C$6:$F$1899,4,0)="二年一次",IF(IFERROR(VLOOKUP(AZ20,AU$5:AU$1899,1,0),"")=AZ20,"前一年申請有案","核符"),IF(VLOOKUP(AZ20,$C$6:$F$1899,4,0)="三年一次",IF(IFERROR(VLOOKUP(AZ20,AU$5:AU$1899,1,0),"")&IFERROR(VLOOKUP(AZ20,AP$5:AP$1899,1,0),"")=AZ20,"前二年申請有案","核符")))))) -> 
A21: 16 | E21: =IF(C21="","",$Q$4-LEFT(D21,2)-1) ->  | H21: =IF(G21="","",IFERROR(G$4-LEFT(VLOOKUP(G21,$C$6:$D$1899,2,0),2)-1,"未建檔")) ->  | M21: =IF(L21="","",IFERROR(L$4-LEFT(VLOOKUP(L21,$C$6:$D$1899,2,0),2)-1,"未建檔")) ->  | R21: =IF(Q21="","",IFERROR(Q$4-LEFT(VLOOKUP(Q21,$C$6:$D$1899,2,0),2)-1,"未建檔")) ->  | T21: =IF(Q21="","",IF(VLOOKUP(Q21,$C$6:$F$1899,4,0)="未符資格","未符資格",IF(VLOOKUP(Q21,$C$6:$F$1899,4,0)="一年一次","核符",IF(VLOOKUP(Q21,$C$6:$F$1899,4,0)="二年一次",IF(IFERROR(VLOOKUP(Q21,L$5:L$1899,1,0),"")=Q21,"前一年申請有案","核符"),IF(VLOOKUP(Q21,$C$6:$F$1899,4,0)="三年一次",IF(IFERROR(VLOOKUP(Q21,L$5:L$1899,1,0),"")&IFERROR(VLOOKUP(Q21,G$5:G$1899,1,0),"")=Q21,"前二年申請有案","核符")))))) ->  | W21: =IF(V21="","",IFERROR(V$4-LEFT(VLOOKUP(V21,$C$6:$D$1899,2,0),2)-1,"未建檔")) ->  | Y21: =IF(V21="","",IF(VLOOKUP(V21,$C$6:$F$1899,4,0)="未符資格","未符資格",IF(VLOOKUP(V21,$C$6:$F$1899,4,0)="一年一次","核符",IF(VLOOKUP(V21,$C$6:$F$1899,4,0)="二年一次",IF(IFERROR(VLOOKUP(V21,Q$5:Q$1899,1,0),"")=V21,"前一年申請有案","核符"),IF(VLOOKUP(V21,$C$6:$F$1899,4,0)="三年一次",IF(IFERROR(VLOOKUP(V21,Q$5:Q$1899,1,0),"")&IFERROR(VLOOKUP(V21,L$5:L$1899,1,0),"")=V21,"前二年申請有案","核符")))))) ->  | AB21: =IF(AA21="","",IFERROR(AA$4-LEFT(VLOOKUP(AA21,$C$6:$D$1899,2,0),2)-1,"未建檔")) ->  | AD21: =IF(AA21="","",IF(VLOOKUP(AA21,$C$6:$F$1899,4,0)="未符資格","未符資格",IF(VLOOKUP(AA21,$C$6:$F$1899,4,0)="一年一次","核符",IF(VLOOKUP(AA21,$C$6:$F$1899,4,0)="二年一次",IF(IFERROR(VLOOKUP(AA21,V$5:V$1899,1,0),"")=AA21,"前一年申請有案","核符"),IF(VLOOKUP(AA21,$C$6:$F$1899,4,0)="三年一次",IF(IFERROR(VLOOKUP(AA21,V$5:V$1899,1,0),"")&IFERROR(VLOOKUP(AA21,Q$5:Q$1899,1,0),"")=AA21,"前二年申請有案","核符")))))) ->  | AG21: =IF(AF21="","",IFERROR(AF$4-LEFT(VLOOKUP(AF21,$C$6:$D$1899,2,0),2)-1,"未建檔")) ->  | AI21: =IF(AF21="","",IF(VLOOKUP(AF21,$C$6:$F$1899,4,0)="未符資格","未符資格",IF(VLOOKUP(AF21,$C$6:$F$1899,4,0)="一年一次","核符",IF(VLOOKUP(AF21,$C$6:$F$1899,4,0)="二年一次",IF(IFERROR(VLOOKUP(AF21,AA$5:AA$1899,1,0),"")=AF21,"前一年申請有案","核符"),IF(VLOOKUP(AF21,$C$6:$F$1899,4,0)="三年一次",IF(IFERROR(VLOOKUP(AF21,AA$5:AA$1899,1,0),"")&IFERROR(VLOOKUP(AF21,V$5:V$1899,1,0),"")=AF21,"前二年申請有案","核符")))))) ->  | AL21: =IF(AK21="","",IFERROR(AK$4-LEFT(VLOOKUP(AK21,$C$6:$D$1899,2,0),2)-1,"未建檔")) ->  | AN21: =IF(AK21="","",IF(VLOOKUP(AK21,$C$6:$F$1899,4,0)="未符資格","未符資格",IF(VLOOKUP(AK21,$C$6:$F$1899,4,0)="一年一次","核符",IF(VLOOKUP(AK21,$C$6:$F$1899,4,0)="二年一次",IF(IFERROR(VLOOKUP(AK21,AF$5:AF$1899,1,0),"")=AK21,"前一年申請有案","核符"),IF(VLOOKUP(AK21,$C$6:$F$1899,4,0)="三年一次",IF(IFERROR(VLOOKUP(AK21,AF$5:AF$1899,1,0),"")&IFERROR(VLOOKUP(AK21,AA$5:AA$1899,1,0),"")=AK21,"前二年申請有案","核符")))))) ->  | AQ21: =IF(AP21="","",IFERROR(AP$4-LEFT(VLOOKUP(AP21,$C$6:$D$1899,2,0),2)-1,"未建檔")) ->  | AS21: =IF(AP21="","",IF(VLOOKUP(AP21,$C$6:$F$1899,4,0)="未符資格","未符資格",IF(VLOOKUP(AP21,$C$6:$F$1899,4,0)="一年一次","核符",IF(VLOOKUP(AP21,$C$6:$F$1899,4,0)="二年一次",IF(IFERROR(VLOOKUP(AP21,AK$5:AK$1899,1,0),"")=AP21,"前一年申請有案","核符"),IF(VLOOKUP(AP21,$C$6:$F$1899,4,0)="三年一次",IF(IFERROR(VLOOKUP(AP21,AK$5:AK$1899,1,0),"")&IFERROR(VLOOKUP(AP21,AF$5:AF$1899,1,0),"")=AP21,"前二年申請有案","核符")))))) ->  | AV21: =IF(AU21="","",IFERROR(AU$4-LEFT(VLOOKUP(AU21,$C$6:$D$1899,2,0),2)-1,"未建檔")) ->  | AX21: =IF(AU21="","",IF(VLOOKUP(AU21,$C$6:$F$1899,4,0)="未符資格","未符資格",IF(VLOOKUP(AU21,$C$6:$F$1899,4,0)="一年一次","核符",IF(VLOOKUP(AU21,$C$6:$F$1899,4,0)="二年一次",IF(IFERROR(VLOOKUP(AU21,AP$5:AP$1899,1,0),"")=AU21,"前一年申請有案","核符"),IF(VLOOKUP(AU21,$C$6:$F$1899,4,0)="三年一次",IF(IFERROR(VLOOKUP(AU21,AP$5:AP$1899,1,0),"")&IFERROR(VLOOKUP(AU21,AK$5:AK$1899,1,0),"")=AU21,"前二年申請有案","核符")))))) ->  | BA21: =IF(AZ21="","",IFERROR(AZ$4-LEFT(VLOOKUP(AZ21,$C$6:$D$1899,2,0),2)-1,"未建檔")) ->  | BC21: =IF(AZ21="","",IF(VLOOKUP(AZ21,$C$6:$F$1899,4,0)="未符資格","未符資格",IF(VLOOKUP(AZ21,$C$6:$F$1899,4,0)="一年一次","核符",IF(VLOOKUP(AZ21,$C$6:$F$1899,4,0)="二年一次",IF(IFERROR(VLOOKUP(AZ21,AU$5:AU$1899,1,0),"")=AZ21,"前一年申請有案","核符"),IF(VLOOKUP(AZ21,$C$6:$F$1899,4,0)="三年一次",IF(IFERROR(VLOOKUP(AZ21,AU$5:AU$1899,1,0),"")&IFERROR(VLOOKUP(AZ21,AP$5:AP$1899,1,0),"")=AZ21,"前二年申請有案","核符")))))) -> 
A22: 17 | E22: =IF(C22="","",$Q$4-LEFT(D22,2)-1) ->  | H22: =IF(G22="","",IFERROR(G$4-LEFT(VLOOKUP(G22,$C$6:$D$1899,2,0),2)-1,"未建檔")) ->  | M22: =IF(L22="","",IFERROR(L$4-LEFT(VLOOKUP(L22,$C$6:$D$1899,2,0),2)-1,"未建檔")) ->  | R22: =IF(Q22="","",IFERROR(Q$4-LEFT(VLOOKUP(Q22,$C$6:$D$1899,2,0),2)-1,"未建檔")) ->  | T22: =IF(Q22="","",IF(VLOOKUP(Q22,$C$6:$F$1899,4,0)="未符資格","未符資格",IF(VLOOKUP(Q22,$C$6:$F$1899,4,0)="一年一次","核符",IF(VLOOKUP(Q22,$C$6:$F$1899,4,0)="二年一次",IF(IFERROR(VLOOKUP(Q22,L$5:L$1899,1,0),"")=Q22,"前一年申請有案","核符"),IF(VLOOKUP(Q22,$C$6:$F$1899,4,0)="三年一次",IF(IFERROR(VLOOKUP(Q22,L$5:L$1899,1,0),"")&IFERROR(VLOOKUP(Q22,G$5:G$1899,1,0),"")=Q22,"前二年申請有案","核符")))))) ->  | W22: =IF(V22="","",IFERROR(V$4-LEFT(VLOOKUP(V22,$C$6:$D$1899,2,0),2)-1,"未建檔")) ->  | Y22: =IF(V22="","",IF(VLOOKUP(V22,$C$6:$F$1899,4,0)="未符資格","未符資格",IF(VLOOKUP(V22,$C$6:$F$1899,4,0)="一年一次","核符",IF(VLOOKUP(V22,$C$6:$F$1899,4,0)="二年一次",IF(IFERROR(VLOOKUP(V22,Q$5:Q$1899,1,0),"")=V22,"前一年申請有案","核符"),IF(VLOOKUP(V22,$C$6:$F$1899,4,0)="三年一次",IF(IFERROR(VLOOKUP(V22,Q$5:Q$1899,1,0),"")&IFERROR(VLOOKUP(V22,L$5:L$1899,1,0),"")=V22,"前二年申請有案","核符")))))) ->  | AB22: =IF(AA22="","",IFERROR(AA$4-LEFT(VLOOKUP(AA22,$C$6:$D$1899,2,0),2)-1,"未建檔")) ->  | AD22: =IF(AA22="","",IF(VLOOKUP(AA22,$C$6:$F$1899,4,0)="未符資格","未符資格",IF(VLOOKUP(AA22,$C$6:$F$1899,4,0)="一年一次","核符",IF(VLOOKUP(AA22,$C$6:$F$1899,4,0)="二年一次",IF(IFERROR(VLOOKUP(AA22,V$5:V$1899,1,0),"")=AA22,"前一年申請有案","核符"),IF(VLOOKUP(AA22,$C$6:$F$1899,4,0)="三年一次",IF(IFERROR(VLOOKUP(AA22,V$5:V$1899,1,0),"")&IFERROR(VLOOKUP(AA22,Q$5:Q$1899,1,0),"")=AA22,"前二年申請有案","核符")))))) ->  | AG22: =IF(AF22="","",IFERROR(AF$4-LEFT(VLOOKUP(AF22,$C$6:$D$1899,2,0),2)-1,"未建檔")) ->  | AI22: =IF(AF22="","",IF(VLOOKUP(AF22,$C$6:$F$1899,4,0)="未符資格","未符資格",IF(VLOOKUP(AF22,$C$6:$F$1899,4,0)="一年一次","核符",IF(VLOOKUP(AF22,$C$6:$F$1899,4,0)="二年一次",IF(IFERROR(VLOOKUP(AF22,AA$5:AA$1899,1,0),"")=AF22,"前一年申請有案","核符"),IF(VLOOKUP(AF22,$C$6:$F$1899,4,0)="三年一次",IF(IFERROR(VLOOKUP(AF22,AA$5:AA$1899,1,0),"")&IFERROR(VLOOKUP(AF22,V$5:V$1899,1,0),"")=AF22,"前二年申請有案","核符")))))) ->  | AL22: =IF(AK22="","",IFERROR(AK$4-LEFT(VLOOKUP(AK22,$C$6:$D$1899,2,0),2)-1,"未建檔")) ->  | AN22: =IF(AK22="","",IF(VLOOKUP(AK22,$C$6:$F$1899,4,0)="未符資格","未符資格",IF(VLOOKUP(AK22,$C$6:$F$1899,4,0)="一年一次","核符",IF(VLOOKUP(AK22,$C$6:$F$1899,4,0)="二年一次",IF(IFERROR(VLOOKUP(AK22,AF$5:AF$1899,1,0),"")=AK22,"前一年申請有案","核符"),IF(VLOOKUP(AK22,$C$6:$F$1899,4,0)="三年一次",IF(IFERROR(VLOOKUP(AK22,AF$5:AF$1899,1,0),"")&IFERROR(VLOOKUP(AK22,AA$5:AA$1899,1,0),"")=AK22,"前二年申請有案","核符")))))) ->  | AQ22: =IF(AP22="","",IFERROR(AP$4-LEFT(VLOOKUP(AP22,$C$6:$D$1899,2,0),2)-1,"未建檔")) ->  | AS22: =IF(AP22="","",IF(VLOOKUP(AP22,$C$6:$F$1899,4,0)="未符資格","未符資格",IF(VLOOKUP(AP22,$C$6:$F$1899,4,0)="一年一次","核符",IF(VLOOKUP(AP22,$C$6:$F$1899,4,0)="二年一次",IF(IFERROR(VLOOKUP(AP22,AK$5:AK$1899,1,0),"")=AP22,"前一年申請有案","核符"),IF(VLOOKUP(AP22,$C$6:$F$1899,4,0)="三年一次",IF(IFERROR(VLOOKUP(AP22,AK$5:AK$1899,1,0),"")&IFERROR(VLOOKUP(AP22,AF$5:AF$1899,1,0),"")=AP22,"前二年申請有案","核符")))))) ->  | AV22: =IF(AU22="","",IFERROR(AU$4-LEFT(VLOOKUP(AU22,$C$6:$D$1899,2,0),2)-1,"未建檔")) ->  | AX22: =IF(AU22="","",IF(VLOOKUP(AU22,$C$6:$F$1899,4,0)="未符資格","未符資格",IF(VLOOKUP(AU22,$C$6:$F$1899,4,0)="一年一次","核符",IF(VLOOKUP(AU22,$C$6:$F$1899,4,0)="二年一次",IF(IFERROR(VLOOKUP(AU22,AP$5:AP$1899,1,0),"")=AU22,"前一年申請有案","核符"),IF(VLOOKUP(AU22,$C$6:$F$1899,4,0)="三年一次",IF(IFERROR(VLOOKUP(AU22,AP$5:AP$1899,1,0),"")&IFERROR(VLOOKUP(AU22,AK$5:AK$1899,1,0),"")=AU22,"前二年申請有案","核符")))))) ->  | BA22: =IF(AZ22="","",IFERROR(AZ$4-LEFT(VLOOKUP(AZ22,$C$6:$D$1899,2,0),2)-1,"未建檔")) ->  | BC22: =IF(AZ22="","",IF(VLOOKUP(AZ22,$C$6:$F$1899,4,0)="未符資格","未符資格",IF(VLOOKUP(AZ22,$C$6:$F$1899,4,0)="一年一次","核符",IF(VLOOKUP(AZ22,$C$6:$F$1899,4,0)="二年一次",IF(IFERROR(VLOOKUP(AZ22,AU$5:AU$1899,1,0),"")=AZ22,"前一年申請有案","核符"),IF(VLOOKUP(AZ22,$C$6:$F$1899,4,0)="三年一次",IF(IFERROR(VLOOKUP(AZ22,AU$5:AU$1899,1,0),"")&IFERROR(VLOOKUP(AZ22,AP$5:AP$1899,1,0),"")=AZ22,"前二年申請有案","核符")))))) -> 
A23: 18 | E23: =IF(C23="","",$Q$4-LEFT(D23,2)-1) ->  | H23: =IF(G23="","",IFERROR(G$4-LEFT(VLOOKUP(G23,$C$6:$D$1899,2,0),2)-1,"未建檔")) ->  | M23: =IF(L23="","",IFERROR(L$4-LEFT(VLOOKUP(L23,$C$6:$D$1899,2,0),2)-1,"未建檔")) ->  | R23: =IF(Q23="","",IFERROR(Q$4-LEFT(VLOOKUP(Q23,$C$6:$D$1899,2,0),2)-1,"未建檔")) ->  | T23: =IF(Q23="","",IF(VLOOKUP(Q23,$C$6:$F$1899,4,0)="未符資格","未符資格",IF(VLOOKUP(Q23,$C$6:$F$1899,4,0)="一年一次","核符",IF(VLOOKUP(Q23,$C$6:$F$1899,4,0)="二年一次",IF(IFERROR(VLOOKUP(Q23,L$5:L$1899,1,0),"")=Q23,"前一年申請有案","核符"),IF(VLOOKUP(Q23,$C$6:$F$1899,4,0)="三年一次",IF(IFERROR(VLOOKUP(Q23,L$5:L$1899,1,0),"")&IFERROR(VLOOKUP(Q23,G$5:G$1899,1,0),"")=Q23,"前二年申請有案","核符")))))) ->  | W23: =IF(V23="","",IFERROR(V$4-LEFT(VLOOKUP(V23,$C$6:$D$1899,2,0),2)-1,"未建檔")) ->  | Y23: =IF(V23="","",IF(VLOOKUP(V23,$C$6:$F$1899,4,0)="未符資格","未符資格",IF(VLOOKUP(V23,$C$6:$F$1899,4,0)="一年一次","核符",IF(VLOOKUP(V23,$C$6:$F$1899,4,0)="二年一次",IF(IFERROR(VLOOKUP(V23,Q$5:Q$1899,1,0),"")=V23,"前一年申請有案","核符"),IF(VLOOKUP(V23,$C$6:$F$1899,4,0)="三年一次",IF(IFERROR(VLOOKUP(V23,Q$5:Q$1899,1,0),"")&IFERROR(VLOOKUP(V23,L$5:L$1899,1,0),"")=V23,"前二年申請有案","核符")))))) ->  | AB23: =IF(AA23="","",IFERROR(AA$4-LEFT(VLOOKUP(AA23,$C$6:$D$1899,2,0),2)-1,"未建檔")) ->  | AD23: =IF(AA23="","",IF(VLOOKUP(AA23,$C$6:$F$1899,4,0)="未符資格","未符資格",IF(VLOOKUP(AA23,$C$6:$F$1899,4,0)="一年一次","核符",IF(VLOOKUP(AA23,$C$6:$F$1899,4,0)="二年一次",IF(IFERROR(VLOOKUP(AA23,V$5:V$1899,1,0),"")=AA23,"前一年申請有案","核符"),IF(VLOOKUP(AA23,$C$6:$F$1899,4,0)="三年一次",IF(IFERROR(VLOOKUP(AA23,V$5:V$1899,1,0),"")&IFERROR(VLOOKUP(AA23,Q$5:Q$1899,1,0),"")=AA23,"前二年申請有案","核符")))))) ->  | AG23: =IF(AF23="","",IFERROR(AF$4-LEFT(VLOOKUP(AF23,$C$6:$D$1899,2,0),2)-1,"未建檔")) ->  | AI23: =IF(AF23="","",IF(VLOOKUP(AF23,$C$6:$F$1899,4,0)="未符資格","未符資格",IF(VLOOKUP(AF23,$C$6:$F$1899,4,0)="一年一次","核符",IF(VLOOKUP(AF23,$C$6:$F$1899,4,0)="二年一次",IF(IFERROR(VLOOKUP(AF23,AA$5:AA$1899,1,0),"")=AF23,"前一年申請有案","核符"),IF(VLOOKUP(AF23,$C$6:$F$1899,4,0)="三年一次",IF(IFERROR(VLOOKUP(AF23,AA$5:AA$1899,1,0),"")&IFERROR(VLOOKUP(AF23,V$5:V$1899,1,0),"")=AF23,"前二年申請有案","核符")))))) ->  | AL23: =IF(AK23="","",IFERROR(AK$4-LEFT(VLOOKUP(AK23,$C$6:$D$1899,2,0),2)-1,"未建檔")) ->  | AN23: =IF(AK23="","",IF(VLOOKUP(AK23,$C$6:$F$1899,4,0)="未符資格","未符資格",IF(VLOOKUP(AK23,$C$6:$F$1899,4,0)="一年一次","核符",IF(VLOOKUP(AK23,$C$6:$F$1899,4,0)="二年一次",IF(IFERROR(VLOOKUP(AK23,AF$5:AF$1899,1,0),"")=AK23,"前一年申請有案","核符"),IF(VLOOKUP(AK23,$C$6:$F$1899,4,0)="三年一次",IF(IFERROR(VLOOKUP(AK23,AF$5:AF$1899,1,0),"")&IFERROR(VLOOKUP(AK23,AA$5:AA$1899,1,0),"")=AK23,"前二年申請有案","核符")))))) ->  | AQ23: =IF(AP23="","",IFERROR(AP$4-LEFT(VLOOKUP(AP23,$C$6:$D$1899,2,0),2)-1,"未建檔")) ->  | AS23: =IF(AP23="","",IF(VLOOKUP(AP23,$C$6:$F$1899,4,0)="未符資格","未符資格",IF(VLOOKUP(AP23,$C$6:$F$1899,4,0)="一年一次","核符",IF(VLOOKUP(AP23,$C$6:$F$1899,4,0)="二年一次",IF(IFERROR(VLOOKUP(AP23,AK$5:AK$1899,1,0),"")=AP23,"前一年申請有案","核符"),IF(VLOOKUP(AP23,$C$6:$F$1899,4,0)="三年一次",IF(IFERROR(VLOOKUP(AP23,AK$5:AK$1899,1,0),"")&IFERROR(VLOOKUP(AP23,AF$5:AF$1899,1,0),"")=AP23,"前二年申請有案","核符")))))) ->  | AV23: =IF(AU23="","",IFERROR(AU$4-LEFT(VLOOKUP(AU23,$C$6:$D$1899,2,0),2)-1,"未建檔")) ->  | AX23: =IF(AU23="","",IF(VLOOKUP(AU23,$C$6:$F$1899,4,0)="未符資格","未符資格",IF(VLOOKUP(AU23,$C$6:$F$1899,4,0)="一年一次","核符",IF(VLOOKUP(AU23,$C$6:$F$1899,4,0)="二年一次",IF(IFERROR(VLOOKUP(AU23,AP$5:AP$1899,1,0),"")=AU23,"前一年申請有案","核符"),IF(VLOOKUP(AU23,$C$6:$F$1899,4,0)="三年一次",IF(IFERROR(VLOOKUP(AU23,AP$5:AP$1899,1,0),"")&IFERROR(VLOOKUP(AU23,AK$5:AK$1899,1,0),"")=AU23,"前二年申請有案","核符")))))) ->  | BA23: =IF(AZ23="","",IFERROR(AZ$4-LEFT(VLOOKUP(AZ23,$C$6:$D$1899,2,0),2)-1,"未建檔")) ->  | BC23: =IF(AZ23="","",IF(VLOOKUP(AZ23,$C$6:$F$1899,4,0)="未符資格","未符資格",IF(VLOOKUP(AZ23,$C$6:$F$1899,4,0)="一年一次","核符",IF(VLOOKUP(AZ23,$C$6:$F$1899,4,0)="二年一次",IF(IFERROR(VLOOKUP(AZ23,AU$5:AU$1899,1,0),"")=AZ23,"前一年申請有案","核符"),IF(VLOOKUP(AZ23,$C$6:$F$1899,4,0)="三年一次",IF(IFERROR(VLOOKUP(AZ23,AU$5:AU$1899,1,0),"")&IFERROR(VLOOKUP(AZ23,AP$5:AP$1899,1,0),"")=AZ23,"前二年申請有案","核符")))))) -> 
A24: 19 | E24: =IF(C24="","",$Q$4-LEFT(D24,2)-1) ->  | H24: =IF(G24="","",IFERROR(G$4-LEFT(VLOOKUP(G24,$C$6:$D$1899,2,0),2)-1,"未建檔")) ->  | M24: =IF(L24="","",IFERROR(L$4-LEFT(VLOOKUP(L24,$C$6:$D$1899,2,0),2)-1,"未建檔")) ->  | R24: =IF(Q24="","",IFERROR(Q$4-LEFT(VLOOKUP(Q24,$C$6:$D$1899,2,0),2)-1,"未建檔")) ->  | T24: =IF(Q24="","",IF(VLOOKUP(Q24,$C$6:$F$1899,4,0)="未符資格","未符資格",IF(VLOOKUP(Q24,$C$6:$F$1899,4,0)="一年一次","核符",IF(VLOOKUP(Q24,$C$6:$F$1899,4,0)="二年一次",IF(IFERROR(VLOOKUP(Q24,L$5:L$1899,1,0),"")=Q24,"前一年申請有案","核符"),IF(VLOOKUP(Q24,$C$6:$F$1899,4,0)="三年一次",IF(IFERROR(VLOOKUP(Q24,L$5:L$1899,1,0),"")&IFERROR(VLOOKUP(Q24,G$5:G$1899,1,0),"")=Q24,"前二年申請有案","核符")))))) ->  | W24: =IF(V24="","",IFERROR(V$4-LEFT(VLOOKUP(V24,$C$6:$D$1899,2,0),2)-1,"未建檔")) ->  | Y24: =IF(V24="","",IF(VLOOKUP(V24,$C$6:$F$1899,4,0)="未符資格","未符資格",IF(VLOOKUP(V24,$C$6:$F$1899,4,0)="一年一次","核符",IF(VLOOKUP(V24,$C$6:$F$1899,4,0)="二年一次",IF(IFERROR(VLOOKUP(V24,Q$5:Q$1899,1,0),"")=V24,"前一年申請有案","核符"),IF(VLOOKUP(V24,$C$6:$F$1899,4,0)="三年一次",IF(IFERROR(VLOOKUP(V24,Q$5:Q$1899,1,0),"")&IFERROR(VLOOKUP(V24,L$5:L$1899,1,0),"")=V24,"前二年申請有案","核符")))))) ->  | AB24: =IF(AA24="","",IFERROR(AA$4-LEFT(VLOOKUP(AA24,$C$6:$D$1899,2,0),2)-1,"未建檔")) ->  | AD24: =IF(AA24="","",IF(VLOOKUP(AA24,$C$6:$F$1899,4,0)="未符資格","未符資格",IF(VLOOKUP(AA24,$C$6:$F$1899,4,0)="一年一次","核符",IF(VLOOKUP(AA24,$C$6:$F$1899,4,0)="二年一次",IF(IFERROR(VLOOKUP(AA24,V$5:V$1899,1,0),"")=AA24,"前一年申請有案","核符"),IF(VLOOKUP(AA24,$C$6:$F$1899,4,0)="三年一次",IF(IFERROR(VLOOKUP(AA24,V$5:V$1899,1,0),"")&IFERROR(VLOOKUP(AA24,Q$5:Q$1899,1,0),"")=AA24,"前二年申請有案","核符")))))) ->  | AG24: =IF(AF24="","",IFERROR(AF$4-LEFT(VLOOKUP(AF24,$C$6:$D$1899,2,0),2)-1,"未建檔")) ->  | AI24: =IF(AF24="","",IF(VLOOKUP(AF24,$C$6:$F$1899,4,0)="未符資格","未符資格",IF(VLOOKUP(AF24,$C$6:$F$1899,4,0)="一年一次","核符",IF(VLOOKUP(AF24,$C$6:$F$1899,4,0)="二年一次",IF(IFERROR(VLOOKUP(AF24,AA$5:AA$1899,1,0),"")=AF24,"前一年申請有案","核符"),IF(VLOOKUP(AF24,$C$6:$F$1899,4,0)="三年一次",IF(IFERROR(VLOOKUP(AF24,AA$5:AA$1899,1,0),"")&IFERROR(VLOOKUP(AF24,V$5:V$1899,1,0),"")=AF24,"前二年申請有案","核符")))))) ->  | AL24: =IF(AK24="","",IFERROR(AK$4-LEFT(VLOOKUP(AK24,$C$6:$D$1899,2,0),2)-1,"未建檔")) ->  | AN24: =IF(AK24="","",IF(VLOOKUP(AK24,$C$6:$F$1899,4,0)="未符資格","未符資格",IF(VLOOKUP(AK24,$C$6:$F$1899,4,0)="一年一次","核符",IF(VLOOKUP(AK24,$C$6:$F$1899,4,0)="二年一次",IF(IFERROR(VLOOKUP(AK24,AF$5:AF$1899,1,0),"")=AK24,"前一年申請有案","核符"),IF(VLOOKUP(AK24,$C$6:$F$1899,4,0)="三年一次",IF(IFERROR(VLOOKUP(AK24,AF$5:AF$1899,1,0),"")&IFERROR(VLOOKUP(AK24,AA$5:AA$1899,1,0),"")=AK24,"前二年申請有案","核符")))))) ->  | AQ24: =IF(AP24="","",IFERROR(AP$4-LEFT(VLOOKUP(AP24,$C$6:$D$1899,2,0),2)-1,"未建檔")) ->  | AS24: =IF(AP24="","",IF(VLOOKUP(AP24,$C$6:$F$1899,4,0)="未符資格","未符資格",IF(VLOOKUP(AP24,$C$6:$F$1899,4,0)="一年一次","核符",IF(VLOOKUP(AP24,$C$6:$F$1899,4,0)="二年一次",IF(IFERROR(VLOOKUP(AP24,AK$5:AK$1899,1,0),"")=AP24,"前一年申請有案","核符"),IF(VLOOKUP(AP24,$C$6:$F$1899,4,0)="三年一次",IF(IFERROR(VLOOKUP(AP24,AK$5:AK$1899,1,0),"")&IFERROR(VLOOKUP(AP24,AF$5:AF$1899,1,0),"")=AP24,"前二年申請有案","核符")))))) ->  | AV24: =IF(AU24="","",IFERROR(AU$4-LEFT(VLOOKUP(AU24,$C$6:$D$1899,2,0),2)-1,"未建檔")) ->  | AX24: =IF(AU24="","",IF(VLOOKUP(AU24,$C$6:$F$1899,4,0)="未符資格","未符資格",IF(VLOOKUP(AU24,$C$6:$F$1899,4,0)="一年一次","核符",IF(VLOOKUP(AU24,$C$6:$F$1899,4,0)="二年一次",IF(IFERROR(VLOOKUP(AU24,AP$5:AP$1899,1,0),"")=AU24,"前一年申請有案","核符"),IF(VLOOKUP(AU24,$C$6:$F$1899,4,0)="三年一次",IF(IFERROR(VLOOKUP(AU24,AP$5:AP$1899,1,0),"")&IFERROR(VLOOKUP(AU24,AK$5:AK$1899,1,0),"")=AU24,"前二年申請有案","核符")))))) ->  | BA24: =IF(AZ24="","",IFERROR(AZ$4-LEFT(VLOOKUP(AZ24,$C$6:$D$1899,2,0),2)-1,"未建檔")) ->  | BC24: =IF(AZ24="","",IF(VLOOKUP(AZ24,$C$6:$F$1899,4,0)="未符資格","未符資格",IF(VLOOKUP(AZ24,$C$6:$F$1899,4,0)="一年一次","核符",IF(VLOOKUP(AZ24,$C$6:$F$1899,4,0)="二年一次",IF(IFERROR(VLOOKUP(AZ24,AU$5:AU$1899,1,0),"")=AZ24,"前一年申請有案","核符"),IF(VLOOKUP(AZ24,$C$6:$F$1899,4,0)="三年一次",IF(IFERROR(VLOOKUP(AZ24,AU$5:AU$1899,1,0),"")&IFERROR(VLOOKUP(AZ24,AP$5:AP$1899,1,0),"")=AZ24,"前二年申請有案","核符")))))) -> 
A25: 20 | E25: =IF(C25="","",$Q$4-LEFT(D25,2)-1) ->  | H25: =IF(G25="","",IFERROR(G$4-LEFT(VLOOKUP(G25,$C$6:$D$1899,2,0),2)-1,"未建檔")) ->  | M25: =IF(L25="","",IFERROR(L$4-LEFT(VLOOKUP(L25,$C$6:$D$1899,2,0),2)-1,"未建檔")) ->  | R25: =IF(Q25="","",IFERROR(Q$4-LEFT(VLOOKUP(Q25,$C$6:$D$1899,2,0),2)-1,"未建檔")) ->  | T25: =IF(Q25="","",IF(VLOOKUP(Q25,$C$6:$F$1899,4,0)="未符資格","未符資格",IF(VLOOKUP(Q25,$C$6:$F$1899,4,0)="一年一次","核符",IF(VLOOKUP(Q25,$C$6:$F$1899,4,0)="二年一次",IF(IFERROR(VLOOKUP(Q25,L$5:L$1899,1,0),"")=Q25,"前一年申請有案","核符"),IF(VLOOKUP(Q25,$C$6:$F$1899,4,0)="三年一次",IF(IFERROR(VLOOKUP(Q25,L$5:L$1899,1,0),"")&IFERROR(VLOOKUP(Q25,G$5:G$1899,1,0),"")=Q25,"前二年申請有案","核符")))))) ->  | W25: =IF(V25="","",IFERROR(V$4-LEFT(VLOOKUP(V25,$C$6:$D$1899,2,0),2)-1,"未建檔")) ->  | Y25: =IF(V25="","",IF(VLOOKUP(V25,$C$6:$F$1899,4,0)="未符資格","未符資格",IF(VLOOKUP(V25,$C$6:$F$1899,4,0)="一年一次","核符",IF(VLOOKUP(V25,$C$6:$F$1899,4,0)="二年一次",IF(IFERROR(VLOOKUP(V25,Q$5:Q$1899,1,0),"")=V25,"前一年申請有案","核符"),IF(VLOOKUP(V25,$C$6:$F$1899,4,0)="三年一次",IF(IFERROR(VLOOKUP(V25,Q$5:Q$1899,1,0),"")&IFERROR(VLOOKUP(V25,L$5:L$1899,1,0),"")=V25,"前二年申請有案","核符")))))) ->  | AB25: =IF(AA25="","",IFERROR(AA$4-LEFT(VLOOKUP(AA25,$C$6:$D$1899,2,0),2)-1,"未建檔")) ->  | AD25: =IF(AA25="","",IF(VLOOKUP(AA25,$C$6:$F$1899,4,0)="未符資格","未符資格",IF(VLOOKUP(AA25,$C$6:$F$1899,4,0)="一年一次","核符",IF(VLOOKUP(AA25,$C$6:$F$1899,4,0)="二年一次",IF(IFERROR(VLOOKUP(AA25,V$5:V$1899,1,0),"")=AA25,"前一年申請有案","核符"),IF(VLOOKUP(AA25,$C$6:$F$1899,4,0)="三年一次",IF(IFERROR(VLOOKUP(AA25,V$5:V$1899,1,0),"")&IFERROR(VLOOKUP(AA25,Q$5:Q$1899,1,0),"")=AA25,"前二年申請有案","核符")))))) ->  | AG25: =IF(AF25="","",IFERROR(AF$4-LEFT(VLOOKUP(AF25,$C$6:$D$1899,2,0),2)-1,"未建檔")) ->  | AI25: =IF(AF25="","",IF(VLOOKUP(AF25,$C$6:$F$1899,4,0)="未符資格","未符資格",IF(VLOOKUP(AF25,$C$6:$F$1899,4,0)="一年一次","核符",IF(VLOOKUP(AF25,$C$6:$F$1899,4,0)="二年一次",IF(IFERROR(VLOOKUP(AF25,AA$5:AA$1899,1,0),"")=AF25,"前一年申請有案","核符"),IF(VLOOKUP(AF25,$C$6:$F$1899,4,0)="三年一次",IF(IFERROR(VLOOKUP(AF25,AA$5:AA$1899,1,0),"")&IFERROR(VLOOKUP(AF25,V$5:V$1899,1,0),"")=AF25,"前二年申請有案","核符")))))) ->  | AL25: =IF(AK25="","",IFERROR(AK$4-LEFT(VLOOKUP(AK25,$C$6:$D$1899,2,0),2)-1,"未建檔")) ->  | AN25: =IF(AK25="","",IF(VLOOKUP(AK25,$C$6:$F$1899,4,0)="未符資格","未符資格",IF(VLOOKUP(AK25,$C$6:$F$1899,4,0)="一年一次","核符",IF(VLOOKUP(AK25,$C$6:$F$1899,4,0)="二年一次",IF(IFERROR(VLOOKUP(AK25,AF$5:AF$1899,1,0),"")=AK25,"前一年申請有案","核符"),IF(VLOOKUP(AK25,$C$6:$F$1899,4,0)="三年一次",IF(IFERROR(VLOOKUP(AK25,AF$5:AF$1899,1,0),"")&IFERROR(VLOOKUP(AK25,AA$5:AA$1899,1,0),"")=AK25,"前二年申請有案","核符")))))) ->  | AQ25: =IF(AP25="","",IFERROR(AP$4-LEFT(VLOOKUP(AP25,$C$6:$D$1899,2,0),2)-1,"未建檔")) ->  | AS25: =IF(AP25="","",IF(VLOOKUP(AP25,$C$6:$F$1899,4,0)="未符資格","未符資格",IF(VLOOKUP(AP25,$C$6:$F$1899,4,0)="一年一次","核符",IF(VLOOKUP(AP25,$C$6:$F$1899,4,0)="二年一次",IF(IFERROR(VLOOKUP(AP25,AK$5:AK$1899,1,0),"")=AP25,"前一年申請有案","核符"),IF(VLOOKUP(AP25,$C$6:$F$1899,4,0)="三年一次",IF(IFERROR(VLOOKUP(AP25,AK$5:AK$1899,1,0),"")&IFERROR(VLOOKUP(AP25,AF$5:AF$1899,1,0),"")=AP25,"前二年申請有案","核符")))))) ->  | AV25: =IF(AU25="","",IFERROR(AU$4-LEFT(VLOOKUP(AU25,$C$6:$D$1899,2,0),2)-1,"未建檔")) ->  | AX25: =IF(AU25="","",IF(VLOOKUP(AU25,$C$6:$F$1899,4,0)="未符資格","未符資格",IF(VLOOKUP(AU25,$C$6:$F$1899,4,0)="一年一次","核符",IF(VLOOKUP(AU25,$C$6:$F$1899,4,0)="二年一次",IF(IFERROR(VLOOKUP(AU25,AP$5:AP$1899,1,0),"")=AU25,"前一年申請有案","核符"),IF(VLOOKUP(AU25,$C$6:$F$1899,4,0)="三年一次",IF(IFERROR(VLOOKUP(AU25,AP$5:AP$1899,1,0),"")&IFERROR(VLOOKUP(AU25,AK$5:AK$1899,1,0),"")=AU25,"前二年申請有案","核符")))))) ->  | BA25: =IF(AZ25="","",IFERROR(AZ$4-LEFT(VLOOKUP(AZ25,$C$6:$D$1899,2,0),2)-1,"未建檔")) ->  | BC25: =IF(AZ25="","",IF(VLOOKUP(AZ25,$C$6:$F$1899,4,0)="未符資格","未符資格",IF(VLOOKUP(AZ25,$C$6:$F$1899,4,0)="一年一次","核符",IF(VLOOKUP(AZ25,$C$6:$F$1899,4,0)="二年一次",IF(IFERROR(VLOOKUP(AZ25,AU$5:AU$1899,1,0),"")=AZ25,"前一年申請有案","核符"),IF(VLOOKUP(AZ25,$C$6:$F$1899,4,0)="三年一次",IF(IFERROR(VLOOKUP(AZ25,AU$5:AU$1899,1,0),"")&IFERROR(VLOOKUP(AZ25,AP$5:AP$1899,1,0),"")=AZ25,"前二年申請有案","核符")))))) -> 
A26: 21 | E26: =IF(C26="","",$Q$4-LEFT(D26,2)-1) ->  | H26: =IF(G26="","",IFERROR(G$4-LEFT(VLOOKUP(G26,$C$6:$D$1899,2,0),2)-1,"未建檔")) ->  | M26: =IF(L26="","",IFERROR(L$4-LEFT(VLOOKUP(L26,$C$6:$D$1899,2,0),2)-1,"未建檔")) ->  | R26: =IF(Q26="","",IFERROR(Q$4-LEFT(VLOOKUP(Q26,$C$6:$D$1899,2,0),2)-1,"未建檔")) ->  | T26: =IF(Q26="","",IF(VLOOKUP(Q26,$C$6:$F$1899,4,0)="未符資格","未符資格",IF(VLOOKUP(Q26,$C$6:$F$1899,4,0)="一年一次","核符",IF(VLOOKUP(Q26,$C$6:$F$1899,4,0)="二年一次",IF(IFERROR(VLOOKUP(Q26,L$5:L$1899,1,0),"")=Q26,"前一年申請有案","核符"),IF(VLOOKUP(Q26,$C$6:$F$1899,4,0)="三年一次",IF(IFERROR(VLOOKUP(Q26,L$5:L$1899,1,0),"")&IFERROR(VLOOKUP(Q26,G$5:G$1899,1,0),"")=Q26,"前二年申請有案","核符")))))) ->  | W26: =IF(V26="","",IFERROR(V$4-LEFT(VLOOKUP(V26,$C$6:$D$1899,2,0),2)-1,"未建檔")) ->  | Y26: =IF(V26="","",IF(VLOOKUP(V26,$C$6:$F$1899,4,0)="未符資格","未符資格",IF(VLOOKUP(V26,$C$6:$F$1899,4,0)="一年一次","核符",IF(VLOOKUP(V26,$C$6:$F$1899,4,0)="二年一次",IF(IFERROR(VLOOKUP(V26,Q$5:Q$1899,1,0),"")=V26,"前一年申請有案","核符"),IF(VLOOKUP(V26,$C$6:$F$1899,4,0)="三年一次",IF(IFERROR(VLOOKUP(V26,Q$5:Q$1899,1,0),"")&IFERROR(VLOOKUP(V26,L$5:L$1899,1,0),"")=V26,"前二年申請有案","核符")))))) ->  | AB26: =IF(AA26="","",IFERROR(AA$4-LEFT(VLOOKUP(AA26,$C$6:$D$1899,2,0),2)-1,"未建檔")) ->  | AD26: =IF(AA26="","",IF(VLOOKUP(AA26,$C$6:$F$1899,4,0)="未符資格","未符資格",IF(VLOOKUP(AA26,$C$6:$F$1899,4,0)="一年一次","核符",IF(VLOOKUP(AA26,$C$6:$F$1899,4,0)="二年一次",IF(IFERROR(VLOOKUP(AA26,V$5:V$1899,1,0),"")=AA26,"前一年申請有案","核符"),IF(VLOOKUP(AA26,$C$6:$F$1899,4,0)="三年一次",IF(IFERROR(VLOOKUP(AA26,V$5:V$1899,1,0),"")&IFERROR(VLOOKUP(AA26,Q$5:Q$1899,1,0),"")=AA26,"前二年申請有案","核符")))))) ->  | AG26: =IF(AF26="","",IFERROR(AF$4-LEFT(VLOOKUP(AF26,$C$6:$D$1899,2,0),2)-1,"未建檔")) ->  | AI26: =IF(AF26="","",IF(VLOOKUP(AF26,$C$6:$F$1899,4,0)="未符資格","未符資格",IF(VLOOKUP(AF26,$C$6:$F$1899,4,0)="一年一次","核符",IF(VLOOKUP(AF26,$C$6:$F$1899,4,0)="二年一次",IF(IFERROR(VLOOKUP(AF26,AA$5:AA$1899,1,0),"")=AF26,"前一年申請有案","核符"),IF(VLOOKUP(AF26,$C$6:$F$1899,4,0)="三年一次",IF(IFERROR(VLOOKUP(AF26,AA$5:AA$1899,1,0),"")&IFERROR(VLOOKUP(AF26,V$5:V$1899,1,0),"")=AF26,"前二年申請有案","核符")))))) ->  | AL26: =IF(AK26="","",IFERROR(AK$4-LEFT(VLOOKUP(AK26,$C$6:$D$1899,2,0),2)-1,"未建檔")) ->  | AN26: =IF(AK26="","",IF(VLOOKUP(AK26,$C$6:$F$1899,4,0)="未符資格","未符資格",IF(VLOOKUP(AK26,$C$6:$F$1899,4,0)="一年一次","核符",IF(VLOOKUP(AK26,$C$6:$F$1899,4,0)="二年一次",IF(IFERROR(VLOOKUP(AK26,AF$5:AF$1899,1,0),"")=AK26,"前一年申請有案","核符"),IF(VLOOKUP(AK26,$C$6:$F$1899,4,0)="三年一次",IF(IFERROR(VLOOKUP(AK26,AF$5:AF$1899,1,0),"")&IFERROR(VLOOKUP(AK26,AA$5:AA$1899,1,0),"")=AK26,"前二年申請有案","核符")))))) ->  | AQ26: =IF(AP26="","",IFERROR(AP$4-LEFT(VLOOKUP(AP26,$C$6:$D$1899,2,0),2)-1,"未建檔")) ->  | AS26: =IF(AP26="","",IF(VLOOKUP(AP26,$C$6:$F$1899,4,0)="未符資格","未符資格",IF(VLOOKUP(AP26,$C$6:$F$1899,4,0)="一年一次","核符",IF(VLOOKUP(AP26,$C$6:$F$1899,4,0)="二年一次",IF(IFERROR(VLOOKUP(AP26,AK$5:AK$1899,1,0),"")=AP26,"前一年申請有案","核符"),IF(VLOOKUP(AP26,$C$6:$F$1899,4,0)="三年一次",IF(IFERROR(VLOOKUP(AP26,AK$5:AK$1899,1,0),"")&IFERROR(VLOOKUP(AP26,AF$5:AF$1899,1,0),"")=AP26,"前二年申請有案","核符")))))) ->  | AV26: =IF(AU26="","",IFERROR(AU$4-LEFT(VLOOKUP(AU26,$C$6:$D$1899,2,0),2)-1,"未建檔")) ->  | AX26: =IF(AU26="","",IF(VLOOKUP(AU26,$C$6:$F$1899,4,0)="未符資格","未符資格",IF(VLOOKUP(AU26,$C$6:$F$1899,4,0)="一年一次","核符",IF(VLOOKUP(AU26,$C$6:$F$1899,4,0)="二年一次",IF(IFERROR(VLOOKUP(AU26,AP$5:AP$1899,1,0),"")=AU26,"前一年申請有案","核符"),IF(VLOOKUP(AU26,$C$6:$F$1899,4,0)="三年一次",IF(IFERROR(VLOOKUP(AU26,AP$5:AP$1899,1,0),"")&IFERROR(VLOOKUP(AU26,AK$5:AK$1899,1,0),"")=AU26,"前二年申請有案","核符")))))) ->  | BA26: =IF(AZ26="","",IFERROR(AZ$4-LEFT(VLOOKUP(AZ26,$C$6:$D$1899,2,0),2)-1,"未建檔")) ->  | BC26: =IF(AZ26="","",IF(VLOOKUP(AZ26,$C$6:$F$1899,4,0)="未符資格","未符資格",IF(VLOOKUP(AZ26,$C$6:$F$1899,4,0)="一年一次","核符",IF(VLOOKUP(AZ26,$C$6:$F$1899,4,0)="二年一次",IF(IFERROR(VLOOKUP(AZ26,AU$5:AU$1899,1,0),"")=AZ26,"前一年申請有案","核符"),IF(VLOOKUP(AZ26,$C$6:$F$1899,4,0)="三年一次",IF(IFERROR(VLOOKUP(AZ26,AU$5:AU$1899,1,0),"")&IFERROR(VLOOKUP(AZ26,AP$5:AP$1899,1,0),"")=AZ26,"前二年申請有案","核符")))))) -> 
A27: 22 | E27: =IF(C27="","",$Q$4-LEFT(D27,2)-1) ->  | H27: =IF(G27="","",IFERROR(G$4-LEFT(VLOOKUP(G27,$C$6:$D$1899,2,0),2)-1,"未建檔")) ->  | M27: =IF(L27="","",IFERROR(L$4-LEFT(VLOOKUP(L27,$C$6:$D$1899,2,0),2)-1,"未建檔")) ->  | R27: =IF(Q27="","",IFERROR(Q$4-LEFT(VLOOKUP(Q27,$C$6:$D$1899,2,0),2)-1,"未建檔")) ->  | T27: =IF(Q27="","",IF(VLOOKUP(Q27,$C$6:$F$1899,4,0)="未符資格","未符資格",IF(VLOOKUP(Q27,$C$6:$F$1899,4,0)="一年一次","核符",IF(VLOOKUP(Q27,$C$6:$F$1899,4,0)="二年一次",IF(IFERROR(VLOOKUP(Q27,L$5:L$1899,1,0),"")=Q27,"前一年申請有案","核符"),IF(VLOOKUP(Q27,$C$6:$F$1899,4,0)="三年一次",IF(IFERROR(VLOOKUP(Q27,L$5:L$1899,1,0),"")&IFERROR(VLOOKUP(Q27,G$5:G$1899,1,0),"")=Q27,"前二年申請有案","核符")))))) ->  | W27: =IF(V27="","",IFERROR(V$4-LEFT(VLOOKUP(V27,$C$6:$D$1899,2,0),2)-1,"未建檔")) ->  | Y27: =IF(V27="","",IF(VLOOKUP(V27,$C$6:$F$1899,4,0)="未符資格","未符資格",IF(VLOOKUP(V27,$C$6:$F$1899,4,0)="一年一次","核符",IF(VLOOKUP(V27,$C$6:$F$1899,4,0)="二年一次",IF(IFERROR(VLOOKUP(V27,Q$5:Q$1899,1,0),"")=V27,"前一年申請有案","核符"),IF(VLOOKUP(V27,$C$6:$F$1899,4,0)="三年一次",IF(IFERROR(VLOOKUP(V27,Q$5:Q$1899,1,0),"")&IFERROR(VLOOKUP(V27,L$5:L$1899,1,0),"")=V27,"前二年申請有案","核符")))))) ->  | AB27: =IF(AA27="","",IFERROR(AA$4-LEFT(VLOOKUP(AA27,$C$6:$D$1899,2,0),2)-1,"未建檔")) ->  | AD27: =IF(AA27="","",IF(VLOOKUP(AA27,$C$6:$F$1899,4,0)="未符資格","未符資格",IF(VLOOKUP(AA27,$C$6:$F$1899,4,0)="一年一次","核符",IF(VLOOKUP(AA27,$C$6:$F$1899,4,0)="二年一次",IF(IFERROR(VLOOKUP(AA27,V$5:V$1899,1,0),"")=AA27,"前一年申請有案","核符"),IF(VLOOKUP(AA27,$C$6:$F$1899,4,0)="三年一次",IF(IFERROR(VLOOKUP(AA27,V$5:V$1899,1,0),"")&IFERROR(VLOOKUP(AA27,Q$5:Q$1899,1,0),"")=AA27,"前二年申請有案","核符")))))) ->  | AG27: =IF(AF27="","",IFERROR(AF$4-LEFT(VLOOKUP(AF27,$C$6:$D$1899,2,0),2)-1,"未建檔")) ->  | AI27: =IF(AF27="","",IF(VLOOKUP(AF27,$C$6:$F$1899,4,0)="未符資格","未符資格",IF(VLOOKUP(AF27,$C$6:$F$1899,4,0)="一年一次","核符",IF(VLOOKUP(AF27,$C$6:$F$1899,4,0)="二年一次",IF(IFERROR(VLOOKUP(AF27,AA$5:AA$1899,1,0),"")=AF27,"前一年申請有案","核符"),IF(VLOOKUP(AF27,$C$6:$F$1899,4,0)="三年一次",IF(IFERROR(VLOOKUP(AF27,AA$5:AA$1899,1,0),"")&IFERROR(VLOOKUP(AF27,V$5:V$1899,1,0),"")=AF27,"前二年申請有案","核符")))))) ->  | AL27: =IF(AK27="","",IFERROR(AK$4-LEFT(VLOOKUP(AK27,$C$6:$D$1899,2,0),2)-1,"未建檔")) ->  | AN27: =IF(AK27="","",IF(VLOOKUP(AK27,$C$6:$F$1899,4,0)="未符資格","未符資格",IF(VLOOKUP(AK27,$C$6:$F$1899,4,0)="一年一次","核符",IF(VLOOKUP(AK27,$C$6:$F$1899,4,0)="二年一次",IF(IFERROR(VLOOKUP(AK27,AF$5:AF$1899,1,0),"")=AK27,"前一年申請有案","核符"),IF(VLOOKUP(AK27,$C$6:$F$1899,4,0)="三年一次",IF(IFERROR(VLOOKUP(AK27,AF$5:AF$1899,1,0),"")&IFERROR(VLOOKUP(AK27,AA$5:AA$1899,1,0),"")=AK27,"前二年申請有案","核符")))))) ->  | AQ27: =IF(AP27="","",IFERROR(AP$4-LEFT(VLOOKUP(AP27,$C$6:$D$1899,2,0),2)-1,"未建檔")) ->  | AS27: =IF(AP27="","",IF(VLOOKUP(AP27,$C$6:$F$1899,4,0)="未符資格","未符資格",IF(VLOOKUP(AP27,$C$6:$F$1899,4,0)="一年一次","核符",IF(VLOOKUP(AP27,$C$6:$F$1899,4,0)="二年一次",IF(IFERROR(VLOOKUP(AP27,AK$5:AK$1899,1,0),"")=AP27,"前一年申請有案","核符"),IF(VLOOKUP(AP27,$C$6:$F$1899,4,0)="三年一次",IF(IFERROR(VLOOKUP(AP27,AK$5:AK$1899,1,0),"")&IFERROR(VLOOKUP(AP27,AF$5:AF$1899,1,0),"")=AP27,"前二年申請有案","核符")))))) ->  | AV27: =IF(AU27="","",IFERROR(AU$4-LEFT(VLOOKUP(AU27,$C$6:$D$1899,2,0),2)-1,"未建檔")) ->  | AX27: =IF(AU27="","",IF(VLOOKUP(AU27,$C$6:$F$1899,4,0)="未符資格","未符資格",IF(VLOOKUP(AU27,$C$6:$F$1899,4,0)="一年一次","核符",IF(VLOOKUP(AU27,$C$6:$F$1899,4,0)="二年一次",IF(IFERROR(VLOOKUP(AU27,AP$5:AP$1899,1,0),"")=AU27,"前一年申請有案","核符"),IF(VLOOKUP(AU27,$C$6:$F$1899,4,0)="三年一次",IF(IFERROR(VLOOKUP(AU27,AP$5:AP$1899,1,0),"")&IFERROR(VLOOKUP(AU27,AK$5:AK$1899,1,0),"")=AU27,"前二年申請有案","核符")))))) ->  | BA27: =IF(AZ27="","",IFERROR(AZ$4-LEFT(VLOOKUP(AZ27,$C$6:$D$1899,2,0),2)-1,"未建檔")) ->  | BC27: =IF(AZ27="","",IF(VLOOKUP(AZ27,$C$6:$F$1899,4,0)="未符資格","未符資格",IF(VLOOKUP(AZ27,$C$6:$F$1899,4,0)="一年一次","核符",IF(VLOOKUP(AZ27,$C$6:$F$1899,4,0)="二年一次",IF(IFERROR(VLOOKUP(AZ27,AU$5:AU$1899,1,0),"")=AZ27,"前一年申請有案","核符"),IF(VLOOKUP(AZ27,$C$6:$F$1899,4,0)="三年一次",IF(IFERROR(VLOOKUP(AZ27,AU$5:AU$1899,1,0),"")&IFERROR(VLOOKUP(AZ27,AP$5:AP$1899,1,0),"")=AZ27,"前二年申請有案","核符")))))) -> 
A28: 23 | E28: =IF(C28="","",$Q$4-LEFT(D28,2)-1) ->  | H28: =IF(G28="","",IFERROR(G$4-LEFT(VLOOKUP(G28,$C$6:$D$1899,2,0),2)-1,"未建檔")) ->  | M28: =IF(L28="","",IFERROR(L$4-LEFT(VLOOKUP(L28,$C$6:$D$1899,2,0),2)-1,"未建檔")) ->  | R28: =IF(Q28="","",IFERROR(Q$4-LEFT(VLOOKUP(Q28,$C$6:$D$1899,2,0),2)-1,"未建檔")) ->  | T28: =IF(Q28="","",IF(VLOOKUP(Q28,$C$6:$F$1899,4,0)="未符資格","未符資格",IF(VLOOKUP(Q28,$C$6:$F$1899,4,0)="一年一次","核符",IF(VLOOKUP(Q28,$C$6:$F$1899,4,0)="二年一次",IF(IFERROR(VLOOKUP(Q28,L$5:L$1899,1,0),"")=Q28,"前一年申請有案","核符"),IF(VLOOKUP(Q28,$C$6:$F$1899,4,0)="三年一次",IF(IFERROR(VLOOKUP(Q28,L$5:L$1899,1,0),"")&IFERROR(VLOOKUP(Q28,G$5:G$1899,1,0),"")=Q28,"前二年申請有案","核符")))))) ->  | W28: =IF(V28="","",IFERROR(V$4-LEFT(VLOOKUP(V28,$C$6:$D$1899,2,0),2)-1,"未建檔")) ->  | Y28: =IF(V28="","",IF(VLOOKUP(V28,$C$6:$F$1899,4,0)="未符資格","未符資格",IF(VLOOKUP(V28,$C$6:$F$1899,4,0)="一年一次","核符",IF(VLOOKUP(V28,$C$6:$F$1899,4,0)="二年一次",IF(IFERROR(VLOOKUP(V28,Q$5:Q$1899,1,0),"")=V28,"前一年申請有案","核符"),IF(VLOOKUP(V28,$C$6:$F$1899,4,0)="三年一次",IF(IFERROR(VLOOKUP(V28,Q$5:Q$1899,1,0),"")&IFERROR(VLOOKUP(V28,L$5:L$1899,1,0),"")=V28,"前二年申請有案","核符")))))) ->  | AB28: =IF(AA28="","",IFERROR(AA$4-LEFT(VLOOKUP(AA28,$C$6:$D$1899,2,0),2)-1,"未建檔")) ->  | AD28: =IF(AA28="","",IF(VLOOKUP(AA28,$C$6:$F$1899,4,0)="未符資格","未符資格",IF(VLOOKUP(AA28,$C$6:$F$1899,4,0)="一年一次","核符",IF(VLOOKUP(AA28,$C$6:$F$1899,4,0)="二年一次",IF(IFERROR(VLOOKUP(AA28,V$5:V$1899,1,0),"")=AA28,"前一年申請有案","核符"),IF(VLOOKUP(AA28,$C$6:$F$1899,4,0)="三年一次",IF(IFERROR(VLOOKUP(AA28,V$5:V$1899,1,0),"")&IFERROR(VLOOKUP(AA28,Q$5:Q$1899,1,0),"")=AA28,"前二年申請有案","核符")))))) ->  | AG28: =IF(AF28="","",IFERROR(AF$4-LEFT(VLOOKUP(AF28,$C$6:$D$1899,2,0),2)-1,"未建檔")) ->  | AI28: =IF(AF28="","",IF(VLOOKUP(AF28,$C$6:$F$1899,4,0)="未符資格","未符資格",IF(VLOOKUP(AF28,$C$6:$F$1899,4,0)="一年一次","核符",IF(VLOOKUP(AF28,$C$6:$F$1899,4,0)="二年一次",IF(IFERROR(VLOOKUP(AF28,AA$5:AA$1899,1,0),"")=AF28,"前一年申請有案","核符"),IF(VLOOKUP(AF28,$C$6:$F$1899,4,0)="三年一次",IF(IFERROR(VLOOKUP(AF28,AA$5:AA$1899,1,0),"")&IFERROR(VLOOKUP(AF28,V$5:V$1899,1,0),"")=AF28,"前二年申請有案","核符")))))) ->  | AL28: =IF(AK28="","",IFERROR(AK$4-LEFT(VLOOKUP(AK28,$C$6:$D$1899,2,0),2)-1,"未建檔")) ->  | AN28: =IF(AK28="","",IF(VLOOKUP(AK28,$C$6:$F$1899,4,0)="未符資格","未符資格",IF(VLOOKUP(AK28,$C$6:$F$1899,4,0)="一年一次","核符",IF(VLOOKUP(AK28,$C$6:$F$1899,4,0)="二年一次",IF(IFERROR(VLOOKUP(AK28,AF$5:AF$1899,1,0),"")=AK28,"前一年申請有案","核符"),IF(VLOOKUP(AK28,$C$6:$F$1899,4,0)="三年一次",IF(IFERROR(VLOOKUP(AK28,AF$5:AF$1899,1,0),"")&IFERROR(VLOOKUP(AK28,AA$5:AA$1899,1,0),"")=AK28,"前二年申請有案","核符")))))) ->  | AQ28: =IF(AP28="","",IFERROR(AP$4-LEFT(VLOOKUP(AP28,$C$6:$D$1899,2,0),2)-1,"未建檔")) ->  | AS28: =IF(AP28="","",IF(VLOOKUP(AP28,$C$6:$F$1899,4,0)="未符資格","未符資格",IF(VLOOKUP(AP28,$C$6:$F$1899,4,0)="一年一次","核符",IF(VLOOKUP(AP28,$C$6:$F$1899,4,0)="二年一次",IF(IFERROR(VLOOKUP(AP28,AK$5:AK$1899,1,0),"")=AP28,"前一年申請有案","核符"),IF(VLOOKUP(AP28,$C$6:$F$1899,4,0)="三年一次",IF(IFERROR(VLOOKUP(AP28,AK$5:AK$1899,1,0),"")&IFERROR(VLOOKUP(AP28,AF$5:AF$1899,1,0),"")=AP28,"前二年申請有案","核符")))))) ->  | AV28: =IF(AU28="","",IFERROR(AU$4-LEFT(VLOOKUP(AU28,$C$6:$D$1899,2,0),2)-1,"未建檔")) ->  | AX28: =IF(AU28="","",IF(VLOOKUP(AU28,$C$6:$F$1899,4,0)="未符資格","未符資格",IF(VLOOKUP(AU28,$C$6:$F$1899,4,0)="一年一次","核符",IF(VLOOKUP(AU28,$C$6:$F$1899,4,0)="二年一次",IF(IFERROR(VLOOKUP(AU28,AP$5:AP$1899,1,0),"")=AU28,"前一年申請有案","核符"),IF(VLOOKUP(AU28,$C$6:$F$1899,4,0)="三年一次",IF(IFERROR(VLOOKUP(AU28,AP$5:AP$1899,1,0),"")&IFERROR(VLOOKUP(AU28,AK$5:AK$1899,1,0),"")=AU28,"前二年申請有案","核符")))))) ->  | BA28: =IF(AZ28="","",IFERROR(AZ$4-LEFT(VLOOKUP(AZ28,$C$6:$D$1899,2,0),2)-1,"未建檔")) ->  | BC28: =IF(AZ28="","",IF(VLOOKUP(AZ28,$C$6:$F$1899,4,0)="未符資格","未符資格",IF(VLOOKUP(AZ28,$C$6:$F$1899,4,0)="一年一次","核符",IF(VLOOKUP(AZ28,$C$6:$F$1899,4,0)="二年一次",IF(IFERROR(VLOOKUP(AZ28,AU$5:AU$1899,1,0),"")=AZ28,"前一年申請有案","核符"),IF(VLOOKUP(AZ28,$C$6:$F$1899,4,0)="三年一次",IF(IFERROR(VLOOKUP(AZ28,AU$5:AU$1899,1,0),"")&IFERROR(VLOOKUP(AZ28,AP$5:AP$1899,1,0),"")=AZ28,"前二年申請有案","核符")))))) -> 
A29: 24 | E29: =IF(C29="","",$Q$4-LEFT(D29,2)-1) ->  | H29: =IF(G29="","",IFERROR(G$4-LEFT(VLOOKUP(G29,$C$6:$D$1899,2,0),2)-1,"未建檔")) ->  | M29: =IF(L29="","",IFERROR(L$4-LEFT(VLOOKUP(L29,$C$6:$D$1899,2,0),2)-1,"未建檔")) ->  | R29: =IF(Q29="","",IFERROR(Q$4-LEFT(VLOOKUP(Q29,$C$6:$D$1899,2,0),2)-1,"未建檔")) ->  | T29: =IF(Q29="","",IF(VLOOKUP(Q29,$C$6:$F$1899,4,0)="未符資格","未符資格",IF(VLOOKUP(Q29,$C$6:$F$1899,4,0)="一年一次","核符",IF(VLOOKUP(Q29,$C$6:$F$1899,4,0)="二年一次",IF(IFERROR(VLOOKUP(Q29,L$5:L$1899,1,0),"")=Q29,"前一年申請有案","核符"),IF(VLOOKUP(Q29,$C$6:$F$1899,4,0)="三年一次",IF(IFERROR(VLOOKUP(Q29,L$5:L$1899,1,0),"")&IFERROR(VLOOKUP(Q29,G$5:G$1899,1,0),"")=Q29,"前二年申請有案","核符")))))) ->  | W29: =IF(V29="","",IFERROR(V$4-LEFT(VLOOKUP(V29,$C$6:$D$1899,2,0),2)-1,"未建檔")) ->  | Y29: =IF(V29="","",IF(VLOOKUP(V29,$C$6:$F$1899,4,0)="未符資格","未符資格",IF(VLOOKUP(V29,$C$6:$F$1899,4,0)="一年一次","核符",IF(VLOOKUP(V29,$C$6:$F$1899,4,0)="二年一次",IF(IFERROR(VLOOKUP(V29,Q$5:Q$1899,1,0),"")=V29,"前一年申請有案","核符"),IF(VLOOKUP(V29,$C$6:$F$1899,4,0)="三年一次",IF(IFERROR(VLOOKUP(V29,Q$5:Q$1899,1,0),"")&IFERROR(VLOOKUP(V29,L$5:L$1899,1,0),"")=V29,"前二年申請有案","核符")))))) ->  | AB29: =IF(AA29="","",IFERROR(AA$4-LEFT(VLOOKUP(AA29,$C$6:$D$1899,2,0),2)-1,"未建檔")) ->  | AD29: =IF(AA29="","",IF(VLOOKUP(AA29,$C$6:$F$1899,4,0)="未符資格","未符資格",IF(VLOOKUP(AA29,$C$6:$F$1899,4,0)="一年一次","核符",IF(VLOOKUP(AA29,$C$6:$F$1899,4,0)="二年一次",IF(IFERROR(VLOOKUP(AA29,V$5:V$1899,1,0),"")=AA29,"前一年申請有案","核符"),IF(VLOOKUP(AA29,$C$6:$F$1899,4,0)="三年一次",IF(IFERROR(VLOOKUP(AA29,V$5:V$1899,1,0),"")&IFERROR(VLOOKUP(AA29,Q$5:Q$1899,1,0),"")=AA29,"前二年申請有案","核符")))))) ->  | AG29: =IF(AF29="","",IFERROR(AF$4-LEFT(VLOOKUP(AF29,$C$6:$D$1899,2,0),2)-1,"未建檔")) ->  | AI29: =IF(AF29="","",IF(VLOOKUP(AF29,$C$6:$F$1899,4,0)="未符資格","未符資格",IF(VLOOKUP(AF29,$C$6:$F$1899,4,0)="一年一次","核符",IF(VLOOKUP(AF29,$C$6:$F$1899,4,0)="二年一次",IF(IFERROR(VLOOKUP(AF29,AA$5:AA$1899,1,0),"")=AF29,"前一年申請有案","核符"),IF(VLOOKUP(AF29,$C$6:$F$1899,4,0)="三年一次",IF(IFERROR(VLOOKUP(AF29,AA$5:AA$1899,1,0),"")&IFERROR(VLOOKUP(AF29,V$5:V$1899,1,0),"")=AF29,"前二年申請有案","核符")))))) ->  | AL29: =IF(AK29="","",IFERROR(AK$4-LEFT(VLOOKUP(AK29,$C$6:$D$1899,2,0),2)-1,"未建檔")) ->  | AN29: =IF(AK29="","",IF(VLOOKUP(AK29,$C$6:$F$1899,4,0)="未符資格","未符資格",IF(VLOOKUP(AK29,$C$6:$F$1899,4,0)="一年一次","核符",IF(VLOOKUP(AK29,$C$6:$F$1899,4,0)="二年一次",IF(IFERROR(VLOOKUP(AK29,AF$5:AF$1899,1,0),"")=AK29,"前一年申請有案","核符"),IF(VLOOKUP(AK29,$C$6:$F$1899,4,0)="三年一次",IF(IFERROR(VLOOKUP(AK29,AF$5:AF$1899,1,0),"")&IFERROR(VLOOKUP(AK29,AA$5:AA$1899,1,0),"")=AK29,"前二年申請有案","核符")))))) ->  | AQ29: =IF(AP29="","",IFERROR(AP$4-LEFT(VLOOKUP(AP29,$C$6:$D$1899,2,0),2)-1,"未建檔")) ->  | AS29: =IF(AP29="","",IF(VLOOKUP(AP29,$C$6:$F$1899,4,0)="未符資格","未符資格",IF(VLOOKUP(AP29,$C$6:$F$1899,4,0)="一年一次","核符",IF(VLOOKUP(AP29,$C$6:$F$1899,4,0)="二年一次",IF(IFERROR(VLOOKUP(AP29,AK$5:AK$1899,1,0),"")=AP29,"前一年申請有案","核符"),IF(VLOOKUP(AP29,$C$6:$F$1899,4,0)="三年一次",IF(IFERROR(VLOOKUP(AP29,AK$5:AK$1899,1,0),"")&IFERROR(VLOOKUP(AP29,AF$5:AF$1899,1,0),"")=AP29,"前二年申請有案","核符")))))) ->  | AV29: =IF(AU29="","",IFERROR(AU$4-LEFT(VLOOKUP(AU29,$C$6:$D$1899,2,0),2)-1,"未建檔")) ->  | AX29: =IF(AU29="","",IF(VLOOKUP(AU29,$C$6:$F$1899,4,0)="未符資格","未符資格",IF(VLOOKUP(AU29,$C$6:$F$1899,4,0)="一年一次","核符",IF(VLOOKUP(AU29,$C$6:$F$1899,4,0)="二年一次",IF(IFERROR(VLOOKUP(AU29,AP$5:AP$1899,1,0),"")=AU29,"前一年申請有案","核符"),IF(VLOOKUP(AU29,$C$6:$F$1899,4,0)="三年一次",IF(IFERROR(VLOOKUP(AU29,AP$5:AP$1899,1,0),"")&IFERROR(VLOOKUP(AU29,AK$5:AK$1899,1,0),"")=AU29,"前二年申請有案","核符")))))) ->  | BA29: =IF(AZ29="","",IFERROR(AZ$4-LEFT(VLOOKUP(AZ29,$C$6:$D$1899,2,0),2)-1,"未建檔")) ->  | BC29: =IF(AZ29="","",IF(VLOOKUP(AZ29,$C$6:$F$1899,4,0)="未符資格","未符資格",IF(VLOOKUP(AZ29,$C$6:$F$1899,4,0)="一年一次","核符",IF(VLOOKUP(AZ29,$C$6:$F$1899,4,0)="二年一次",IF(IFERROR(VLOOKUP(AZ29,AU$5:AU$1899,1,0),"")=AZ29,"前一年申請有案","核符"),IF(VLOOKUP(AZ29,$C$6:$F$1899,4,0)="三年一次",IF(IFERROR(VLOOKUP(AZ29,AU$5:AU$1899,1,0),"")&IFERROR(VLOOKUP(AZ29,AP$5:AP$1899,1,0),"")=AZ29,"前二年申請有案","核符")))))) -> 
A30: 25 | E30: =IF(C30="","",$Q$4-LEFT(D30,2)-1) ->  | H30: =IF(G30="","",IFERROR(G$4-LEFT(VLOOKUP(G30,$C$6:$D$1899,2,0),2)-1,"未建檔")) ->  | M30: =IF(L30="","",IFERROR(L$4-LEFT(VLOOKUP(L30,$C$6:$D$1899,2,0),2)-1,"未建檔")) ->  | R30: =IF(Q30="","",IFERROR(Q$4-LEFT(VLOOKUP(Q30,$C$6:$D$1899,2,0),2)-1,"未建檔")) ->  | T30: =IF(Q30="","",IF(VLOOKUP(Q30,$C$6:$F$1899,4,0)="未符資格","未符資格",IF(VLOOKUP(Q30,$C$6:$F$1899,4,0)="一年一次","核符",IF(VLOOKUP(Q30,$C$6:$F$1899,4,0)="二年一次",IF(IFERROR(VLOOKUP(Q30,L$5:L$1899,1,0),"")=Q30,"前一年申請有案","核符"),IF(VLOOKUP(Q30,$C$6:$F$1899,4,0)="三年一次",IF(IFERROR(VLOOKUP(Q30,L$5:L$1899,1,0),"")&IFERROR(VLOOKUP(Q30,G$5:G$1899,1,0),"")=Q30,"前二年申請有案","核符")))))) ->  | W30: =IF(V30="","",IFERROR(V$4-LEFT(VLOOKUP(V30,$C$6:$D$1899,2,0),2)-1,"未建檔")) ->  | Y30: =IF(V30="","",IF(VLOOKUP(V30,$C$6:$F$1899,4,0)="未符資格","未符資格",IF(VLOOKUP(V30,$C$6:$F$1899,4,0)="一年一次","核符",IF(VLOOKUP(V30,$C$6:$F$1899,4,0)="二年一次",IF(IFERROR(VLOOKUP(V30,Q$5:Q$1899,1,0),"")=V30,"前一年申請有案","核符"),IF(VLOOKUP(V30,$C$6:$F$1899,4,0)="三年一次",IF(IFERROR(VLOOKUP(V30,Q$5:Q$1899,1,0),"")&IFERROR(VLOOKUP(V30,L$5:L$1899,1,0),"")=V30,"前二年申請有案","核符")))))) ->  | AB30: =IF(AA30="","",IFERROR(AA$4-LEFT(VLOOKUP(AA30,$C$6:$D$1899,2,0),2)-1,"未建檔")) ->  | AD30: =IF(AA30="","",IF(VLOOKUP(AA30,$C$6:$F$1899,4,0)="未符資格","未符資格",IF(VLOOKUP(AA30,$C$6:$F$1899,4,0)="一年一次","核符",IF(VLOOKUP(AA30,$C$6:$F$1899,4,0)="二年一次",IF(IFERROR(VLOOKUP(AA30,V$5:V$1899,1,0),"")=AA30,"前一年申請有案","核符"),IF(VLOOKUP(AA30,$C$6:$F$1899,4,0)="三年一次",IF(IFERROR(VLOOKUP(AA30,V$5:V$1899,1,0),"")&IFERROR(VLOOKUP(AA30,Q$5:Q$1899,1,0),"")=AA30,"前二年申請有案","核符")))))) ->  | AG30: =IF(AF30="","",IFERROR(AF$4-LEFT(VLOOKUP(AF30,$C$6:$D$1899,2,0),2)-1,"未建檔")) ->  | AI30: =IF(AF30="","",IF(VLOOKUP(AF30,$C$6:$F$1899,4,0)="未符資格","未符資格",IF(VLOOKUP(AF30,$C$6:$F$1899,4,0)="一年一次","核符",IF(VLOOKUP(AF30,$C$6:$F$1899,4,0)="二年一次",IF(IFERROR(VLOOKUP(AF30,AA$5:AA$1899,1,0),"")=AF30,"前一年申請有案","核符"),IF(VLOOKUP(AF30,$C$6:$F$1899,4,0)="三年一次",IF(IFERROR(VLOOKUP(AF30,AA$5:AA$1899,1,0),"")&IFERROR(VLOOKUP(AF30,V$5:V$1899,1,0),"")=AF30,"前二年申請有案","核符")))))) ->  | AL30: =IF(AK30="","",IFERROR(AK$4-LEFT(VLOOKUP(AK30,$C$6:$D$1899,2,0),2)-1,"未建檔")) ->  | AN30: =IF(AK30="","",IF(VLOOKUP(AK30,$C$6:$F$1899,4,0)="未符資格","未符資格",IF(VLOOKUP(AK30,$C$6:$F$1899,4,0)="一年一次","核符",IF(VLOOKUP(AK30,$C$6:$F$1899,4,0)="二年一次",IF(IFERROR(VLOOKUP(AK30,AF$5:AF$1899,1,0),"")=AK30,"前一年申請有案","核符"),IF(VLOOKUP(AK30,$C$6:$F$1899,4,0)="三年一次",IF(IFERROR(VLOOKUP(AK30,AF$5:AF$1899,1,0),"")&IFERROR(VLOOKUP(AK30,AA$5:AA$1899,1,0),"")=AK30,"前二年申請有案","核符")))))) ->  | AQ30: =IF(AP30="","",IFERROR(AP$4-LEFT(VLOOKUP(AP30,$C$6:$D$1899,2,0),2)-1,"未建檔")) ->  | AS30: =IF(AP30="","",IF(VLOOKUP(AP30,$C$6:$F$1899,4,0)="未符資格","未符資格",IF(VLOOKUP(AP30,$C$6:$F$1899,4,0)="一年一次","核符",IF(VLOOKUP(AP30,$C$6:$F$1899,4,0)="二年一次",IF(IFERROR(VLOOKUP(AP30,AK$5:AK$1899,1,0),"")=AP30,"前一年申請有案","核符"),IF(VLOOKUP(AP30,$C$6:$F$1899,4,0)="三年一次",IF(IFERROR(VLOOKUP(AP30,AK$5:AK$1899,1,0),"")&IFERROR(VLOOKUP(AP30,AF$5:AF$1899,1,0),"")=AP30,"前二年申請有案","核符")))))) ->  | AV30: =IF(AU30="","",IFERROR(AU$4-LEFT(VLOOKUP(AU30,$C$6:$D$1899,2,0),2)-1,"未建檔")) ->  | AX30: =IF(AU30="","",IF(VLOOKUP(AU30,$C$6:$F$1899,4,0)="未符資格","未符資格",IF(VLOOKUP(AU30,$C$6:$F$1899,4,0)="一年一次","核符",IF(VLOOKUP(AU30,$C$6:$F$1899,4,0)="二年一次",IF(IFERROR(VLOOKUP(AU30,AP$5:AP$1899,1,0),"")=AU30,"前一年申請有案","核符"),IF(VLOOKUP(AU30,$C$6:$F$1899,4,0)="三年一次",IF(IFERROR(VLOOKUP(AU30,AP$5:AP$1899,1,0),"")&IFERROR(VLOOKUP(AU30,AK$5:AK$1899,1,0),"")=AU30,"前二年申請有案","核符")))))) ->  | BA30: =IF(AZ30="","",IFERROR(AZ$4-LEFT(VLOOKUP(AZ30,$C$6:$D$1899,2,0),2)-1,"未建檔")) ->  | BC30: =IF(AZ30="","",IF(VLOOKUP(AZ30,$C$6:$F$1899,4,0)="未符資格","未符資格",IF(VLOOKUP(AZ30,$C$6:$F$1899,4,0)="一年一次","核符",IF(VLOOKUP(AZ30,$C$6:$F$1899,4,0)="二年一次",IF(IFERROR(VLOOKUP(AZ30,AU$5:AU$1899,1,0),"")=AZ30,"前一年申請有案","核符"),IF(VLOOKUP(AZ30,$C$6:$F$1899,4,0)="三年一次",IF(IFERROR(VLOOKUP(AZ30,AU$5:AU$1899,1,0),"")&IFERROR(VLOOKUP(AZ30,AP$5:AP$1899,1,0),"")=AZ30,"前二年申請有案","核符")))))) -> 
A31: 26 | E31: =IF(C31="","",$Q$4-LEFT(D31,2)-1) ->  | H31: =IF(G31="","",IFERROR(G$4-LEFT(VLOOKUP(G31,$C$6:$D$1899,2,0),2)-1,"未建檔")) ->  | M31: =IF(L31="","",IFERROR(L$4-LEFT(VLOOKUP(L31,$C$6:$D$1899,2,0),2)-1,"未建檔")) ->  | R31: =IF(Q31="","",IFERROR(Q$4-LEFT(VLOOKUP(Q31,$C$6:$D$1899,2,0),2)-1,"未建檔")) ->  | T31: =IF(Q31="","",IF(VLOOKUP(Q31,$C$6:$F$1899,4,0)="未符資格","未符資格",IF(VLOOKUP(Q31,$C$6:$F$1899,4,0)="一年一次","核符",IF(VLOOKUP(Q31,$C$6:$F$1899,4,0)="二年一次",IF(IFERROR(VLOOKUP(Q31,L$5:L$1899,1,0),"")=Q31,"前一年申請有案","核符"),IF(VLOOKUP(Q31,$C$6:$F$1899,4,0)="三年一次",IF(IFERROR(VLOOKUP(Q31,L$5:L$1899,1,0),"")&IFERROR(VLOOKUP(Q31,G$5:G$1899,1,0),"")=Q31,"前二年申請有案","核符")))))) ->  | W31: =IF(V31="","",IFERROR(V$4-LEFT(VLOOKUP(V31,$C$6:$D$1899,2,0),2)-1,"未建檔")) ->  | Y31: =IF(V31="","",IF(VLOOKUP(V31,$C$6:$F$1899,4,0)="未符資格","未符資格",IF(VLOOKUP(V31,$C$6:$F$1899,4,0)="一年一次","核符",IF(VLOOKUP(V31,$C$6:$F$1899,4,0)="二年一次",IF(IFERROR(VLOOKUP(V31,Q$5:Q$1899,1,0),"")=V31,"前一年申請有案","核符"),IF(VLOOKUP(V31,$C$6:$F$1899,4,0)="三年一次",IF(IFERROR(VLOOKUP(V31,Q$5:Q$1899,1,0),"")&IFERROR(VLOOKUP(V31,L$5:L$1899,1,0),"")=V31,"前二年申請有案","核符")))))) ->  | AB31: =IF(AA31="","",IFERROR(AA$4-LEFT(VLOOKUP(AA31,$C$6:$D$1899,2,0),2)-1,"未建檔")) ->  | AD31: =IF(AA31="","",IF(VLOOKUP(AA31,$C$6:$F$1899,4,0)="未符資格","未符資格",IF(VLOOKUP(AA31,$C$6:$F$1899,4,0)="一年一次","核符",IF(VLOOKUP(AA31,$C$6:$F$1899,4,0)="二年一次",IF(IFERROR(VLOOKUP(AA31,V$5:V$1899,1,0),"")=AA31,"前一年申請有案","核符"),IF(VLOOKUP(AA31,$C$6:$F$1899,4,0)="三年一次",IF(IFERROR(VLOOKUP(AA31,V$5:V$1899,1,0),"")&IFERROR(VLOOKUP(AA31,Q$5:Q$1899,1,0),"")=AA31,"前二年申請有案","核符")))))) ->  | AG31: =IF(AF31="","",IFERROR(AF$4-LEFT(VLOOKUP(AF31,$C$6:$D$1899,2,0),2)-1,"未建檔")) ->  | AI31: =IF(AF31="","",IF(VLOOKUP(AF31,$C$6:$F$1899,4,0)="未符資格","未符資格",IF(VLOOKUP(AF31,$C$6:$F$1899,4,0)="一年一次","核符",IF(VLOOKUP(AF31,$C$6:$F$1899,4,0)="二年一次",IF(IFERROR(VLOOKUP(AF31,AA$5:AA$1899,1,0),"")=AF31,"前一年申請有案","核符"),IF(VLOOKUP(AF31,$C$6:$F$1899,4,0)="三年一次",IF(IFERROR(VLOOKUP(AF31,AA$5:AA$1899,1,0),"")&IFERROR(VLOOKUP(AF31,V$5:V$1899,1,0),"")=AF31,"前二年申請有案","核符")))))) ->  | AL31: =IF(AK31="","",IFERROR(AK$4-LEFT(VLOOKUP(AK31,$C$6:$D$1899,2,0),2)-1,"未建檔")) ->  | AN31: =IF(AK31="","",IF(VLOOKUP(AK31,$C$6:$F$1899,4,0)="未符資格","未符資格",IF(VLOOKUP(AK31,$C$6:$F$1899,4,0)="一年一次","核符",IF(VLOOKUP(AK31,$C$6:$F$1899,4,0)="二年一次",IF(IFERROR(VLOOKUP(AK31,AF$5:AF$1899,1,0),"")=AK31,"前一年申請有案","核符"),IF(VLOOKUP(AK31,$C$6:$F$1899,4,0)="三年一次",IF(IFERROR(VLOOKUP(AK31,AF$5:AF$1899,1,0),"")&IFERROR(VLOOKUP(AK31,AA$5:AA$1899,1,0),"")=AK31,"前二年申請有案","核符")))))) ->  | AQ31: =IF(AP31="","",IFERROR(AP$4-LEFT(VLOOKUP(AP31,$C$6:$D$1899,2,0),2)-1,"未建檔")) ->  | AS31: =IF(AP31="","",IF(VLOOKUP(AP31,$C$6:$F$1899,4,0)="未符資格","未符資格",IF(VLOOKUP(AP31,$C$6:$F$1899,4,0)="一年一次","核符",IF(VLOOKUP(AP31,$C$6:$F$1899,4,0)="二年一次",IF(IFERROR(VLOOKUP(AP31,AK$5:AK$1899,1,0),"")=AP31,"前一年申請有案","核符"),IF(VLOOKUP(AP31,$C$6:$F$1899,4,0)="三年一次",IF(IFERROR(VLOOKUP(AP31,AK$5:AK$1899,1,0),"")&IFERROR(VLOOKUP(AP31,AF$5:AF$1899,1,0),"")=AP31,"前二年申請有案","核符")))))) ->  | AV31: =IF(AU31="","",IFERROR(AU$4-LEFT(VLOOKUP(AU31,$C$6:$D$1899,2,0),2)-1,"未建檔")) ->  | AX31: =IF(AU31="","",IF(VLOOKUP(AU31,$C$6:$F$1899,4,0)="未符資格","未符資格",IF(VLOOKUP(AU31,$C$6:$F$1899,4,0)="一年一次","核符",IF(VLOOKUP(AU31,$C$6:$F$1899,4,0)="二年一次",IF(IFERROR(VLOOKUP(AU31,AP$5:AP$1899,1,0),"")=AU31,"前一年申請有案","核符"),IF(VLOOKUP(AU31,$C$6:$F$1899,4,0)="三年一次",IF(IFERROR(VLOOKUP(AU31,AP$5:AP$1899,1,0),"")&IFERROR(VLOOKUP(AU31,AK$5:AK$1899,1,0),"")=AU31,"前二年申請有案","核符")))))) ->  | BA31: =IF(AZ31="","",IFERROR(AZ$4-LEFT(VLOOKUP(AZ31,$C$6:$D$1899,2,0),2)-1,"未建檔")) ->  | BC31: =IF(AZ31="","",IF(VLOOKUP(AZ31,$C$6:$F$1899,4,0)="未符資格","未符資格",IF(VLOOKUP(AZ31,$C$6:$F$1899,4,0)="一年一次","核符",IF(VLOOKUP(AZ31,$C$6:$F$1899,4,0)="二年一次",IF(IFERROR(VLOOKUP(AZ31,AU$5:AU$1899,1,0),"")=AZ31,"前一年申請有案","核符"),IF(VLOOKUP(AZ31,$C$6:$F$1899,4,0)="三年一次",IF(IFERROR(VLOOKUP(AZ31,AU$5:AU$1899,1,0),"")&IFERROR(VLOOKUP(AZ31,AP$5:AP$1899,1,0),"")=AZ31,"前二年申請有案","核符")))))) -> 
A32: 27 | E32: =IF(C32="","",$Q$4-LEFT(D32,2)-1) ->  | H32: =IF(G32="","",IFERROR(G$4-LEFT(VLOOKUP(G32,$C$6:$D$1899,2,0),2)-1,"未建檔")) ->  | M32: =IF(L32="","",IFERROR(L$4-LEFT(VLOOKUP(L32,$C$6:$D$1899,2,0),2)-1,"未建檔")) ->  | R32: =IF(Q32="","",IFERROR(Q$4-LEFT(VLOOKUP(Q32,$C$6:$D$1899,2,0),2)-1,"未建檔")) ->  | T32: =IF(Q32="","",IF(VLOOKUP(Q32,$C$6:$F$1899,4,0)="未符資格","未符資格",IF(VLOOKUP(Q32,$C$6:$F$1899,4,0)="一年一次","核符",IF(VLOOKUP(Q32,$C$6:$F$1899,4,0)="二年一次",IF(IFERROR(VLOOKUP(Q32,L$5:L$1899,1,0),"")=Q32,"前一年申請有案","核符"),IF(VLOOKUP(Q32,$C$6:$F$1899,4,0)="三年一次",IF(IFERROR(VLOOKUP(Q32,L$5:L$1899,1,0),"")&IFERROR(VLOOKUP(Q32,G$5:G$1899,1,0),"")=Q32,"前二年申請有案","核符")))))) ->  | W32: =IF(V32="","",IFERROR(V$4-LEFT(VLOOKUP(V32,$C$6:$D$1899,2,0),2)-1,"未建檔")) ->  | Y32: =IF(V32="","",IF(VLOOKUP(V32,$C$6:$F$1899,4,0)="未符資格","未符資格",IF(VLOOKUP(V32,$C$6:$F$1899,4,0)="一年一次","核符",IF(VLOOKUP(V32,$C$6:$F$1899,4,0)="二年一次",IF(IFERROR(VLOOKUP(V32,Q$5:Q$1899,1,0),"")=V32,"前一年申請有案","核符"),IF(VLOOKUP(V32,$C$6:$F$1899,4,0)="三年一次",IF(IFERROR(VLOOKUP(V32,Q$5:Q$1899,1,0),"")&IFERROR(VLOOKUP(V32,L$5:L$1899,1,0),"")=V32,"前二年申請有案","核符")))))) ->  | AB32: =IF(AA32="","",IFERROR(AA$4-LEFT(VLOOKUP(AA32,$C$6:$D$1899,2,0),2)-1,"未建檔")) ->  | AD32: =IF(AA32="","",IF(VLOOKUP(AA32,$C$6:$F$1899,4,0)="未符資格","未符資格",IF(VLOOKUP(AA32,$C$6:$F$1899,4,0)="一年一次","核符",IF(VLOOKUP(AA32,$C$6:$F$1899,4,0)="二年一次",IF(IFERROR(VLOOKUP(AA32,V$5:V$1899,1,0),"")=AA32,"前一年申請有案","核符"),IF(VLOOKUP(AA32,$C$6:$F$1899,4,0)="三年一次",IF(IFERROR(VLOOKUP(AA32,V$5:V$1899,1,0),"")&IFERROR(VLOOKUP(AA32,Q$5:Q$1899,1,0),"")=AA32,"前二年申請有案","核符")))))) ->  | AG32: =IF(AF32="","",IFERROR(AF$4-LEFT(VLOOKUP(AF32,$C$6:$D$1899,2,0),2)-1,"未建檔")) ->  | AI32: =IF(AF32="","",IF(VLOOKUP(AF32,$C$6:$F$1899,4,0)="未符資格","未符資格",IF(VLOOKUP(AF32,$C$6:$F$1899,4,0)="一年一次","核符",IF(VLOOKUP(AF32,$C$6:$F$1899,4,0)="二年一次",IF(IFERROR(VLOOKUP(AF32,AA$5:AA$1899,1,0),"")=AF32,"前一年申請有案","核符"),IF(VLOOKUP(AF32,$C$6:$F$1899,4,0)="三年一次",IF(IFERROR(VLOOKUP(AF32,AA$5:AA$1899,1,0),"")&IFERROR(VLOOKUP(AF32,V$5:V$1899,1,0),"")=AF32,"前二年申請有案","核符")))))) ->  | AL32: =IF(AK32="","",IFERROR(AK$4-LEFT(VLOOKUP(AK32,$C$6:$D$1899,2,0),2)-1,"未建檔")) ->  | AN32: =IF(AK32="","",IF(VLOOKUP(AK32,$C$6:$F$1899,4,0)="未符資格","未符資格",IF(VLOOKUP(AK32,$C$6:$F$1899,4,0)="一年一次","核符",IF(VLOOKUP(AK32,$C$6:$F$1899,4,0)="二年一次",IF(IFERROR(VLOOKUP(AK32,AF$5:AF$1899,1,0),"")=AK32,"前一年申請有案","核符"),IF(VLOOKUP(AK32,$C$6:$F$1899,4,0)="三年一次",IF(IFERROR(VLOOKUP(AK32,AF$5:AF$1899,1,0),"")&IFERROR(VLOOKUP(AK32,AA$5:AA$1899,1,0),"")=AK32,"前二年申請有案","核符")))))) ->  | AQ32: =IF(AP32="","",IFERROR(AP$4-LEFT(VLOOKUP(AP32,$C$6:$D$1899,2,0),2)-1,"未建檔")) ->  | AS32: =IF(AP32="","",IF(VLOOKUP(AP32,$C$6:$F$1899,4,0)="未符資格","未符資格",IF(VLOOKUP(AP32,$C$6:$F$1899,4,0)="一年一次","核符",IF(VLOOKUP(AP32,$C$6:$F$1899,4,0)="二年一次",IF(IFERROR(VLOOKUP(AP32,AK$5:AK$1899,1,0),"")=AP32,"前一年申請有案","核符"),IF(VLOOKUP(AP32,$C$6:$F$1899,4,0)="三年一次",IF(IFERROR(VLOOKUP(AP32,AK$5:AK$1899,1,0),"")&IFERROR(VLOOKUP(AP32,AF$5:AF$1899,1,0),"")=AP32,"前二年申請有案","核符")))))) ->  | AV32: =IF(AU32="","",IFERROR(AU$4-LEFT(VLOOKUP(AU32,$C$6:$D$1899,2,0),2)-1,"未建檔")) ->  | AX32: =IF(AU32="","",IF(VLOOKUP(AU32,$C$6:$F$1899,4,0)="未符資格","未符資格",IF(VLOOKUP(AU32,$C$6:$F$1899,4,0)="一年一次","核符",IF(VLOOKUP(AU32,$C$6:$F$1899,4,0)="二年一次",IF(IFERROR(VLOOKUP(AU32,AP$5:AP$1899,1,0),"")=AU32,"前一年申請有案","核符"),IF(VLOOKUP(AU32,$C$6:$F$1899,4,0)="三年一次",IF(IFERROR(VLOOKUP(AU32,AP$5:AP$1899,1,0),"")&IFERROR(VLOOKUP(AU32,AK$5:AK$1899,1,0),"")=AU32,"前二年申請有案","核符")))))) ->  | BA32: =IF(AZ32="","",IFERROR(AZ$4-LEFT(VLOOKUP(AZ32,$C$6:$D$1899,2,0),2)-1,"未建檔")) ->  | BC32: =IF(AZ32="","",IF(VLOOKUP(AZ32,$C$6:$F$1899,4,0)="未符資格","未符資格",IF(VLOOKUP(AZ32,$C$6:$F$1899,4,0)="一年一次","核符",IF(VLOOKUP(AZ32,$C$6:$F$1899,4,0)="二年一次",IF(IFERROR(VLOOKUP(AZ32,AU$5:AU$1899,1,0),"")=AZ32,"前一年申請有案","核符"),IF(VLOOKUP(AZ32,$C$6:$F$1899,4,0)="三年一次",IF(IFERROR(VLOOKUP(AZ32,AU$5:AU$1899,1,0),"")&IFERROR(VLOOKUP(AZ32,AP$5:AP$1899,1,0),"")=AZ32,"前二年申請有案","核符")))))) -> 
A33: 28 | E33: =IF(C33="","",$Q$4-LEFT(D33,2)-1) ->  | H33: =IF(G33="","",IFERROR(G$4-LEFT(VLOOKUP(G33,$C$6:$D$1899,2,0),2)-1,"未建檔")) ->  | M33: =IF(L33="","",IFERROR(L$4-LEFT(VLOOKUP(L33,$C$6:$D$1899,2,0),2)-1,"未建檔")) ->  | R33: =IF(Q33="","",IFERROR(Q$4-LEFT(VLOOKUP(Q33,$C$6:$D$1899,2,0),2)-1,"未建檔")) ->  | T33: =IF(Q33="","",IF(VLOOKUP(Q33,$C$6:$F$1899,4,0)="未符資格","未符資格",IF(VLOOKUP(Q33,$C$6:$F$1899,4,0)="一年一次","核符",IF(VLOOKUP(Q33,$C$6:$F$1899,4,0)="二年一次",IF(IFERROR(VLOOKUP(Q33,L$5:L$1899,1,0),"")=Q33,"前一年申請有案","核符"),IF(VLOOKUP(Q33,$C$6:$F$1899,4,0)="三年一次",IF(IFERROR(VLOOKUP(Q33,L$5:L$1899,1,0),"")&IFERROR(VLOOKUP(Q33,G$5:G$1899,1,0),"")=Q33,"前二年申請有案","核符")))))) ->  | W33: =IF(V33="","",IFERROR(V$4-LEFT(VLOOKUP(V33,$C$6:$D$1899,2,0),2)-1,"未建檔")) ->  | Y33: =IF(V33="","",IF(VLOOKUP(V33,$C$6:$F$1899,4,0)="未符資格","未符資格",IF(VLOOKUP(V33,$C$6:$F$1899,4,0)="一年一次","核符",IF(VLOOKUP(V33,$C$6:$F$1899,4,0)="二年一次",IF(IFERROR(VLOOKUP(V33,Q$5:Q$1899,1,0),"")=V33,"前一年申請有案","核符"),IF(VLOOKUP(V33,$C$6:$F$1899,4,0)="三年一次",IF(IFERROR(VLOOKUP(V33,Q$5:Q$1899,1,0),"")&IFERROR(VLOOKUP(V33,L$5:L$1899,1,0),"")=V33,"前二年申請有案","核符")))))) ->  | AB33: =IF(AA33="","",IFERROR(AA$4-LEFT(VLOOKUP(AA33,$C$6:$D$1899,2,0),2)-1,"未建檔")) ->  | AD33: =IF(AA33="","",IF(VLOOKUP(AA33,$C$6:$F$1899,4,0)="未符資格","未符資格",IF(VLOOKUP(AA33,$C$6:$F$1899,4,0)="一年一次","核符",IF(VLOOKUP(AA33,$C$6:$F$1899,4,0)="二年一次",IF(IFERROR(VLOOKUP(AA33,V$5:V$1899,1,0),"")=AA33,"前一年申請有案","核符"),IF(VLOOKUP(AA33,$C$6:$F$1899,4,0)="三年一次",IF(IFERROR(VLOOKUP(AA33,V$5:V$1899,1,0),"")&IFERROR(VLOOKUP(AA33,Q$5:Q$1899,1,0),"")=AA33,"前二年申請有案","核符")))))) ->  | AG33: =IF(AF33="","",IFERROR(AF$4-LEFT(VLOOKUP(AF33,$C$6:$D$1899,2,0),2)-1,"未建檔")) ->  | AI33: =IF(AF33="","",IF(VLOOKUP(AF33,$C$6:$F$1899,4,0)="未符資格","未符資格",IF(VLOOKUP(AF33,$C$6:$F$1899,4,0)="一年一次","核符",IF(VLOOKUP(AF33,$C$6:$F$1899,4,0)="二年一次",IF(IFERROR(VLOOKUP(AF33,AA$5:AA$1899,1,0),"")=AF33,"前一年申請有案","核符"),IF(VLOOKUP(AF33,$C$6:$F$1899,4,0)="三年一次",IF(IFERROR(VLOOKUP(AF33,AA$5:AA$1899,1,0),"")&IFERROR(VLOOKUP(AF33,V$5:V$1899,1,0),"")=AF33,"前二年申請有案","核符")))))) ->  | AL33: =IF(AK33="","",IFERROR(AK$4-LEFT(VLOOKUP(AK33,$C$6:$D$1899,2,0),2)-1,"未建檔")) ->  | AN33: =IF(AK33="","",IF(VLOOKUP(AK33,$C$6:$F$1899,4,0)="未符資格","未符資格",IF(VLOOKUP(AK33,$C$6:$F$1899,4,0)="一年一次","核符",IF(VLOOKUP(AK33,$C$6:$F$1899,4,0)="二年一次",IF(IFERROR(VLOOKUP(AK33,AF$5:AF$1899,1,0),"")=AK33,"前一年申請有案","核符"),IF(VLOOKUP(AK33,$C$6:$F$1899,4,0)="三年一次",IF(IFERROR(VLOOKUP(AK33,AF$5:AF$1899,1,0),"")&IFERROR(VLOOKUP(AK33,AA$5:AA$1899,1,0),"")=AK33,"前二年申請有案","核符")))))) ->  | AQ33: =IF(AP33="","",IFERROR(AP$4-LEFT(VLOOKUP(AP33,$C$6:$D$1899,2,0),2)-1,"未建檔")) ->  | AS33: =IF(AP33="","",IF(VLOOKUP(AP33,$C$6:$F$1899,4,0)="未符資格","未符資格",IF(VLOOKUP(AP33,$C$6:$F$1899,4,0)="一年一次","核符",IF(VLOOKUP(AP33,$C$6:$F$1899,4,0)="二年一次",IF(IFERROR(VLOOKUP(AP33,AK$5:AK$1899,1,0),"")=AP33,"前一年申請有案","核符"),IF(VLOOKUP(AP33,$C$6:$F$1899,4,0)="三年一次",IF(IFERROR(VLOOKUP(AP33,AK$5:AK$1899,1,0),"")&IFERROR(VLOOKUP(AP33,AF$5:AF$1899,1,0),"")=AP33,"前二年申請有案","核符")))))) ->  | AV33: =IF(AU33="","",IFERROR(AU$4-LEFT(VLOOKUP(AU33,$C$6:$D$1899,2,0),2)-1,"未建檔")) ->  | AX33: =IF(AU33="","",IF(VLOOKUP(AU33,$C$6:$F$1899,4,0)="未符資格","未符資格",IF(VLOOKUP(AU33,$C$6:$F$1899,4,0)="一年一次","核符",IF(VLOOKUP(AU33,$C$6:$F$1899,4,0)="二年一次",IF(IFERROR(VLOOKUP(AU33,AP$5:AP$1899,1,0),"")=AU33,"前一年申請有案","核符"),IF(VLOOKUP(AU33,$C$6:$F$1899,4,0)="三年一次",IF(IFERROR(VLOOKUP(AU33,AP$5:AP$1899,1,0),"")&IFERROR(VLOOKUP(AU33,AK$5:AK$1899,1,0),"")=AU33,"前二年申請有案","核符")))))) ->  | BA33: =IF(AZ33="","",IFERROR(AZ$4-LEFT(VLOOKUP(AZ33,$C$6:$D$1899,2,0),2)-1,"未建檔")) ->  | BC33: =IF(AZ33="","",IF(VLOOKUP(AZ33,$C$6:$F$1899,4,0)="未符資格","未符資格",IF(VLOOKUP(AZ33,$C$6:$F$1899,4,0)="一年一次","核符",IF(VLOOKUP(AZ33,$C$6:$F$1899,4,0)="二年一次",IF(IFERROR(VLOOKUP(AZ33,AU$5:AU$1899,1,0),"")=AZ33,"前一年申請有案","核符"),IF(VLOOKUP(AZ33,$C$6:$F$1899,4,0)="三年一次",IF(IFERROR(VLOOKUP(AZ33,AU$5:AU$1899,1,0),"")&IFERROR(VLOOKUP(AZ33,AP$5:AP$1899,1,0),"")=AZ33,"前二年申請有案","核符")))))) -> 
A34: 29 | E34: =IF(C34="","",$Q$4-LEFT(D34,2)-1) ->  | H34: =IF(G34="","",IFERROR(G$4-LEFT(VLOOKUP(G34,$C$6:$D$1899,2,0),2)-1,"未建檔")) ->  | M34: =IF(L34="","",IFERROR(L$4-LEFT(VLOOKUP(L34,$C$6:$D$1899,2,0),2)-1,"未建檔")) ->  | R34: =IF(Q34="","",IFERROR(Q$4-LEFT(VLOOKUP(Q34,$C$6:$D$1899,2,0),2)-1,"未建檔")) ->  | T34: =IF(Q34="","",IF(VLOOKUP(Q34,$C$6:$F$1899,4,0)="未符資格","未符資格",IF(VLOOKUP(Q34,$C$6:$F$1899,4,0)="一年一次","核符",IF(VLOOKUP(Q34,$C$6:$F$1899,4,0)="二年一次",IF(IFERROR(VLOOKUP(Q34,L$5:L$1899,1,0),"")=Q34,"前一年申請有案","核符"),IF(VLOOKUP(Q34,$C$6:$F$1899,4,0)="三年一次",IF(IFERROR(VLOOKUP(Q34,L$5:L$1899,1,0),"")&IFERROR(VLOOKUP(Q34,G$5:G$1899,1,0),"")=Q34,"前二年申請有案","核符")))))) ->  | W34: =IF(V34="","",IFERROR(V$4-LEFT(VLOOKUP(V34,$C$6:$D$1899,2,0),2)-1,"未建檔")) ->  | Y34: =IF(V34="","",IF(VLOOKUP(V34,$C$6:$F$1899,4,0)="未符資格","未符資格",IF(VLOOKUP(V34,$C$6:$F$1899,4,0)="一年一次","核符",IF(VLOOKUP(V34,$C$6:$F$1899,4,0)="二年一次",IF(IFERROR(VLOOKUP(V34,Q$5:Q$1899,1,0),"")=V34,"前一年申請有案","核符"),IF(VLOOKUP(V34,$C$6:$F$1899,4,0)="三年一次",IF(IFERROR(VLOOKUP(V34,Q$5:Q$1899,1,0),"")&IFERROR(VLOOKUP(V34,L$5:L$1899,1,0),"")=V34,"前二年申請有案","核符")))))) ->  | AB34: =IF(AA34="","",IFERROR(AA$4-LEFT(VLOOKUP(AA34,$C$6:$D$1899,2,0),2)-1,"未建檔")) ->  | AD34: =IF(AA34="","",IF(VLOOKUP(AA34,$C$6:$F$1899,4,0)="未符資格","未符資格",IF(VLOOKUP(AA34,$C$6:$F$1899,4,0)="一年一次","核符",IF(VLOOKUP(AA34,$C$6:$F$1899,4,0)="二年一次",IF(IFERROR(VLOOKUP(AA34,V$5:V$1899,1,0),"")=AA34,"前一年申請有案","核符"),IF(VLOOKUP(AA34,$C$6:$F$1899,4,0)="三年一次",IF(IFERROR(VLOOKUP(AA34,V$5:V$1899,1,0),"")&IFERROR(VLOOKUP(AA34,Q$5:Q$1899,1,0),"")=AA34,"前二年申請有案","核符")))))) ->  | AG34: =IF(AF34="","",IFERROR(AF$4-LEFT(VLOOKUP(AF34,$C$6:$D$1899,2,0),2)-1,"未建檔")) ->  | AI34: =IF(AF34="","",IF(VLOOKUP(AF34,$C$6:$F$1899,4,0)="未符資格","未符資格",IF(VLOOKUP(AF34,$C$6:$F$1899,4,0)="一年一次","核符",IF(VLOOKUP(AF34,$C$6:$F$1899,4,0)="二年一次",IF(IFERROR(VLOOKUP(AF34,AA$5:AA$1899,1,0),"")=AF34,"前一年申請有案","核符"),IF(VLOOKUP(AF34,$C$6:$F$1899,4,0)="三年一次",IF(IFERROR(VLOOKUP(AF34,AA$5:AA$1899,1,0),"")&IFERROR(VLOOKUP(AF34,V$5:V$1899,1,0),"")=AF34,"前二年申請有案","核符")))))) ->  | AL34: =IF(AK34="","",IFERROR(AK$4-LEFT(VLOOKUP(AK34,$C$6:$D$1899,2,0),2)-1,"未建檔")) ->  | AN34: =IF(AK34="","",IF(VLOOKUP(AK34,$C$6:$F$1899,4,0)="未符資格","未符資格",IF(VLOOKUP(AK34,$C$6:$F$1899,4,0)="一年一次","核符",IF(VLOOKUP(AK34,$C$6:$F$1899,4,0)="二年一次",IF(IFERROR(VLOOKUP(AK34,AF$5:AF$1899,1,0),"")=AK34,"前一年申請有案","核符"),IF(VLOOKUP(AK34,$C$6:$F$1899,4,0)="三年一次",IF(IFERROR(VLOOKUP(AK34,AF$5:AF$1899,1,0),"")&IFERROR(VLOOKUP(AK34,AA$5:AA$1899,1,0),"")=AK34,"前二年申請有案","核符")))))) ->  | AQ34: =IF(AP34="","",IFERROR(AP$4-LEFT(VLOOKUP(AP34,$C$6:$D$1899,2,0),2)-1,"未建檔")) ->  | AS34: =IF(AP34="","",IF(VLOOKUP(AP34,$C$6:$F$1899,4,0)="未符資格","未符資格",IF(VLOOKUP(AP34,$C$6:$F$1899,4,0)="一年一次","核符",IF(VLOOKUP(AP34,$C$6:$F$1899,4,0)="二年一次",IF(IFERROR(VLOOKUP(AP34,AK$5:AK$1899,1,0),"")=AP34,"前一年申請有案","核符"),IF(VLOOKUP(AP34,$C$6:$F$1899,4,0)="三年一次",IF(IFERROR(VLOOKUP(AP34,AK$5:AK$1899,1,0),"")&IFERROR(VLOOKUP(AP34,AF$5:AF$1899,1,0),"")=AP34,"前二年申請有案","核符")))))) ->  | AV34: =IF(AU34="","",IFERROR(AU$4-LEFT(VLOOKUP(AU34,$C$6:$D$1899,2,0),2)-1,"未建檔")) ->  | AX34: =IF(AU34="","",IF(VLOOKUP(AU34,$C$6:$F$1899,4,0)="未符資格","未符資格",IF(VLOOKUP(AU34,$C$6:$F$1899,4,0)="一年一次","核符",IF(VLOOKUP(AU34,$C$6:$F$1899,4,0)="二年一次",IF(IFERROR(VLOOKUP(AU34,AP$5:AP$1899,1,0),"")=AU34,"前一年申請有案","核符"),IF(VLOOKUP(AU34,$C$6:$F$1899,4,0)="三年一次",IF(IFERROR(VLOOKUP(AU34,AP$5:AP$1899,1,0),"")&IFERROR(VLOOKUP(AU34,AK$5:AK$1899,1,0),"")=AU34,"前二年申請有案","核符")))))) ->  | BA34: =IF(AZ34="","",IFERROR(AZ$4-LEFT(VLOOKUP(AZ34,$C$6:$D$1899,2,0),2)-1,"未建檔")) ->  | BC34: =IF(AZ34="","",IF(VLOOKUP(AZ34,$C$6:$F$1899,4,0)="未符資格","未符資格",IF(VLOOKUP(AZ34,$C$6:$F$1899,4,0)="一年一次","核符",IF(VLOOKUP(AZ34,$C$6:$F$1899,4,0)="二年一次",IF(IFERROR(VLOOKUP(AZ34,AU$5:AU$1899,1,0),"")=AZ34,"前一年申請有案","核符"),IF(VLOOKUP(AZ34,$C$6:$F$1899,4,0)="三年一次",IF(IFERROR(VLOOKUP(AZ34,AU$5:AU$1899,1,0),"")&IFERROR(VLOOKUP(AZ34,AP$5:AP$1899,1,0),"")=AZ34,"前二年申請有案","核符")))))) -> 
A35: 30 | E35: =IF(C35="","",$Q$4-LEFT(D35,2)-1) ->  | H35: =IF(G35="","",IFERROR(G$4-LEFT(VLOOKUP(G35,$C$6:$D$1899,2,0),2)-1,"未建檔")) ->  | M35: =IF(L35="","",IFERROR(L$4-LEFT(VLOOKUP(L35,$C$6:$D$1899,2,0),2)-1,"未建檔")) ->  | R35: =IF(Q35="","",IFERROR(Q$4-LEFT(VLOOKUP(Q35,$C$6:$D$1899,2,0),2)-1,"未建檔")) ->  | T35: =IF(Q35="","",IF(VLOOKUP(Q35,$C$6:$F$1899,4,0)="未符資格","未符資格",IF(VLOOKUP(Q35,$C$6:$F$1899,4,0)="一年一次","核符",IF(VLOOKUP(Q35,$C$6:$F$1899,4,0)="二年一次",IF(IFERROR(VLOOKUP(Q35,L$5:L$1899,1,0),"")=Q35,"前一年申請有案","核符"),IF(VLOOKUP(Q35,$C$6:$F$1899,4,0)="三年一次",IF(IFERROR(VLOOKUP(Q35,L$5:L$1899,1,0),"")&IFERROR(VLOOKUP(Q35,G$5:G$1899,1,0),"")=Q35,"前二年申請有案","核符")))))) ->  | W35: =IF(V35="","",IFERROR(V$4-LEFT(VLOOKUP(V35,$C$6:$D$1899,2,0),2)-1,"未建檔")) ->  | Y35: =IF(V35="","",IF(VLOOKUP(V35,$C$6:$F$1899,4,0)="未符資格","未符資格",IF(VLOOKUP(V35,$C$6:$F$1899,4,0)="一年一次","核符",IF(VLOOKUP(V35,$C$6:$F$1899,4,0)="二年一次",IF(IFERROR(VLOOKUP(V35,Q$5:Q$1899,1,0),"")=V35,"前一年申請有案","核符"),IF(VLOOKUP(V35,$C$6:$F$1899,4,0)="三年一次",IF(IFERROR(VLOOKUP(V35,Q$5:Q$1899,1,0),"")&IFERROR(VLOOKUP(V35,L$5:L$1899,1,0),"")=V35,"前二年申請有案","核符")))))) ->  | AB35: =IF(AA35="","",IFERROR(AA$4-LEFT(VLOOKUP(AA35,$C$6:$D$1899,2,0),2)-1,"未建檔")) ->  | AD35: =IF(AA35="","",IF(VLOOKUP(AA35,$C$6:$F$1899,4,0)="未符資格","未符資格",IF(VLOOKUP(AA35,$C$6:$F$1899,4,0)="一年一次","核符",IF(VLOOKUP(AA35,$C$6:$F$1899,4,0)="二年一次",IF(IFERROR(VLOOKUP(AA35,V$5:V$1899,1,0),"")=AA35,"前一年申請有案","核符"),IF(VLOOKUP(AA35,$C$6:$F$1899,4,0)="三年一次",IF(IFERROR(VLOOKUP(AA35,V$5:V$1899,1,0),"")&IFERROR(VLOOKUP(AA35,Q$5:Q$1899,1,0),"")=AA35,"前二年申請有案","核符")))))) ->  | AG35: =IF(AF35="","",IFERROR(AF$4-LEFT(VLOOKUP(AF35,$C$6:$D$1899,2,0),2)-1,"未建檔")) ->  | AI35: =IF(AF35="","",IF(VLOOKUP(AF35,$C$6:$F$1899,4,0)="未符資格","未符資格",IF(VLOOKUP(AF35,$C$6:$F$1899,4,0)="一年一次","核符",IF(VLOOKUP(AF35,$C$6:$F$1899,4,0)="二年一次",IF(IFERROR(VLOOKUP(AF35,AA$5:AA$1899,1,0),"")=AF35,"前一年申請有案","核符"),IF(VLOOKUP(AF35,$C$6:$F$1899,4,0)="三年一次",IF(IFERROR(VLOOKUP(AF35,AA$5:AA$1899,1,0),"")&IFERROR(VLOOKUP(AF35,V$5:V$1899,1,0),"")=AF35,"前二年申請有案","核符")))))) ->  | AL35: =IF(AK35="","",IFERROR(AK$4-LEFT(VLOOKUP(AK35,$C$6:$D$1899,2,0),2)-1,"未建檔")) ->  | AN35: =IF(AK35="","",IF(VLOOKUP(AK35,$C$6:$F$1899,4,0)="未符資格","未符資格",IF(VLOOKUP(AK35,$C$6:$F$1899,4,0)="一年一次","核符",IF(VLOOKUP(AK35,$C$6:$F$1899,4,0)="二年一次",IF(IFERROR(VLOOKUP(AK35,AF$5:AF$1899,1,0),"")=AK35,"前一年申請有案","核符"),IF(VLOOKUP(AK35,$C$6:$F$1899,4,0)="三年一次",IF(IFERROR(VLOOKUP(AK35,AF$5:AF$1899,1,0),"")&IFERROR(VLOOKUP(AK35,AA$5:AA$1899,1,0),"")=AK35,"前二年申請有案","核符")))))) ->  | AQ35: =IF(AP35="","",IFERROR(AP$4-LEFT(VLOOKUP(AP35,$C$6:$D$1899,2,0),2)-1,"未建檔")) ->  | AS35: =IF(AP35="","",IF(VLOOKUP(AP35,$C$6:$F$1899,4,0)="未符資格","未符資格",IF(VLOOKUP(AP35,$C$6:$F$1899,4,0)="一年一次","核符",IF(VLOOKUP(AP35,$C$6:$F$1899,4,0)="二年一次",IF(IFERROR(VLOOKUP(AP35,AK$5:AK$1899,1,0),"")=AP35,"前一年申請有案","核符"),IF(VLOOKUP(AP35,$C$6:$F$1899,4,0)="三年一次",IF(IFERROR(VLOOKUP(AP35,AK$5:AK$1899,1,0),"")&IFERROR(VLOOKUP(AP35,AF$5:AF$1899,1,0),"")=AP35,"前二年申請有案","核符")))))) ->  | AV35: =IF(AU35="","",IFERROR(AU$4-LEFT(VLOOKUP(AU35,$C$6:$D$1899,2,0),2)-1,"未建檔")) ->  | AX35: =IF(AU35="","",IF(VLOOKUP(AU35,$C$6:$F$1899,4,0)="未符資格","未符資格",IF(VLOOKUP(AU35,$C$6:$F$1899,4,0)="一年一次","核符",IF(VLOOKUP(AU35,$C$6:$F$1899,4,0)="二年一次",IF(IFERROR(VLOOKUP(AU35,AP$5:AP$1899,1,0),"")=AU35,"前一年申請有案","核符"),IF(VLOOKUP(AU35,$C$6:$F$1899,4,0)="三年一次",IF(IFERROR(VLOOKUP(AU35,AP$5:AP$1899,1,0),"")&IFERROR(VLOOKUP(AU35,AK$5:AK$1899,1,0),"")=AU35,"前二年申請有案","核符")))))) ->  | BA35: =IF(AZ35="","",IFERROR(AZ$4-LEFT(VLOOKUP(AZ35,$C$6:$D$1899,2,0),2)-1,"未建檔")) ->  | BC35: =IF(AZ35="","",IF(VLOOKUP(AZ35,$C$6:$F$1899,4,0)="未符資格","未符資格",IF(VLOOKUP(AZ35,$C$6:$F$1899,4,0)="一年一次","核符",IF(VLOOKUP(AZ35,$C$6:$F$1899,4,0)="二年一次",IF(IFERROR(VLOOKUP(AZ35,AU$5:AU$1899,1,0),"")=AZ35,"前一年申請有案","核符"),IF(VLOOKUP(AZ35,$C$6:$F$1899,4,0)="三年一次",IF(IFERROR(VLOOKUP(AZ35,AU$5:AU$1899,1,0),"")&IFERROR(VLOOKUP(AZ35,AP$5:AP$1899,1,0),"")=AZ35,"前二年申請有案","核符")))))) -> 
A36: 31 | E36: =IF(C36="","",$Q$4-LEFT(D36,2)-1) ->  | H36: =IF(G36="","",IFERROR(G$4-LEFT(VLOOKUP(G36,$C$6:$D$1899,2,0),2)-1,"未建檔")) ->  | M36: =IF(L36="","",IFERROR(L$4-LEFT(VLOOKUP(L36,$C$6:$D$1899,2,0),2)-1,"未建檔")) ->  | R36: =IF(Q36="","",IFERROR(Q$4-LEFT(VLOOKUP(Q36,$C$6:$D$1899,2,0),2)-1,"未建檔")) ->  | T36: =IF(Q36="","",IF(VLOOKUP(Q36,$C$6:$F$1899,4,0)="未符資格","未符資格",IF(VLOOKUP(Q36,$C$6:$F$1899,4,0)="一年一次","核符",IF(VLOOKUP(Q36,$C$6:$F$1899,4,0)="二年一次",IF(IFERROR(VLOOKUP(Q36,L$5:L$1899,1,0),"")=Q36,"前一年申請有案","核符"),IF(VLOOKUP(Q36,$C$6:$F$1899,4,0)="三年一次",IF(IFERROR(VLOOKUP(Q36,L$5:L$1899,1,0),"")&IFERROR(VLOOKUP(Q36,G$5:G$1899,1,0),"")=Q36,"前二年申請有案","核符")))))) ->  | W36: =IF(V36="","",IFERROR(V$4-LEFT(VLOOKUP(V36,$C$6:$D$1899,2,0),2)-1,"未建檔")) ->  | Y36: =IF(V36="","",IF(VLOOKUP(V36,$C$6:$F$1899,4,0)="未符資格","未符資格",IF(VLOOKUP(V36,$C$6:$F$1899,4,0)="一年一次","核符",IF(VLOOKUP(V36,$C$6:$F$1899,4,0)="二年一次",IF(IFERROR(VLOOKUP(V36,Q$5:Q$1899,1,0),"")=V36,"前一年申請有案","核符"),IF(VLOOKUP(V36,$C$6:$F$1899,4,0)="三年一次",IF(IFERROR(VLOOKUP(V36,Q$5:Q$1899,1,0),"")&IFERROR(VLOOKUP(V36,L$5:L$1899,1,0),"")=V36,"前二年申請有案","核符")))))) ->  | AB36: =IF(AA36="","",IFERROR(AA$4-LEFT(VLOOKUP(AA36,$C$6:$D$1899,2,0),2)-1,"未建檔")) ->  | AD36: =IF(AA36="","",IF(VLOOKUP(AA36,$C$6:$F$1899,4,0)="未符資格","未符資格",IF(VLOOKUP(AA36,$C$6:$F$1899,4,0)="一年一次","核符",IF(VLOOKUP(AA36,$C$6:$F$1899,4,0)="二年一次",IF(IFERROR(VLOOKUP(AA36,V$5:V$1899,1,0),"")=AA36,"前一年申請有案","核符"),IF(VLOOKUP(AA36,$C$6:$F$1899,4,0)="三年一次",IF(IFERROR(VLOOKUP(AA36,V$5:V$1899,1,0),"")&IFERROR(VLOOKUP(AA36,Q$5:Q$1899,1,0),"")=AA36,"前二年申請有案","核符")))))) ->  | AG36: =IF(AF36="","",IFERROR(AF$4-LEFT(VLOOKUP(AF36,$C$6:$D$1899,2,0),2)-1,"未建檔")) ->  | AI36: =IF(AF36="","",IF(VLOOKUP(AF36,$C$6:$F$1899,4,0)="未符資格","未符資格",IF(VLOOKUP(AF36,$C$6:$F$1899,4,0)="一年一次","核符",IF(VLOOKUP(AF36,$C$6:$F$1899,4,0)="二年一次",IF(IFERROR(VLOOKUP(AF36,AA$5:AA$1899,1,0),"")=AF36,"前一年申請有案","核符"),IF(VLOOKUP(AF36,$C$6:$F$1899,4,0)="三年一次",IF(IFERROR(VLOOKUP(AF36,AA$5:AA$1899,1,0),"")&IFERROR(VLOOKUP(AF36,V$5:V$1899,1,0),"")=AF36,"前二年申請有案","核符")))))) ->  | AL36: =IF(AK36="","",IFERROR(AK$4-LEFT(VLOOKUP(AK36,$C$6:$D$1899,2,0),2)-1,"未建檔")) ->  | AN36: =IF(AK36="","",IF(VLOOKUP(AK36,$C$6:$F$1899,4,0)="未符資格","未符資格",IF(VLOOKUP(AK36,$C$6:$F$1899,4,0)="一年一次","核符",IF(VLOOKUP(AK36,$C$6:$F$1899,4,0)="二年一次",IF(IFERROR(VLOOKUP(AK36,AF$5:AF$1899,1,0),"")=AK36,"前一年申請有案","核符"),IF(VLOOKUP(AK36,$C$6:$F$1899,4,0)="三年一次",IF(IFERROR(VLOOKUP(AK36,AF$5:AF$1899,1,0),"")&IFERROR(VLOOKUP(AK36,AA$5:AA$1899,1,0),"")=AK36,"前二年申請有案","核符")))))) ->  | AQ36: =IF(AP36="","",IFERROR(AP$4-LEFT(VLOOKUP(AP36,$C$6:$D$1899,2,0),2)-1,"未建檔")) ->  | AS36: =IF(AP36="","",IF(VLOOKUP(AP36,$C$6:$F$1899,4,0)="未符資格","未符資格",IF(VLOOKUP(AP36,$C$6:$F$1899,4,0)="一年一次","核符",IF(VLOOKUP(AP36,$C$6:$F$1899,4,0)="二年一次",IF(IFERROR(VLOOKUP(AP36,AK$5:AK$1899,1,0),"")=AP36,"前一年申請有案","核符"),IF(VLOOKUP(AP36,$C$6:$F$1899,4,0)="三年一次",IF(IFERROR(VLOOKUP(AP36,AK$5:AK$1899,1,0),"")&IFERROR(VLOOKUP(AP36,AF$5:AF$1899,1,0),"")=AP36,"前二年申請有案","核符")))))) ->  | AV36: =IF(AU36="","",IFERROR(AU$4-LEFT(VLOOKUP(AU36,$C$6:$D$1899,2,0),2)-1,"未建檔")) ->  | AX36: =IF(AU36="","",IF(VLOOKUP(AU36,$C$6:$F$1899,4,0)="未符資格","未符資格",IF(VLOOKUP(AU36,$C$6:$F$1899,4,0)="一年一次","核符",IF(VLOOKUP(AU36,$C$6:$F$1899,4,0)="二年一次",IF(IFERROR(VLOOKUP(AU36,AP$5:AP$1899,1,0),"")=AU36,"前一年申請有案","核符"),IF(VLOOKUP(AU36,$C$6:$F$1899,4,0)="三年一次",IF(IFERROR(VLOOKUP(AU36,AP$5:AP$1899,1,0),"")&IFERROR(VLOOKUP(AU36,AK$5:AK$1899,1,0),"")=AU36,"前二年申請有案","核符")))))) ->  | BA36: =IF(AZ36="","",IFERROR(AZ$4-LEFT(VLOOKUP(AZ36,$C$6:$D$1899,2,0),2)-1,"未建檔")) ->  | BC36: =IF(AZ36="","",IF(VLOOKUP(AZ36,$C$6:$F$1899,4,0)="未符資格","未符資格",IF(VLOOKUP(AZ36,$C$6:$F$1899,4,0)="一年一次","核符",IF(VLOOKUP(AZ36,$C$6:$F$1899,4,0)="二年一次",IF(IFERROR(VLOOKUP(AZ36,AU$5:AU$1899,1,0),"")=AZ36,"前一年申請有案","核符"),IF(VLOOKUP(AZ36,$C$6:$F$1899,4,0)="三年一次",IF(IFERROR(VLOOKUP(AZ36,AU$5:AU$1899,1,0),"")&IFERROR(VLOOKUP(AZ36,AP$5:AP$1899,1,0),"")=AZ36,"前二年申請有案","核符")))))) -> 
A37: 32 | E37: =IF(C37="","",$Q$4-LEFT(D37,2)-1) ->  | H37: =IF(G37="","",IFERROR(G$4-LEFT(VLOOKUP(G37,$C$6:$D$1899,2,0),2)-1,"未建檔")) ->  | M37: =IF(L37="","",IFERROR(L$4-LEFT(VLOOKUP(L37,$C$6:$D$1899,2,0),2)-1,"未建檔")) ->  | R37: =IF(Q37="","",IFERROR(Q$4-LEFT(VLOOKUP(Q37,$C$6:$D$1899,2,0),2)-1,"未建檔")) ->  | T37: =IF(Q37="","",IF(VLOOKUP(Q37,$C$6:$F$1899,4,0)="未符資格","未符資格",IF(VLOOKUP(Q37,$C$6:$F$1899,4,0)="一年一次","核符",IF(VLOOKUP(Q37,$C$6:$F$1899,4,0)="二年一次",IF(IFERROR(VLOOKUP(Q37,L$5:L$1899,1,0),"")=Q37,"前一年申請有案","核符"),IF(VLOOKUP(Q37,$C$6:$F$1899,4,0)="三年一次",IF(IFERROR(VLOOKUP(Q37,L$5:L$1899,1,0),"")&IFERROR(VLOOKUP(Q37,G$5:G$1899,1,0),"")=Q37,"前二年申請有案","核符")))))) ->  | W37: =IF(V37="","",IFERROR(V$4-LEFT(VLOOKUP(V37,$C$6:$D$1899,2,0),2)-1,"未建檔")) ->  | Y37: =IF(V37="","",IF(VLOOKUP(V37,$C$6:$F$1899,4,0)="未符資格","未符資格",IF(VLOOKUP(V37,$C$6:$F$1899,4,0)="一年一次","核符",IF(VLOOKUP(V37,$C$6:$F$1899,4,0)="二年一次",IF(IFERROR(VLOOKUP(V37,Q$5:Q$1899,1,0),"")=V37,"前一年申請有案","核符"),IF(VLOOKUP(V37,$C$6:$F$1899,4,0)="三年一次",IF(IFERROR(VLOOKUP(V37,Q$5:Q$1899,1,0),"")&IFERROR(VLOOKUP(V37,L$5:L$1899,1,0),"")=V37,"前二年申請有案","核符")))))) ->  | AB37: =IF(AA37="","",IFERROR(AA$4-LEFT(VLOOKUP(AA37,$C$6:$D$1899,2,0),2)-1,"未建檔")) ->  | AD37: =IF(AA37="","",IF(VLOOKUP(AA37,$C$6:$F$1899,4,0)="未符資格","未符資格",IF(VLOOKUP(AA37,$C$6:$F$1899,4,0)="一年一次","核符",IF(VLOOKUP(AA37,$C$6:$F$1899,4,0)="二年一次",IF(IFERROR(VLOOKUP(AA37,V$5:V$1899,1,0),"")=AA37,"前一年申請有案","核符"),IF(VLOOKUP(AA37,$C$6:$F$1899,4,0)="三年一次",IF(IFERROR(VLOOKUP(AA37,V$5:V$1899,1,0),"")&IFERROR(VLOOKUP(AA37,Q$5:Q$1899,1,0),"")=AA37,"前二年申請有案","核符")))))) ->  | AG37: =IF(AF37="","",IFERROR(AF$4-LEFT(VLOOKUP(AF37,$C$6:$D$1899,2,0),2)-1,"未建檔")) ->  | AI37: =IF(AF37="","",IF(VLOOKUP(AF37,$C$6:$F$1899,4,0)="未符資格","未符資格",IF(VLOOKUP(AF37,$C$6:$F$1899,4,0)="一年一次","核符",IF(VLOOKUP(AF37,$C$6:$F$1899,4,0)="二年一次",IF(IFERROR(VLOOKUP(AF37,AA$5:AA$1899,1,0),"")=AF37,"前一年申請有案","核符"),IF(VLOOKUP(AF37,$C$6:$F$1899,4,0)="三年一次",IF(IFERROR(VLOOKUP(AF37,AA$5:AA$1899,1,0),"")&IFERROR(VLOOKUP(AF37,V$5:V$1899,1,0),"")=AF37,"前二年申請有案","核符")))))) ->  | AL37: =IF(AK37="","",IFERROR(AK$4-LEFT(VLOOKUP(AK37,$C$6:$D$1899,2,0),2)-1,"未建檔")) ->  | AN37: =IF(AK37="","",IF(VLOOKUP(AK37,$C$6:$F$1899,4,0)="未符資格","未符資格",IF(VLOOKUP(AK37,$C$6:$F$1899,4,0)="一年一次","核符",IF(VLOOKUP(AK37,$C$6:$F$1899,4,0)="二年一次",IF(IFERROR(VLOOKUP(AK37,AF$5:AF$1899,1,0),"")=AK37,"前一年申請有案","核符"),IF(VLOOKUP(AK37,$C$6:$F$1899,4,0)="三年一次",IF(IFERROR(VLOOKUP(AK37,AF$5:AF$1899,1,0),"")&IFERROR(VLOOKUP(AK37,AA$5:AA$1899,1,0),"")=AK37,"前二年申請有案","核符")))))) ->  | AQ37: =IF(AP37="","",IFERROR(AP$4-LEFT(VLOOKUP(AP37,$C$6:$D$1899,2,0),2)-1,"未建檔")) ->  | AS37: =IF(AP37="","",IF(VLOOKUP(AP37,$C$6:$F$1899,4,0)="未符資格","未符資格",IF(VLOOKUP(AP37,$C$6:$F$1899,4,0)="一年一次","核符",IF(VLOOKUP(AP37,$C$6:$F$1899,4,0)="二年一次",IF(IFERROR(VLOOKUP(AP37,AK$5:AK$1899,1,0),"")=AP37,"前一年申請有案","核符"),IF(VLOOKUP(AP37,$C$6:$F$1899,4,0)="三年一次",IF(IFERROR(VLOOKUP(AP37,AK$5:AK$1899,1,0),"")&IFERROR(VLOOKUP(AP37,AF$5:AF$1899,1,0),"")=AP37,"前二年申請有案","核符")))))) ->  | AV37: =IF(AU37="","",IFERROR(AU$4-LEFT(VLOOKUP(AU37,$C$6:$D$1899,2,0),2)-1,"未建檔")) ->  | AX37: =IF(AU37="","",IF(VLOOKUP(AU37,$C$6:$F$1899,4,0)="未符資格","未符資格",IF(VLOOKUP(AU37,$C$6:$F$1899,4,0)="一年一次","核符",IF(VLOOKUP(AU37,$C$6:$F$1899,4,0)="二年一次",IF(IFERROR(VLOOKUP(AU37,AP$5:AP$1899,1,0),"")=AU37,"前一年申請有案","核符"),IF(VLOOKUP(AU37,$C$6:$F$1899,4,0)="三年一次",IF(IFERROR(VLOOKUP(AU37,AP$5:AP$1899,1,0),"")&IFERROR(VLOOKUP(AU37,AK$5:AK$1899,1,0),"")=AU37,"前二年申請有案","核符")))))) ->  | BA37: =IF(AZ37="","",IFERROR(AZ$4-LEFT(VLOOKUP(AZ37,$C$6:$D$1899,2,0),2)-1,"未建檔")) ->  | BC37: =IF(AZ37="","",IF(VLOOKUP(AZ37,$C$6:$F$1899,4,0)="未符資格","未符資格",IF(VLOOKUP(AZ37,$C$6:$F$1899,4,0)="一年一次","核符",IF(VLOOKUP(AZ37,$C$6:$F$1899,4,0)="二年一次",IF(IFERROR(VLOOKUP(AZ37,AU$5:AU$1899,1,0),"")=AZ37,"前一年申請有案","核符"),IF(VLOOKUP(AZ37,$C$6:$F$1899,4,0)="三年一次",IF(IFERROR(VLOOKUP(AZ37,AU$5:AU$1899,1,0),"")&IFERROR(VLOOKUP(AZ37,AP$5:AP$1899,1,0),"")=AZ37,"前二年申請有案","核符")))))) -> 
A38: 33 | E38: =IF(C38="","",$Q$4-LEFT(D38,2)-1) ->  | H38: =IF(G38="","",IFERROR(G$4-LEFT(VLOOKUP(G38,$C$6:$D$1899,2,0),2)-1,"未建檔")) ->  | M38: =IF(L38="","",IFERROR(L$4-LEFT(VLOOKUP(L38,$C$6:$D$1899,2,0),2)-1,"未建檔")) ->  | R38: =IF(Q38="","",IFERROR(Q$4-LEFT(VLOOKUP(Q38,$C$6:$D$1899,2,0),2)-1,"未建檔")) ->  | T38: =IF(Q38="","",IF(VLOOKUP(Q38,$C$6:$F$1899,4,0)="未符資格","未符資格",IF(VLOOKUP(Q38,$C$6:$F$1899,4,0)="一年一次","核符",IF(VLOOKUP(Q38,$C$6:$F$1899,4,0)="二年一次",IF(IFERROR(VLOOKUP(Q38,L$5:L$1899,1,0),"")=Q38,"前一年申請有案","核符"),IF(VLOOKUP(Q38,$C$6:$F$1899,4,0)="三年一次",IF(IFERROR(VLOOKUP(Q38,L$5:L$1899,1,0),"")&IFERROR(VLOOKUP(Q38,G$5:G$1899,1,0),"")=Q38,"前二年申請有案","核符")))))) ->  | W38: =IF(V38="","",IFERROR(V$4-LEFT(VLOOKUP(V38,$C$6:$D$1899,2,0),2)-1,"未建檔")) ->  | Y38: =IF(V38="","",IF(VLOOKUP(V38,$C$6:$F$1899,4,0)="未符資格","未符資格",IF(VLOOKUP(V38,$C$6:$F$1899,4,0)="一年一次","核符",IF(VLOOKUP(V38,$C$6:$F$1899,4,0)="二年一次",IF(IFERROR(VLOOKUP(V38,Q$5:Q$1899,1,0),"")=V38,"前一年申請有案","核符"),IF(VLOOKUP(V38,$C$6:$F$1899,4,0)="三年一次",IF(IFERROR(VLOOKUP(V38,Q$5:Q$1899,1,0),"")&IFERROR(VLOOKUP(V38,L$5:L$1899,1,0),"")=V38,"前二年申請有案","核符")))))) ->  | AB38: =IF(AA38="","",IFERROR(AA$4-LEFT(VLOOKUP(AA38,$C$6:$D$1899,2,0),2)-1,"未建檔")) ->  | AD38: =IF(AA38="","",IF(VLOOKUP(AA38,$C$6:$F$1899,4,0)="未符資格","未符資格",IF(VLOOKUP(AA38,$C$6:$F$1899,4,0)="一年一次","核符",IF(VLOOKUP(AA38,$C$6:$F$1899,4,0)="二年一次",IF(IFERROR(VLOOKUP(AA38,V$5:V$1899,1,0),"")=AA38,"前一年申請有案","核符"),IF(VLOOKUP(AA38,$C$6:$F$1899,4,0)="三年一次",IF(IFERROR(VLOOKUP(AA38,V$5:V$1899,1,0),"")&IFERROR(VLOOKUP(AA38,Q$5:Q$1899,1,0),"")=AA38,"前二年申請有案","核符")))))) ->  | AG38: =IF(AF38="","",IFERROR(AF$4-LEFT(VLOOKUP(AF38,$C$6:$D$1899,2,0),2)-1,"未建檔")) ->  | AI38: =IF(AF38="","",IF(VLOOKUP(AF38,$C$6:$F$1899,4,0)="未符資格","未符資格",IF(VLOOKUP(AF38,$C$6:$F$1899,4,0)="一年一次","核符",IF(VLOOKUP(AF38,$C$6:$F$1899,4,0)="二年一次",IF(IFERROR(VLOOKUP(AF38,AA$5:AA$1899,1,0),"")=AF38,"前一年申請有案","核符"),IF(VLOOKUP(AF38,$C$6:$F$1899,4,0)="三年一次",IF(IFERROR(VLOOKUP(AF38,AA$5:AA$1899,1,0),"")&IFERROR(VLOOKUP(AF38,V$5:V$1899,1,0),"")=AF38,"前二年申請有案","核符")))))) ->  | AL38: =IF(AK38="","",IFERROR(AK$4-LEFT(VLOOKUP(AK38,$C$6:$D$1899,2,0),2)-1,"未建檔")) ->  | AN38: =IF(AK38="","",IF(VLOOKUP(AK38,$C$6:$F$1899,4,0)="未符資格","未符資格",IF(VLOOKUP(AK38,$C$6:$F$1899,4,0)="一年一次","核符",IF(VLOOKUP(AK38,$C$6:$F$1899,4,0)="二年一次",IF(IFERROR(VLOOKUP(AK38,AF$5:AF$1899,1,0),"")=AK38,"前一年申請有案","核符"),IF(VLOOKUP(AK38,$C$6:$F$1899,4,0)="三年一次",IF(IFERROR(VLOOKUP(AK38,AF$5:AF$1899,1,0),"")&IFERROR(VLOOKUP(AK38,AA$5:AA$1899,1,0),"")=AK38,"前二年申請有案","核符")))))) ->  | AQ38: =IF(AP38="","",IFERROR(AP$4-LEFT(VLOOKUP(AP38,$C$6:$D$1899,2,0),2)-1,"未建檔")) ->  | AS38: =IF(AP38="","",IF(VLOOKUP(AP38,$C$6:$F$1899,4,0)="未符資格","未符資格",IF(VLOOKUP(AP38,$C$6:$F$1899,4,0)="一年一次","核符",IF(VLOOKUP(AP38,$C$6:$F$1899,4,0)="二年一次",IF(IFERROR(VLOOKUP(AP38,AK$5:AK$1899,1,0),"")=AP38,"前一年申請有案","核符"),IF(VLOOKUP(AP38,$C$6:$F$1899,4,0)="三年一次",IF(IFERROR(VLOOKUP(AP38,AK$5:AK$1899,1,0),"")&IFERROR(VLOOKUP(AP38,AF$5:AF$1899,1,0),"")=AP38,"前二年申請有案","核符")))))) ->  | AV38: =IF(AU38="","",IFERROR(AU$4-LEFT(VLOOKUP(AU38,$C$6:$D$1899,2,0),2)-1,"未建檔")) ->  | AX38: =IF(AU38="","",IF(VLOOKUP(AU38,$C$6:$F$1899,4,0)="未符資格","未符資格",IF(VLOOKUP(AU38,$C$6:$F$1899,4,0)="一年一次","核符",IF(VLOOKUP(AU38,$C$6:$F$1899,4,0)="二年一次",IF(IFERROR(VLOOKUP(AU38,AP$5:AP$1899,1,0),"")=AU38,"前一年申請有案","核符"),IF(VLOOKUP(AU38,$C$6:$F$1899,4,0)="三年一次",IF(IFERROR(VLOOKUP(AU38,AP$5:AP$1899,1,0),"")&IFERROR(VLOOKUP(AU38,AK$5:AK$1899,1,0),"")=AU38,"前二年申請有案","核符")))))) ->  | BA38: =IF(AZ38="","",IFERROR(AZ$4-LEFT(VLOOKUP(AZ38,$C$6:$D$1899,2,0),2)-1,"未建檔")) ->  | BC38: =IF(AZ38="","",IF(VLOOKUP(AZ38,$C$6:$F$1899,4,0)="未符資格","未符資格",IF(VLOOKUP(AZ38,$C$6:$F$1899,4,0)="一年一次","核符",IF(VLOOKUP(AZ38,$C$6:$F$1899,4,0)="二年一次",IF(IFERROR(VLOOKUP(AZ38,AU$5:AU$1899,1,0),"")=AZ38,"前一年申請有案","核符"),IF(VLOOKUP(AZ38,$C$6:$F$1899,4,0)="三年一次",IF(IFERROR(VLOOKUP(AZ38,AU$5:AU$1899,1,0),"")&IFERROR(VLOOKUP(AZ38,AP$5:AP$1899,1,0),"")=AZ38,"前二年申請有案","核符")))))) -> 
A39: 34 | E39: =IF(C39="","",$Q$4-LEFT(D39,2)-1) ->  | H39: =IF(G39="","",IFERROR(G$4-LEFT(VLOOKUP(G39,$C$6:$D$1899,2,0),2)-1,"未建檔")) ->  | M39: =IF(L39="","",IFERROR(L$4-LEFT(VLOOKUP(L39,$C$6:$D$1899,2,0),2)-1,"未建檔")) ->  | R39: =IF(Q39="","",IFERROR(Q$4-LEFT(VLOOKUP(Q39,$C$6:$D$1899,2,0),2)-1,"未建檔")) ->  | T39: =IF(Q39="","",IF(VLOOKUP(Q39,$C$6:$F$1899,4,0)="未符資格","未符資格",IF(VLOOKUP(Q39,$C$6:$F$1899,4,0)="一年一次","核符",IF(VLOOKUP(Q39,$C$6:$F$1899,4,0)="二年一次",IF(IFERROR(VLOOKUP(Q39,L$5:L$1899,1,0),"")=Q39,"前一年申請有案","核符"),IF(VLOOKUP(Q39,$C$6:$F$1899,4,0)="三年一次",IF(IFERROR(VLOOKUP(Q39,L$5:L$1899,1,0),"")&IFERROR(VLOOKUP(Q39,G$5:G$1899,1,0),"")=Q39,"前二年申請有案","核符")))))) ->  | W39: =IF(V39="","",IFERROR(V$4-LEFT(VLOOKUP(V39,$C$6:$D$1899,2,0),2)-1,"未建檔")) ->  | Y39: =IF(V39="","",IF(VLOOKUP(V39,$C$6:$F$1899,4,0)="未符資格","未符資格",IF(VLOOKUP(V39,$C$6:$F$1899,4,0)="一年一次","核符",IF(VLOOKUP(V39,$C$6:$F$1899,4,0)="二年一次",IF(IFERROR(VLOOKUP(V39,Q$5:Q$1899,1,0),"")=V39,"前一年申請有案","核符"),IF(VLOOKUP(V39,$C$6:$F$1899,4,0)="三年一次",IF(IFERROR(VLOOKUP(V39,Q$5:Q$1899,1,0),"")&IFERROR(VLOOKUP(V39,L$5:L$1899,1,0),"")=V39,"前二年申請有案","核符")))))) ->  | AB39: =IF(AA39="","",IFERROR(AA$4-LEFT(VLOOKUP(AA39,$C$6:$D$1899,2,0),2)-1,"未建檔")) ->  | AD39: =IF(AA39="","",IF(VLOOKUP(AA39,$C$6:$F$1899,4,0)="未符資格","未符資格",IF(VLOOKUP(AA39,$C$6:$F$1899,4,0)="一年一次","核符",IF(VLOOKUP(AA39,$C$6:$F$1899,4,0)="二年一次",IF(IFERROR(VLOOKUP(AA39,V$5:V$1899,1,0),"")=AA39,"前一年申請有案","核符"),IF(VLOOKUP(AA39,$C$6:$F$1899,4,0)="三年一次",IF(IFERROR(VLOOKUP(AA39,V$5:V$1899,1,0),"")&IFERROR(VLOOKUP(AA39,Q$5:Q$1899,1,0),"")=AA39,"前二年申請有案","核符")))))) ->  | AG39: =IF(AF39="","",IFERROR(AF$4-LEFT(VLOOKUP(AF39,$C$6:$D$1899,2,0),2)-1,"未建檔")) ->  | AI39: =IF(AF39="","",IF(VLOOKUP(AF39,$C$6:$F$1899,4,0)="未符資格","未符資格",IF(VLOOKUP(AF39,$C$6:$F$1899,4,0)="一年一次","核符",IF(VLOOKUP(AF39,$C$6:$F$1899,4,0)="二年一次",IF(IFERROR(VLOOKUP(AF39,AA$5:AA$1899,1,0),"")=AF39,"前一年申請有案","核符"),IF(VLOOKUP(AF39,$C$6:$F$1899,4,0)="三年一次",IF(IFERROR(VLOOKUP(AF39,AA$5:AA$1899,1,0),"")&IFERROR(VLOOKUP(AF39,V$5:V$1899,1,0),"")=AF39,"前二年申請有案","核符")))))) ->  | AL39: =IF(AK39="","",IFERROR(AK$4-LEFT(VLOOKUP(AK39,$C$6:$D$1899,2,0),2)-1,"未建檔")) ->  | AN39: =IF(AK39="","",IF(VLOOKUP(AK39,$C$6:$F$1899,4,0)="未符資格","未符資格",IF(VLOOKUP(AK39,$C$6:$F$1899,4,0)="一年一次","核符",IF(VLOOKUP(AK39,$C$6:$F$1899,4,0)="二年一次",IF(IFERROR(VLOOKUP(AK39,AF$5:AF$1899,1,0),"")=AK39,"前一年申請有案","核符"),IF(VLOOKUP(AK39,$C$6:$F$1899,4,0)="三年一次",IF(IFERROR(VLOOKUP(AK39,AF$5:AF$1899,1,0),"")&IFERROR(VLOOKUP(AK39,AA$5:AA$1899,1,0),"")=AK39,"前二年申請有案","核符")))))) ->  | AQ39: =IF(AP39="","",IFERROR(AP$4-LEFT(VLOOKUP(AP39,$C$6:$D$1899,2,0),2)-1,"未建檔")) ->  | AS39: =IF(AP39="","",IF(VLOOKUP(AP39,$C$6:$F$1899,4,0)="未符資格","未符資格",IF(VLOOKUP(AP39,$C$6:$F$1899,4,0)="一年一次","核符",IF(VLOOKUP(AP39,$C$6:$F$1899,4,0)="二年一次",IF(IFERROR(VLOOKUP(AP39,AK$5:AK$1899,1,0),"")=AP39,"前一年申請有案","核符"),IF(VLOOKUP(AP39,$C$6:$F$1899,4,0)="三年一次",IF(IFERROR(VLOOKUP(AP39,AK$5:AK$1899,1,0),"")&IFERROR(VLOOKUP(AP39,AF$5:AF$1899,1,0),"")=AP39,"前二年申請有案","核符")))))) ->  | AV39: =IF(AU39="","",IFERROR(AU$4-LEFT(VLOOKUP(AU39,$C$6:$D$1899,2,0),2)-1,"未建檔")) ->  | AX39: =IF(AU39="","",IF(VLOOKUP(AU39,$C$6:$F$1899,4,0)="未符資格","未符資格",IF(VLOOKUP(AU39,$C$6:$F$1899,4,0)="一年一次","核符",IF(VLOOKUP(AU39,$C$6:$F$1899,4,0)="二年一次",IF(IFERROR(VLOOKUP(AU39,AP$5:AP$1899,1,0),"")=AU39,"前一年申請有案","核符"),IF(VLOOKUP(AU39,$C$6:$F$1899,4,0)="三年一次",IF(IFERROR(VLOOKUP(AU39,AP$5:AP$1899,1,0),"")&IFERROR(VLOOKUP(AU39,AK$5:AK$1899,1,0),"")=AU39,"前二年申請有案","核符")))))) ->  | BA39: =IF(AZ39="","",IFERROR(AZ$4-LEFT(VLOOKUP(AZ39,$C$6:$D$1899,2,0),2)-1,"未建檔")) ->  | BC39: =IF(AZ39="","",IF(VLOOKUP(AZ39,$C$6:$F$1899,4,0)="未符資格","未符資格",IF(VLOOKUP(AZ39,$C$6:$F$1899,4,0)="一年一次","核符",IF(VLOOKUP(AZ39,$C$6:$F$1899,4,0)="二年一次",IF(IFERROR(VLOOKUP(AZ39,AU$5:AU$1899,1,0),"")=AZ39,"前一年申請有案","核符"),IF(VLOOKUP(AZ39,$C$6:$F$1899,4,0)="三年一次",IF(IFERROR(VLOOKUP(AZ39,AU$5:AU$1899,1,0),"")&IFERROR(VLOOKUP(AZ39,AP$5:AP$1899,1,0),"")=AZ39,"前二年申請有案","核符")))))) -> 
A40: 35 | E40: =IF(C40="","",$Q$4-LEFT(D40,2)-1) ->  | H40: =IF(G40="","",IFERROR(G$4-LEFT(VLOOKUP(G40,$C$6:$D$1899,2,0),2)-1,"未建檔")) ->  | M40: =IF(L40="","",IFERROR(L$4-LEFT(VLOOKUP(L40,$C$6:$D$1899,2,0),2)-1,"未建檔")) ->  | R40: =IF(Q40="","",IFERROR(Q$4-LEFT(VLOOKUP(Q40,$C$6:$D$1899,2,0),2)-1,"未建檔")) ->  | T40: =IF(Q40="","",IF(VLOOKUP(Q40,$C$6:$F$1899,4,0)="未符資格","未符資格",IF(VLOOKUP(Q40,$C$6:$F$1899,4,0)="一年一次","核符",IF(VLOOKUP(Q40,$C$6:$F$1899,4,0)="二年一次",IF(IFERROR(VLOOKUP(Q40,L$5:L$1899,1,0),"")=Q40,"前一年申請有案","核符"),IF(VLOOKUP(Q40,$C$6:$F$1899,4,0)="三年一次",IF(IFERROR(VLOOKUP(Q40,L$5:L$1899,1,0),"")&IFERROR(VLOOKUP(Q40,G$5:G$1899,1,0),"")=Q40,"前二年申請有案","核符")))))) ->  | W40: =IF(V40="","",IFERROR(V$4-LEFT(VLOOKUP(V40,$C$6:$D$1899,2,0),2)-1,"未建檔")) ->  | Y40: =IF(V40="","",IF(VLOOKUP(V40,$C$6:$F$1899,4,0)="未符資格","未符資格",IF(VLOOKUP(V40,$C$6:$F$1899,4,0)="一年一次","核符",IF(VLOOKUP(V40,$C$6:$F$1899,4,0)="二年一次",IF(IFERROR(VLOOKUP(V40,Q$5:Q$1899,1,0),"")=V40,"前一年申請有案","核符"),IF(VLOOKUP(V40,$C$6:$F$1899,4,0)="三年一次",IF(IFERROR(VLOOKUP(V40,Q$5:Q$1899,1,0),"")&IFERROR(VLOOKUP(V40,L$5:L$1899,1,0),"")=V40,"前二年申請有案","核符")))))) ->  | AB40: =IF(AA40="","",IFERROR(AA$4-LEFT(VLOOKUP(AA40,$C$6:$D$1899,2,0),2)-1,"未建檔")) ->  | AD40: =IF(AA40="","",IF(VLOOKUP(AA40,$C$6:$F$1899,4,0)="未符資格","未符資格",IF(VLOOKUP(AA40,$C$6:$F$1899,4,0)="一年一次","核符",IF(VLOOKUP(AA40,$C$6:$F$1899,4,0)="二年一次",IF(IFERROR(VLOOKUP(AA40,V$5:V$1899,1,0),"")=AA40,"前一年申請有案","核符"),IF(VLOOKUP(AA40,$C$6:$F$1899,4,0)="三年一次",IF(IFERROR(VLOOKUP(AA40,V$5:V$1899,1,0),"")&IFERROR(VLOOKUP(AA40,Q$5:Q$1899,1,0),"")=AA40,"前二年申請有案","核符")))))) ->  | AG40: =IF(AF40="","",IFERROR(AF$4-LEFT(VLOOKUP(AF40,$C$6:$D$1899,2,0),2)-1,"未建檔")) ->  | AI40: =IF(AF40="","",IF(VLOOKUP(AF40,$C$6:$F$1899,4,0)="未符資格","未符資格",IF(VLOOKUP(AF40,$C$6:$F$1899,4,0)="一年一次","核符",IF(VLOOKUP(AF40,$C$6:$F$1899,4,0)="二年一次",IF(IFERROR(VLOOKUP(AF40,AA$5:AA$1899,1,0),"")=AF40,"前一年申請有案","核符"),IF(VLOOKUP(AF40,$C$6:$F$1899,4,0)="三年一次",IF(IFERROR(VLOOKUP(AF40,AA$5:AA$1899,1,0),"")&IFERROR(VLOOKUP(AF40,V$5:V$1899,1,0),"")=AF40,"前二年申請有案","核符")))))) ->  | AL40: =IF(AK40="","",IFERROR(AK$4-LEFT(VLOOKUP(AK40,$C$6:$D$1899,2,0),2)-1,"未建檔")) ->  | AN40: =IF(AK40="","",IF(VLOOKUP(AK40,$C$6:$F$1899,4,0)="未符資格","未符資格",IF(VLOOKUP(AK40,$C$6:$F$1899,4,0)="一年一次","核符",IF(VLOOKUP(AK40,$C$6:$F$1899,4,0)="二年一次",IF(IFERROR(VLOOKUP(AK40,AF$5:AF$1899,1,0),"")=AK40,"前一年申請有案","核符"),IF(VLOOKUP(AK40,$C$6:$F$1899,4,0)="三年一次",IF(IFERROR(VLOOKUP(AK40,AF$5:AF$1899,1,0),"")&IFERROR(VLOOKUP(AK40,AA$5:AA$1899,1,0),"")=AK40,"前二年申請有案","核符")))))) ->  | AQ40: =IF(AP40="","",IFERROR(AP$4-LEFT(VLOOKUP(AP40,$C$6:$D$1899,2,0),2)-1,"未建檔")) ->  | AS40: =IF(AP40="","",IF(VLOOKUP(AP40,$C$6:$F$1899,4,0)="未符資格","未符資格",IF(VLOOKUP(AP40,$C$6:$F$1899,4,0)="一年一次","核符",IF(VLOOKUP(AP40,$C$6:$F$1899,4,0)="二年一次",IF(IFERROR(VLOOKUP(AP40,AK$5:AK$1899,1,0),"")=AP40,"前一年申請有案","核符"),IF(VLOOKUP(AP40,$C$6:$F$1899,4,0)="三年一次",IF(IFERROR(VLOOKUP(AP40,AK$5:AK$1899,1,0),"")&IFERROR(VLOOKUP(AP40,AF$5:AF$1899,1,0),"")=AP40,"前二年申請有案","核符")))))) ->  | AV40: =IF(AU40="","",IFERROR(AU$4-LEFT(VLOOKUP(AU40,$C$6:$D$1899,2,0),2)-1,"未建檔")) ->  | AX40: =IF(AU40="","",IF(VLOOKUP(AU40,$C$6:$F$1899,4,0)="未符資格","未符資格",IF(VLOOKUP(AU40,$C$6:$F$1899,4,0)="一年一次","核符",IF(VLOOKUP(AU40,$C$6:$F$1899,4,0)="二年一次",IF(IFERROR(VLOOKUP(AU40,AP$5:AP$1899,1,0),"")=AU40,"前一年申請有案","核符"),IF(VLOOKUP(AU40,$C$6:$F$1899,4,0)="三年一次",IF(IFERROR(VLOOKUP(AU40,AP$5:AP$1899,1,0),"")&IFERROR(VLOOKUP(AU40,AK$5:AK$1899,1,0),"")=AU40,"前二年申請有案","核符")))))) ->  | BA40: =IF(AZ40="","",IFERROR(AZ$4-LEFT(VLOOKUP(AZ40,$C$6:$D$1899,2,0),2)-1,"未建檔")) ->  | BC40: =IF(AZ40="","",IF(VLOOKUP(AZ40,$C$6:$F$1899,4,0)="未符資格","未符資格",IF(VLOOKUP(AZ40,$C$6:$F$1899,4,0)="一年一次","核符",IF(VLOOKUP(AZ40,$C$6:$F$1899,4,0)="二年一次",IF(IFERROR(VLOOKUP(AZ40,AU$5:AU$1899,1,0),"")=AZ40,"前一年申請有案","核符"),IF(VLOOKUP(AZ40,$C$6:$F$1899,4,0)="三年一次",IF(IFERROR(VLOOKUP(AZ40,AU$5:AU$1899,1,0),"")&IFERROR(VLOOKUP(AZ40,AP$5:AP$1899,1,0),"")=AZ40,"前二年申請有案","核符")))))) -> 
A41: 36 | E41: =IF(C41="","",$Q$4-LEFT(D41,2)-1) ->  | H41: =IF(G41="","",IFERROR(G$4-LEFT(VLOOKUP(G41,$C$6:$D$1899,2,0),2)-1,"未建檔")) ->  | M41: =IF(L41="","",IFERROR(L$4-LEFT(VLOOKUP(L41,$C$6:$D$1899,2,0),2)-1,"未建檔")) ->  | R41: =IF(Q41="","",IFERROR(Q$4-LEFT(VLOOKUP(Q41,$C$6:$D$1899,2,0),2)-1,"未建檔")) ->  | T41: =IF(Q41="","",IF(VLOOKUP(Q41,$C$6:$F$1899,4,0)="未符資格","未符資格",IF(VLOOKUP(Q41,$C$6:$F$1899,4,0)="一年一次","核符",IF(VLOOKUP(Q41,$C$6:$F$1899,4,0)="二年一次",IF(IFERROR(VLOOKUP(Q41,L$5:L$1899,1,0),"")=Q41,"前一年申請有案","核符"),IF(VLOOKUP(Q41,$C$6:$F$1899,4,0)="三年一次",IF(IFERROR(VLOOKUP(Q41,L$5:L$1899,1,0),"")&IFERROR(VLOOKUP(Q41,G$5:G$1899,1,0),"")=Q41,"前二年申請有案","核符")))))) ->  | W41: =IF(V41="","",IFERROR(V$4-LEFT(VLOOKUP(V41,$C$6:$D$1899,2,0),2)-1,"未建檔")) ->  | Y41: =IF(V41="","",IF(VLOOKUP(V41,$C$6:$F$1899,4,0)="未符資格","未符資格",IF(VLOOKUP(V41,$C$6:$F$1899,4,0)="一年一次","核符",IF(VLOOKUP(V41,$C$6:$F$1899,4,0)="二年一次",IF(IFERROR(VLOOKUP(V41,Q$5:Q$1899,1,0),"")=V41,"前一年申請有案","核符"),IF(VLOOKUP(V41,$C$6:$F$1899,4,0)="三年一次",IF(IFERROR(VLOOKUP(V41,Q$5:Q$1899,1,0),"")&IFERROR(VLOOKUP(V41,L$5:L$1899,1,0),"")=V41,"前二年申請有案","核符")))))) ->  | AB41: =IF(AA41="","",IFERROR(AA$4-LEFT(VLOOKUP(AA41,$C$6:$D$1899,2,0),2)-1,"未建檔")) ->  | AD41: =IF(AA41="","",IF(VLOOKUP(AA41,$C$6:$F$1899,4,0)="未符資格","未符資格",IF(VLOOKUP(AA41,$C$6:$F$1899,4,0)="一年一次","核符",IF(VLOOKUP(AA41,$C$6:$F$1899,4,0)="二年一次",IF(IFERROR(VLOOKUP(AA41,V$5:V$1899,1,0),"")=AA41,"前一年申請有案","核符"),IF(VLOOKUP(AA41,$C$6:$F$1899,4,0)="三年一次",IF(IFERROR(VLOOKUP(AA41,V$5:V$1899,1,0),"")&IFERROR(VLOOKUP(AA41,Q$5:Q$1899,1,0),"")=AA41,"前二年申請有案","核符")))))) ->  | AG41: =IF(AF41="","",IFERROR(AF$4-LEFT(VLOOKUP(AF41,$C$6:$D$1899,2,0),2)-1,"未建檔")) ->  | AI41: =IF(AF41="","",IF(VLOOKUP(AF41,$C$6:$F$1899,4,0)="未符資格","未符資格",IF(VLOOKUP(AF41,$C$6:$F$1899,4,0)="一年一次","核符",IF(VLOOKUP(AF41,$C$6:$F$1899,4,0)="二年一次",IF(IFERROR(VLOOKUP(AF41,AA$5:AA$1899,1,0),"")=AF41,"前一年申請有案","核符"),IF(VLOOKUP(AF41,$C$6:$F$1899,4,0)="三年一次",IF(IFERROR(VLOOKUP(AF41,AA$5:AA$1899,1,0),"")&IFERROR(VLOOKUP(AF41,V$5:V$1899,1,0),"")=AF41,"前二年申請有案","核符")))))) ->  | AL41: =IF(AK41="","",IFERROR(AK$4-LEFT(VLOOKUP(AK41,$C$6:$D$1899,2,0),2)-1,"未建檔")) ->  | AN41: =IF(AK41="","",IF(VLOOKUP(AK41,$C$6:$F$1899,4,0)="未符資格","未符資格",IF(VLOOKUP(AK41,$C$6:$F$1899,4,0)="一年一次","核符",IF(VLOOKUP(AK41,$C$6:$F$1899,4,0)="二年一次",IF(IFERROR(VLOOKUP(AK41,AF$5:AF$1899,1,0),"")=AK41,"前一年申請有案","核符"),IF(VLOOKUP(AK41,$C$6:$F$1899,4,0)="三年一次",IF(IFERROR(VLOOKUP(AK41,AF$5:AF$1899,1,0),"")&IFERROR(VLOOKUP(AK41,AA$5:AA$1899,1,0),"")=AK41,"前二年申請有案","核符")))))) ->  | AQ41: =IF(AP41="","",IFERROR(AP$4-LEFT(VLOOKUP(AP41,$C$6:$D$1899,2,0),2)-1,"未建檔")) ->  | AS41: =IF(AP41="","",IF(VLOOKUP(AP41,$C$6:$F$1899,4,0)="未符資格","未符資格",IF(VLOOKUP(AP41,$C$6:$F$1899,4,0)="一年一次","核符",IF(VLOOKUP(AP41,$C$6:$F$1899,4,0)="二年一次",IF(IFERROR(VLOOKUP(AP41,AK$5:AK$1899,1,0),"")=AP41,"前一年申請有案","核符"),IF(VLOOKUP(AP41,$C$6:$F$1899,4,0)="三年一次",IF(IFERROR(VLOOKUP(AP41,AK$5:AK$1899,1,0),"")&IFERROR(VLOOKUP(AP41,AF$5:AF$1899,1,0),"")=AP41,"前二年申請有案","核符")))))) ->  | AV41: =IF(AU41="","",IFERROR(AU$4-LEFT(VLOOKUP(AU41,$C$6:$D$1899,2,0),2)-1,"未建檔")) ->  | AX41: =IF(AU41="","",IF(VLOOKUP(AU41,$C$6:$F$1899,4,0)="未符資格","未符資格",IF(VLOOKUP(AU41,$C$6:$F$1899,4,0)="一年一次","核符",IF(VLOOKUP(AU41,$C$6:$F$1899,4,0)="二年一次",IF(IFERROR(VLOOKUP(AU41,AP$5:AP$1899,1,0),"")=AU41,"前一年申請有案","核符"),IF(VLOOKUP(AU41,$C$6:$F$1899,4,0)="三年一次",IF(IFERROR(VLOOKUP(AU41,AP$5:AP$1899,1,0),"")&IFERROR(VLOOKUP(AU41,AK$5:AK$1899,1,0),"")=AU41,"前二年申請有案","核符")))))) ->  | BA41: =IF(AZ41="","",IFERROR(AZ$4-LEFT(VLOOKUP(AZ41,$C$6:$D$1899,2,0),2)-1,"未建檔")) ->  | BC41: =IF(AZ41="","",IF(VLOOKUP(AZ41,$C$6:$F$1899,4,0)="未符資格","未符資格",IF(VLOOKUP(AZ41,$C$6:$F$1899,4,0)="一年一次","核符",IF(VLOOKUP(AZ41,$C$6:$F$1899,4,0)="二年一次",IF(IFERROR(VLOOKUP(AZ41,AU$5:AU$1899,1,0),"")=AZ41,"前一年申請有案","核符"),IF(VLOOKUP(AZ41,$C$6:$F$1899,4,0)="三年一次",IF(IFERROR(VLOOKUP(AZ41,AU$5:AU$1899,1,0),"")&IFERROR(VLOOKUP(AZ41,AP$5:AP$1899,1,0),"")=AZ41,"前二年申請有案","核符")))))) -> 
A42: 37 | E42: =IF(C42="","",$Q$4-LEFT(D42,2)-1) ->  | H42: =IF(G42="","",IFERROR(G$4-LEFT(VLOOKUP(G42,$C$6:$D$1899,2,0),2)-1,"未建檔")) ->  | M42: =IF(L42="","",IFERROR(L$4-LEFT(VLOOKUP(L42,$C$6:$D$1899,2,0),2)-1,"未建檔")) ->  | R42: =IF(Q42="","",IFERROR(Q$4-LEFT(VLOOKUP(Q42,$C$6:$D$1899,2,0),2)-1,"未建檔")) ->  | T42: =IF(Q42="","",IF(VLOOKUP(Q42,$C$6:$F$1899,4,0)="未符資格","未符資格",IF(VLOOKUP(Q42,$C$6:$F$1899,4,0)="一年一次","核符",IF(VLOOKUP(Q42,$C$6:$F$1899,4,0)="二年一次",IF(IFERROR(VLOOKUP(Q42,L$5:L$1899,1,0),"")=Q42,"前一年申請有案","核符"),IF(VLOOKUP(Q42,$C$6:$F$1899,4,0)="三年一次",IF(IFERROR(VLOOKUP(Q42,L$5:L$1899,1,0),"")&IFERROR(VLOOKUP(Q42,G$5:G$1899,1,0),"")=Q42,"前二年申請有案","核符")))))) ->  | W42: =IF(V42="","",IFERROR(V$4-LEFT(VLOOKUP(V42,$C$6:$D$1899,2,0),2)-1,"未建檔")) ->  | Y42: =IF(V42="","",IF(VLOOKUP(V42,$C$6:$F$1899,4,0)="未符資格","未符資格",IF(VLOOKUP(V42,$C$6:$F$1899,4,0)="一年一次","核符",IF(VLOOKUP(V42,$C$6:$F$1899,4,0)="二年一次",IF(IFERROR(VLOOKUP(V42,Q$5:Q$1899,1,0),"")=V42,"前一年申請有案","核符"),IF(VLOOKUP(V42,$C$6:$F$1899,4,0)="三年一次",IF(IFERROR(VLOOKUP(V42,Q$5:Q$1899,1,0),"")&IFERROR(VLOOKUP(V42,L$5:L$1899,1,0),"")=V42,"前二年申請有案","核符")))))) ->  | AB42: =IF(AA42="","",IFERROR(AA$4-LEFT(VLOOKUP(AA42,$C$6:$D$1899,2,0),2)-1,"未建檔")) ->  | AD42: =IF(AA42="","",IF(VLOOKUP(AA42,$C$6:$F$1899,4,0)="未符資格","未符資格",IF(VLOOKUP(AA42,$C$6:$F$1899,4,0)="一年一次","核符",IF(VLOOKUP(AA42,$C$6:$F$1899,4,0)="二年一次",IF(IFERROR(VLOOKUP(AA42,V$5:V$1899,1,0),"")=AA42,"前一年申請有案","核符"),IF(VLOOKUP(AA42,$C$6:$F$1899,4,0)="三年一次",IF(IFERROR(VLOOKUP(AA42,V$5:V$1899,1,0),"")&IFERROR(VLOOKUP(AA42,Q$5:Q$1899,1,0),"")=AA42,"前二年申請有案","核符")))))) ->  | AG42: =IF(AF42="","",IFERROR(AF$4-LEFT(VLOOKUP(AF42,$C$6:$D$1899,2,0),2)-1,"未建檔")) ->  | AI42: =IF(AF42="","",IF(VLOOKUP(AF42,$C$6:$F$1899,4,0)="未符資格","未符資格",IF(VLOOKUP(AF42,$C$6:$F$1899,4,0)="一年一次","核符",IF(VLOOKUP(AF42,$C$6:$F$1899,4,0)="二年一次",IF(IFERROR(VLOOKUP(AF42,AA$5:AA$1899,1,0),"")=AF42,"前一年申請有案","核符"),IF(VLOOKUP(AF42,$C$6:$F$1899,4,0)="三年一次",IF(IFERROR(VLOOKUP(AF42,AA$5:AA$1899,1,0),"")&IFERROR(VLOOKUP(AF42,V$5:V$1899,1,0),"")=AF42,"前二年申請有案","核符")))))) ->  | AL42: =IF(AK42="","",IFERROR(AK$4-LEFT(VLOOKUP(AK42,$C$6:$D$1899,2,0),2)-1,"未建檔")) ->  | AN42: =IF(AK42="","",IF(VLOOKUP(AK42,$C$6:$F$1899,4,0)="未符資格","未符資格",IF(VLOOKUP(AK42,$C$6:$F$1899,4,0)="一年一次","核符",IF(VLOOKUP(AK42,$C$6:$F$1899,4,0)="二年一次",IF(IFERROR(VLOOKUP(AK42,AF$5:AF$1899,1,0),"")=AK42,"前一年申請有案","核符"),IF(VLOOKUP(AK42,$C$6:$F$1899,4,0)="三年一次",IF(IFERROR(VLOOKUP(AK42,AF$5:AF$1899,1,0),"")&IFERROR(VLOOKUP(AK42,AA$5:AA$1899,1,0),"")=AK42,"前二年申請有案","核符")))))) ->  | AQ42: =IF(AP42="","",IFERROR(AP$4-LEFT(VLOOKUP(AP42,$C$6:$D$1899,2,0),2)-1,"未建檔")) ->  | AS42: =IF(AP42="","",IF(VLOOKUP(AP42,$C$6:$F$1899,4,0)="未符資格","未符資格",IF(VLOOKUP(AP42,$C$6:$F$1899,4,0)="一年一次","核符",IF(VLOOKUP(AP42,$C$6:$F$1899,4,0)="二年一次",IF(IFERROR(VLOOKUP(AP42,AK$5:AK$1899,1,0),"")=AP42,"前一年申請有案","核符"),IF(VLOOKUP(AP42,$C$6:$F$1899,4,0)="三年一次",IF(IFERROR(VLOOKUP(AP42,AK$5:AK$1899,1,0),"")&IFERROR(VLOOKUP(AP42,AF$5:AF$1899,1,0),"")=AP42,"前二年申請有案","核符")))))) ->  | AV42: =IF(AU42="","",IFERROR(AU$4-LEFT(VLOOKUP(AU42,$C$6:$D$1899,2,0),2)-1,"未建檔")) ->  | AX42: =IF(AU42="","",IF(VLOOKUP(AU42,$C$6:$F$1899,4,0)="未符資格","未符資格",IF(VLOOKUP(AU42,$C$6:$F$1899,4,0)="一年一次","核符",IF(VLOOKUP(AU42,$C$6:$F$1899,4,0)="二年一次",IF(IFERROR(VLOOKUP(AU42,AP$5:AP$1899,1,0),"")=AU42,"前一年申請有案","核符"),IF(VLOOKUP(AU42,$C$6:$F$1899,4,0)="三年一次",IF(IFERROR(VLOOKUP(AU42,AP$5:AP$1899,1,0),"")&IFERROR(VLOOKUP(AU42,AK$5:AK$1899,1,0),"")=AU42,"前二年申請有案","核符")))))) ->  | BA42: =IF(AZ42="","",IFERROR(AZ$4-LEFT(VLOOKUP(AZ42,$C$6:$D$1899,2,0),2)-1,"未建檔")) ->  | BC42: =IF(AZ42="","",IF(VLOOKUP(AZ42,$C$6:$F$1899,4,0)="未符資格","未符資格",IF(VLOOKUP(AZ42,$C$6:$F$1899,4,0)="一年一次","核符",IF(VLOOKUP(AZ42,$C$6:$F$1899,4,0)="二年一次",IF(IFERROR(VLOOKUP(AZ42,AU$5:AU$1899,1,0),"")=AZ42,"前一年申請有案","核符"),IF(VLOOKUP(AZ42,$C$6:$F$1899,4,0)="三年一次",IF(IFERROR(VLOOKUP(AZ42,AU$5:AU$1899,1,0),"")&IFERROR(VLOOKUP(AZ42,AP$5:AP$1899,1,0),"")=AZ42,"前二年申請有案","核符")))))) -> 
A43: 38 | E43: =IF(C43="","",$Q$4-LEFT(D43,2)-1) ->  | H43: =IF(G43="","",IFERROR(G$4-LEFT(VLOOKUP(G43,$C$6:$D$1899,2,0),2)-1,"未建檔")) ->  | M43: =IF(L43="","",IFERROR(L$4-LEFT(VLOOKUP(L43,$C$6:$D$1899,2,0),2)-1,"未建檔")) ->  | R43: =IF(Q43="","",IFERROR(Q$4-LEFT(VLOOKUP(Q43,$C$6:$D$1899,2,0),2)-1,"未建檔")) ->  | T43: =IF(Q43="","",IF(VLOOKUP(Q43,$C$6:$F$1899,4,0)="未符資格","未符資格",IF(VLOOKUP(Q43,$C$6:$F$1899,4,0)="一年一次","核符",IF(VLOOKUP(Q43,$C$6:$F$1899,4,0)="二年一次",IF(IFERROR(VLOOKUP(Q43,L$5:L$1899,1,0),"")=Q43,"前一年申請有案","核符"),IF(VLOOKUP(Q43,$C$6:$F$1899,4,0)="三年一次",IF(IFERROR(VLOOKUP(Q43,L$5:L$1899,1,0),"")&IFERROR(VLOOKUP(Q43,G$5:G$1899,1,0),"")=Q43,"前二年申請有案","核符")))))) ->  | W43: =IF(V43="","",IFERROR(V$4-LEFT(VLOOKUP(V43,$C$6:$D$1899,2,0),2)-1,"未建檔")) ->  | Y43: =IF(V43="","",IF(VLOOKUP(V43,$C$6:$F$1899,4,0)="未符資格","未符資格",IF(VLOOKUP(V43,$C$6:$F$1899,4,0)="一年一次","核符",IF(VLOOKUP(V43,$C$6:$F$1899,4,0)="二年一次",IF(IFERROR(VLOOKUP(V43,Q$5:Q$1899,1,0),"")=V43,"前一年申請有案","核符"),IF(VLOOKUP(V43,$C$6:$F$1899,4,0)="三年一次",IF(IFERROR(VLOOKUP(V43,Q$5:Q$1899,1,0),"")&IFERROR(VLOOKUP(V43,L$5:L$1899,1,0),"")=V43,"前二年申請有案","核符")))))) ->  | AB43: =IF(AA43="","",IFERROR(AA$4-LEFT(VLOOKUP(AA43,$C$6:$D$1899,2,0),2)-1,"未建檔")) ->  | AD43: =IF(AA43="","",IF(VLOOKUP(AA43,$C$6:$F$1899,4,0)="未符資格","未符資格",IF(VLOOKUP(AA43,$C$6:$F$1899,4,0)="一年一次","核符",IF(VLOOKUP(AA43,$C$6:$F$1899,4,0)="二年一次",IF(IFERROR(VLOOKUP(AA43,V$5:V$1899,1,0),"")=AA43,"前一年申請有案","核符"),IF(VLOOKUP(AA43,$C$6:$F$1899,4,0)="三年一次",IF(IFERROR(VLOOKUP(AA43,V$5:V$1899,1,0),"")&IFERROR(VLOOKUP(AA43,Q$5:Q$1899,1,0),"")=AA43,"前二年申請有案","核符")))))) ->  | AG43: =IF(AF43="","",IFERROR(AF$4-LEFT(VLOOKUP(AF43,$C$6:$D$1899,2,0),2)-1,"未建檔")) ->  | AI43: =IF(AF43="","",IF(VLOOKUP(AF43,$C$6:$F$1899,4,0)="未符資格","未符資格",IF(VLOOKUP(AF43,$C$6:$F$1899,4,0)="一年一次","核符",IF(VLOOKUP(AF43,$C$6:$F$1899,4,0)="二年一次",IF(IFERROR(VLOOKUP(AF43,AA$5:AA$1899,1,0),"")=AF43,"前一年申請有案","核符"),IF(VLOOKUP(AF43,$C$6:$F$1899,4,0)="三年一次",IF(IFERROR(VLOOKUP(AF43,AA$5:AA$1899,1,0),"")&IFERROR(VLOOKUP(AF43,V$5:V$1899,1,0),"")=AF43,"前二年申請有案","核符")))))) ->  | AL43: =IF(AK43="","",IFERROR(AK$4-LEFT(VLOOKUP(AK43,$C$6:$D$1899,2,0),2)-1,"未建檔")) ->  | AN43: =IF(AK43="","",IF(VLOOKUP(AK43,$C$6:$F$1899,4,0)="未符資格","未符資格",IF(VLOOKUP(AK43,$C$6:$F$1899,4,0)="一年一次","核符",IF(VLOOKUP(AK43,$C$6:$F$1899,4,0)="二年一次",IF(IFERROR(VLOOKUP(AK43,AF$5:AF$1899,1,0),"")=AK43,"前一年申請有案","核符"),IF(VLOOKUP(AK43,$C$6:$F$1899,4,0)="三年一次",IF(IFERROR(VLOOKUP(AK43,AF$5:AF$1899,1,0),"")&IFERROR(VLOOKUP(AK43,AA$5:AA$1899,1,0),"")=AK43,"前二年申請有案","核符")))))) ->  | AQ43: =IF(AP43="","",IFERROR(AP$4-LEFT(VLOOKUP(AP43,$C$6:$D$1899,2,0),2)-1,"未建檔")) ->  | AS43: =IF(AP43="","",IF(VLOOKUP(AP43,$C$6:$F$1899,4,0)="未符資格","未符資格",IF(VLOOKUP(AP43,$C$6:$F$1899,4,0)="一年一次","核符",IF(VLOOKUP(AP43,$C$6:$F$1899,4,0)="二年一次",IF(IFERROR(VLOOKUP(AP43,AK$5:AK$1899,1,0),"")=AP43,"前一年申請有案","核符"),IF(VLOOKUP(AP43,$C$6:$F$1899,4,0)="三年一次",IF(IFERROR(VLOOKUP(AP43,AK$5:AK$1899,1,0),"")&IFERROR(VLOOKUP(AP43,AF$5:AF$1899,1,0),"")=AP43,"前二年申請有案","核符")))))) ->  | AV43: =IF(AU43="","",IFERROR(AU$4-LEFT(VLOOKUP(AU43,$C$6:$D$1899,2,0),2)-1,"未建檔")) ->  | AX43: =IF(AU43="","",IF(VLOOKUP(AU43,$C$6:$F$1899,4,0)="未符資格","未符資格",IF(VLOOKUP(AU43,$C$6:$F$1899,4,0)="一年一次","核符",IF(VLOOKUP(AU43,$C$6:$F$1899,4,0)="二年一次",IF(IFERROR(VLOOKUP(AU43,AP$5:AP$1899,1,0),"")=AU43,"前一年申請有案","核符"),IF(VLOOKUP(AU43,$C$6:$F$1899,4,0)="三年一次",IF(IFERROR(VLOOKUP(AU43,AP$5:AP$1899,1,0),"")&IFERROR(VLOOKUP(AU43,AK$5:AK$1899,1,0),"")=AU43,"前二年申請有案","核符")))))) ->  | BA43: =IF(AZ43="","",IFERROR(AZ$4-LEFT(VLOOKUP(AZ43,$C$6:$D$1899,2,0),2)-1,"未建檔")) ->  | BC43: =IF(AZ43="","",IF(VLOOKUP(AZ43,$C$6:$F$1899,4,0)="未符資格","未符資格",IF(VLOOKUP(AZ43,$C$6:$F$1899,4,0)="一年一次","核符",IF(VLOOKUP(AZ43,$C$6:$F$1899,4,0)="二年一次",IF(IFERROR(VLOOKUP(AZ43,AU$5:AU$1899,1,0),"")=AZ43,"前一年申請有案","核符"),IF(VLOOKUP(AZ43,$C$6:$F$1899,4,0)="三年一次",IF(IFERROR(VLOOKUP(AZ43,AU$5:AU$1899,1,0),"")&IFERROR(VLOOKUP(AZ43,AP$5:AP$1899,1,0),"")=AZ43,"前二年申請有案","核符")))))) -> 
A44: 39 | E44: =IF(C44="","",$Q$4-LEFT(D44,2)-1) ->  | H44: =IF(G44="","",IFERROR(G$4-LEFT(VLOOKUP(G44,$C$6:$D$1899,2,0),2)-1,"未建檔")) ->  | M44: =IF(L44="","",IFERROR(L$4-LEFT(VLOOKUP(L44,$C$6:$D$1899,2,0),2)-1,"未建檔")) ->  | R44: =IF(Q44="","",IFERROR(Q$4-LEFT(VLOOKUP(Q44,$C$6:$D$1899,2,0),2)-1,"未建檔")) ->  | T44: =IF(Q44="","",IF(VLOOKUP(Q44,$C$6:$F$1899,4,0)="未符資格","未符資格",IF(VLOOKUP(Q44,$C$6:$F$1899,4,0)="一年一次","核符",IF(VLOOKUP(Q44,$C$6:$F$1899,4,0)="二年一次",IF(IFERROR(VLOOKUP(Q44,L$5:L$1899,1,0),"")=Q44,"前一年申請有案","核符"),IF(VLOOKUP(Q44,$C$6:$F$1899,4,0)="三年一次",IF(IFERROR(VLOOKUP(Q44,L$5:L$1899,1,0),"")&IFERROR(VLOOKUP(Q44,G$5:G$1899,1,0),"")=Q44,"前二年申請有案","核符")))))) ->  | W44: =IF(V44="","",IFERROR(V$4-LEFT(VLOOKUP(V44,$C$6:$D$1899,2,0),2)-1,"未建檔")) ->  | Y44: =IF(V44="","",IF(VLOOKUP(V44,$C$6:$F$1899,4,0)="未符資格","未符資格",IF(VLOOKUP(V44,$C$6:$F$1899,4,0)="一年一次","核符",IF(VLOOKUP(V44,$C$6:$F$1899,4,0)="二年一次",IF(IFERROR(VLOOKUP(V44,Q$5:Q$1899,1,0),"")=V44,"前一年申請有案","核符"),IF(VLOOKUP(V44,$C$6:$F$1899,4,0)="三年一次",IF(IFERROR(VLOOKUP(V44,Q$5:Q$1899,1,0),"")&IFERROR(VLOOKUP(V44,L$5:L$1899,1,0),"")=V44,"前二年申請有案","核符")))))) ->  | AB44: =IF(AA44="","",IFERROR(AA$4-LEFT(VLOOKUP(AA44,$C$6:$D$1899,2,0),2)-1,"未建檔")) ->  | AD44: =IF(AA44="","",IF(VLOOKUP(AA44,$C$6:$F$1899,4,0)="未符資格","未符資格",IF(VLOOKUP(AA44,$C$6:$F$1899,4,0)="一年一次","核符",IF(VLOOKUP(AA44,$C$6:$F$1899,4,0)="二年一次",IF(IFERROR(VLOOKUP(AA44,V$5:V$1899,1,0),"")=AA44,"前一年申請有案","核符"),IF(VLOOKUP(AA44,$C$6:$F$1899,4,0)="三年一次",IF(IFERROR(VLOOKUP(AA44,V$5:V$1899,1,0),"")&IFERROR(VLOOKUP(AA44,Q$5:Q$1899,1,0),"")=AA44,"前二年申請有案","核符")))))) ->  | AG44: =IF(AF44="","",IFERROR(AF$4-LEFT(VLOOKUP(AF44,$C$6:$D$1899,2,0),2)-1,"未建檔")) ->  | AI44: =IF(AF44="","",IF(VLOOKUP(AF44,$C$6:$F$1899,4,0)="未符資格","未符資格",IF(VLOOKUP(AF44,$C$6:$F$1899,4,0)="一年一次","核符",IF(VLOOKUP(AF44,$C$6:$F$1899,4,0)="二年一次",IF(IFERROR(VLOOKUP(AF44,AA$5:AA$1899,1,0),"")=AF44,"前一年申請有案","核符"),IF(VLOOKUP(AF44,$C$6:$F$1899,4,0)="三年一次",IF(IFERROR(VLOOKUP(AF44,AA$5:AA$1899,1,0),"")&IFERROR(VLOOKUP(AF44,V$5:V$1899,1,0),"")=AF44,"前二年申請有案","核符")))))) ->  | AL44: =IF(AK44="","",IFERROR(AK$4-LEFT(VLOOKUP(AK44,$C$6:$D$1899,2,0),2)-1,"未建檔")) ->  | AN44: =IF(AK44="","",IF(VLOOKUP(AK44,$C$6:$F$1899,4,0)="未符資格","未符資格",IF(VLOOKUP(AK44,$C$6:$F$1899,4,0)="一年一次","核符",IF(VLOOKUP(AK44,$C$6:$F$1899,4,0)="二年一次",IF(IFERROR(VLOOKUP(AK44,AF$5:AF$1899,1,0),"")=AK44,"前一年申請有案","核符"),IF(VLOOKUP(AK44,$C$6:$F$1899,4,0)="三年一次",IF(IFERROR(VLOOKUP(AK44,AF$5:AF$1899,1,0),"")&IFERROR(VLOOKUP(AK44,AA$5:AA$1899,1,0),"")=AK44,"前二年申請有案","核符")))))) ->  | AQ44: =IF(AP44="","",IFERROR(AP$4-LEFT(VLOOKUP(AP44,$C$6:$D$1899,2,0),2)-1,"未建檔")) ->  | AS44: =IF(AP44="","",IF(VLOOKUP(AP44,$C$6:$F$1899,4,0)="未符資格","未符資格",IF(VLOOKUP(AP44,$C$6:$F$1899,4,0)="一年一次","核符",IF(VLOOKUP(AP44,$C$6:$F$1899,4,0)="二年一次",IF(IFERROR(VLOOKUP(AP44,AK$5:AK$1899,1,0),"")=AP44,"前一年申請有案","核符"),IF(VLOOKUP(AP44,$C$6:$F$1899,4,0)="三年一次",IF(IFERROR(VLOOKUP(AP44,AK$5:AK$1899,1,0),"")&IFERROR(VLOOKUP(AP44,AF$5:AF$1899,1,0),"")=AP44,"前二年申請有案","核符")))))) ->  | AV44: =IF(AU44="","",IFERROR(AU$4-LEFT(VLOOKUP(AU44,$C$6:$D$1899,2,0),2)-1,"未建檔")) ->  | AX44: =IF(AU44="","",IF(VLOOKUP(AU44,$C$6:$F$1899,4,0)="未符資格","未符資格",IF(VLOOKUP(AU44,$C$6:$F$1899,4,0)="一年一次","核符",IF(VLOOKUP(AU44,$C$6:$F$1899,4,0)="二年一次",IF(IFERROR(VLOOKUP(AU44,AP$5:AP$1899,1,0),"")=AU44,"前一年申請有案","核符"),IF(VLOOKUP(AU44,$C$6:$F$1899,4,0)="三年一次",IF(IFERROR(VLOOKUP(AU44,AP$5:AP$1899,1,0),"")&IFERROR(VLOOKUP(AU44,AK$5:AK$1899,1,0),"")=AU44,"前二年申請有案","核符")))))) ->  | BA44: =IF(AZ44="","",IFERROR(AZ$4-LEFT(VLOOKUP(AZ44,$C$6:$D$1899,2,0),2)-1,"未建檔")) ->  | BC44: =IF(AZ44="","",IF(VLOOKUP(AZ44,$C$6:$F$1899,4,0)="未符資格","未符資格",IF(VLOOKUP(AZ44,$C$6:$F$1899,4,0)="一年一次","核符",IF(VLOOKUP(AZ44,$C$6:$F$1899,4,0)="二年一次",IF(IFERROR(VLOOKUP(AZ44,AU$5:AU$1899,1,0),"")=AZ44,"前一年申請有案","核符"),IF(VLOOKUP(AZ44,$C$6:$F$1899,4,0)="三年一次",IF(IFERROR(VLOOKUP(AZ44,AU$5:AU$1899,1,0),"")&IFERROR(VLOOKUP(AZ44,AP$5:AP$1899,1,0),"")=AZ44,"前二年申請有案","核符")))))) -> 
A45: 40 | E45: =IF(C45="","",$Q$4-LEFT(D45,2)-1) ->  | H45: =IF(G45="","",IFERROR(G$4-LEFT(VLOOKUP(G45,$C$6:$D$1899,2,0),2)-1,"未建檔")) ->  | M45: =IF(L45="","",IFERROR(L$4-LEFT(VLOOKUP(L45,$C$6:$D$1899,2,0),2)-1,"未建檔")) ->  | R45: =IF(Q45="","",IFERROR(Q$4-LEFT(VLOOKUP(Q45,$C$6:$D$1899,2,0),2)-1,"未建檔")) ->  | T45: =IF(Q45="","",IF(VLOOKUP(Q45,$C$6:$F$1899,4,0)="未符資格","未符資格",IF(VLOOKUP(Q45,$C$6:$F$1899,4,0)="一年一次","核符",IF(VLOOKUP(Q45,$C$6:$F$1899,4,0)="二年一次",IF(IFERROR(VLOOKUP(Q45,L$5:L$1899,1,0),"")=Q45,"前一年申請有案","核符"),IF(VLOOKUP(Q45,$C$6:$F$1899,4,0)="三年一次",IF(IFERROR(VLOOKUP(Q45,L$5:L$1899,1,0),"")&IFERROR(VLOOKUP(Q45,G$5:G$1899,1,0),"")=Q45,"前二年申請有案","核符")))))) ->  | W45: =IF(V45="","",IFERROR(V$4-LEFT(VLOOKUP(V45,$C$6:$D$1899,2,0),2)-1,"未建檔")) ->  | Y45: =IF(V45="","",IF(VLOOKUP(V45,$C$6:$F$1899,4,0)="未符資格","未符資格",IF(VLOOKUP(V45,$C$6:$F$1899,4,0)="一年一次","核符",IF(VLOOKUP(V45,$C$6:$F$1899,4,0)="二年一次",IF(IFERROR(VLOOKUP(V45,Q$5:Q$1899,1,0),"")=V45,"前一年申請有案","核符"),IF(VLOOKUP(V45,$C$6:$F$1899,4,0)="三年一次",IF(IFERROR(VLOOKUP(V45,Q$5:Q$1899,1,0),"")&IFERROR(VLOOKUP(V45,L$5:L$1899,1,0),"")=V45,"前二年申請有案","核符")))))) ->  | AB45: =IF(AA45="","",IFERROR(AA$4-LEFT(VLOOKUP(AA45,$C$6:$D$1899,2,0),2)-1,"未建檔")) ->  | AD45: =IF(AA45="","",IF(VLOOKUP(AA45,$C$6:$F$1899,4,0)="未符資格","未符資格",IF(VLOOKUP(AA45,$C$6:$F$1899,4,0)="一年一次","核符",IF(VLOOKUP(AA45,$C$6:$F$1899,4,0)="二年一次",IF(IFERROR(VLOOKUP(AA45,V$5:V$1899,1,0),"")=AA45,"前一年申請有案","核符"),IF(VLOOKUP(AA45,$C$6:$F$1899,4,0)="三年一次",IF(IFERROR(VLOOKUP(AA45,V$5:V$1899,1,0),"")&IFERROR(VLOOKUP(AA45,Q$5:Q$1899,1,0),"")=AA45,"前二年申請有案","核符")))))) ->  | AG45: =IF(AF45="","",IFERROR(AF$4-LEFT(VLOOKUP(AF45,$C$6:$D$1899,2,0),2)-1,"未建檔")) ->  | AI45: =IF(AF45="","",IF(VLOOKUP(AF45,$C$6:$F$1899,4,0)="未符資格","未符資格",IF(VLOOKUP(AF45,$C$6:$F$1899,4,0)="一年一次","核符",IF(VLOOKUP(AF45,$C$6:$F$1899,4,0)="二年一次",IF(IFERROR(VLOOKUP(AF45,AA$5:AA$1899,1,0),"")=AF45,"前一年申請有案","核符"),IF(VLOOKUP(AF45,$C$6:$F$1899,4,0)="三年一次",IF(IFERROR(VLOOKUP(AF45,AA$5:AA$1899,1,0),"")&IFERROR(VLOOKUP(AF45,V$5:V$1899,1,0),"")=AF45,"前二年申請有案","核符")))))) ->  | AL45: =IF(AK45="","",IFERROR(AK$4-LEFT(VLOOKUP(AK45,$C$6:$D$1899,2,0),2)-1,"未建檔")) ->  | AN45: =IF(AK45="","",IF(VLOOKUP(AK45,$C$6:$F$1899,4,0)="未符資格","未符資格",IF(VLOOKUP(AK45,$C$6:$F$1899,4,0)="一年一次","核符",IF(VLOOKUP(AK45,$C$6:$F$1899,4,0)="二年一次",IF(IFERROR(VLOOKUP(AK45,AF$5:AF$1899,1,0),"")=AK45,"前一年申請有案","核符"),IF(VLOOKUP(AK45,$C$6:$F$1899,4,0)="三年一次",IF(IFERROR(VLOOKUP(AK45,AF$5:AF$1899,1,0),"")&IFERROR(VLOOKUP(AK45,AA$5:AA$1899,1,0),"")=AK45,"前二年申請有案","核符")))))) ->  | AQ45: =IF(AP45="","",IFERROR(AP$4-LEFT(VLOOKUP(AP45,$C$6:$D$1899,2,0),2)-1,"未建檔")) ->  | AS45: =IF(AP45="","",IF(VLOOKUP(AP45,$C$6:$F$1899,4,0)="未符資格","未符資格",IF(VLOOKUP(AP45,$C$6:$F$1899,4,0)="一年一次","核符",IF(VLOOKUP(AP45,$C$6:$F$1899,4,0)="二年一次",IF(IFERROR(VLOOKUP(AP45,AK$5:AK$1899,1,0),"")=AP45,"前一年申請有案","核符"),IF(VLOOKUP(AP45,$C$6:$F$1899,4,0)="三年一次",IF(IFERROR(VLOOKUP(AP45,AK$5:AK$1899,1,0),"")&IFERROR(VLOOKUP(AP45,AF$5:AF$1899,1,0),"")=AP45,"前二年申請有案","核符")))))) ->  | AV45: =IF(AU45="","",IFERROR(AU$4-LEFT(VLOOKUP(AU45,$C$6:$D$1899,2,0),2)-1,"未建檔")) ->  | AX45: =IF(AU45="","",IF(VLOOKUP(AU45,$C$6:$F$1899,4,0)="未符資格","未符資格",IF(VLOOKUP(AU45,$C$6:$F$1899,4,0)="一年一次","核符",IF(VLOOKUP(AU45,$C$6:$F$1899,4,0)="二年一次",IF(IFERROR(VLOOKUP(AU45,AP$5:AP$1899,1,0),"")=AU45,"前一年申請有案","核符"),IF(VLOOKUP(AU45,$C$6:$F$1899,4,0)="三年一次",IF(IFERROR(VLOOKUP(AU45,AP$5:AP$1899,1,0),"")&IFERROR(VLOOKUP(AU45,AK$5:AK$1899,1,0),"")=AU45,"前二年申請有案","核符")))))) ->  | BA45: =IF(AZ45="","",IFERROR(AZ$4-LEFT(VLOOKUP(AZ45,$C$6:$D$1899,2,0),2)-1,"未建檔")) ->  | BC45: =IF(AZ45="","",IF(VLOOKUP(AZ45,$C$6:$F$1899,4,0)="未符資格","未符資格",IF(VLOOKUP(AZ45,$C$6:$F$1899,4,0)="一年一次","核符",IF(VLOOKUP(AZ45,$C$6:$F$1899,4,0)="二年一次",IF(IFERROR(VLOOKUP(AZ45,AU$5:AU$1899,1,0),"")=AZ45,"前一年申請有案","核符"),IF(VLOOKUP(AZ45,$C$6:$F$1899,4,0)="三年一次",IF(IFERROR(VLOOKUP(AZ45,AU$5:AU$1899,1,0),"")&IFERROR(VLOOKUP(AZ45,AP$5:AP$1899,1,0),"")=AZ45,"前二年申請有案","核符")))))) -> 
A46: 41 | E46: =IF(C46="","",$Q$4-LEFT(D46,2)-1) ->  | H46: =IF(G46="","",IFERROR(G$4-LEFT(VLOOKUP(G46,$C$6:$D$1899,2,0),2)-1,"未建檔")) ->  | M46: =IF(L46="","",IFERROR(L$4-LEFT(VLOOKUP(L46,$C$6:$D$1899,2,0),2)-1,"未建檔")) ->  | R46: =IF(Q46="","",IFERROR(Q$4-LEFT(VLOOKUP(Q46,$C$6:$D$1899,2,0),2)-1,"未建檔")) ->  | T46: =IF(Q46="","",IF(VLOOKUP(Q46,$C$6:$F$1899,4,0)="未符資格","未符資格",IF(VLOOKUP(Q46,$C$6:$F$1899,4,0)="一年一次","核符",IF(VLOOKUP(Q46,$C$6:$F$1899,4,0)="二年一次",IF(IFERROR(VLOOKUP(Q46,L$5:L$1899,1,0),"")=Q46,"前一年申請有案","核符"),IF(VLOOKUP(Q46,$C$6:$F$1899,4,0)="三年一次",IF(IFERROR(VLOOKUP(Q46,L$5:L$1899,1,0),"")&IFERROR(VLOOKUP(Q46,G$5:G$1899,1,0),"")=Q46,"前二年申請有案","核符")))))) ->  | W46: =IF(V46="","",IFERROR(V$4-LEFT(VLOOKUP(V46,$C$6:$D$1899,2,0),2)-1,"未建檔")) ->  | Y46: =IF(V46="","",IF(VLOOKUP(V46,$C$6:$F$1899,4,0)="未符資格","未符資格",IF(VLOOKUP(V46,$C$6:$F$1899,4,0)="一年一次","核符",IF(VLOOKUP(V46,$C$6:$F$1899,4,0)="二年一次",IF(IFERROR(VLOOKUP(V46,Q$5:Q$1899,1,0),"")=V46,"前一年申請有案","核符"),IF(VLOOKUP(V46,$C$6:$F$1899,4,0)="三年一次",IF(IFERROR(VLOOKUP(V46,Q$5:Q$1899,1,0),"")&IFERROR(VLOOKUP(V46,L$5:L$1899,1,0),"")=V46,"前二年申請有案","核符")))))) ->  | AB46: =IF(AA46="","",IFERROR(AA$4-LEFT(VLOOKUP(AA46,$C$6:$D$1899,2,0),2)-1,"未建檔")) ->  | AD46: =IF(AA46="","",IF(VLOOKUP(AA46,$C$6:$F$1899,4,0)="未符資格","未符資格",IF(VLOOKUP(AA46,$C$6:$F$1899,4,0)="一年一次","核符",IF(VLOOKUP(AA46,$C$6:$F$1899,4,0)="二年一次",IF(IFERROR(VLOOKUP(AA46,V$5:V$1899,1,0),"")=AA46,"前一年申請有案","核符"),IF(VLOOKUP(AA46,$C$6:$F$1899,4,0)="三年一次",IF(IFERROR(VLOOKUP(AA46,V$5:V$1899,1,0),"")&IFERROR(VLOOKUP(AA46,Q$5:Q$1899,1,0),"")=AA46,"前二年申請有案","核符")))))) ->  | AG46: =IF(AF46="","",IFERROR(AF$4-LEFT(VLOOKUP(AF46,$C$6:$D$1899,2,0),2)-1,"未建檔")) ->  | AI46: =IF(AF46="","",IF(VLOOKUP(AF46,$C$6:$F$1899,4,0)="未符資格","未符資格",IF(VLOOKUP(AF46,$C$6:$F$1899,4,0)="一年一次","核符",IF(VLOOKUP(AF46,$C$6:$F$1899,4,0)="二年一次",IF(IFERROR(VLOOKUP(AF46,AA$5:AA$1899,1,0),"")=AF46,"前一年申請有案","核符"),IF(VLOOKUP(AF46,$C$6:$F$1899,4,0)="三年一次",IF(IFERROR(VLOOKUP(AF46,AA$5:AA$1899,1,0),"")&IFERROR(VLOOKUP(AF46,V$5:V$1899,1,0),"")=AF46,"前二年申請有案","核符")))))) ->  | AL46: =IF(AK46="","",IFERROR(AK$4-LEFT(VLOOKUP(AK46,$C$6:$D$1899,2,0),2)-1,"未建檔")) ->  | AN46: =IF(AK46="","",IF(VLOOKUP(AK46,$C$6:$F$1899,4,0)="未符資格","未符資格",IF(VLOOKUP(AK46,$C$6:$F$1899,4,0)="一年一次","核符",IF(VLOOKUP(AK46,$C$6:$F$1899,4,0)="二年一次",IF(IFERROR(VLOOKUP(AK46,AF$5:AF$1899,1,0),"")=AK46,"前一年申請有案","核符"),IF(VLOOKUP(AK46,$C$6:$F$1899,4,0)="三年一次",IF(IFERROR(VLOOKUP(AK46,AF$5:AF$1899,1,0),"")&IFERROR(VLOOKUP(AK46,AA$5:AA$1899,1,0),"")=AK46,"前二年申請有案","核符")))))) ->  | AQ46: =IF(AP46="","",IFERROR(AP$4-LEFT(VLOOKUP(AP46,$C$6:$D$1899,2,0),2)-1,"未建檔")) ->  | AS46: =IF(AP46="","",IF(VLOOKUP(AP46,$C$6:$F$1899,4,0)="未符資格","未符資格",IF(VLOOKUP(AP46,$C$6:$F$1899,4,0)="一年一次","核符",IF(VLOOKUP(AP46,$C$6:$F$1899,4,0)="二年一次",IF(IFERROR(VLOOKUP(AP46,AK$5:AK$1899,1,0),"")=AP46,"前一年申請有案","核符"),IF(VLOOKUP(AP46,$C$6:$F$1899,4,0)="三年一次",IF(IFERROR(VLOOKUP(AP46,AK$5:AK$1899,1,0),"")&IFERROR(VLOOKUP(AP46,AF$5:AF$1899,1,0),"")=AP46,"前二年申請有案","核符")))))) ->  | AV46: =IF(AU46="","",IFERROR(AU$4-LEFT(VLOOKUP(AU46,$C$6:$D$1899,2,0),2)-1,"未建檔")) ->  | AX46: =IF(AU46="","",IF(VLOOKUP(AU46,$C$6:$F$1899,4,0)="未符資格","未符資格",IF(VLOOKUP(AU46,$C$6:$F$1899,4,0)="一年一次","核符",IF(VLOOKUP(AU46,$C$6:$F$1899,4,0)="二年一次",IF(IFERROR(VLOOKUP(AU46,AP$5:AP$1899,1,0),"")=AU46,"前一年申請有案","核符"),IF(VLOOKUP(AU46,$C$6:$F$1899,4,0)="三年一次",IF(IFERROR(VLOOKUP(AU46,AP$5:AP$1899,1,0),"")&IFERROR(VLOOKUP(AU46,AK$5:AK$1899,1,0),"")=AU46,"前二年申請有案","核符")))))) ->  | BA46: =IF(AZ46="","",IFERROR(AZ$4-LEFT(VLOOKUP(AZ46,$C$6:$D$1899,2,0),2)-1,"未建檔")) ->  | BC46: =IF(AZ46="","",IF(VLOOKUP(AZ46,$C$6:$F$1899,4,0)="未符資格","未符資格",IF(VLOOKUP(AZ46,$C$6:$F$1899,4,0)="一年一次","核符",IF(VLOOKUP(AZ46,$C$6:$F$1899,4,0)="二年一次",IF(IFERROR(VLOOKUP(AZ46,AU$5:AU$1899,1,0),"")=AZ46,"前一年申請有案","核符"),IF(VLOOKUP(AZ46,$C$6:$F$1899,4,0)="三年一次",IF(IFERROR(VLOOKUP(AZ46,AU$5:AU$1899,1,0),"")&IFERROR(VLOOKUP(AZ46,AP$5:AP$1899,1,0),"")=AZ46,"前二年申請有案","核符")))))) -> 
A47: 42 | E47: =IF(C47="","",$Q$4-LEFT(D47,2)-1) ->  | H47: =IF(G47="","",IFERROR(G$4-LEFT(VLOOKUP(G47,$C$6:$D$1899,2,0),2)-1,"未建檔")) ->  | M47: =IF(L47="","",IFERROR(L$4-LEFT(VLOOKUP(L47,$C$6:$D$1899,2,0),2)-1,"未建檔")) ->  | R47: =IF(Q47="","",IFERROR(Q$4-LEFT(VLOOKUP(Q47,$C$6:$D$1899,2,0),2)-1,"未建檔")) ->  | T47: =IF(Q47="","",IF(VLOOKUP(Q47,$C$6:$F$1899,4,0)="未符資格","未符資格",IF(VLOOKUP(Q47,$C$6:$F$1899,4,0)="一年一次","核符",IF(VLOOKUP(Q47,$C$6:$F$1899,4,0)="二年一次",IF(IFERROR(VLOOKUP(Q47,L$5:L$1899,1,0),"")=Q47,"前一年申請有案","核符"),IF(VLOOKUP(Q47,$C$6:$F$1899,4,0)="三年一次",IF(IFERROR(VLOOKUP(Q47,L$5:L$1899,1,0),"")&IFERROR(VLOOKUP(Q47,G$5:G$1899,1,0),"")=Q47,"前二年申請有案","核符")))))) ->  | W47: =IF(V47="","",IFERROR(V$4-LEFT(VLOOKUP(V47,$C$6:$D$1899,2,0),2)-1,"未建檔")) ->  | Y47: =IF(V47="","",IF(VLOOKUP(V47,$C$6:$F$1899,4,0)="未符資格","未符資格",IF(VLOOKUP(V47,$C$6:$F$1899,4,0)="一年一次","核符",IF(VLOOKUP(V47,$C$6:$F$1899,4,0)="二年一次",IF(IFERROR(VLOOKUP(V47,Q$5:Q$1899,1,0),"")=V47,"前一年申請有案","核符"),IF(VLOOKUP(V47,$C$6:$F$1899,4,0)="三年一次",IF(IFERROR(VLOOKUP(V47,Q$5:Q$1899,1,0),"")&IFERROR(VLOOKUP(V47,L$5:L$1899,1,0),"")=V47,"前二年申請有案","核符")))))) ->  | AB47: =IF(AA47="","",IFERROR(AA$4-LEFT(VLOOKUP(AA47,$C$6:$D$1899,2,0),2)-1,"未建檔")) ->  | AD47: =IF(AA47="","",IF(VLOOKUP(AA47,$C$6:$F$1899,4,0)="未符資格","未符資格",IF(VLOOKUP(AA47,$C$6:$F$1899,4,0)="一年一次","核符",IF(VLOOKUP(AA47,$C$6:$F$1899,4,0)="二年一次",IF(IFERROR(VLOOKUP(AA47,V$5:V$1899,1,0),"")=AA47,"前一年申請有案","核符"),IF(VLOOKUP(AA47,$C$6:$F$1899,4,0)="三年一次",IF(IFERROR(VLOOKUP(AA47,V$5:V$1899,1,0),"")&IFERROR(VLOOKUP(AA47,Q$5:Q$1899,1,0),"")=AA47,"前二年申請有案","核符")))))) ->  | AG47: =IF(AF47="","",IFERROR(AF$4-LEFT(VLOOKUP(AF47,$C$6:$D$1899,2,0),2)-1,"未建檔")) ->  | AI47: =IF(AF47="","",IF(VLOOKUP(AF47,$C$6:$F$1899,4,0)="未符資格","未符資格",IF(VLOOKUP(AF47,$C$6:$F$1899,4,0)="一年一次","核符",IF(VLOOKUP(AF47,$C$6:$F$1899,4,0)="二年一次",IF(IFERROR(VLOOKUP(AF47,AA$5:AA$1899,1,0),"")=AF47,"前一年申請有案","核符"),IF(VLOOKUP(AF47,$C$6:$F$1899,4,0)="三年一次",IF(IFERROR(VLOOKUP(AF47,AA$5:AA$1899,1,0),"")&IFERROR(VLOOKUP(AF47,V$5:V$1899,1,0),"")=AF47,"前二年申請有案","核符")))))) ->  | AL47: =IF(AK47="","",IFERROR(AK$4-LEFT(VLOOKUP(AK47,$C$6:$D$1899,2,0),2)-1,"未建檔")) ->  | AN47: =IF(AK47="","",IF(VLOOKUP(AK47,$C$6:$F$1899,4,0)="未符資格","未符資格",IF(VLOOKUP(AK47,$C$6:$F$1899,4,0)="一年一次","核符",IF(VLOOKUP(AK47,$C$6:$F$1899,4,0)="二年一次",IF(IFERROR(VLOOKUP(AK47,AF$5:AF$1899,1,0),"")=AK47,"前一年申請有案","核符"),IF(VLOOKUP(AK47,$C$6:$F$1899,4,0)="三年一次",IF(IFERROR(VLOOKUP(AK47,AF$5:AF$1899,1,0),"")&IFERROR(VLOOKUP(AK47,AA$5:AA$1899,1,0),"")=AK47,"前二年申請有案","核符")))))) ->  | AQ47: =IF(AP47="","",IFERROR(AP$4-LEFT(VLOOKUP(AP47,$C$6:$D$1899,2,0),2)-1,"未建檔")) ->  | AS47: =IF(AP47="","",IF(VLOOKUP(AP47,$C$6:$F$1899,4,0)="未符資格","未符資格",IF(VLOOKUP(AP47,$C$6:$F$1899,4,0)="一年一次","核符",IF(VLOOKUP(AP47,$C$6:$F$1899,4,0)="二年一次",IF(IFERROR(VLOOKUP(AP47,AK$5:AK$1899,1,0),"")=AP47,"前一年申請有案","核符"),IF(VLOOKUP(AP47,$C$6:$F$1899,4,0)="三年一次",IF(IFERROR(VLOOKUP(AP47,AK$5:AK$1899,1,0),"")&IFERROR(VLOOKUP(AP47,AF$5:AF$1899,1,0),"")=AP47,"前二年申請有案","核符")))))) ->  | AV47: =IF(AU47="","",IFERROR(AU$4-LEFT(VLOOKUP(AU47,$C$6:$D$1899,2,0),2)-1,"未建檔")) ->  | AX47: =IF(AU47="","",IF(VLOOKUP(AU47,$C$6:$F$1899,4,0)="未符資格","未符資格",IF(VLOOKUP(AU47,$C$6:$F$1899,4,0)="一年一次","核符",IF(VLOOKUP(AU47,$C$6:$F$1899,4,0)="二年一次",IF(IFERROR(VLOOKUP(AU47,AP$5:AP$1899,1,0),"")=AU47,"前一年申請有案","核符"),IF(VLOOKUP(AU47,$C$6:$F$1899,4,0)="三年一次",IF(IFERROR(VLOOKUP(AU47,AP$5:AP$1899,1,0),"")&IFERROR(VLOOKUP(AU47,AK$5:AK$1899,1,0),"")=AU47,"前二年申請有案","核符")))))) ->  | BA47: =IF(AZ47="","",IFERROR(AZ$4-LEFT(VLOOKUP(AZ47,$C$6:$D$1899,2,0),2)-1,"未建檔")) ->  | BC47: =IF(AZ47="","",IF(VLOOKUP(AZ47,$C$6:$F$1899,4,0)="未符資格","未符資格",IF(VLOOKUP(AZ47,$C$6:$F$1899,4,0)="一年一次","核符",IF(VLOOKUP(AZ47,$C$6:$F$1899,4,0)="二年一次",IF(IFERROR(VLOOKUP(AZ47,AU$5:AU$1899,1,0),"")=AZ47,"前一年申請有案","核符"),IF(VLOOKUP(AZ47,$C$6:$F$1899,4,0)="三年一次",IF(IFERROR(VLOOKUP(AZ47,AU$5:AU$1899,1,0),"")&IFERROR(VLOOKUP(AZ47,AP$5:AP$1899,1,0),"")=AZ47,"前二年申請有案","核符")))))) -> 
A48: 43 | E48: =IF(C48="","",$Q$4-LEFT(D48,2)-1) ->  | H48: =IF(G48="","",IFERROR(G$4-LEFT(VLOOKUP(G48,$C$6:$D$1899,2,0),2)-1,"未建檔")) ->  | M48: =IF(L48="","",IFERROR(L$4-LEFT(VLOOKUP(L48,$C$6:$D$1899,2,0),2)-1,"未建檔")) ->  | R48: =IF(Q48="","",IFERROR(Q$4-LEFT(VLOOKUP(Q48,$C$6:$D$1899,2,0),2)-1,"未建檔")) ->  | T48: =IF(Q48="","",IF(VLOOKUP(Q48,$C$6:$F$1899,4,0)="未符資格","未符資格",IF(VLOOKUP(Q48,$C$6:$F$1899,4,0)="一年一次","核符",IF(VLOOKUP(Q48,$C$6:$F$1899,4,0)="二年一次",IF(IFERROR(VLOOKUP(Q48,L$5:L$1899,1,0),"")=Q48,"前一年申請有案","核符"),IF(VLOOKUP(Q48,$C$6:$F$1899,4,0)="三年一次",IF(IFERROR(VLOOKUP(Q48,L$5:L$1899,1,0),"")&IFERROR(VLOOKUP(Q48,G$5:G$1899,1,0),"")=Q48,"前二年申請有案","核符")))))) ->  | W48: =IF(V48="","",IFERROR(V$4-LEFT(VLOOKUP(V48,$C$6:$D$1899,2,0),2)-1,"未建檔")) ->  | Y48: =IF(V48="","",IF(VLOOKUP(V48,$C$6:$F$1899,4,0)="未符資格","未符資格",IF(VLOOKUP(V48,$C$6:$F$1899,4,0)="一年一次","核符",IF(VLOOKUP(V48,$C$6:$F$1899,4,0)="二年一次",IF(IFERROR(VLOOKUP(V48,Q$5:Q$1899,1,0),"")=V48,"前一年申請有案","核符"),IF(VLOOKUP(V48,$C$6:$F$1899,4,0)="三年一次",IF(IFERROR(VLOOKUP(V48,Q$5:Q$1899,1,0),"")&IFERROR(VLOOKUP(V48,L$5:L$1899,1,0),"")=V48,"前二年申請有案","核符")))))) ->  | AB48: =IF(AA48="","",IFERROR(AA$4-LEFT(VLOOKUP(AA48,$C$6:$D$1899,2,0),2)-1,"未建檔")) ->  | AD48: =IF(AA48="","",IF(VLOOKUP(AA48,$C$6:$F$1899,4,0)="未符資格","未符資格",IF(VLOOKUP(AA48,$C$6:$F$1899,4,0)="一年一次","核符",IF(VLOOKUP(AA48,$C$6:$F$1899,4,0)="二年一次",IF(IFERROR(VLOOKUP(AA48,V$5:V$1899,1,0),"")=AA48,"前一年申請有案","核符"),IF(VLOOKUP(AA48,$C$6:$F$1899,4,0)="三年一次",IF(IFERROR(VLOOKUP(AA48,V$5:V$1899,1,0),"")&IFERROR(VLOOKUP(AA48,Q$5:Q$1899,1,0),"")=AA48,"前二年申請有案","核符")))))) ->  | AG48: =IF(AF48="","",IFERROR(AF$4-LEFT(VLOOKUP(AF48,$C$6:$D$1899,2,0),2)-1,"未建檔")) ->  | AI48: =IF(AF48="","",IF(VLOOKUP(AF48,$C$6:$F$1899,4,0)="未符資格","未符資格",IF(VLOOKUP(AF48,$C$6:$F$1899,4,0)="一年一次","核符",IF(VLOOKUP(AF48,$C$6:$F$1899,4,0)="二年一次",IF(IFERROR(VLOOKUP(AF48,AA$5:AA$1899,1,0),"")=AF48,"前一年申請有案","核符"),IF(VLOOKUP(AF48,$C$6:$F$1899,4,0)="三年一次",IF(IFERROR(VLOOKUP(AF48,AA$5:AA$1899,1,0),"")&IFERROR(VLOOKUP(AF48,V$5:V$1899,1,0),"")=AF48,"前二年申請有案","核符")))))) ->  | AL48: =IF(AK48="","",IFERROR(AK$4-LEFT(VLOOKUP(AK48,$C$6:$D$1899,2,0),2)-1,"未建檔")) ->  | AN48: =IF(AK48="","",IF(VLOOKUP(AK48,$C$6:$F$1899,4,0)="未符資格","未符資格",IF(VLOOKUP(AK48,$C$6:$F$1899,4,0)="一年一次","核符",IF(VLOOKUP(AK48,$C$6:$F$1899,4,0)="二年一次",IF(IFERROR(VLOOKUP(AK48,AF$5:AF$1899,1,0),"")=AK48,"前一年申請有案","核符"),IF(VLOOKUP(AK48,$C$6:$F$1899,4,0)="三年一次",IF(IFERROR(VLOOKUP(AK48,AF$5:AF$1899,1,0),"")&IFERROR(VLOOKUP(AK48,AA$5:AA$1899,1,0),"")=AK48,"前二年申請有案","核符")))))) ->  | AQ48: =IF(AP48="","",IFERROR(AP$4-LEFT(VLOOKUP(AP48,$C$6:$D$1899,2,0),2)-1,"未建檔")) ->  | AS48: =IF(AP48="","",IF(VLOOKUP(AP48,$C$6:$F$1899,4,0)="未符資格","未符資格",IF(VLOOKUP(AP48,$C$6:$F$1899,4,0)="一年一次","核符",IF(VLOOKUP(AP48,$C$6:$F$1899,4,0)="二年一次",IF(IFERROR(VLOOKUP(AP48,AK$5:AK$1899,1,0),"")=AP48,"前一年申請有案","核符"),IF(VLOOKUP(AP48,$C$6:$F$1899,4,0)="三年一次",IF(IFERROR(VLOOKUP(AP48,AK$5:AK$1899,1,0),"")&IFERROR(VLOOKUP(AP48,AF$5:AF$1899,1,0),"")=AP48,"前二年申請有案","核符")))))) ->  | AV48: =IF(AU48="","",IFERROR(AU$4-LEFT(VLOOKUP(AU48,$C$6:$D$1899,2,0),2)-1,"未建檔")) ->  | AX48: =IF(AU48="","",IF(VLOOKUP(AU48,$C$6:$F$1899,4,0)="未符資格","未符資格",IF(VLOOKUP(AU48,$C$6:$F$1899,4,0)="一年一次","核符",IF(VLOOKUP(AU48,$C$6:$F$1899,4,0)="二年一次",IF(IFERROR(VLOOKUP(AU48,AP$5:AP$1899,1,0),"")=AU48,"前一年申請有案","核符"),IF(VLOOKUP(AU48,$C$6:$F$1899,4,0)="三年一次",IF(IFERROR(VLOOKUP(AU48,AP$5:AP$1899,1,0),"")&IFERROR(VLOOKUP(AU48,AK$5:AK$1899,1,0),"")=AU48,"前二年申請有案","核符")))))) ->  | BA48: =IF(AZ48="","",IFERROR(AZ$4-LEFT(VLOOKUP(AZ48,$C$6:$D$1899,2,0),2)-1,"未建檔")) ->  | BC48: =IF(AZ48="","",IF(VLOOKUP(AZ48,$C$6:$F$1899,4,0)="未符資格","未符資格",IF(VLOOKUP(AZ48,$C$6:$F$1899,4,0)="一年一次","核符",IF(VLOOKUP(AZ48,$C$6:$F$1899,4,0)="二年一次",IF(IFERROR(VLOOKUP(AZ48,AU$5:AU$1899,1,0),"")=AZ48,"前一年申請有案","核符"),IF(VLOOKUP(AZ48,$C$6:$F$1899,4,0)="三年一次",IF(IFERROR(VLOOKUP(AZ48,AU$5:AU$1899,1,0),"")&IFERROR(VLOOKUP(AZ48,AP$5:AP$1899,1,0),"")=AZ48,"前二年申請有案","核符")))))) -> 
A49: 44 | E49: =IF(C49="","",$Q$4-LEFT(D49,2)-1) ->  | H49: =IF(G49="","",IFERROR(G$4-LEFT(VLOOKUP(G49,$C$6:$D$1899,2,0),2)-1,"未建檔")) ->  | M49: =IF(L49="","",IFERROR(L$4-LEFT(VLOOKUP(L49,$C$6:$D$1899,2,0),2)-1,"未建檔")) ->  | R49: =IF(Q49="","",IFERROR(Q$4-LEFT(VLOOKUP(Q49,$C$6:$D$1899,2,0),2)-1,"未建檔")) ->  | T49: =IF(Q49="","",IF(VLOOKUP(Q49,$C$6:$F$1899,4,0)="未符資格","未符資格",IF(VLOOKUP(Q49,$C$6:$F$1899,4,0)="一年一次","核符",IF(VLOOKUP(Q49,$C$6:$F$1899,4,0)="二年一次",IF(IFERROR(VLOOKUP(Q49,L$5:L$1899,1,0),"")=Q49,"前一年申請有案","核符"),IF(VLOOKUP(Q49,$C$6:$F$1899,4,0)="三年一次",IF(IFERROR(VLOOKUP(Q49,L$5:L$1899,1,0),"")&IFERROR(VLOOKUP(Q49,G$5:G$1899,1,0),"")=Q49,"前二年申請有案","核符")))))) ->  | W49: =IF(V49="","",IFERROR(V$4-LEFT(VLOOKUP(V49,$C$6:$D$1899,2,0),2)-1,"未建檔")) ->  | Y49: =IF(V49="","",IF(VLOOKUP(V49,$C$6:$F$1899,4,0)="未符資格","未符資格",IF(VLOOKUP(V49,$C$6:$F$1899,4,0)="一年一次","核符",IF(VLOOKUP(V49,$C$6:$F$1899,4,0)="二年一次",IF(IFERROR(VLOOKUP(V49,Q$5:Q$1899,1,0),"")=V49,"前一年申請有案","核符"),IF(VLOOKUP(V49,$C$6:$F$1899,4,0)="三年一次",IF(IFERROR(VLOOKUP(V49,Q$5:Q$1899,1,0),"")&IFERROR(VLOOKUP(V49,L$5:L$1899,1,0),"")=V49,"前二年申請有案","核符")))))) ->  | AB49: =IF(AA49="","",IFERROR(AA$4-LEFT(VLOOKUP(AA49,$C$6:$D$1899,2,0),2)-1,"未建檔")) ->  | AD49: =IF(AA49="","",IF(VLOOKUP(AA49,$C$6:$F$1899,4,0)="未符資格","未符資格",IF(VLOOKUP(AA49,$C$6:$F$1899,4,0)="一年一次","核符",IF(VLOOKUP(AA49,$C$6:$F$1899,4,0)="二年一次",IF(IFERROR(VLOOKUP(AA49,V$5:V$1899,1,0),"")=AA49,"前一年申請有案","核符"),IF(VLOOKUP(AA49,$C$6:$F$1899,4,0)="三年一次",IF(IFERROR(VLOOKUP(AA49,V$5:V$1899,1,0),"")&IFERROR(VLOOKUP(AA49,Q$5:Q$1899,1,0),"")=AA49,"前二年申請有案","核符")))))) ->  | AG49: =IF(AF49="","",IFERROR(AF$4-LEFT(VLOOKUP(AF49,$C$6:$D$1899,2,0),2)-1,"未建檔")) ->  | AI49: =IF(AF49="","",IF(VLOOKUP(AF49,$C$6:$F$1899,4,0)="未符資格","未符資格",IF(VLOOKUP(AF49,$C$6:$F$1899,4,0)="一年一次","核符",IF(VLOOKUP(AF49,$C$6:$F$1899,4,0)="二年一次",IF(IFERROR(VLOOKUP(AF49,AA$5:AA$1899,1,0),"")=AF49,"前一年申請有案","核符"),IF(VLOOKUP(AF49,$C$6:$F$1899,4,0)="三年一次",IF(IFERROR(VLOOKUP(AF49,AA$5:AA$1899,1,0),"")&IFERROR(VLOOKUP(AF49,V$5:V$1899,1,0),"")=AF49,"前二年申請有案","核符")))))) ->  | AL49: =IF(AK49="","",IFERROR(AK$4-LEFT(VLOOKUP(AK49,$C$6:$D$1899,2,0),2)-1,"未建檔")) ->  | AN49: =IF(AK49="","",IF(VLOOKUP(AK49,$C$6:$F$1899,4,0)="未符資格","未符資格",IF(VLOOKUP(AK49,$C$6:$F$1899,4,0)="一年一次","核符",IF(VLOOKUP(AK49,$C$6:$F$1899,4,0)="二年一次",IF(IFERROR(VLOOKUP(AK49,AF$5:AF$1899,1,0),"")=AK49,"前一年申請有案","核符"),IF(VLOOKUP(AK49,$C$6:$F$1899,4,0)="三年一次",IF(IFERROR(VLOOKUP(AK49,AF$5:AF$1899,1,0),"")&IFERROR(VLOOKUP(AK49,AA$5:AA$1899,1,0),"")=AK49,"前二年申請有案","核符")))))) ->  | AQ49: =IF(AP49="","",IFERROR(AP$4-LEFT(VLOOKUP(AP49,$C$6:$D$1899,2,0),2)-1,"未建檔")) ->  | AS49: =IF(AP49="","",IF(VLOOKUP(AP49,$C$6:$F$1899,4,0)="未符資格","未符資格",IF(VLOOKUP(AP49,$C$6:$F$1899,4,0)="一年一次","核符",IF(VLOOKUP(AP49,$C$6:$F$1899,4,0)="二年一次",IF(IFERROR(VLOOKUP(AP49,AK$5:AK$1899,1,0),"")=AP49,"前一年申請有案","核符"),IF(VLOOKUP(AP49,$C$6:$F$1899,4,0)="三年一次",IF(IFERROR(VLOOKUP(AP49,AK$5:AK$1899,1,0),"")&IFERROR(VLOOKUP(AP49,AF$5:AF$1899,1,0),"")=AP49,"前二年申請有案","核符")))))) ->  | AV49: =IF(AU49="","",IFERROR(AU$4-LEFT(VLOOKUP(AU49,$C$6:$D$1899,2,0),2)-1,"未建檔")) ->  | AX49: =IF(AU49="","",IF(VLOOKUP(AU49,$C$6:$F$1899,4,0)="未符資格","未符資格",IF(VLOOKUP(AU49,$C$6:$F$1899,4,0)="一年一次","核符",IF(VLOOKUP(AU49,$C$6:$F$1899,4,0)="二年一次",IF(IFERROR(VLOOKUP(AU49,AP$5:AP$1899,1,0),"")=AU49,"前一年申請有案","核符"),IF(VLOOKUP(AU49,$C$6:$F$1899,4,0)="三年一次",IF(IFERROR(VLOOKUP(AU49,AP$5:AP$1899,1,0),"")&IFERROR(VLOOKUP(AU49,AK$5:AK$1899,1,0),"")=AU49,"前二年申請有案","核符")))))) ->  | BA49: =IF(AZ49="","",IFERROR(AZ$4-LEFT(VLOOKUP(AZ49,$C$6:$D$1899,2,0),2)-1,"未建檔")) ->  | BC49: =IF(AZ49="","",IF(VLOOKUP(AZ49,$C$6:$F$1899,4,0)="未符資格","未符資格",IF(VLOOKUP(AZ49,$C$6:$F$1899,4,0)="一年一次","核符",IF(VLOOKUP(AZ49,$C$6:$F$1899,4,0)="二年一次",IF(IFERROR(VLOOKUP(AZ49,AU$5:AU$1899,1,0),"")=AZ49,"前一年申請有案","核符"),IF(VLOOKUP(AZ49,$C$6:$F$1899,4,0)="三年一次",IF(IFERROR(VLOOKUP(AZ49,AU$5:AU$1899,1,0),"")&IFERROR(VLOOKUP(AZ49,AP$5:AP$1899,1,0),"")=AZ49,"前二年申請有案","核符")))))) -> 
A50: 45 | E50: =IF(C50="","",$Q$4-LEFT(D50,2)-1) ->  | H50: =IF(G50="","",IFERROR(G$4-LEFT(VLOOKUP(G50,$C$6:$D$1899,2,0),2)-1,"未建檔")) ->  | M50: =IF(L50="","",IFERROR(L$4-LEFT(VLOOKUP(L50,$C$6:$D$1899,2,0),2)-1,"未建檔")) ->  | R50: =IF(Q50="","",IFERROR(Q$4-LEFT(VLOOKUP(Q50,$C$6:$D$1899,2,0),2)-1,"未建檔")) ->  | T50: =IF(Q50="","",IF(VLOOKUP(Q50,$C$6:$F$1899,4,0)="未符資格","未符資格",IF(VLOOKUP(Q50,$C$6:$F$1899,4,0)="一年一次","核符",IF(VLOOKUP(Q50,$C$6:$F$1899,4,0)="二年一次",IF(IFERROR(VLOOKUP(Q50,L$5:L$1899,1,0),"")=Q50,"前一年申請有案","核符"),IF(VLOOKUP(Q50,$C$6:$F$1899,4,0)="三年一次",IF(IFERROR(VLOOKUP(Q50,L$5:L$1899,1,0),"")&IFERROR(VLOOKUP(Q50,G$5:G$1899,1,0),"")=Q50,"前二年申請有案","核符")))))) ->  | W50: =IF(V50="","",IFERROR(V$4-LEFT(VLOOKUP(V50,$C$6:$D$1899,2,0),2)-1,"未建檔")) ->  | Y50: =IF(V50="","",IF(VLOOKUP(V50,$C$6:$F$1899,4,0)="未符資格","未符資格",IF(VLOOKUP(V50,$C$6:$F$1899,4,0)="一年一次","核符",IF(VLOOKUP(V50,$C$6:$F$1899,4,0)="二年一次",IF(IFERROR(VLOOKUP(V50,Q$5:Q$1899,1,0),"")=V50,"前一年申請有案","核符"),IF(VLOOKUP(V50,$C$6:$F$1899,4,0)="三年一次",IF(IFERROR(VLOOKUP(V50,Q$5:Q$1899,1,0),"")&IFERROR(VLOOKUP(V50,L$5:L$1899,1,0),"")=V50,"前二年申請有案","核符")))))) ->  | AB50: =IF(AA50="","",IFERROR(AA$4-LEFT(VLOOKUP(AA50,$C$6:$D$1899,2,0),2)-1,"未建檔")) ->  | AD50: =IF(AA50="","",IF(VLOOKUP(AA50,$C$6:$F$1899,4,0)="未符資格","未符資格",IF(VLOOKUP(AA50,$C$6:$F$1899,4,0)="一年一次","核符",IF(VLOOKUP(AA50,$C$6:$F$1899,4,0)="二年一次",IF(IFERROR(VLOOKUP(AA50,V$5:V$1899,1,0),"")=AA50,"前一年申請有案","核符"),IF(VLOOKUP(AA50,$C$6:$F$1899,4,0)="三年一次",IF(IFERROR(VLOOKUP(AA50,V$5:V$1899,1,0),"")&IFERROR(VLOOKUP(AA50,Q$5:Q$1899,1,0),"")=AA50,"前二年申請有案","核符")))))) ->  | AG50: =IF(AF50="","",IFERROR(AF$4-LEFT(VLOOKUP(AF50,$C$6:$D$1899,2,0),2)-1,"未建檔")) ->  | AI50: =IF(AF50="","",IF(VLOOKUP(AF50,$C$6:$F$1899,4,0)="未符資格","未符資格",IF(VLOOKUP(AF50,$C$6:$F$1899,4,0)="一年一次","核符",IF(VLOOKUP(AF50,$C$6:$F$1899,4,0)="二年一次",IF(IFERROR(VLOOKUP(AF50,AA$5:AA$1899,1,0),"")=AF50,"前一年申請有案","核符"),IF(VLOOKUP(AF50,$C$6:$F$1899,4,0)="三年一次",IF(IFERROR(VLOOKUP(AF50,AA$5:AA$1899,1,0),"")&IFERROR(VLOOKUP(AF50,V$5:V$1899,1,0),"")=AF50,"前二年申請有案","核符")))))) ->  | AL50: =IF(AK50="","",IFERROR(AK$4-LEFT(VLOOKUP(AK50,$C$6:$D$1899,2,0),2)-1,"未建檔")) ->  | AN50: =IF(AK50="","",IF(VLOOKUP(AK50,$C$6:$F$1899,4,0)="未符資格","未符資格",IF(VLOOKUP(AK50,$C$6:$F$1899,4,0)="一年一次","核符",IF(VLOOKUP(AK50,$C$6:$F$1899,4,0)="二年一次",IF(IFERROR(VLOOKUP(AK50,AF$5:AF$1899,1,0),"")=AK50,"前一年申請有案","核符"),IF(VLOOKUP(AK50,$C$6:$F$1899,4,0)="三年一次",IF(IFERROR(VLOOKUP(AK50,AF$5:AF$1899,1,0),"")&IFERROR(VLOOKUP(AK50,AA$5:AA$1899,1,0),"")=AK50,"前二年申請有案","核符")))))) ->  | AQ50: =IF(AP50="","",IFERROR(AP$4-LEFT(VLOOKUP(AP50,$C$6:$D$1899,2,0),2)-1,"未建檔")) ->  | AS50: =IF(AP50="","",IF(VLOOKUP(AP50,$C$6:$F$1899,4,0)="未符資格","未符資格",IF(VLOOKUP(AP50,$C$6:$F$1899,4,0)="一年一次","核符",IF(VLOOKUP(AP50,$C$6:$F$1899,4,0)="二年一次",IF(IFERROR(VLOOKUP(AP50,AK$5:AK$1899,1,0),"")=AP50,"前一年申請有案","核符"),IF(VLOOKUP(AP50,$C$6:$F$1899,4,0)="三年一次",IF(IFERROR(VLOOKUP(AP50,AK$5:AK$1899,1,0),"")&IFERROR(VLOOKUP(AP50,AF$5:AF$1899,1,0),"")=AP50,"前二年申請有案","核符")))))) ->  | AV50: =IF(AU50="","",IFERROR(AU$4-LEFT(VLOOKUP(AU50,$C$6:$D$1899,2,0),2)-1,"未建檔")) ->  | AX50: =IF(AU50="","",IF(VLOOKUP(AU50,$C$6:$F$1899,4,0)="未符資格","未符資格",IF(VLOOKUP(AU50,$C$6:$F$1899,4,0)="一年一次","核符",IF(VLOOKUP(AU50,$C$6:$F$1899,4,0)="二年一次",IF(IFERROR(VLOOKUP(AU50,AP$5:AP$1899,1,0),"")=AU50,"前一年申請有案","核符"),IF(VLOOKUP(AU50,$C$6:$F$1899,4,0)="三年一次",IF(IFERROR(VLOOKUP(AU50,AP$5:AP$1899,1,0),"")&IFERROR(VLOOKUP(AU50,AK$5:AK$1899,1,0),"")=AU50,"前二年申請有案","核符")))))) ->  | BA50: =IF(AZ50="","",IFERROR(AZ$4-LEFT(VLOOKUP(AZ50,$C$6:$D$1899,2,0),2)-1,"未建檔")) ->  | BC50: =IF(AZ50="","",IF(VLOOKUP(AZ50,$C$6:$F$1899,4,0)="未符資格","未符資格",IF(VLOOKUP(AZ50,$C$6:$F$1899,4,0)="一年一次","核符",IF(VLOOKUP(AZ50,$C$6:$F$1899,4,0)="二年一次",IF(IFERROR(VLOOKUP(AZ50,AU$5:AU$1899,1,0),"")=AZ50,"前一年申請有案","核符"),IF(VLOOKUP(AZ50,$C$6:$F$1899,4,0)="三年一次",IF(IFERROR(VLOOKUP(AZ50,AU$5:AU$1899,1,0),"")&IFERROR(VLOOKUP(AZ50,AP$5:AP$1899,1,0),"")=AZ50,"前二年申請有案","核符")))))) -> 
A51: 46 | E51: =IF(C51="","",$Q$4-LEFT(D51,2)-1) ->  | H51: =IF(G51="","",IFERROR(G$4-LEFT(VLOOKUP(G51,$C$6:$D$1899,2,0),2)-1,"未建檔")) ->  | M51: =IF(L51="","",IFERROR(L$4-LEFT(VLOOKUP(L51,$C$6:$D$1899,2,0),2)-1,"未建檔")) ->  | R51: =IF(Q51="","",IFERROR(Q$4-LEFT(VLOOKUP(Q51,$C$6:$D$1899,2,0),2)-1,"未建檔")) ->  | T51: =IF(Q51="","",IF(VLOOKUP(Q51,$C$6:$F$1899,4,0)="未符資格","未符資格",IF(VLOOKUP(Q51,$C$6:$F$1899,4,0)="一年一次","核符",IF(VLOOKUP(Q51,$C$6:$F$1899,4,0)="二年一次",IF(IFERROR(VLOOKUP(Q51,L$5:L$1899,1,0),"")=Q51,"前一年申請有案","核符"),IF(VLOOKUP(Q51,$C$6:$F$1899,4,0)="三年一次",IF(IFERROR(VLOOKUP(Q51,L$5:L$1899,1,0),"")&IFERROR(VLOOKUP(Q51,G$5:G$1899,1,0),"")=Q51,"前二年申請有案","核符")))))) ->  | W51: =IF(V51="","",IFERROR(V$4-LEFT(VLOOKUP(V51,$C$6:$D$1899,2,0),2)-1,"未建檔")) ->  | Y51: =IF(V51="","",IF(VLOOKUP(V51,$C$6:$F$1899,4,0)="未符資格","未符資格",IF(VLOOKUP(V51,$C$6:$F$1899,4,0)="一年一次","核符",IF(VLOOKUP(V51,$C$6:$F$1899,4,0)="二年一次",IF(IFERROR(VLOOKUP(V51,Q$5:Q$1899,1,0),"")=V51,"前一年申請有案","核符"),IF(VLOOKUP(V51,$C$6:$F$1899,4,0)="三年一次",IF(IFERROR(VLOOKUP(V51,Q$5:Q$1899,1,0),"")&IFERROR(VLOOKUP(V51,L$5:L$1899,1,0),"")=V51,"前二年申請有案","核符")))))) ->  | AB51: =IF(AA51="","",IFERROR(AA$4-LEFT(VLOOKUP(AA51,$C$6:$D$1899,2,0),2)-1,"未建檔")) ->  | AD51: =IF(AA51="","",IF(VLOOKUP(AA51,$C$6:$F$1899,4,0)="未符資格","未符資格",IF(VLOOKUP(AA51,$C$6:$F$1899,4,0)="一年一次","核符",IF(VLOOKUP(AA51,$C$6:$F$1899,4,0)="二年一次",IF(IFERROR(VLOOKUP(AA51,V$5:V$1899,1,0),"")=AA51,"前一年申請有案","核符"),IF(VLOOKUP(AA51,$C$6:$F$1899,4,0)="三年一次",IF(IFERROR(VLOOKUP(AA51,V$5:V$1899,1,0),"")&IFERROR(VLOOKUP(AA51,Q$5:Q$1899,1,0),"")=AA51,"前二年申請有案","核符")))))) ->  | AG51: =IF(AF51="","",IFERROR(AF$4-LEFT(VLOOKUP(AF51,$C$6:$D$1899,2,0),2)-1,"未建檔")) ->  | AI51: =IF(AF51="","",IF(VLOOKUP(AF51,$C$6:$F$1899,4,0)="未符資格","未符資格",IF(VLOOKUP(AF51,$C$6:$F$1899,4,0)="一年一次","核符",IF(VLOOKUP(AF51,$C$6:$F$1899,4,0)="二年一次",IF(IFERROR(VLOOKUP(AF51,AA$5:AA$1899,1,0),"")=AF51,"前一年申請有案","核符"),IF(VLOOKUP(AF51,$C$6:$F$1899,4,0)="三年一次",IF(IFERROR(VLOOKUP(AF51,AA$5:AA$1899,1,0),"")&IFERROR(VLOOKUP(AF51,V$5:V$1899,1,0),"")=AF51,"前二年申請有案","核符")))))) ->  | AL51: =IF(AK51="","",IFERROR(AK$4-LEFT(VLOOKUP(AK51,$C$6:$D$1899,2,0),2)-1,"未建檔")) ->  | AN51: =IF(AK51="","",IF(VLOOKUP(AK51,$C$6:$F$1899,4,0)="未符資格","未符資格",IF(VLOOKUP(AK51,$C$6:$F$1899,4,0)="一年一次","核符",IF(VLOOKUP(AK51,$C$6:$F$1899,4,0)="二年一次",IF(IFERROR(VLOOKUP(AK51,AF$5:AF$1899,1,0),"")=AK51,"前一年申請有案","核符"),IF(VLOOKUP(AK51,$C$6:$F$1899,4,0)="三年一次",IF(IFERROR(VLOOKUP(AK51,AF$5:AF$1899,1,0),"")&IFERROR(VLOOKUP(AK51,AA$5:AA$1899,1,0),"")=AK51,"前二年申請有案","核符")))))) ->  | AQ51: =IF(AP51="","",IFERROR(AP$4-LEFT(VLOOKUP(AP51,$C$6:$D$1899,2,0),2)-1,"未建檔")) ->  | AS51: =IF(AP51="","",IF(VLOOKUP(AP51,$C$6:$F$1899,4,0)="未符資格","未符資格",IF(VLOOKUP(AP51,$C$6:$F$1899,4,0)="一年一次","核符",IF(VLOOKUP(AP51,$C$6:$F$1899,4,0)="二年一次",IF(IFERROR(VLOOKUP(AP51,AK$5:AK$1899,1,0),"")=AP51,"前一年申請有案","核符"),IF(VLOOKUP(AP51,$C$6:$F$1899,4,0)="三年一次",IF(IFERROR(VLOOKUP(AP51,AK$5:AK$1899,1,0),"")&IFERROR(VLOOKUP(AP51,AF$5:AF$1899,1,0),"")=AP51,"前二年申請有案","核符")))))) ->  | AV51: =IF(AU51="","",IFERROR(AU$4-LEFT(VLOOKUP(AU51,$C$6:$D$1899,2,0),2)-1,"未建檔")) ->  | AX51: =IF(AU51="","",IF(VLOOKUP(AU51,$C$6:$F$1899,4,0)="未符資格","未符資格",IF(VLOOKUP(AU51,$C$6:$F$1899,4,0)="一年一次","核符",IF(VLOOKUP(AU51,$C$6:$F$1899,4,0)="二年一次",IF(IFERROR(VLOOKUP(AU51,AP$5:AP$1899,1,0),"")=AU51,"前一年申請有案","核符"),IF(VLOOKUP(AU51,$C$6:$F$1899,4,0)="三年一次",IF(IFERROR(VLOOKUP(AU51,AP$5:AP$1899,1,0),"")&IFERROR(VLOOKUP(AU51,AK$5:AK$1899,1,0),"")=AU51,"前二年申請有案","核符")))))) ->  | BA51: =IF(AZ51="","",IFERROR(AZ$4-LEFT(VLOOKUP(AZ51,$C$6:$D$1899,2,0),2)-1,"未建檔")) ->  | BC51: =IF(AZ51="","",IF(VLOOKUP(AZ51,$C$6:$F$1899,4,0)="未符資格","未符資格",IF(VLOOKUP(AZ51,$C$6:$F$1899,4,0)="一年一次","核符",IF(VLOOKUP(AZ51,$C$6:$F$1899,4,0)="二年一次",IF(IFERROR(VLOOKUP(AZ51,AU$5:AU$1899,1,0),"")=AZ51,"前一年申請有案","核符"),IF(VLOOKUP(AZ51,$C$6:$F$1899,4,0)="三年一次",IF(IFERROR(VLOOKUP(AZ51,AU$5:AU$1899,1,0),"")&IFERROR(VLOOKUP(AZ51,AP$5:AP$1899,1,0),"")=AZ51,"前二年申請有案","核符")))))) -> 
A52: 47 | E52: =IF(C52="","",$Q$4-LEFT(D52,2)-1) ->  | H52: =IF(G52="","",IFERROR(G$4-LEFT(VLOOKUP(G52,$C$6:$D$1899,2,0),2)-1,"未建檔")) ->  | M52: =IF(L52="","",IFERROR(L$4-LEFT(VLOOKUP(L52,$C$6:$D$1899,2,0),2)-1,"未建檔")) ->  | R52: =IF(Q52="","",IFERROR(Q$4-LEFT(VLOOKUP(Q52,$C$6:$D$1899,2,0),2)-1,"未建檔")) ->  | T52: =IF(Q52="","",IF(VLOOKUP(Q52,$C$6:$F$1899,4,0)="未符資格","未符資格",IF(VLOOKUP(Q52,$C$6:$F$1899,4,0)="一年一次","核符",IF(VLOOKUP(Q52,$C$6:$F$1899,4,0)="二年一次",IF(IFERROR(VLOOKUP(Q52,L$5:L$1899,1,0),"")=Q52,"前一年申請有案","核符"),IF(VLOOKUP(Q52,$C$6:$F$1899,4,0)="三年一次",IF(IFERROR(VLOOKUP(Q52,L$5:L$1899,1,0),"")&IFERROR(VLOOKUP(Q52,G$5:G$1899,1,0),"")=Q52,"前二年申請有案","核符")))))) ->  | W52: =IF(V52="","",IFERROR(V$4-LEFT(VLOOKUP(V52,$C$6:$D$1899,2,0),2)-1,"未建檔")) ->  | Y52: =IF(V52="","",IF(VLOOKUP(V52,$C$6:$F$1899,4,0)="未符資格","未符資格",IF(VLOOKUP(V52,$C$6:$F$1899,4,0)="一年一次","核符",IF(VLOOKUP(V52,$C$6:$F$1899,4,0)="二年一次",IF(IFERROR(VLOOKUP(V52,Q$5:Q$1899,1,0),"")=V52,"前一年申請有案","核符"),IF(VLOOKUP(V52,$C$6:$F$1899,4,0)="三年一次",IF(IFERROR(VLOOKUP(V52,Q$5:Q$1899,1,0),"")&IFERROR(VLOOKUP(V52,L$5:L$1899,1,0),"")=V52,"前二年申請有案","核符")))))) ->  | AB52: =IF(AA52="","",IFERROR(AA$4-LEFT(VLOOKUP(AA52,$C$6:$D$1899,2,0),2)-1,"未建檔")) ->  | AD52: =IF(AA52="","",IF(VLOOKUP(AA52,$C$6:$F$1899,4,0)="未符資格","未符資格",IF(VLOOKUP(AA52,$C$6:$F$1899,4,0)="一年一次","核符",IF(VLOOKUP(AA52,$C$6:$F$1899,4,0)="二年一次",IF(IFERROR(VLOOKUP(AA52,V$5:V$1899,1,0),"")=AA52,"前一年申請有案","核符"),IF(VLOOKUP(AA52,$C$6:$F$1899,4,0)="三年一次",IF(IFERROR(VLOOKUP(AA52,V$5:V$1899,1,0),"")&IFERROR(VLOOKUP(AA52,Q$5:Q$1899,1,0),"")=AA52,"前二年申請有案","核符")))))) ->  | AG52: =IF(AF52="","",IFERROR(AF$4-LEFT(VLOOKUP(AF52,$C$6:$D$1899,2,0),2)-1,"未建檔")) ->  | AI52: =IF(AF52="","",IF(VLOOKUP(AF52,$C$6:$F$1899,4,0)="未符資格","未符資格",IF(VLOOKUP(AF52,$C$6:$F$1899,4,0)="一年一次","核符",IF(VLOOKUP(AF52,$C$6:$F$1899,4,0)="二年一次",IF(IFERROR(VLOOKUP(AF52,AA$5:AA$1899,1,0),"")=AF52,"前一年申請有案","核符"),IF(VLOOKUP(AF52,$C$6:$F$1899,4,0)="三年一次",IF(IFERROR(VLOOKUP(AF52,AA$5:AA$1899,1,0),"")&IFERROR(VLOOKUP(AF52,V$5:V$1899,1,0),"")=AF52,"前二年申請有案","核符")))))) ->  | AL52: =IF(AK52="","",IFERROR(AK$4-LEFT(VLOOKUP(AK52,$C$6:$D$1899,2,0),2)-1,"未建檔")) ->  | AN52: =IF(AK52="","",IF(VLOOKUP(AK52,$C$6:$F$1899,4,0)="未符資格","未符資格",IF(VLOOKUP(AK52,$C$6:$F$1899,4,0)="一年一次","核符",IF(VLOOKUP(AK52,$C$6:$F$1899,4,0)="二年一次",IF(IFERROR(VLOOKUP(AK52,AF$5:AF$1899,1,0),"")=AK52,"前一年申請有案","核符"),IF(VLOOKUP(AK52,$C$6:$F$1899,4,0)="三年一次",IF(IFERROR(VLOOKUP(AK52,AF$5:AF$1899,1,0),"")&IFERROR(VLOOKUP(AK52,AA$5:AA$1899,1,0),"")=AK52,"前二年申請有案","核符")))))) ->  | AQ52: =IF(AP52="","",IFERROR(AP$4-LEFT(VLOOKUP(AP52,$C$6:$D$1899,2,0),2)-1,"未建檔")) ->  | AS52: =IF(AP52="","",IF(VLOOKUP(AP52,$C$6:$F$1899,4,0)="未符資格","未符資格",IF(VLOOKUP(AP52,$C$6:$F$1899,4,0)="一年一次","核符",IF(VLOOKUP(AP52,$C$6:$F$1899,4,0)="二年一次",IF(IFERROR(VLOOKUP(AP52,AK$5:AK$1899,1,0),"")=AP52,"前一年申請有案","核符"),IF(VLOOKUP(AP52,$C$6:$F$1899,4,0)="三年一次",IF(IFERROR(VLOOKUP(AP52,AK$5:AK$1899,1,0),"")&IFERROR(VLOOKUP(AP52,AF$5:AF$1899,1,0),"")=AP52,"前二年申請有案","核符")))))) ->  | AV52: =IF(AU52="","",IFERROR(AU$4-LEFT(VLOOKUP(AU52,$C$6:$D$1899,2,0),2)-1,"未建檔")) ->  | AX52: =IF(AU52="","",IF(VLOOKUP(AU52,$C$6:$F$1899,4,0)="未符資格","未符資格",IF(VLOOKUP(AU52,$C$6:$F$1899,4,0)="一年一次","核符",IF(VLOOKUP(AU52,$C$6:$F$1899,4,0)="二年一次",IF(IFERROR(VLOOKUP(AU52,AP$5:AP$1899,1,0),"")=AU52,"前一年申請有案","核符"),IF(VLOOKUP(AU52,$C$6:$F$1899,4,0)="三年一次",IF(IFERROR(VLOOKUP(AU52,AP$5:AP$1899,1,0),"")&IFERROR(VLOOKUP(AU52,AK$5:AK$1899,1,0),"")=AU52,"前二年申請有案","核符")))))) ->  | BA52: =IF(AZ52="","",IFERROR(AZ$4-LEFT(VLOOKUP(AZ52,$C$6:$D$1899,2,0),2)-1,"未建檔")) ->  | BC52: =IF(AZ52="","",IF(VLOOKUP(AZ52,$C$6:$F$1899,4,0)="未符資格","未符資格",IF(VLOOKUP(AZ52,$C$6:$F$1899,4,0)="一年一次","核符",IF(VLOOKUP(AZ52,$C$6:$F$1899,4,0)="二年一次",IF(IFERROR(VLOOKUP(AZ52,AU$5:AU$1899,1,0),"")=AZ52,"前一年申請有案","核符"),IF(VLOOKUP(AZ52,$C$6:$F$1899,4,0)="三年一次",IF(IFERROR(VLOOKUP(AZ52,AU$5:AU$1899,1,0),"")&IFERROR(VLOOKUP(AZ52,AP$5:AP$1899,1,0),"")=AZ52,"前二年申請有案","核符")))))) -> 
A53: 48 | E53: =IF(C53="","",$Q$4-LEFT(D53,2)-1) ->  | H53: =IF(G53="","",IFERROR(G$4-LEFT(VLOOKUP(G53,$C$6:$D$1899,2,0),2)-1,"未建檔")) ->  | M53: =IF(L53="","",IFERROR(L$4-LEFT(VLOOKUP(L53,$C$6:$D$1899,2,0),2)-1,"未建檔")) ->  | R53: =IF(Q53="","",IFERROR(Q$4-LEFT(VLOOKUP(Q53,$C$6:$D$1899,2,0),2)-1,"未建檔")) ->  | T53: =IF(Q53="","",IF(VLOOKUP(Q53,$C$6:$F$1899,4,0)="未符資格","未符資格",IF(VLOOKUP(Q53,$C$6:$F$1899,4,0)="一年一次","核符",IF(VLOOKUP(Q53,$C$6:$F$1899,4,0)="二年一次",IF(IFERROR(VLOOKUP(Q53,L$5:L$1899,1,0),"")=Q53,"前一年申請有案","核符"),IF(VLOOKUP(Q53,$C$6:$F$1899,4,0)="三年一次",IF(IFERROR(VLOOKUP(Q53,L$5:L$1899,1,0),"")&IFERROR(VLOOKUP(Q53,G$5:G$1899,1,0),"")=Q53,"前二年申請有案","核符")))))) ->  | W53: =IF(V53="","",IFERROR(V$4-LEFT(VLOOKUP(V53,$C$6:$D$1899,2,0),2)-1,"未建檔")) ->  | Y53: =IF(V53="","",IF(VLOOKUP(V53,$C$6:$F$1899,4,0)="未符資格","未符資格",IF(VLOOKUP(V53,$C$6:$F$1899,4,0)="一年一次","核符",IF(VLOOKUP(V53,$C$6:$F$1899,4,0)="二年一次",IF(IFERROR(VLOOKUP(V53,Q$5:Q$1899,1,0),"")=V53,"前一年申請有案","核符"),IF(VLOOKUP(V53,$C$6:$F$1899,4,0)="三年一次",IF(IFERROR(VLOOKUP(V53,Q$5:Q$1899,1,0),"")&IFERROR(VLOOKUP(V53,L$5:L$1899,1,0),"")=V53,"前二年申請有案","核符")))))) ->  | AB53: =IF(AA53="","",IFERROR(AA$4-LEFT(VLOOKUP(AA53,$C$6:$D$1899,2,0),2)-1,"未建檔")) ->  | AD53: =IF(AA53="","",IF(VLOOKUP(AA53,$C$6:$F$1899,4,0)="未符資格","未符資格",IF(VLOOKUP(AA53,$C$6:$F$1899,4,0)="一年一次","核符",IF(VLOOKUP(AA53,$C$6:$F$1899,4,0)="二年一次",IF(IFERROR(VLOOKUP(AA53,V$5:V$1899,1,0),"")=AA53,"前一年申請有案","核符"),IF(VLOOKUP(AA53,$C$6:$F$1899,4,0)="三年一次",IF(IFERROR(VLOOKUP(AA53,V$5:V$1899,1,0),"")&IFERROR(VLOOKUP(AA53,Q$5:Q$1899,1,0),"")=AA53,"前二年申請有案","核符")))))) ->  | AG53: =IF(AF53="","",IFERROR(AF$4-LEFT(VLOOKUP(AF53,$C$6:$D$1899,2,0),2)-1,"未建檔")) ->  | AI53: =IF(AF53="","",IF(VLOOKUP(AF53,$C$6:$F$1899,4,0)="未符資格","未符資格",IF(VLOOKUP(AF53,$C$6:$F$1899,4,0)="一年一次","核符",IF(VLOOKUP(AF53,$C$6:$F$1899,4,0)="二年一次",IF(IFERROR(VLOOKUP(AF53,AA$5:AA$1899,1,0),"")=AF53,"前一年申請有案","核符"),IF(VLOOKUP(AF53,$C$6:$F$1899,4,0)="三年一次",IF(IFERROR(VLOOKUP(AF53,AA$5:AA$1899,1,0),"")&IFERROR(VLOOKUP(AF53,V$5:V$1899,1,0),"")=AF53,"前二年申請有案","核符")))))) ->  | AL53: =IF(AK53="","",IFERROR(AK$4-LEFT(VLOOKUP(AK53,$C$6:$D$1899,2,0),2)-1,"未建檔")) ->  | AN53: =IF(AK53="","",IF(VLOOKUP(AK53,$C$6:$F$1899,4,0)="未符資格","未符資格",IF(VLOOKUP(AK53,$C$6:$F$1899,4,0)="一年一次","核符",IF(VLOOKUP(AK53,$C$6:$F$1899,4,0)="二年一次",IF(IFERROR(VLOOKUP(AK53,AF$5:AF$1899,1,0),"")=AK53,"前一年申請有案","核符"),IF(VLOOKUP(AK53,$C$6:$F$1899,4,0)="三年一次",IF(IFERROR(VLOOKUP(AK53,AF$5:AF$1899,1,0),"")&IFERROR(VLOOKUP(AK53,AA$5:AA$1899,1,0),"")=AK53,"前二年申請有案","核符")))))) ->  | AQ53: =IF(AP53="","",IFERROR(AP$4-LEFT(VLOOKUP(AP53,$C$6:$D$1899,2,0),2)-1,"未建檔")) ->  | AS53: =IF(AP53="","",IF(VLOOKUP(AP53,$C$6:$F$1899,4,0)="未符資格","未符資格",IF(VLOOKUP(AP53,$C$6:$F$1899,4,0)="一年一次","核符",IF(VLOOKUP(AP53,$C$6:$F$1899,4,0)="二年一次",IF(IFERROR(VLOOKUP(AP53,AK$5:AK$1899,1,0),"")=AP53,"前一年申請有案","核符"),IF(VLOOKUP(AP53,$C$6:$F$1899,4,0)="三年一次",IF(IFERROR(VLOOKUP(AP53,AK$5:AK$1899,1,0),"")&IFERROR(VLOOKUP(AP53,AF$5:AF$1899,1,0),"")=AP53,"前二年申請有案","核符")))))) ->  | AV53: =IF(AU53="","",IFERROR(AU$4-LEFT(VLOOKUP(AU53,$C$6:$D$1899,2,0),2)-1,"未建檔")) ->  | AX53: =IF(AU53="","",IF(VLOOKUP(AU53,$C$6:$F$1899,4,0)="未符資格","未符資格",IF(VLOOKUP(AU53,$C$6:$F$1899,4,0)="一年一次","核符",IF(VLOOKUP(AU53,$C$6:$F$1899,4,0)="二年一次",IF(IFERROR(VLOOKUP(AU53,AP$5:AP$1899,1,0),"")=AU53,"前一年申請有案","核符"),IF(VLOOKUP(AU53,$C$6:$F$1899,4,0)="三年一次",IF(IFERROR(VLOOKUP(AU53,AP$5:AP$1899,1,0),"")&IFERROR(VLOOKUP(AU53,AK$5:AK$1899,1,0),"")=AU53,"前二年申請有案","核符")))))) ->  | BA53: =IF(AZ53="","",IFERROR(AZ$4-LEFT(VLOOKUP(AZ53,$C$6:$D$1899,2,0),2)-1,"未建檔")) ->  | BC53: =IF(AZ53="","",IF(VLOOKUP(AZ53,$C$6:$F$1899,4,0)="未符資格","未符資格",IF(VLOOKUP(AZ53,$C$6:$F$1899,4,0)="一年一次","核符",IF(VLOOKUP(AZ53,$C$6:$F$1899,4,0)="二年一次",IF(IFERROR(VLOOKUP(AZ53,AU$5:AU$1899,1,0),"")=AZ53,"前一年申請有案","核符"),IF(VLOOKUP(AZ53,$C$6:$F$1899,4,0)="三年一次",IF(IFERROR(VLOOKUP(AZ53,AU$5:AU$1899,1,0),"")&IFERROR(VLOOKUP(AZ53,AP$5:AP$1899,1,0),"")=AZ53,"前二年申請有案","核符")))))) -> 
A54: 49 | E54: =IF(C54="","",$Q$4-LEFT(D54,2)-1) ->  | H54: =IF(G54="","",IFERROR(G$4-LEFT(VLOOKUP(G54,$C$6:$D$1899,2,0),2)-1,"未建檔")) ->  | M54: =IF(L54="","",IFERROR(L$4-LEFT(VLOOKUP(L54,$C$6:$D$1899,2,0),2)-1,"未建檔")) ->  | R54: =IF(Q54="","",IFERROR(Q$4-LEFT(VLOOKUP(Q54,$C$6:$D$1899,2,0),2)-1,"未建檔")) ->  | T54: =IF(Q54="","",IF(VLOOKUP(Q54,$C$6:$F$1899,4,0)="未符資格","未符資格",IF(VLOOKUP(Q54,$C$6:$F$1899,4,0)="一年一次","核符",IF(VLOOKUP(Q54,$C$6:$F$1899,4,0)="二年一次",IF(IFERROR(VLOOKUP(Q54,L$5:L$1899,1,0),"")=Q54,"前一年申請有案","核符"),IF(VLOOKUP(Q54,$C$6:$F$1899,4,0)="三年一次",IF(IFERROR(VLOOKUP(Q54,L$5:L$1899,1,0),"")&IFERROR(VLOOKUP(Q54,G$5:G$1899,1,0),"")=Q54,"前二年申請有案","核符")))))) ->  | W54: =IF(V54="","",IFERROR(V$4-LEFT(VLOOKUP(V54,$C$6:$D$1899,2,0),2)-1,"未建檔")) ->  | Y54: =IF(V54="","",IF(VLOOKUP(V54,$C$6:$F$1899,4,0)="未符資格","未符資格",IF(VLOOKUP(V54,$C$6:$F$1899,4,0)="一年一次","核符",IF(VLOOKUP(V54,$C$6:$F$1899,4,0)="二年一次",IF(IFERROR(VLOOKUP(V54,Q$5:Q$1899,1,0),"")=V54,"前一年申請有案","核符"),IF(VLOOKUP(V54,$C$6:$F$1899,4,0)="三年一次",IF(IFERROR(VLOOKUP(V54,Q$5:Q$1899,1,0),"")&IFERROR(VLOOKUP(V54,L$5:L$1899,1,0),"")=V54,"前二年申請有案","核符")))))) ->  | AB54: =IF(AA54="","",IFERROR(AA$4-LEFT(VLOOKUP(AA54,$C$6:$D$1899,2,0),2)-1,"未建檔")) ->  | AD54: =IF(AA54="","",IF(VLOOKUP(AA54,$C$6:$F$1899,4,0)="未符資格","未符資格",IF(VLOOKUP(AA54,$C$6:$F$1899,4,0)="一年一次","核符",IF(VLOOKUP(AA54,$C$6:$F$1899,4,0)="二年一次",IF(IFERROR(VLOOKUP(AA54,V$5:V$1899,1,0),"")=AA54,"前一年申請有案","核符"),IF(VLOOKUP(AA54,$C$6:$F$1899,4,0)="三年一次",IF(IFERROR(VLOOKUP(AA54,V$5:V$1899,1,0),"")&IFERROR(VLOOKUP(AA54,Q$5:Q$1899,1,0),"")=AA54,"前二年申請有案","核符")))))) ->  | AG54: =IF(AF54="","",IFERROR(AF$4-LEFT(VLOOKUP(AF54,$C$6:$D$1899,2,0),2)-1,"未建檔")) ->  | AI54: =IF(AF54="","",IF(VLOOKUP(AF54,$C$6:$F$1899,4,0)="未符資格","未符資格",IF(VLOOKUP(AF54,$C$6:$F$1899,4,0)="一年一次","核符",IF(VLOOKUP(AF54,$C$6:$F$1899,4,0)="二年一次",IF(IFERROR(VLOOKUP(AF54,AA$5:AA$1899,1,0),"")=AF54,"前一年申請有案","核符"),IF(VLOOKUP(AF54,$C$6:$F$1899,4,0)="三年一次",IF(IFERROR(VLOOKUP(AF54,AA$5:AA$1899,1,0),"")&IFERROR(VLOOKUP(AF54,V$5:V$1899,1,0),"")=AF54,"前二年申請有案","核符")))))) ->  | AL54: =IF(AK54="","",IFERROR(AK$4-LEFT(VLOOKUP(AK54,$C$6:$D$1899,2,0),2)-1,"未建檔")) ->  | AN54: =IF(AK54="","",IF(VLOOKUP(AK54,$C$6:$F$1899,4,0)="未符資格","未符資格",IF(VLOOKUP(AK54,$C$6:$F$1899,4,0)="一年一次","核符",IF(VLOOKUP(AK54,$C$6:$F$1899,4,0)="二年一次",IF(IFERROR(VLOOKUP(AK54,AF$5:AF$1899,1,0),"")=AK54,"前一年申請有案","核符"),IF(VLOOKUP(AK54,$C$6:$F$1899,4,0)="三年一次",IF(IFERROR(VLOOKUP(AK54,AF$5:AF$1899,1,0),"")&IFERROR(VLOOKUP(AK54,AA$5:AA$1899,1,0),"")=AK54,"前二年申請有案","核符")))))) ->  | AQ54: =IF(AP54="","",IFERROR(AP$4-LEFT(VLOOKUP(AP54,$C$6:$D$1899,2,0),2)-1,"未建檔")) ->  | AS54: =IF(AP54="","",IF(VLOOKUP(AP54,$C$6:$F$1899,4,0)="未符資格","未符資格",IF(VLOOKUP(AP54,$C$6:$F$1899,4,0)="一年一次","核符",IF(VLOOKUP(AP54,$C$6:$F$1899,4,0)="二年一次",IF(IFERROR(VLOOKUP(AP54,AK$5:AK$1899,1,0),"")=AP54,"前一年申請有案","核符"),IF(VLOOKUP(AP54,$C$6:$F$1899,4,0)="三年一次",IF(IFERROR(VLOOKUP(AP54,AK$5:AK$1899,1,0),"")&IFERROR(VLOOKUP(AP54,AF$5:AF$1899,1,0),"")=AP54,"前二年申請有案","核符")))))) ->  | AV54: =IF(AU54="","",IFERROR(AU$4-LEFT(VLOOKUP(AU54,$C$6:$D$1899,2,0),2)-1,"未建檔")) ->  | AX54: =IF(AU54="","",IF(VLOOKUP(AU54,$C$6:$F$1899,4,0)="未符資格","未符資格",IF(VLOOKUP(AU54,$C$6:$F$1899,4,0)="一年一次","核符",IF(VLOOKUP(AU54,$C$6:$F$1899,4,0)="二年一次",IF(IFERROR(VLOOKUP(AU54,AP$5:AP$1899,1,0),"")=AU54,"前一年申請有案","核符"),IF(VLOOKUP(AU54,$C$6:$F$1899,4,0)="三年一次",IF(IFERROR(VLOOKUP(AU54,AP$5:AP$1899,1,0),"")&IFERROR(VLOOKUP(AU54,AK$5:AK$1899,1,0),"")=AU54,"前二年申請有案","核符")))))) ->  | BA54: =IF(AZ54="","",IFERROR(AZ$4-LEFT(VLOOKUP(AZ54,$C$6:$D$1899,2,0),2)-1,"未建檔")) ->  | BC54: =IF(AZ54="","",IF(VLOOKUP(AZ54,$C$6:$F$1899,4,0)="未符資格","未符資格",IF(VLOOKUP(AZ54,$C$6:$F$1899,4,0)="一年一次","核符",IF(VLOOKUP(AZ54,$C$6:$F$1899,4,0)="二年一次",IF(IFERROR(VLOOKUP(AZ54,AU$5:AU$1899,1,0),"")=AZ54,"前一年申請有案","核符"),IF(VLOOKUP(AZ54,$C$6:$F$1899,4,0)="三年一次",IF(IFERROR(VLOOKUP(AZ54,AU$5:AU$1899,1,0),"")&IFERROR(VLOOKUP(AZ54,AP$5:AP$1899,1,0),"")=AZ54,"前二年申請有案","核符")))))) -> 
A55: 50 | E55: =IF(C55="","",$Q$4-LEFT(D55,2)-1) ->  | H55: =IF(G55="","",IFERROR(G$4-LEFT(VLOOKUP(G55,$C$6:$D$1899,2,0),2)-1,"未建檔")) ->  | M55: =IF(L55="","",IFERROR(L$4-LEFT(VLOOKUP(L55,$C$6:$D$1899,2,0),2)-1,"未建檔")) ->  | R55: =IF(Q55="","",IFERROR(Q$4-LEFT(VLOOKUP(Q55,$C$6:$D$1899,2,0),2)-1,"未建檔")) ->  | T55: =IF(Q55="","",IF(VLOOKUP(Q55,$C$6:$F$1899,4,0)="未符資格","未符資格",IF(VLOOKUP(Q55,$C$6:$F$1899,4,0)="一年一次","核符",IF(VLOOKUP(Q55,$C$6:$F$1899,4,0)="二年一次",IF(IFERROR(VLOOKUP(Q55,L$5:L$1899,1,0),"")=Q55,"前一年申請有案","核符"),IF(VLOOKUP(Q55,$C$6:$F$1899,4,0)="三年一次",IF(IFERROR(VLOOKUP(Q55,L$5:L$1899,1,0),"")&IFERROR(VLOOKUP(Q55,G$5:G$1899,1,0),"")=Q55,"前二年申請有案","核符")))))) ->  | W55: =IF(V55="","",IFERROR(V$4-LEFT(VLOOKUP(V55,$C$6:$D$1899,2,0),2)-1,"未建檔")) ->  | Y55: =IF(V55="","",IF(VLOOKUP(V55,$C$6:$F$1899,4,0)="未符資格","未符資格",IF(VLOOKUP(V55,$C$6:$F$1899,4,0)="一年一次","核符",IF(VLOOKUP(V55,$C$6:$F$1899,4,0)="二年一次",IF(IFERROR(VLOOKUP(V55,Q$5:Q$1899,1,0),"")=V55,"前一年申請有案","核符"),IF(VLOOKUP(V55,$C$6:$F$1899,4,0)="三年一次",IF(IFERROR(VLOOKUP(V55,Q$5:Q$1899,1,0),"")&IFERROR(VLOOKUP(V55,L$5:L$1899,1,0),"")=V55,"前二年申請有案","核符")))))) ->  | AB55: =IF(AA55="","",IFERROR(AA$4-LEFT(VLOOKUP(AA55,$C$6:$D$1899,2,0),2)-1,"未建檔")) ->  | AD55: =IF(AA55="","",IF(VLOOKUP(AA55,$C$6:$F$1899,4,0)="未符資格","未符資格",IF(VLOOKUP(AA55,$C$6:$F$1899,4,0)="一年一次","核符",IF(VLOOKUP(AA55,$C$6:$F$1899,4,0)="二年一次",IF(IFERROR(VLOOKUP(AA55,V$5:V$1899,1,0),"")=AA55,"前一年申請有案","核符"),IF(VLOOKUP(AA55,$C$6:$F$1899,4,0)="三年一次",IF(IFERROR(VLOOKUP(AA55,V$5:V$1899,1,0),"")&IFERROR(VLOOKUP(AA55,Q$5:Q$1899,1,0),"")=AA55,"前二年申請有案","核符")))))) ->  | AG55: =IF(AF55="","",IFERROR(AF$4-LEFT(VLOOKUP(AF55,$C$6:$D$1899,2,0),2)-1,"未建檔")) ->  | AI55: =IF(AF55="","",IF(VLOOKUP(AF55,$C$6:$F$1899,4,0)="未符資格","未符資格",IF(VLOOKUP(AF55,$C$6:$F$1899,4,0)="一年一次","核符",IF(VLOOKUP(AF55,$C$6:$F$1899,4,0)="二年一次",IF(IFERROR(VLOOKUP(AF55,AA$5:AA$1899,1,0),"")=AF55,"前一年申請有案","核符"),IF(VLOOKUP(AF55,$C$6:$F$1899,4,0)="三年一次",IF(IFERROR(VLOOKUP(AF55,AA$5:AA$1899,1,0),"")&IFERROR(VLOOKUP(AF55,V$5:V$1899,1,0),"")=AF55,"前二年申請有案","核符")))))) ->  | AL55: =IF(AK55="","",IFERROR(AK$4-LEFT(VLOOKUP(AK55,$C$6:$D$1899,2,0),2)-1,"未建檔")) ->  | AN55: =IF(AK55="","",IF(VLOOKUP(AK55,$C$6:$F$1899,4,0)="未符資格","未符資格",IF(VLOOKUP(AK55,$C$6:$F$1899,4,0)="一年一次","核符",IF(VLOOKUP(AK55,$C$6:$F$1899,4,0)="二年一次",IF(IFERROR(VLOOKUP(AK55,AF$5:AF$1899,1,0),"")=AK55,"前一年申請有案","核符"),IF(VLOOKUP(AK55,$C$6:$F$1899,4,0)="三年一次",IF(IFERROR(VLOOKUP(AK55,AF$5:AF$1899,1,0),"")&IFERROR(VLOOKUP(AK55,AA$5:AA$1899,1,0),"")=AK55,"前二年申請有案","核符")))))) ->  | AQ55: =IF(AP55="","",IFERROR(AP$4-LEFT(VLOOKUP(AP55,$C$6:$D$1899,2,0),2)-1,"未建檔")) ->  | AS55: =IF(AP55="","",IF(VLOOKUP(AP55,$C$6:$F$1899,4,0)="未符資格","未符資格",IF(VLOOKUP(AP55,$C$6:$F$1899,4,0)="一年一次","核符",IF(VLOOKUP(AP55,$C$6:$F$1899,4,0)="二年一次",IF(IFERROR(VLOOKUP(AP55,AK$5:AK$1899,1,0),"")=AP55,"前一年申請有案","核符"),IF(VLOOKUP(AP55,$C$6:$F$1899,4,0)="三年一次",IF(IFERROR(VLOOKUP(AP55,AK$5:AK$1899,1,0),"")&IFERROR(VLOOKUP(AP55,AF$5:AF$1899,1,0),"")=AP55,"前二年申請有案","核符")))))) ->  | AV55: =IF(AU55="","",IFERROR(AU$4-LEFT(VLOOKUP(AU55,$C$6:$D$1899,2,0),2)-1,"未建檔")) ->  | AX55: =IF(AU55="","",IF(VLOOKUP(AU55,$C$6:$F$1899,4,0)="未符資格","未符資格",IF(VLOOKUP(AU55,$C$6:$F$1899,4,0)="一年一次","核符",IF(VLOOKUP(AU55,$C$6:$F$1899,4,0)="二年一次",IF(IFERROR(VLOOKUP(AU55,AP$5:AP$1899,1,0),"")=AU55,"前一年申請有案","核符"),IF(VLOOKUP(AU55,$C$6:$F$1899,4,0)="三年一次",IF(IFERROR(VLOOKUP(AU55,AP$5:AP$1899,1,0),"")&IFERROR(VLOOKUP(AU55,AK$5:AK$1899,1,0),"")=AU55,"前二年申請有案","核符")))))) ->  | BA55: =IF(AZ55="","",IFERROR(AZ$4-LEFT(VLOOKUP(AZ55,$C$6:$D$1899,2,0),2)-1,"未建檔")) ->  | BC55: =IF(AZ55="","",IF(VLOOKUP(AZ55,$C$6:$F$1899,4,0)="未符資格","未符資格",IF(VLOOKUP(AZ55,$C$6:$F$1899,4,0)="一年一次","核符",IF(VLOOKUP(AZ55,$C$6:$F$1899,4,0)="二年一次",IF(IFERROR(VLOOKUP(AZ55,AU$5:AU$1899,1,0),"")=AZ55,"前一年申請有案","核符"),IF(VLOOKUP(AZ55,$C$6:$F$1899,4,0)="三年一次",IF(IFERROR(VLOOKUP(AZ55,AU$5:AU$1899,1,0),"")&IFERROR(VLOOKUP(AZ55,AP$5:AP$1899,1,0),"")=AZ55,"前二年申請有案","核符")))))) -> 
A56: 51 | E56: =IF(C56="","",$Q$4-LEFT(D56,2)-1) ->  | H56: =IF(G56="","",IFERROR(G$4-LEFT(VLOOKUP(G56,$C$6:$D$1899,2,0),2)-1,"未建檔")) ->  | M56: =IF(L56="","",IFERROR(L$4-LEFT(VLOOKUP(L56,$C$6:$D$1899,2,0),2)-1,"未建檔")) ->  | R56: =IF(Q56="","",IFERROR(Q$4-LEFT(VLOOKUP(Q56,$C$6:$D$1899,2,0),2)-1,"未建檔")) ->  | T56: =IF(Q56="","",IF(VLOOKUP(Q56,$C$6:$F$1899,4,0)="未符資格","未符資格",IF(VLOOKUP(Q56,$C$6:$F$1899,4,0)="一年一次","核符",IF(VLOOKUP(Q56,$C$6:$F$1899,4,0)="二年一次",IF(IFERROR(VLOOKUP(Q56,L$5:L$1899,1,0),"")=Q56,"前一年申請有案","核符"),IF(VLOOKUP(Q56,$C$6:$F$1899,4,0)="三年一次",IF(IFERROR(VLOOKUP(Q56,L$5:L$1899,1,0),"")&IFERROR(VLOOKUP(Q56,G$5:G$1899,1,0),"")=Q56,"前二年申請有案","核符")))))) ->  | W56: =IF(V56="","",IFERROR(V$4-LEFT(VLOOKUP(V56,$C$6:$D$1899,2,0),2)-1,"未建檔")) ->  | Y56: =IF(V56="","",IF(VLOOKUP(V56,$C$6:$F$1899,4,0)="未符資格","未符資格",IF(VLOOKUP(V56,$C$6:$F$1899,4,0)="一年一次","核符",IF(VLOOKUP(V56,$C$6:$F$1899,4,0)="二年一次",IF(IFERROR(VLOOKUP(V56,Q$5:Q$1899,1,0),"")=V56,"前一年申請有案","核符"),IF(VLOOKUP(V56,$C$6:$F$1899,4,0)="三年一次",IF(IFERROR(VLOOKUP(V56,Q$5:Q$1899,1,0),"")&IFERROR(VLOOKUP(V56,L$5:L$1899,1,0),"")=V56,"前二年申請有案","核符")))))) ->  | AB56: =IF(AA56="","",IFERROR(AA$4-LEFT(VLOOKUP(AA56,$C$6:$D$1899,2,0),2)-1,"未建檔")) ->  | AD56: =IF(AA56="","",IF(VLOOKUP(AA56,$C$6:$F$1899,4,0)="未符資格","未符資格",IF(VLOOKUP(AA56,$C$6:$F$1899,4,0)="一年一次","核符",IF(VLOOKUP(AA56,$C$6:$F$1899,4,0)="二年一次",IF(IFERROR(VLOOKUP(AA56,V$5:V$1899,1,0),"")=AA56,"前一年申請有案","核符"),IF(VLOOKUP(AA56,$C$6:$F$1899,4,0)="三年一次",IF(IFERROR(VLOOKUP(AA56,V$5:V$1899,1,0),"")&IFERROR(VLOOKUP(AA56,Q$5:Q$1899,1,0),"")=AA56,"前二年申請有案","核符")))))) ->  | AG56: =IF(AF56="","",IFERROR(AF$4-LEFT(VLOOKUP(AF56,$C$6:$D$1899,2,0),2)-1,"未建檔")) ->  | AI56: =IF(AF56="","",IF(VLOOKUP(AF56,$C$6:$F$1899,4,0)="未符資格","未符資格",IF(VLOOKUP(AF56,$C$6:$F$1899,4,0)="一年一次","核符",IF(VLOOKUP(AF56,$C$6:$F$1899,4,0)="二年一次",IF(IFERROR(VLOOKUP(AF56,AA$5:AA$1899,1,0),"")=AF56,"前一年申請有案","核符"),IF(VLOOKUP(AF56,$C$6:$F$1899,4,0)="三年一次",IF(IFERROR(VLOOKUP(AF56,AA$5:AA$1899,1,0),"")&IFERROR(VLOOKUP(AF56,V$5:V$1899,1,0),"")=AF56,"前二年申請有案","核符")))))) ->  | AL56: =IF(AK56="","",IFERROR(AK$4-LEFT(VLOOKUP(AK56,$C$6:$D$1899,2,0),2)-1,"未建檔")) ->  | AN56: =IF(AK56="","",IF(VLOOKUP(AK56,$C$6:$F$1899,4,0)="未符資格","未符資格",IF(VLOOKUP(AK56,$C$6:$F$1899,4,0)="一年一次","核符",IF(VLOOKUP(AK56,$C$6:$F$1899,4,0)="二年一次",IF(IFERROR(VLOOKUP(AK56,AF$5:AF$1899,1,0),"")=AK56,"前一年申請有案","核符"),IF(VLOOKUP(AK56,$C$6:$F$1899,4,0)="三年一次",IF(IFERROR(VLOOKUP(AK56,AF$5:AF$1899,1,0),"")&IFERROR(VLOOKUP(AK56,AA$5:AA$1899,1,0),"")=AK56,"前二年申請有案","核符")))))) ->  | AQ56: =IF(AP56="","",IFERROR(AP$4-LEFT(VLOOKUP(AP56,$C$6:$D$1899,2,0),2)-1,"未建檔")) ->  | AS56: =IF(AP56="","",IF(VLOOKUP(AP56,$C$6:$F$1899,4,0)="未符資格","未符資格",IF(VLOOKUP(AP56,$C$6:$F$1899,4,0)="一年一次","核符",IF(VLOOKUP(AP56,$C$6:$F$1899,4,0)="二年一次",IF(IFERROR(VLOOKUP(AP56,AK$5:AK$1899,1,0),"")=AP56,"前一年申請有案","核符"),IF(VLOOKUP(AP56,$C$6:$F$1899,4,0)="三年一次",IF(IFERROR(VLOOKUP(AP56,AK$5:AK$1899,1,0),"")&IFERROR(VLOOKUP(AP56,AF$5:AF$1899,1,0),"")=AP56,"前二年申請有案","核符")))))) ->  | AV56: =IF(AU56="","",IFERROR(AU$4-LEFT(VLOOKUP(AU56,$C$6:$D$1899,2,0),2)-1,"未建檔")) ->  | AX56: =IF(AU56="","",IF(VLOOKUP(AU56,$C$6:$F$1899,4,0)="未符資格","未符資格",IF(VLOOKUP(AU56,$C$6:$F$1899,4,0)="一年一次","核符",IF(VLOOKUP(AU56,$C$6:$F$1899,4,0)="二年一次",IF(IFERROR(VLOOKUP(AU56,AP$5:AP$1899,1,0),"")=AU56,"前一年申請有案","核符"),IF(VLOOKUP(AU56,$C$6:$F$1899,4,0)="三年一次",IF(IFERROR(VLOOKUP(AU56,AP$5:AP$1899,1,0),"")&IFERROR(VLOOKUP(AU56,AK$5:AK$1899,1,0),"")=AU56,"前二年申請有案","核符")))))) ->  | BA56: =IF(AZ56="","",IFERROR(AZ$4-LEFT(VLOOKUP(AZ56,$C$6:$D$1899,2,0),2)-1,"未建檔")) ->  | BC56: =IF(AZ56="","",IF(VLOOKUP(AZ56,$C$6:$F$1899,4,0)="未符資格","未符資格",IF(VLOOKUP(AZ56,$C$6:$F$1899,4,0)="一年一次","核符",IF(VLOOKUP(AZ56,$C$6:$F$1899,4,0)="二年一次",IF(IFERROR(VLOOKUP(AZ56,AU$5:AU$1899,1,0),"")=AZ56,"前一年申請有案","核符"),IF(VLOOKUP(AZ56,$C$6:$F$1899,4,0)="三年一次",IF(IFERROR(VLOOKUP(AZ56,AU$5:AU$1899,1,0),"")&IFERROR(VLOOKUP(AZ56,AP$5:AP$1899,1,0),"")=AZ56,"前二年申請有案","核符")))))) -> 
A57: 52 | E57: =IF(C57="","",$Q$4-LEFT(D57,2)-1) ->  | H57: =IF(G57="","",IFERROR(G$4-LEFT(VLOOKUP(G57,$C$6:$D$1899,2,0),2)-1,"未建檔")) ->  | M57: =IF(L57="","",IFERROR(L$4-LEFT(VLOOKUP(L57,$C$6:$D$1899,2,0),2)-1,"未建檔")) ->  | R57: =IF(Q57="","",IFERROR(Q$4-LEFT(VLOOKUP(Q57,$C$6:$D$1899,2,0),2)-1,"未建檔")) ->  | T57: =IF(Q57="","",IF(VLOOKUP(Q57,$C$6:$F$1899,4,0)="未符資格","未符資格",IF(VLOOKUP(Q57,$C$6:$F$1899,4,0)="一年一次","核符",IF(VLOOKUP(Q57,$C$6:$F$1899,4,0)="二年一次",IF(IFERROR(VLOOKUP(Q57,L$5:L$1899,1,0),"")=Q57,"前一年申請有案","核符"),IF(VLOOKUP(Q57,$C$6:$F$1899,4,0)="三年一次",IF(IFERROR(VLOOKUP(Q57,L$5:L$1899,1,0),"")&IFERROR(VLOOKUP(Q57,G$5:G$1899,1,0),"")=Q57,"前二年申請有案","核符")))))) ->  | W57: =IF(V57="","",IFERROR(V$4-LEFT(VLOOKUP(V57,$C$6:$D$1899,2,0),2)-1,"未建檔")) ->  | Y57: =IF(V57="","",IF(VLOOKUP(V57,$C$6:$F$1899,4,0)="未符資格","未符資格",IF(VLOOKUP(V57,$C$6:$F$1899,4,0)="一年一次","核符",IF(VLOOKUP(V57,$C$6:$F$1899,4,0)="二年一次",IF(IFERROR(VLOOKUP(V57,Q$5:Q$1899,1,0),"")=V57,"前一年申請有案","核符"),IF(VLOOKUP(V57,$C$6:$F$1899,4,0)="三年一次",IF(IFERROR(VLOOKUP(V57,Q$5:Q$1899,1,0),"")&IFERROR(VLOOKUP(V57,L$5:L$1899,1,0),"")=V57,"前二年申請有案","核符")))))) ->  | AB57: =IF(AA57="","",IFERROR(AA$4-LEFT(VLOOKUP(AA57,$C$6:$D$1899,2,0),2)-1,"未建檔")) ->  | AD57: =IF(AA57="","",IF(VLOOKUP(AA57,$C$6:$F$1899,4,0)="未符資格","未符資格",IF(VLOOKUP(AA57,$C$6:$F$1899,4,0)="一年一次","核符",IF(VLOOKUP(AA57,$C$6:$F$1899,4,0)="二年一次",IF(IFERROR(VLOOKUP(AA57,V$5:V$1899,1,0),"")=AA57,"前一年申請有案","核符"),IF(VLOOKUP(AA57,$C$6:$F$1899,4,0)="三年一次",IF(IFERROR(VLOOKUP(AA57,V$5:V$1899,1,0),"")&IFERROR(VLOOKUP(AA57,Q$5:Q$1899,1,0),"")=AA57,"前二年申請有案","核符")))))) ->  | AG57: =IF(AF57="","",IFERROR(AF$4-LEFT(VLOOKUP(AF57,$C$6:$D$1899,2,0),2)-1,"未建檔")) ->  | AI57: =IF(AF57="","",IF(VLOOKUP(AF57,$C$6:$F$1899,4,0)="未符資格","未符資格",IF(VLOOKUP(AF57,$C$6:$F$1899,4,0)="一年一次","核符",IF(VLOOKUP(AF57,$C$6:$F$1899,4,0)="二年一次",IF(IFERROR(VLOOKUP(AF57,AA$5:AA$1899,1,0),"")=AF57,"前一年申請有案","核符"),IF(VLOOKUP(AF57,$C$6:$F$1899,4,0)="三年一次",IF(IFERROR(VLOOKUP(AF57,AA$5:AA$1899,1,0),"")&IFERROR(VLOOKUP(AF57,V$5:V$1899,1,0),"")=AF57,"前二年申請有案","核符")))))) ->  | AL57: =IF(AK57="","",IFERROR(AK$4-LEFT(VLOOKUP(AK57,$C$6:$D$1899,2,0),2)-1,"未建檔")) ->  | AN57: =IF(AK57="","",IF(VLOOKUP(AK57,$C$6:$F$1899,4,0)="未符資格","未符資格",IF(VLOOKUP(AK57,$C$6:$F$1899,4,0)="一年一次","核符",IF(VLOOKUP(AK57,$C$6:$F$1899,4,0)="二年一次",IF(IFERROR(VLOOKUP(AK57,AF$5:AF$1899,1,0),"")=AK57,"前一年申請有案","核符"),IF(VLOOKUP(AK57,$C$6:$F$1899,4,0)="三年一次",IF(IFERROR(VLOOKUP(AK57,AF$5:AF$1899,1,0),"")&IFERROR(VLOOKUP(AK57,AA$5:AA$1899,1,0),"")=AK57,"前二年申請有案","核符")))))) ->  | AQ57: =IF(AP57="","",IFERROR(AP$4-LEFT(VLOOKUP(AP57,$C$6:$D$1899,2,0),2)-1,"未建檔")) ->  | AS57: =IF(AP57="","",IF(VLOOKUP(AP57,$C$6:$F$1899,4,0)="未符資格","未符資格",IF(VLOOKUP(AP57,$C$6:$F$1899,4,0)="一年一次","核符",IF(VLOOKUP(AP57,$C$6:$F$1899,4,0)="二年一次",IF(IFERROR(VLOOKUP(AP57,AK$5:AK$1899,1,0),"")=AP57,"前一年申請有案","核符"),IF(VLOOKUP(AP57,$C$6:$F$1899,4,0)="三年一次",IF(IFERROR(VLOOKUP(AP57,AK$5:AK$1899,1,0),"")&IFERROR(VLOOKUP(AP57,AF$5:AF$1899,1,0),"")=AP57,"前二年申請有案","核符")))))) ->  | AV57: =IF(AU57="","",IFERROR(AU$4-LEFT(VLOOKUP(AU57,$C$6:$D$1899,2,0),2)-1,"未建檔")) ->  | AX57: =IF(AU57="","",IF(VLOOKUP(AU57,$C$6:$F$1899,4,0)="未符資格","未符資格",IF(VLOOKUP(AU57,$C$6:$F$1899,4,0)="一年一次","核符",IF(VLOOKUP(AU57,$C$6:$F$1899,4,0)="二年一次",IF(IFERROR(VLOOKUP(AU57,AP$5:AP$1899,1,0),"")=AU57,"前一年申請有案","核符"),IF(VLOOKUP(AU57,$C$6:$F$1899,4,0)="三年一次",IF(IFERROR(VLOOKUP(AU57,AP$5:AP$1899,1,0),"")&IFERROR(VLOOKUP(AU57,AK$5:AK$1899,1,0),"")=AU57,"前二年申請有案","核符")))))) ->  | BA57: =IF(AZ57="","",IFERROR(AZ$4-LEFT(VLOOKUP(AZ57,$C$6:$D$1899,2,0),2)-1,"未建檔")) ->  | BC57: =IF(AZ57="","",IF(VLOOKUP(AZ57,$C$6:$F$1899,4,0)="未符資格","未符資格",IF(VLOOKUP(AZ57,$C$6:$F$1899,4,0)="一年一次","核符",IF(VLOOKUP(AZ57,$C$6:$F$1899,4,0)="二年一次",IF(IFERROR(VLOOKUP(AZ57,AU$5:AU$1899,1,0),"")=AZ57,"前一年申請有案","核符"),IF(VLOOKUP(AZ57,$C$6:$F$1899,4,0)="三年一次",IF(IFERROR(VLOOKUP(AZ57,AU$5:AU$1899,1,0),"")&IFERROR(VLOOKUP(AZ57,AP$5:AP$1899,1,0),"")=AZ57,"前二年申請有案","核符")))))) -> 
A58: 53 | E58: =IF(C58="","",$Q$4-LEFT(D58,2)-1) ->  | H58: =IF(G58="","",IFERROR(G$4-LEFT(VLOOKUP(G58,$C$6:$D$1899,2,0),2)-1,"未建檔")) ->  | M58: =IF(L58="","",IFERROR(L$4-LEFT(VLOOKUP(L58,$C$6:$D$1899,2,0),2)-1,"未建檔")) ->  | R58: =IF(Q58="","",IFERROR(Q$4-LEFT(VLOOKUP(Q58,$C$6:$D$1899,2,0),2)-1,"未建檔")) ->  | T58: =IF(Q58="","",IF(VLOOKUP(Q58,$C$6:$F$1899,4,0)="未符資格","未符資格",IF(VLOOKUP(Q58,$C$6:$F$1899,4,0)="一年一次","核符",IF(VLOOKUP(Q58,$C$6:$F$1899,4,0)="二年一次",IF(IFERROR(VLOOKUP(Q58,L$5:L$1899,1,0),"")=Q58,"前一年申請有案","核符"),IF(VLOOKUP(Q58,$C$6:$F$1899,4,0)="三年一次",IF(IFERROR(VLOOKUP(Q58,L$5:L$1899,1,0),"")&IFERROR(VLOOKUP(Q58,G$5:G$1899,1,0),"")=Q58,"前二年申請有案","核符")))))) ->  | W58: =IF(V58="","",IFERROR(V$4-LEFT(VLOOKUP(V58,$C$6:$D$1899,2,0),2)-1,"未建檔")) ->  | Y58: =IF(V58="","",IF(VLOOKUP(V58,$C$6:$F$1899,4,0)="未符資格","未符資格",IF(VLOOKUP(V58,$C$6:$F$1899,4,0)="一年一次","核符",IF(VLOOKUP(V58,$C$6:$F$1899,4,0)="二年一次",IF(IFERROR(VLOOKUP(V58,Q$5:Q$1899,1,0),"")=V58,"前一年申請有案","核符"),IF(VLOOKUP(V58,$C$6:$F$1899,4,0)="三年一次",IF(IFERROR(VLOOKUP(V58,Q$5:Q$1899,1,0),"")&IFERROR(VLOOKUP(V58,L$5:L$1899,1,0),"")=V58,"前二年申請有案","核符")))))) ->  | AB58: =IF(AA58="","",IFERROR(AA$4-LEFT(VLOOKUP(AA58,$C$6:$D$1899,2,0),2)-1,"未建檔")) ->  | AD58: =IF(AA58="","",IF(VLOOKUP(AA58,$C$6:$F$1899,4,0)="未符資格","未符資格",IF(VLOOKUP(AA58,$C$6:$F$1899,4,0)="一年一次","核符",IF(VLOOKUP(AA58,$C$6:$F$1899,4,0)="二年一次",IF(IFERROR(VLOOKUP(AA58,V$5:V$1899,1,0),"")=AA58,"前一年申請有案","核符"),IF(VLOOKUP(AA58,$C$6:$F$1899,4,0)="三年一次",IF(IFERROR(VLOOKUP(AA58,V$5:V$1899,1,0),"")&IFERROR(VLOOKUP(AA58,Q$5:Q$1899,1,0),"")=AA58,"前二年申請有案","核符")))))) ->  | AG58: =IF(AF58="","",IFERROR(AF$4-LEFT(VLOOKUP(AF58,$C$6:$D$1899,2,0),2)-1,"未建檔")) ->  | AI58: =IF(AF58="","",IF(VLOOKUP(AF58,$C$6:$F$1899,4,0)="未符資格","未符資格",IF(VLOOKUP(AF58,$C$6:$F$1899,4,0)="一年一次","核符",IF(VLOOKUP(AF58,$C$6:$F$1899,4,0)="二年一次",IF(IFERROR(VLOOKUP(AF58,AA$5:AA$1899,1,0),"")=AF58,"前一年申請有案","核符"),IF(VLOOKUP(AF58,$C$6:$F$1899,4,0)="三年一次",IF(IFERROR(VLOOKUP(AF58,AA$5:AA$1899,1,0),"")&IFERROR(VLOOKUP(AF58,V$5:V$1899,1,0),"")=AF58,"前二年申請有案","核符")))))) ->  | AL58: =IF(AK58="","",IFERROR(AK$4-LEFT(VLOOKUP(AK58,$C$6:$D$1899,2,0),2)-1,"未建檔")) ->  | AN58: =IF(AK58="","",IF(VLOOKUP(AK58,$C$6:$F$1899,4,0)="未符資格","未符資格",IF(VLOOKUP(AK58,$C$6:$F$1899,4,0)="一年一次","核符",IF(VLOOKUP(AK58,$C$6:$F$1899,4,0)="二年一次",IF(IFERROR(VLOOKUP(AK58,AF$5:AF$1899,1,0),"")=AK58,"前一年申請有案","核符"),IF(VLOOKUP(AK58,$C$6:$F$1899,4,0)="三年一次",IF(IFERROR(VLOOKUP(AK58,AF$5:AF$1899,1,0),"")&IFERROR(VLOOKUP(AK58,AA$5:AA$1899,1,0),"")=AK58,"前二年申請有案","核符")))))) ->  | AQ58: =IF(AP58="","",IFERROR(AP$4-LEFT(VLOOKUP(AP58,$C$6:$D$1899,2,0),2)-1,"未建檔")) ->  | AS58: =IF(AP58="","",IF(VLOOKUP(AP58,$C$6:$F$1899,4,0)="未符資格","未符資格",IF(VLOOKUP(AP58,$C$6:$F$1899,4,0)="一年一次","核符",IF(VLOOKUP(AP58,$C$6:$F$1899,4,0)="二年一次",IF(IFERROR(VLOOKUP(AP58,AK$5:AK$1899,1,0),"")=AP58,"前一年申請有案","核符"),IF(VLOOKUP(AP58,$C$6:$F$1899,4,0)="三年一次",IF(IFERROR(VLOOKUP(AP58,AK$5:AK$1899,1,0),"")&IFERROR(VLOOKUP(AP58,AF$5:AF$1899,1,0),"")=AP58,"前二年申請有案","核符")))))) ->  | AV58: =IF(AU58="","",IFERROR(AU$4-LEFT(VLOOKUP(AU58,$C$6:$D$1899,2,0),2)-1,"未建檔")) ->  | AX58: =IF(AU58="","",IF(VLOOKUP(AU58,$C$6:$F$1899,4,0)="未符資格","未符資格",IF(VLOOKUP(AU58,$C$6:$F$1899,4,0)="一年一次","核符",IF(VLOOKUP(AU58,$C$6:$F$1899,4,0)="二年一次",IF(IFERROR(VLOOKUP(AU58,AP$5:AP$1899,1,0),"")=AU58,"前一年申請有案","核符"),IF(VLOOKUP(AU58,$C$6:$F$1899,4,0)="三年一次",IF(IFERROR(VLOOKUP(AU58,AP$5:AP$1899,1,0),"")&IFERROR(VLOOKUP(AU58,AK$5:AK$1899,1,0),"")=AU58,"前二年申請有案","核符")))))) ->  | BA58: =IF(AZ58="","",IFERROR(AZ$4-LEFT(VLOOKUP(AZ58,$C$6:$D$1899,2,0),2)-1,"未建檔")) ->  | BC58: =IF(AZ58="","",IF(VLOOKUP(AZ58,$C$6:$F$1899,4,0)="未符資格","未符資格",IF(VLOOKUP(AZ58,$C$6:$F$1899,4,0)="一年一次","核符",IF(VLOOKUP(AZ58,$C$6:$F$1899,4,0)="二年一次",IF(IFERROR(VLOOKUP(AZ58,AU$5:AU$1899,1,0),"")=AZ58,"前一年申請有案","核符"),IF(VLOOKUP(AZ58,$C$6:$F$1899,4,0)="三年一次",IF(IFERROR(VLOOKUP(AZ58,AU$5:AU$1899,1,0),"")&IFERROR(VLOOKUP(AZ58,AP$5:AP$1899,1,0),"")=AZ58,"前二年申請有案","核符")))))) -> 
A59: 54 | E59: =IF(C59="","",$Q$4-LEFT(D59,2)-1) ->  | H59: =IF(G59="","",IFERROR(G$4-LEFT(VLOOKUP(G59,$C$6:$D$1899,2,0),2)-1,"未建檔")) ->  | M59: =IF(L59="","",IFERROR(L$4-LEFT(VLOOKUP(L59,$C$6:$D$1899,2,0),2)-1,"未建檔")) ->  | R59: =IF(Q59="","",IFERROR(Q$4-LEFT(VLOOKUP(Q59,$C$6:$D$1899,2,0),2)-1,"未建檔")) ->  | T59: =IF(Q59="","",IF(VLOOKUP(Q59,$C$6:$F$1899,4,0)="未符資格","未符資格",IF(VLOOKUP(Q59,$C$6:$F$1899,4,0)="一年一次","核符",IF(VLOOKUP(Q59,$C$6:$F$1899,4,0)="二年一次",IF(IFERROR(VLOOKUP(Q59,L$5:L$1899,1,0),"")=Q59,"前一年申請有案","核符"),IF(VLOOKUP(Q59,$C$6:$F$1899,4,0)="三年一次",IF(IFERROR(VLOOKUP(Q59,L$5:L$1899,1,0),"")&IFERROR(VLOOKUP(Q59,G$5:G$1899,1,0),"")=Q59,"前二年申請有案","核符")))))) ->  | W59: =IF(V59="","",IFERROR(V$4-LEFT(VLOOKUP(V59,$C$6:$D$1899,2,0),2)-1,"未建檔")) ->  | Y59: =IF(V59="","",IF(VLOOKUP(V59,$C$6:$F$1899,4,0)="未符資格","未符資格",IF(VLOOKUP(V59,$C$6:$F$1899,4,0)="一年一次","核符",IF(VLOOKUP(V59,$C$6:$F$1899,4,0)="二年一次",IF(IFERROR(VLOOKUP(V59,Q$5:Q$1899,1,0),"")=V59,"前一年申請有案","核符"),IF(VLOOKUP(V59,$C$6:$F$1899,4,0)="三年一次",IF(IFERROR(VLOOKUP(V59,Q$5:Q$1899,1,0),"")&IFERROR(VLOOKUP(V59,L$5:L$1899,1,0),"")=V59,"前二年申請有案","核符")))))) ->  | AB59: =IF(AA59="","",IFERROR(AA$4-LEFT(VLOOKUP(AA59,$C$6:$D$1899,2,0),2)-1,"未建檔")) ->  | AD59: =IF(AA59="","",IF(VLOOKUP(AA59,$C$6:$F$1899,4,0)="未符資格","未符資格",IF(VLOOKUP(AA59,$C$6:$F$1899,4,0)="一年一次","核符",IF(VLOOKUP(AA59,$C$6:$F$1899,4,0)="二年一次",IF(IFERROR(VLOOKUP(AA59,V$5:V$1899,1,0),"")=AA59,"前一年申請有案","核符"),IF(VLOOKUP(AA59,$C$6:$F$1899,4,0)="三年一次",IF(IFERROR(VLOOKUP(AA59,V$5:V$1899,1,0),"")&IFERROR(VLOOKUP(AA59,Q$5:Q$1899,1,0),"")=AA59,"前二年申請有案","核符")))))) ->  | AG59: =IF(AF59="","",IFERROR(AF$4-LEFT(VLOOKUP(AF59,$C$6:$D$1899,2,0),2)-1,"未建檔")) ->  | AI59: =IF(AF59="","",IF(VLOOKUP(AF59,$C$6:$F$1899,4,0)="未符資格","未符資格",IF(VLOOKUP(AF59,$C$6:$F$1899,4,0)="一年一次","核符",IF(VLOOKUP(AF59,$C$6:$F$1899,4,0)="二年一次",IF(IFERROR(VLOOKUP(AF59,AA$5:AA$1899,1,0),"")=AF59,"前一年申請有案","核符"),IF(VLOOKUP(AF59,$C$6:$F$1899,4,0)="三年一次",IF(IFERROR(VLOOKUP(AF59,AA$5:AA$1899,1,0),"")&IFERROR(VLOOKUP(AF59,V$5:V$1899,1,0),"")=AF59,"前二年申請有案","核符")))))) ->  | AL59: =IF(AK59="","",IFERROR(AK$4-LEFT(VLOOKUP(AK59,$C$6:$D$1899,2,0),2)-1,"未建檔")) ->  | AN59: =IF(AK59="","",IF(VLOOKUP(AK59,$C$6:$F$1899,4,0)="未符資格","未符資格",IF(VLOOKUP(AK59,$C$6:$F$1899,4,0)="一年一次","核符",IF(VLOOKUP(AK59,$C$6:$F$1899,4,0)="二年一次",IF(IFERROR(VLOOKUP(AK59,AF$5:AF$1899,1,0),"")=AK59,"前一年申請有案","核符"),IF(VLOOKUP(AK59,$C$6:$F$1899,4,0)="三年一次",IF(IFERROR(VLOOKUP(AK59,AF$5:AF$1899,1,0),"")&IFERROR(VLOOKUP(AK59,AA$5:AA$1899,1,0),"")=AK59,"前二年申請有案","核符")))))) ->  | AQ59: =IF(AP59="","",IFERROR(AP$4-LEFT(VLOOKUP(AP59,$C$6:$D$1899,2,0),2)-1,"未建檔")) ->  | AS59: =IF(AP59="","",IF(VLOOKUP(AP59,$C$6:$F$1899,4,0)="未符資格","未符資格",IF(VLOOKUP(AP59,$C$6:$F$1899,4,0)="一年一次","核符",IF(VLOOKUP(AP59,$C$6:$F$1899,4,0)="二年一次",IF(IFERROR(VLOOKUP(AP59,AK$5:AK$1899,1,0),"")=AP59,"前一年申請有案","核符"),IF(VLOOKUP(AP59,$C$6:$F$1899,4,0)="三年一次",IF(IFERROR(VLOOKUP(AP59,AK$5:AK$1899,1,0),"")&IFERROR(VLOOKUP(AP59,AF$5:AF$1899,1,0),"")=AP59,"前二年申請有案","核符")))))) ->  | AV59: =IF(AU59="","",IFERROR(AU$4-LEFT(VLOOKUP(AU59,$C$6:$D$1899,2,0),2)-1,"未建檔")) ->  | AX59: =IF(AU59="","",IF(VLOOKUP(AU59,$C$6:$F$1899,4,0)="未符資格","未符資格",IF(VLOOKUP(AU59,$C$6:$F$1899,4,0)="一年一次","核符",IF(VLOOKUP(AU59,$C$6:$F$1899,4,0)="二年一次",IF(IFERROR(VLOOKUP(AU59,AP$5:AP$1899,1,0),"")=AU59,"前一年申請有案","核符"),IF(VLOOKUP(AU59,$C$6:$F$1899,4,0)="三年一次",IF(IFERROR(VLOOKUP(AU59,AP$5:AP$1899,1,0),"")&IFERROR(VLOOKUP(AU59,AK$5:AK$1899,1,0),"")=AU59,"前二年申請有案","核符")))))) ->  | BA59: =IF(AZ59="","",IFERROR(AZ$4-LEFT(VLOOKUP(AZ59,$C$6:$D$1899,2,0),2)-1,"未建檔")) ->  | BC59: =IF(AZ59="","",IF(VLOOKUP(AZ59,$C$6:$F$1899,4,0)="未符資格","未符資格",IF(VLOOKUP(AZ59,$C$6:$F$1899,4,0)="一年一次","核符",IF(VLOOKUP(AZ59,$C$6:$F$1899,4,0)="二年一次",IF(IFERROR(VLOOKUP(AZ59,AU$5:AU$1899,1,0),"")=AZ59,"前一年申請有案","核符"),IF(VLOOKUP(AZ59,$C$6:$F$1899,4,0)="三年一次",IF(IFERROR(VLOOKUP(AZ59,AU$5:AU$1899,1,0),"")&IFERROR(VLOOKUP(AZ59,AP$5:AP$1899,1,0),"")=AZ59,"前二年申請有案","核符")))))) -> 
A60: 55 | E60: =IF(C60="","",$Q$4-LEFT(D60,2)-1) ->  | H60: =IF(G60="","",IFERROR(G$4-LEFT(VLOOKUP(G60,$C$6:$D$1899,2,0),2)-1,"未建檔")) ->  | M60: =IF(L60="","",IFERROR(L$4-LEFT(VLOOKUP(L60,$C$6:$D$1899,2,0),2)-1,"未建檔")) ->  | R60: =IF(Q60="","",IFERROR(Q$4-LEFT(VLOOKUP(Q60,$C$6:$D$1899,2,0),2)-1,"未建檔")) ->  | T60: =IF(Q60="","",IF(VLOOKUP(Q60,$C$6:$F$1899,4,0)="未符資格","未符資格",IF(VLOOKUP(Q60,$C$6:$F$1899,4,0)="一年一次","核符",IF(VLOOKUP(Q60,$C$6:$F$1899,4,0)="二年一次",IF(IFERROR(VLOOKUP(Q60,L$5:L$1899,1,0),"")=Q60,"前一年申請有案","核符"),IF(VLOOKUP(Q60,$C$6:$F$1899,4,0)="三年一次",IF(IFERROR(VLOOKUP(Q60,L$5:L$1899,1,0),"")&IFERROR(VLOOKUP(Q60,G$5:G$1899,1,0),"")=Q60,"前二年申請有案","核符")))))) ->  | W60: =IF(V60="","",IFERROR(V$4-LEFT(VLOOKUP(V60,$C$6:$D$1899,2,0),2)-1,"未建檔")) ->  | Y60: =IF(V60="","",IF(VLOOKUP(V60,$C$6:$F$1899,4,0)="未符資格","未符資格",IF(VLOOKUP(V60,$C$6:$F$1899,4,0)="一年一次","核符",IF(VLOOKUP(V60,$C$6:$F$1899,4,0)="二年一次",IF(IFERROR(VLOOKUP(V60,Q$5:Q$1899,1,0),"")=V60,"前一年申請有案","核符"),IF(VLOOKUP(V60,$C$6:$F$1899,4,0)="三年一次",IF(IFERROR(VLOOKUP(V60,Q$5:Q$1899,1,0),"")&IFERROR(VLOOKUP(V60,L$5:L$1899,1,0),"")=V60,"前二年申請有案","核符")))))) ->  | AB60: =IF(AA60="","",IFERROR(AA$4-LEFT(VLOOKUP(AA60,$C$6:$D$1899,2,0),2)-1,"未建檔")) ->  | AD60: =IF(AA60="","",IF(VLOOKUP(AA60,$C$6:$F$1899,4,0)="未符資格","未符資格",IF(VLOOKUP(AA60,$C$6:$F$1899,4,0)="一年一次","核符",IF(VLOOKUP(AA60,$C$6:$F$1899,4,0)="二年一次",IF(IFERROR(VLOOKUP(AA60,V$5:V$1899,1,0),"")=AA60,"前一年申請有案","核符"),IF(VLOOKUP(AA60,$C$6:$F$1899,4,0)="三年一次",IF(IFERROR(VLOOKUP(AA60,V$5:V$1899,1,0),"")&IFERROR(VLOOKUP(AA60,Q$5:Q$1899,1,0),"")=AA60,"前二年申請有案","核符")))))) ->  | AG60: =IF(AF60="","",IFERROR(AF$4-LEFT(VLOOKUP(AF60,$C$6:$D$1899,2,0),2)-1,"未建檔")) ->  | AI60: =IF(AF60="","",IF(VLOOKUP(AF60,$C$6:$F$1899,4,0)="未符資格","未符資格",IF(VLOOKUP(AF60,$C$6:$F$1899,4,0)="一年一次","核符",IF(VLOOKUP(AF60,$C$6:$F$1899,4,0)="二年一次",IF(IFERROR(VLOOKUP(AF60,AA$5:AA$1899,1,0),"")=AF60,"前一年申請有案","核符"),IF(VLOOKUP(AF60,$C$6:$F$1899,4,0)="三年一次",IF(IFERROR(VLOOKUP(AF60,AA$5:AA$1899,1,0),"")&IFERROR(VLOOKUP(AF60,V$5:V$1899,1,0),"")=AF60,"前二年申請有案","核符")))))) ->  | AL60: =IF(AK60="","",IFERROR(AK$4-LEFT(VLOOKUP(AK60,$C$6:$D$1899,2,0),2)-1,"未建檔")) ->  | AN60: =IF(AK60="","",IF(VLOOKUP(AK60,$C$6:$F$1899,4,0)="未符資格","未符資格",IF(VLOOKUP(AK60,$C$6:$F$1899,4,0)="一年一次","核符",IF(VLOOKUP(AK60,$C$6:$F$1899,4,0)="二年一次",IF(IFERROR(VLOOKUP(AK60,AF$5:AF$1899,1,0),"")=AK60,"前一年申請有案","核符"),IF(VLOOKUP(AK60,$C$6:$F$1899,4,0)="三年一次",IF(IFERROR(VLOOKUP(AK60,AF$5:AF$1899,1,0),"")&IFERROR(VLOOKUP(AK60,AA$5:AA$1899,1,0),"")=AK60,"前二年申請有案","核符")))))) ->  | AQ60: =IF(AP60="","",IFERROR(AP$4-LEFT(VLOOKUP(AP60,$C$6:$D$1899,2,0),2)-1,"未建檔")) ->  | AS60: =IF(AP60="","",IF(VLOOKUP(AP60,$C$6:$F$1899,4,0)="未符資格","未符資格",IF(VLOOKUP(AP60,$C$6:$F$1899,4,0)="一年一次","核符",IF(VLOOKUP(AP60,$C$6:$F$1899,4,0)="二年一次",IF(IFERROR(VLOOKUP(AP60,AK$5:AK$1899,1,0),"")=AP60,"前一年申請有案","核符"),IF(VLOOKUP(AP60,$C$6:$F$1899,4,0)="三年一次",IF(IFERROR(VLOOKUP(AP60,AK$5:AK$1899,1,0),"")&IFERROR(VLOOKUP(AP60,AF$5:AF$1899,1,0),"")=AP60,"前二年申請有案","核符")))))) ->  | AV60: =IF(AU60="","",IFERROR(AU$4-LEFT(VLOOKUP(AU60,$C$6:$D$1899,2,0),2)-1,"未建檔")) ->  | AX60: =IF(AU60="","",IF(VLOOKUP(AU60,$C$6:$F$1899,4,0)="未符資格","未符資格",IF(VLOOKUP(AU60,$C$6:$F$1899,4,0)="一年一次","核符",IF(VLOOKUP(AU60,$C$6:$F$1899,4,0)="二年一次",IF(IFERROR(VLOOKUP(AU60,AP$5:AP$1899,1,0),"")=AU60,"前一年申請有案","核符"),IF(VLOOKUP(AU60,$C$6:$F$1899,4,0)="三年一次",IF(IFERROR(VLOOKUP(AU60,AP$5:AP$1899,1,0),"")&IFERROR(VLOOKUP(AU60,AK$5:AK$1899,1,0),"")=AU60,"前二年申請有案","核符")))))) ->  | BA60: =IF(AZ60="","",IFERROR(AZ$4-LEFT(VLOOKUP(AZ60,$C$6:$D$1899,2,0),2)-1,"未建檔")) ->  | BC60: =IF(AZ60="","",IF(VLOOKUP(AZ60,$C$6:$F$1899,4,0)="未符資格","未符資格",IF(VLOOKUP(AZ60,$C$6:$F$1899,4,0)="一年一次","核符",IF(VLOOKUP(AZ60,$C$6:$F$1899,4,0)="二年一次",IF(IFERROR(VLOOKUP(AZ60,AU$5:AU$1899,1,0),"")=AZ60,"前一年申請有案","核符"),IF(VLOOKUP(AZ60,$C$6:$F$1899,4,0)="三年一次",IF(IFERROR(VLOOKUP(AZ60,AU$5:AU$1899,1,0),"")&IFERROR(VLOOKUP(AZ60,AP$5:AP$1899,1,0),"")=AZ60,"前二年申請有案","核符")))))) -> 
A61: 56 | E61: =IF(C61="","",$Q$4-LEFT(D61,2)-1) ->  | H61: =IF(G61="","",IFERROR(G$4-LEFT(VLOOKUP(G61,$C$6:$D$1899,2,0),2)-1,"未建檔")) ->  | M61: =IF(L61="","",IFERROR(L$4-LEFT(VLOOKUP(L61,$C$6:$D$1899,2,0),2)-1,"未建檔")) ->  | R61: =IF(Q61="","",IFERROR(Q$4-LEFT(VLOOKUP(Q61,$C$6:$D$1899,2,0),2)-1,"未建檔")) ->  | T61: =IF(Q61="","",IF(VLOOKUP(Q61,$C$6:$F$1899,4,0)="未符資格","未符資格",IF(VLOOKUP(Q61,$C$6:$F$1899,4,0)="一年一次","核符",IF(VLOOKUP(Q61,$C$6:$F$1899,4,0)="二年一次",IF(IFERROR(VLOOKUP(Q61,L$5:L$1899,1,0),"")=Q61,"前一年申請有案","核符"),IF(VLOOKUP(Q61,$C$6:$F$1899,4,0)="三年一次",IF(IFERROR(VLOOKUP(Q61,L$5:L$1899,1,0),"")&IFERROR(VLOOKUP(Q61,G$5:G$1899,1,0),"")=Q61,"前二年申請有案","核符")))))) ->  | W61: =IF(V61="","",IFERROR(V$4-LEFT(VLOOKUP(V61,$C$6:$D$1899,2,0),2)-1,"未建檔")) ->  | Y61: =IF(V61="","",IF(VLOOKUP(V61,$C$6:$F$1899,4,0)="未符資格","未符資格",IF(VLOOKUP(V61,$C$6:$F$1899,4,0)="一年一次","核符",IF(VLOOKUP(V61,$C$6:$F$1899,4,0)="二年一次",IF(IFERROR(VLOOKUP(V61,Q$5:Q$1899,1,0),"")=V61,"前一年申請有案","核符"),IF(VLOOKUP(V61,$C$6:$F$1899,4,0)="三年一次",IF(IFERROR(VLOOKUP(V61,Q$5:Q$1899,1,0),"")&IFERROR(VLOOKUP(V61,L$5:L$1899,1,0),"")=V61,"前二年申請有案","核符")))))) ->  | AB61: =IF(AA61="","",IFERROR(AA$4-LEFT(VLOOKUP(AA61,$C$6:$D$1899,2,0),2)-1,"未建檔")) ->  | AD61: =IF(AA61="","",IF(VLOOKUP(AA61,$C$6:$F$1899,4,0)="未符資格","未符資格",IF(VLOOKUP(AA61,$C$6:$F$1899,4,0)="一年一次","核符",IF(VLOOKUP(AA61,$C$6:$F$1899,4,0)="二年一次",IF(IFERROR(VLOOKUP(AA61,V$5:V$1899,1,0),"")=AA61,"前一年申請有案","核符"),IF(VLOOKUP(AA61,$C$6:$F$1899,4,0)="三年一次",IF(IFERROR(VLOOKUP(AA61,V$5:V$1899,1,0),"")&IFERROR(VLOOKUP(AA61,Q$5:Q$1899,1,0),"")=AA61,"前二年申請有案","核符")))))) ->  | AG61: =IF(AF61="","",IFERROR(AF$4-LEFT(VLOOKUP(AF61,$C$6:$D$1899,2,0),2)-1,"未建檔")) ->  | AI61: =IF(AF61="","",IF(VLOOKUP(AF61,$C$6:$F$1899,4,0)="未符資格","未符資格",IF(VLOOKUP(AF61,$C$6:$F$1899,4,0)="一年一次","核符",IF(VLOOKUP(AF61,$C$6:$F$1899,4,0)="二年一次",IF(IFERROR(VLOOKUP(AF61,AA$5:AA$1899,1,0),"")=AF61,"前一年申請有案","核符"),IF(VLOOKUP(AF61,$C$6:$F$1899,4,0)="三年一次",IF(IFERROR(VLOOKUP(AF61,AA$5:AA$1899,1,0),"")&IFERROR(VLOOKUP(AF61,V$5:V$1899,1,0),"")=AF61,"前二年申請有案","核符")))))) ->  | AL61: =IF(AK61="","",IFERROR(AK$4-LEFT(VLOOKUP(AK61,$C$6:$D$1899,2,0),2)-1,"未建檔")) ->  | AN61: =IF(AK61="","",IF(VLOOKUP(AK61,$C$6:$F$1899,4,0)="未符資格","未符資格",IF(VLOOKUP(AK61,$C$6:$F$1899,4,0)="一年一次","核符",IF(VLOOKUP(AK61,$C$6:$F$1899,4,0)="二年一次",IF(IFERROR(VLOOKUP(AK61,AF$5:AF$1899,1,0),"")=AK61,"前一年申請有案","核符"),IF(VLOOKUP(AK61,$C$6:$F$1899,4,0)="三年一次",IF(IFERROR(VLOOKUP(AK61,AF$5:AF$1899,1,0),"")&IFERROR(VLOOKUP(AK61,AA$5:AA$1899,1,0),"")=AK61,"前二年申請有案","核符")))))) ->  | AQ61: =IF(AP61="","",IFERROR(AP$4-LEFT(VLOOKUP(AP61,$C$6:$D$1899,2,0),2)-1,"未建檔")) ->  | AS61: =IF(AP61="","",IF(VLOOKUP(AP61,$C$6:$F$1899,4,0)="未符資格","未符資格",IF(VLOOKUP(AP61,$C$6:$F$1899,4,0)="一年一次","核符",IF(VLOOKUP(AP61,$C$6:$F$1899,4,0)="二年一次",IF(IFERROR(VLOOKUP(AP61,AK$5:AK$1899,1,0),"")=AP61,"前一年申請有案","核符"),IF(VLOOKUP(AP61,$C$6:$F$1899,4,0)="三年一次",IF(IFERROR(VLOOKUP(AP61,AK$5:AK$1899,1,0),"")&IFERROR(VLOOKUP(AP61,AF$5:AF$1899,1,0),"")=AP61,"前二年申請有案","核符")))))) ->  | AV61: =IF(AU61="","",IFERROR(AU$4-LEFT(VLOOKUP(AU61,$C$6:$D$1899,2,0),2)-1,"未建檔")) ->  | AX61: =IF(AU61="","",IF(VLOOKUP(AU61,$C$6:$F$1899,4,0)="未符資格","未符資格",IF(VLOOKUP(AU61,$C$6:$F$1899,4,0)="一年一次","核符",IF(VLOOKUP(AU61,$C$6:$F$1899,4,0)="二年一次",IF(IFERROR(VLOOKUP(AU61,AP$5:AP$1899,1,0),"")=AU61,"前一年申請有案","核符"),IF(VLOOKUP(AU61,$C$6:$F$1899,4,0)="三年一次",IF(IFERROR(VLOOKUP(AU61,AP$5:AP$1899,1,0),"")&IFERROR(VLOOKUP(AU61,AK$5:AK$1899,1,0),"")=AU61,"前二年申請有案","核符")))))) ->  | BA61: =IF(AZ61="","",IFERROR(AZ$4-LEFT(VLOOKUP(AZ61,$C$6:$D$1899,2,0),2)-1,"未建檔")) ->  | BC61: =IF(AZ61="","",IF(VLOOKUP(AZ61,$C$6:$F$1899,4,0)="未符資格","未符資格",IF(VLOOKUP(AZ61,$C$6:$F$1899,4,0)="一年一次","核符",IF(VLOOKUP(AZ61,$C$6:$F$1899,4,0)="二年一次",IF(IFERROR(VLOOKUP(AZ61,AU$5:AU$1899,1,0),"")=AZ61,"前一年申請有案","核符"),IF(VLOOKUP(AZ61,$C$6:$F$1899,4,0)="三年一次",IF(IFERROR(VLOOKUP(AZ61,AU$5:AU$1899,1,0),"")&IFERROR(VLOOKUP(AZ61,AP$5:AP$1899,1,0),"")=AZ61,"前二年申請有案","核符")))))) -> 
A62: 57 | E62: =IF(C62="","",$Q$4-LEFT(D62,2)-1) ->  | H62: =IF(G62="","",IFERROR(G$4-LEFT(VLOOKUP(G62,$C$6:$D$1899,2,0),2)-1,"未建檔")) ->  | M62: =IF(L62="","",IFERROR(L$4-LEFT(VLOOKUP(L62,$C$6:$D$1899,2,0),2)-1,"未建檔")) ->  | R62: =IF(Q62="","",IFERROR(Q$4-LEFT(VLOOKUP(Q62,$C$6:$D$1899,2,0),2)-1,"未建檔")) ->  | T62: =IF(Q62="","",IF(VLOOKUP(Q62,$C$6:$F$1899,4,0)="未符資格","未符資格",IF(VLOOKUP(Q62,$C$6:$F$1899,4,0)="一年一次","核符",IF(VLOOKUP(Q62,$C$6:$F$1899,4,0)="二年一次",IF(IFERROR(VLOOKUP(Q62,L$5:L$1899,1,0),"")=Q62,"前一年申請有案","核符"),IF(VLOOKUP(Q62,$C$6:$F$1899,4,0)="三年一次",IF(IFERROR(VLOOKUP(Q62,L$5:L$1899,1,0),"")&IFERROR(VLOOKUP(Q62,G$5:G$1899,1,0),"")=Q62,"前二年申請有案","核符")))))) ->  | W62: =IF(V62="","",IFERROR(V$4-LEFT(VLOOKUP(V62,$C$6:$D$1899,2,0),2)-1,"未建檔")) ->  | Y62: =IF(V62="","",IF(VLOOKUP(V62,$C$6:$F$1899,4,0)="未符資格","未符資格",IF(VLOOKUP(V62,$C$6:$F$1899,4,0)="一年一次","核符",IF(VLOOKUP(V62,$C$6:$F$1899,4,0)="二年一次",IF(IFERROR(VLOOKUP(V62,Q$5:Q$1899,1,0),"")=V62,"前一年申請有案","核符"),IF(VLOOKUP(V62,$C$6:$F$1899,4,0)="三年一次",IF(IFERROR(VLOOKUP(V62,Q$5:Q$1899,1,0),"")&IFERROR(VLOOKUP(V62,L$5:L$1899,1,0),"")=V62,"前二年申請有案","核符")))))) ->  | AB62: =IF(AA62="","",IFERROR(AA$4-LEFT(VLOOKUP(AA62,$C$6:$D$1899,2,0),2)-1,"未建檔")) ->  | AD62: =IF(AA62="","",IF(VLOOKUP(AA62,$C$6:$F$1899,4,0)="未符資格","未符資格",IF(VLOOKUP(AA62,$C$6:$F$1899,4,0)="一年一次","核符",IF(VLOOKUP(AA62,$C$6:$F$1899,4,0)="二年一次",IF(IFERROR(VLOOKUP(AA62,V$5:V$1899,1,0),"")=AA62,"前一年申請有案","核符"),IF(VLOOKUP(AA62,$C$6:$F$1899,4,0)="三年一次",IF(IFERROR(VLOOKUP(AA62,V$5:V$1899,1,0),"")&IFERROR(VLOOKUP(AA62,Q$5:Q$1899,1,0),"")=AA62,"前二年申請有案","核符")))))) ->  | AG62: =IF(AF62="","",IFERROR(AF$4-LEFT(VLOOKUP(AF62,$C$6:$D$1899,2,0),2)-1,"未建檔")) ->  | AI62: =IF(AF62="","",IF(VLOOKUP(AF62,$C$6:$F$1899,4,0)="未符資格","未符資格",IF(VLOOKUP(AF62,$C$6:$F$1899,4,0)="一年一次","核符",IF(VLOOKUP(AF62,$C$6:$F$1899,4,0)="二年一次",IF(IFERROR(VLOOKUP(AF62,AA$5:AA$1899,1,0),"")=AF62,"前一年申請有案","核符"),IF(VLOOKUP(AF62,$C$6:$F$1899,4,0)="三年一次",IF(IFERROR(VLOOKUP(AF62,AA$5:AA$1899,1,0),"")&IFERROR(VLOOKUP(AF62,V$5:V$1899,1,0),"")=AF62,"前二年申請有案","核符")))))) ->  | AL62: =IF(AK62="","",IFERROR(AK$4-LEFT(VLOOKUP(AK62,$C$6:$D$1899,2,0),2)-1,"未建檔")) ->  | AN62: =IF(AK62="","",IF(VLOOKUP(AK62,$C$6:$F$1899,4,0)="未符資格","未符資格",IF(VLOOKUP(AK62,$C$6:$F$1899,4,0)="一年一次","核符",IF(VLOOKUP(AK62,$C$6:$F$1899,4,0)="二年一次",IF(IFERROR(VLOOKUP(AK62,AF$5:AF$1899,1,0),"")=AK62,"前一年申請有案","核符"),IF(VLOOKUP(AK62,$C$6:$F$1899,4,0)="三年一次",IF(IFERROR(VLOOKUP(AK62,AF$5:AF$1899,1,0),"")&IFERROR(VLOOKUP(AK62,AA$5:AA$1899,1,0),"")=AK62,"前二年申請有案","核符")))))) ->  | AQ62: =IF(AP62="","",IFERROR(AP$4-LEFT(VLOOKUP(AP62,$C$6:$D$1899,2,0),2)-1,"未建檔")) ->  | AS62: =IF(AP62="","",IF(VLOOKUP(AP62,$C$6:$F$1899,4,0)="未符資格","未符資格",IF(VLOOKUP(AP62,$C$6:$F$1899,4,0)="一年一次","核符",IF(VLOOKUP(AP62,$C$6:$F$1899,4,0)="二年一次",IF(IFERROR(VLOOKUP(AP62,AK$5:AK$1899,1,0),"")=AP62,"前一年申請有案","核符"),IF(VLOOKUP(AP62,$C$6:$F$1899,4,0)="三年一次",IF(IFERROR(VLOOKUP(AP62,AK$5:AK$1899,1,0),"")&IFERROR(VLOOKUP(AP62,AF$5:AF$1899,1,0),"")=AP62,"前二年申請有案","核符")))))) ->  | AV62: =IF(AU62="","",IFERROR(AU$4-LEFT(VLOOKUP(AU62,$C$6:$D$1899,2,0),2)-1,"未建檔")) ->  | AX62: =IF(AU62="","",IF(VLOOKUP(AU62,$C$6:$F$1899,4,0)="未符資格","未符資格",IF(VLOOKUP(AU62,$C$6:$F$1899,4,0)="一年一次","核符",IF(VLOOKUP(AU62,$C$6:$F$1899,4,0)="二年一次",IF(IFERROR(VLOOKUP(AU62,AP$5:AP$1899,1,0),"")=AU62,"前一年申請有案","核符"),IF(VLOOKUP(AU62,$C$6:$F$1899,4,0)="三年一次",IF(IFERROR(VLOOKUP(AU62,AP$5:AP$1899,1,0),"")&IFERROR(VLOOKUP(AU62,AK$5:AK$1899,1,0),"")=AU62,"前二年申請有案","核符")))))) ->  | BA62: =IF(AZ62="","",IFERROR(AZ$4-LEFT(VLOOKUP(AZ62,$C$6:$D$1899,2,0),2)-1,"未建檔")) ->  | BC62: =IF(AZ62="","",IF(VLOOKUP(AZ62,$C$6:$F$1899,4,0)="未符資格","未符資格",IF(VLOOKUP(AZ62,$C$6:$F$1899,4,0)="一年一次","核符",IF(VLOOKUP(AZ62,$C$6:$F$1899,4,0)="二年一次",IF(IFERROR(VLOOKUP(AZ62,AU$5:AU$1899,1,0),"")=AZ62,"前一年申請有案","核符"),IF(VLOOKUP(AZ62,$C$6:$F$1899,4,0)="三年一次",IF(IFERROR(VLOOKUP(AZ62,AU$5:AU$1899,1,0),"")&IFERROR(VLOOKUP(AZ62,AP$5:AP$1899,1,0),"")=AZ62,"前二年申請有案","核符")))))) -> 
A63: 58 | E63: =IF(C63="","",$Q$4-LEFT(D63,2)-1) ->  | H63: =IF(G63="","",IFERROR(G$4-LEFT(VLOOKUP(G63,$C$6:$D$1899,2,0),2)-1,"未建檔")) ->  | M63: =IF(L63="","",IFERROR(L$4-LEFT(VLOOKUP(L63,$C$6:$D$1899,2,0),2)-1,"未建檔")) ->  | R63: =IF(Q63="","",IFERROR(Q$4-LEFT(VLOOKUP(Q63,$C$6:$D$1899,2,0),2)-1,"未建檔")) ->  | T63: =IF(Q63="","",IF(VLOOKUP(Q63,$C$6:$F$1899,4,0)="未符資格","未符資格",IF(VLOOKUP(Q63,$C$6:$F$1899,4,0)="一年一次","核符",IF(VLOOKUP(Q63,$C$6:$F$1899,4,0)="二年一次",IF(IFERROR(VLOOKUP(Q63,L$5:L$1899,1,0),"")=Q63,"前一年申請有案","核符"),IF(VLOOKUP(Q63,$C$6:$F$1899,4,0)="三年一次",IF(IFERROR(VLOOKUP(Q63,L$5:L$1899,1,0),"")&IFERROR(VLOOKUP(Q63,G$5:G$1899,1,0),"")=Q63,"前二年申請有案","核符")))))) ->  | W63: =IF(V63="","",IFERROR(V$4-LEFT(VLOOKUP(V63,$C$6:$D$1899,2,0),2)-1,"未建檔")) ->  | Y63: =IF(V63="","",IF(VLOOKUP(V63,$C$6:$F$1899,4,0)="未符資格","未符資格",IF(VLOOKUP(V63,$C$6:$F$1899,4,0)="一年一次","核符",IF(VLOOKUP(V63,$C$6:$F$1899,4,0)="二年一次",IF(IFERROR(VLOOKUP(V63,Q$5:Q$1899,1,0),"")=V63,"前一年申請有案","核符"),IF(VLOOKUP(V63,$C$6:$F$1899,4,0)="三年一次",IF(IFERROR(VLOOKUP(V63,Q$5:Q$1899,1,0),"")&IFERROR(VLOOKUP(V63,L$5:L$1899,1,0),"")=V63,"前二年申請有案","核符")))))) ->  | AB63: =IF(AA63="","",IFERROR(AA$4-LEFT(VLOOKUP(AA63,$C$6:$D$1899,2,0),2)-1,"未建檔")) ->  | AD63: =IF(AA63="","",IF(VLOOKUP(AA63,$C$6:$F$1899,4,0)="未符資格","未符資格",IF(VLOOKUP(AA63,$C$6:$F$1899,4,0)="一年一次","核符",IF(VLOOKUP(AA63,$C$6:$F$1899,4,0)="二年一次",IF(IFERROR(VLOOKUP(AA63,V$5:V$1899,1,0),"")=AA63,"前一年申請有案","核符"),IF(VLOOKUP(AA63,$C$6:$F$1899,4,0)="三年一次",IF(IFERROR(VLOOKUP(AA63,V$5:V$1899,1,0),"")&IFERROR(VLOOKUP(AA63,Q$5:Q$1899,1,0),"")=AA63,"前二年申請有案","核符")))))) ->  | AG63: =IF(AF63="","",IFERROR(AF$4-LEFT(VLOOKUP(AF63,$C$6:$D$1899,2,0),2)-1,"未建檔")) ->  | AI63: =IF(AF63="","",IF(VLOOKUP(AF63,$C$6:$F$1899,4,0)="未符資格","未符資格",IF(VLOOKUP(AF63,$C$6:$F$1899,4,0)="一年一次","核符",IF(VLOOKUP(AF63,$C$6:$F$1899,4,0)="二年一次",IF(IFERROR(VLOOKUP(AF63,AA$5:AA$1899,1,0),"")=AF63,"前一年申請有案","核符"),IF(VLOOKUP(AF63,$C$6:$F$1899,4,0)="三年一次",IF(IFERROR(VLOOKUP(AF63,AA$5:AA$1899,1,0),"")&IFERROR(VLOOKUP(AF63,V$5:V$1899,1,0),"")=AF63,"前二年申請有案","核符")))))) ->  | AL63: =IF(AK63="","",IFERROR(AK$4-LEFT(VLOOKUP(AK63,$C$6:$D$1899,2,0),2)-1,"未建檔")) ->  | AN63: =IF(AK63="","",IF(VLOOKUP(AK63,$C$6:$F$1899,4,0)="未符資格","未符資格",IF(VLOOKUP(AK63,$C$6:$F$1899,4,0)="一年一次","核符",IF(VLOOKUP(AK63,$C$6:$F$1899,4,0)="二年一次",IF(IFERROR(VLOOKUP(AK63,AF$5:AF$1899,1,0),"")=AK63,"前一年申請有案","核符"),IF(VLOOKUP(AK63,$C$6:$F$1899,4,0)="三年一次",IF(IFERROR(VLOOKUP(AK63,AF$5:AF$1899,1,0),"")&IFERROR(VLOOKUP(AK63,AA$5:AA$1899,1,0),"")=AK63,"前二年申請有案","核符")))))) ->  | AQ63: =IF(AP63="","",IFERROR(AP$4-LEFT(VLOOKUP(AP63,$C$6:$D$1899,2,0),2)-1,"未建檔")) ->  | AS63: =IF(AP63="","",IF(VLOOKUP(AP63,$C$6:$F$1899,4,0)="未符資格","未符資格",IF(VLOOKUP(AP63,$C$6:$F$1899,4,0)="一年一次","核符",IF(VLOOKUP(AP63,$C$6:$F$1899,4,0)="二年一次",IF(IFERROR(VLOOKUP(AP63,AK$5:AK$1899,1,0),"")=AP63,"前一年申請有案","核符"),IF(VLOOKUP(AP63,$C$6:$F$1899,4,0)="三年一次",IF(IFERROR(VLOOKUP(AP63,AK$5:AK$1899,1,0),"")&IFERROR(VLOOKUP(AP63,AF$5:AF$1899,1,0),"")=AP63,"前二年申請有案","核符")))))) ->  | AV63: =IF(AU63="","",IFERROR(AU$4-LEFT(VLOOKUP(AU63,$C$6:$D$1899,2,0),2)-1,"未建檔")) ->  | AX63: =IF(AU63="","",IF(VLOOKUP(AU63,$C$6:$F$1899,4,0)="未符資格","未符資格",IF(VLOOKUP(AU63,$C$6:$F$1899,4,0)="一年一次","核符",IF(VLOOKUP(AU63,$C$6:$F$1899,4,0)="二年一次",IF(IFERROR(VLOOKUP(AU63,AP$5:AP$1899,1,0),"")=AU63,"前一年申請有案","核符"),IF(VLOOKUP(AU63,$C$6:$F$1899,4,0)="三年一次",IF(IFERROR(VLOOKUP(AU63,AP$5:AP$1899,1,0),"")&IFERROR(VLOOKUP(AU63,AK$5:AK$1899,1,0),"")=AU63,"前二年申請有案","核符")))))) ->  | BA63: =IF(AZ63="","",IFERROR(AZ$4-LEFT(VLOOKUP(AZ63,$C$6:$D$1899,2,0),2)-1,"未建檔")) ->  | BC63: =IF(AZ63="","",IF(VLOOKUP(AZ63,$C$6:$F$1899,4,0)="未符資格","未符資格",IF(VLOOKUP(AZ63,$C$6:$F$1899,4,0)="一年一次","核符",IF(VLOOKUP(AZ63,$C$6:$F$1899,4,0)="二年一次",IF(IFERROR(VLOOKUP(AZ63,AU$5:AU$1899,1,0),"")=AZ63,"前一年申請有案","核符"),IF(VLOOKUP(AZ63,$C$6:$F$1899,4,0)="三年一次",IF(IFERROR(VLOOKUP(AZ63,AU$5:AU$1899,1,0),"")&IFERROR(VLOOKUP(AZ63,AP$5:AP$1899,1,0),"")=AZ63,"前二年申請有案","核符")))))) -> 
A64: 59 | E64: =IF(C64="","",$Q$4-LEFT(D64,2)-1) ->  | H64: =IF(G64="","",IFERROR(G$4-LEFT(VLOOKUP(G64,$C$6:$D$1899,2,0),2)-1,"未建檔")) ->  | M64: =IF(L64="","",IFERROR(L$4-LEFT(VLOOKUP(L64,$C$6:$D$1899,2,0),2)-1,"未建檔")) ->  | R64: =IF(Q64="","",IFERROR(Q$4-LEFT(VLOOKUP(Q64,$C$6:$D$1899,2,0),2)-1,"未建檔")) ->  | T64: =IF(Q64="","",IF(VLOOKUP(Q64,$C$6:$F$1899,4,0)="未符資格","未符資格",IF(VLOOKUP(Q64,$C$6:$F$1899,4,0)="一年一次","核符",IF(VLOOKUP(Q64,$C$6:$F$1899,4,0)="二年一次",IF(IFERROR(VLOOKUP(Q64,L$5:L$1899,1,0),"")=Q64,"前一年申請有案","核符"),IF(VLOOKUP(Q64,$C$6:$F$1899,4,0)="三年一次",IF(IFERROR(VLOOKUP(Q64,L$5:L$1899,1,0),"")&IFERROR(VLOOKUP(Q64,G$5:G$1899,1,0),"")=Q64,"前二年申請有案","核符")))))) ->  | W64: =IF(V64="","",IFERROR(V$4-LEFT(VLOOKUP(V64,$C$6:$D$1899,2,0),2)-1,"未建檔")) ->  | Y64: =IF(V64="","",IF(VLOOKUP(V64,$C$6:$F$1899,4,0)="未符資格","未符資格",IF(VLOOKUP(V64,$C$6:$F$1899,4,0)="一年一次","核符",IF(VLOOKUP(V64,$C$6:$F$1899,4,0)="二年一次",IF(IFERROR(VLOOKUP(V64,Q$5:Q$1899,1,0),"")=V64,"前一年申請有案","核符"),IF(VLOOKUP(V64,$C$6:$F$1899,4,0)="三年一次",IF(IFERROR(VLOOKUP(V64,Q$5:Q$1899,1,0),"")&IFERROR(VLOOKUP(V64,L$5:L$1899,1,0),"")=V64,"前二年申請有案","核符")))))) ->  | AB64: =IF(AA64="","",IFERROR(AA$4-LEFT(VLOOKUP(AA64,$C$6:$D$1899,2,0),2)-1,"未建檔")) ->  | AD64: =IF(AA64="","",IF(VLOOKUP(AA64,$C$6:$F$1899,4,0)="未符資格","未符資格",IF(VLOOKUP(AA64,$C$6:$F$1899,4,0)="一年一次","核符",IF(VLOOKUP(AA64,$C$6:$F$1899,4,0)="二年一次",IF(IFERROR(VLOOKUP(AA64,V$5:V$1899,1,0),"")=AA64,"前一年申請有案","核符"),IF(VLOOKUP(AA64,$C$6:$F$1899,4,0)="三年一次",IF(IFERROR(VLOOKUP(AA64,V$5:V$1899,1,0),"")&IFERROR(VLOOKUP(AA64,Q$5:Q$1899,1,0),"")=AA64,"前二年申請有案","核符")))))) ->  | AG64: =IF(AF64="","",IFERROR(AF$4-LEFT(VLOOKUP(AF64,$C$6:$D$1899,2,0),2)-1,"未建檔")) ->  | AI64: =IF(AF64="","",IF(VLOOKUP(AF64,$C$6:$F$1899,4,0)="未符資格","未符資格",IF(VLOOKUP(AF64,$C$6:$F$1899,4,0)="一年一次","核符",IF(VLOOKUP(AF64,$C$6:$F$1899,4,0)="二年一次",IF(IFERROR(VLOOKUP(AF64,AA$5:AA$1899,1,0),"")=AF64,"前一年申請有案","核符"),IF(VLOOKUP(AF64,$C$6:$F$1899,4,0)="三年一次",IF(IFERROR(VLOOKUP(AF64,AA$5:AA$1899,1,0),"")&IFERROR(VLOOKUP(AF64,V$5:V$1899,1,0),"")=AF64,"前二年申請有案","核符")))))) ->  | AL64: =IF(AK64="","",IFERROR(AK$4-LEFT(VLOOKUP(AK64,$C$6:$D$1899,2,0),2)-1,"未建檔")) ->  | AN64: =IF(AK64="","",IF(VLOOKUP(AK64,$C$6:$F$1899,4,0)="未符資格","未符資格",IF(VLOOKUP(AK64,$C$6:$F$1899,4,0)="一年一次","核符",IF(VLOOKUP(AK64,$C$6:$F$1899,4,0)="二年一次",IF(IFERROR(VLOOKUP(AK64,AF$5:AF$1899,1,0),"")=AK64,"前一年申請有案","核符"),IF(VLOOKUP(AK64,$C$6:$F$1899,4,0)="三年一次",IF(IFERROR(VLOOKUP(AK64,AF$5:AF$1899,1,0),"")&IFERROR(VLOOKUP(AK64,AA$5:AA$1899,1,0),"")=AK64,"前二年申請有案","核符")))))) ->  | AQ64: =IF(AP64="","",IFERROR(AP$4-LEFT(VLOOKUP(AP64,$C$6:$D$1899,2,0),2)-1,"未建檔")) ->  | AS64: =IF(AP64="","",IF(VLOOKUP(AP64,$C$6:$F$1899,4,0)="未符資格","未符資格",IF(VLOOKUP(AP64,$C$6:$F$1899,4,0)="一年一次","核符",IF(VLOOKUP(AP64,$C$6:$F$1899,4,0)="二年一次",IF(IFERROR(VLOOKUP(AP64,AK$5:AK$1899,1,0),"")=AP64,"前一年申請有案","核符"),IF(VLOOKUP(AP64,$C$6:$F$1899,4,0)="三年一次",IF(IFERROR(VLOOKUP(AP64,AK$5:AK$1899,1,0),"")&IFERROR(VLOOKUP(AP64,AF$5:AF$1899,1,0),"")=AP64,"前二年申請有案","核符")))))) ->  | AV64: =IF(AU64="","",IFERROR(AU$4-LEFT(VLOOKUP(AU64,$C$6:$D$1899,2,0),2)-1,"未建檔")) ->  | AX64: =IF(AU64="","",IF(VLOOKUP(AU64,$C$6:$F$1899,4,0)="未符資格","未符資格",IF(VLOOKUP(AU64,$C$6:$F$1899,4,0)="一年一次","核符",IF(VLOOKUP(AU64,$C$6:$F$1899,4,0)="二年一次",IF(IFERROR(VLOOKUP(AU64,AP$5:AP$1899,1,0),"")=AU64,"前一年申請有案","核符"),IF(VLOOKUP(AU64,$C$6:$F$1899,4,0)="三年一次",IF(IFERROR(VLOOKUP(AU64,AP$5:AP$1899,1,0),"")&IFERROR(VLOOKUP(AU64,AK$5:AK$1899,1,0),"")=AU64,"前二年申請有案","核符")))))) ->  | BA64: =IF(AZ64="","",IFERROR(AZ$4-LEFT(VLOOKUP(AZ64,$C$6:$D$1899,2,0),2)-1,"未建檔")) ->  | BC64: =IF(AZ64="","",IF(VLOOKUP(AZ64,$C$6:$F$1899,4,0)="未符資格","未符資格",IF(VLOOKUP(AZ64,$C$6:$F$1899,4,0)="一年一次","核符",IF(VLOOKUP(AZ64,$C$6:$F$1899,4,0)="二年一次",IF(IFERROR(VLOOKUP(AZ64,AU$5:AU$1899,1,0),"")=AZ64,"前一年申請有案","核符"),IF(VLOOKUP(AZ64,$C$6:$F$1899,4,0)="三年一次",IF(IFERROR(VLOOKUP(AZ64,AU$5:AU$1899,1,0),"")&IFERROR(VLOOKUP(AZ64,AP$5:AP$1899,1,0),"")=AZ64,"前二年申請有案","核符")))))) -> 
A65: 60 | E65: =IF(C65="","",$Q$4-LEFT(D65,2)-1) ->  | H65: =IF(G65="","",IFERROR(G$4-LEFT(VLOOKUP(G65,$C$6:$D$1899,2,0),2)-1,"未建檔")) ->  | M65: =IF(L65="","",IFERROR(L$4-LEFT(VLOOKUP(L65,$C$6:$D$1899,2,0),2)-1,"未建檔")) ->  | R65: =IF(Q65="","",IFERROR(Q$4-LEFT(VLOOKUP(Q65,$C$6:$D$1899,2,0),2)-1,"未建檔")) ->  | T65: =IF(Q65="","",IF(VLOOKUP(Q65,$C$6:$F$1899,4,0)="未符資格","未符資格",IF(VLOOKUP(Q65,$C$6:$F$1899,4,0)="一年一次","核符",IF(VLOOKUP(Q65,$C$6:$F$1899,4,0)="二年一次",IF(IFERROR(VLOOKUP(Q65,L$5:L$1899,1,0),"")=Q65,"前一年申請有案","核符"),IF(VLOOKUP(Q65,$C$6:$F$1899,4,0)="三年一次",IF(IFERROR(VLOOKUP(Q65,L$5:L$1899,1,0),"")&IFERROR(VLOOKUP(Q65,G$5:G$1899,1,0),"")=Q65,"前二年申請有案","核符")))))) ->  | W65: =IF(V65="","",IFERROR(V$4-LEFT(VLOOKUP(V65,$C$6:$D$1899,2,0),2)-1,"未建檔")) ->  | Y65: =IF(V65="","",IF(VLOOKUP(V65,$C$6:$F$1899,4,0)="未符資格","未符資格",IF(VLOOKUP(V65,$C$6:$F$1899,4,0)="一年一次","核符",IF(VLOOKUP(V65,$C$6:$F$1899,4,0)="二年一次",IF(IFERROR(VLOOKUP(V65,Q$5:Q$1899,1,0),"")=V65,"前一年申請有案","核符"),IF(VLOOKUP(V65,$C$6:$F$1899,4,0)="三年一次",IF(IFERROR(VLOOKUP(V65,Q$5:Q$1899,1,0),"")&IFERROR(VLOOKUP(V65,L$5:L$1899,1,0),"")=V65,"前二年申請有案","核符")))))) ->  | AB65: =IF(AA65="","",IFERROR(AA$4-LEFT(VLOOKUP(AA65,$C$6:$D$1899,2,0),2)-1,"未建檔")) ->  | AD65: =IF(AA65="","",IF(VLOOKUP(AA65,$C$6:$F$1899,4,0)="未符資格","未符資格",IF(VLOOKUP(AA65,$C$6:$F$1899,4,0)="一年一次","核符",IF(VLOOKUP(AA65,$C$6:$F$1899,4,0)="二年一次",IF(IFERROR(VLOOKUP(AA65,V$5:V$1899,1,0),"")=AA65,"前一年申請有案","核符"),IF(VLOOKUP(AA65,$C$6:$F$1899,4,0)="三年一次",IF(IFERROR(VLOOKUP(AA65,V$5:V$1899,1,0),"")&IFERROR(VLOOKUP(AA65,Q$5:Q$1899,1,0),"")=AA65,"前二年申請有案","核符")))))) ->  | AG65: =IF(AF65="","",IFERROR(AF$4-LEFT(VLOOKUP(AF65,$C$6:$D$1899,2,0),2)-1,"未建檔")) ->  | AI65: =IF(AF65="","",IF(VLOOKUP(AF65,$C$6:$F$1899,4,0)="未符資格","未符資格",IF(VLOOKUP(AF65,$C$6:$F$1899,4,0)="一年一次","核符",IF(VLOOKUP(AF65,$C$6:$F$1899,4,0)="二年一次",IF(IFERROR(VLOOKUP(AF65,AA$5:AA$1899,1,0),"")=AF65,"前一年申請有案","核符"),IF(VLOOKUP(AF65,$C$6:$F$1899,4,0)="三年一次",IF(IFERROR(VLOOKUP(AF65,AA$5:AA$1899,1,0),"")&IFERROR(VLOOKUP(AF65,V$5:V$1899,1,0),"")=AF65,"前二年申請有案","核符")))))) ->  | AL65: =IF(AK65="","",IFERROR(AK$4-LEFT(VLOOKUP(AK65,$C$6:$D$1899,2,0),2)-1,"未建檔")) ->  | AN65: =IF(AK65="","",IF(VLOOKUP(AK65,$C$6:$F$1899,4,0)="未符資格","未符資格",IF(VLOOKUP(AK65,$C$6:$F$1899,4,0)="一年一次","核符",IF(VLOOKUP(AK65,$C$6:$F$1899,4,0)="二年一次",IF(IFERROR(VLOOKUP(AK65,AF$5:AF$1899,1,0),"")=AK65,"前一年申請有案","核符"),IF(VLOOKUP(AK65,$C$6:$F$1899,4,0)="三年一次",IF(IFERROR(VLOOKUP(AK65,AF$5:AF$1899,1,0),"")&IFERROR(VLOOKUP(AK65,AA$5:AA$1899,1,0),"")=AK65,"前二年申請有案","核符")))))) ->  | AQ65: =IF(AP65="","",IFERROR(AP$4-LEFT(VLOOKUP(AP65,$C$6:$D$1899,2,0),2)-1,"未建檔")) ->  | AS65: =IF(AP65="","",IF(VLOOKUP(AP65,$C$6:$F$1899,4,0)="未符資格","未符資格",IF(VLOOKUP(AP65,$C$6:$F$1899,4,0)="一年一次","核符",IF(VLOOKUP(AP65,$C$6:$F$1899,4,0)="二年一次",IF(IFERROR(VLOOKUP(AP65,AK$5:AK$1899,1,0),"")=AP65,"前一年申請有案","核符"),IF(VLOOKUP(AP65,$C$6:$F$1899,4,0)="三年一次",IF(IFERROR(VLOOKUP(AP65,AK$5:AK$1899,1,0),"")&IFERROR(VLOOKUP(AP65,AF$5:AF$1899,1,0),"")=AP65,"前二年申請有案","核符")))))) ->  | AV65: =IF(AU65="","",IFERROR(AU$4-LEFT(VLOOKUP(AU65,$C$6:$D$1899,2,0),2)-1,"未建檔")) ->  | AX65: =IF(AU65="","",IF(VLOOKUP(AU65,$C$6:$F$1899,4,0)="未符資格","未符資格",IF(VLOOKUP(AU65,$C$6:$F$1899,4,0)="一年一次","核符",IF(VLOOKUP(AU65,$C$6:$F$1899,4,0)="二年一次",IF(IFERROR(VLOOKUP(AU65,AP$5:AP$1899,1,0),"")=AU65,"前一年申請有案","核符"),IF(VLOOKUP(AU65,$C$6:$F$1899,4,0)="三年一次",IF(IFERROR(VLOOKUP(AU65,AP$5:AP$1899,1,0),"")&IFERROR(VLOOKUP(AU65,AK$5:AK$1899,1,0),"")=AU65,"前二年申請有案","核符")))))) ->  | BA65: =IF(AZ65="","",IFERROR(AZ$4-LEFT(VLOOKUP(AZ65,$C$6:$D$1899,2,0),2)-1,"未建檔")) ->  | BC65: =IF(AZ65="","",IF(VLOOKUP(AZ65,$C$6:$F$1899,4,0)="未符資格","未符資格",IF(VLOOKUP(AZ65,$C$6:$F$1899,4,0)="一年一次","核符",IF(VLOOKUP(AZ65,$C$6:$F$1899,4,0)="二年一次",IF(IFERROR(VLOOKUP(AZ65,AU$5:AU$1899,1,0),"")=AZ65,"前一年申請有案","核符"),IF(VLOOKUP(AZ65,$C$6:$F$1899,4,0)="三年一次",IF(IFERROR(VLOOKUP(AZ65,AU$5:AU$1899,1,0),"")&IFERROR(VLOOKUP(AZ65,AP$5:AP$1899,1,0),"")=AZ65,"前二年申請有案","核符")))))) -> 
A66: 61 | E66: =IF(C66="","",$Q$4-LEFT(D66,2)-1) ->  | H66: =IF(G66="","",IFERROR(G$4-LEFT(VLOOKUP(G66,$C$6:$D$1899,2,0),2)-1,"未建檔")) ->  | M66: =IF(L66="","",IFERROR(L$4-LEFT(VLOOKUP(L66,$C$6:$D$1899,2,0),2)-1,"未建檔")) ->  | R66: =IF(Q66="","",IFERROR(Q$4-LEFT(VLOOKUP(Q66,$C$6:$D$1899,2,0),2)-1,"未建檔")) ->  | T66: =IF(Q66="","",IF(VLOOKUP(Q66,$C$6:$F$1899,4,0)="未符資格","未符資格",IF(VLOOKUP(Q66,$C$6:$F$1899,4,0)="一年一次","核符",IF(VLOOKUP(Q66,$C$6:$F$1899,4,0)="二年一次",IF(IFERROR(VLOOKUP(Q66,L$5:L$1899,1,0),"")=Q66,"前一年申請有案","核符"),IF(VLOOKUP(Q66,$C$6:$F$1899,4,0)="三年一次",IF(IFERROR(VLOOKUP(Q66,L$5:L$1899,1,0),"")&IFERROR(VLOOKUP(Q66,G$5:G$1899,1,0),"")=Q66,"前二年申請有案","核符")))))) ->  | W66: =IF(V66="","",IFERROR(V$4-LEFT(VLOOKUP(V66,$C$6:$D$1899,2,0),2)-1,"未建檔")) ->  | Y66: =IF(V66="","",IF(VLOOKUP(V66,$C$6:$F$1899,4,0)="未符資格","未符資格",IF(VLOOKUP(V66,$C$6:$F$1899,4,0)="一年一次","核符",IF(VLOOKUP(V66,$C$6:$F$1899,4,0)="二年一次",IF(IFERROR(VLOOKUP(V66,Q$5:Q$1899,1,0),"")=V66,"前一年申請有案","核符"),IF(VLOOKUP(V66,$C$6:$F$1899,4,0)="三年一次",IF(IFERROR(VLOOKUP(V66,Q$5:Q$1899,1,0),"")&IFERROR(VLOOKUP(V66,L$5:L$1899,1,0),"")=V66,"前二年申請有案","核符")))))) ->  | AB66: =IF(AA66="","",IFERROR(AA$4-LEFT(VLOOKUP(AA66,$C$6:$D$1899,2,0),2)-1,"未建檔")) ->  | AD66: =IF(AA66="","",IF(VLOOKUP(AA66,$C$6:$F$1899,4,0)="未符資格","未符資格",IF(VLOOKUP(AA66,$C$6:$F$1899,4,0)="一年一次","核符",IF(VLOOKUP(AA66,$C$6:$F$1899,4,0)="二年一次",IF(IFERROR(VLOOKUP(AA66,V$5:V$1899,1,0),"")=AA66,"前一年申請有案","核符"),IF(VLOOKUP(AA66,$C$6:$F$1899,4,0)="三年一次",IF(IFERROR(VLOOKUP(AA66,V$5:V$1899,1,0),"")&IFERROR(VLOOKUP(AA66,Q$5:Q$1899,1,0),"")=AA66,"前二年申請有案","核符")))))) ->  | AG66: =IF(AF66="","",IFERROR(AF$4-LEFT(VLOOKUP(AF66,$C$6:$D$1899,2,0),2)-1,"未建檔")) ->  | AI66: =IF(AF66="","",IF(VLOOKUP(AF66,$C$6:$F$1899,4,0)="未符資格","未符資格",IF(VLOOKUP(AF66,$C$6:$F$1899,4,0)="一年一次","核符",IF(VLOOKUP(AF66,$C$6:$F$1899,4,0)="二年一次",IF(IFERROR(VLOOKUP(AF66,AA$5:AA$1899,1,0),"")=AF66,"前一年申請有案","核符"),IF(VLOOKUP(AF66,$C$6:$F$1899,4,0)="三年一次",IF(IFERROR(VLOOKUP(AF66,AA$5:AA$1899,1,0),"")&IFERROR(VLOOKUP(AF66,V$5:V$1899,1,0),"")=AF66,"前二年申請有案","核符")))))) ->  | AL66: =IF(AK66="","",IFERROR(AK$4-LEFT(VLOOKUP(AK66,$C$6:$D$1899,2,0),2)-1,"未建檔")) ->  | AN66: =IF(AK66="","",IF(VLOOKUP(AK66,$C$6:$F$1899,4,0)="未符資格","未符資格",IF(VLOOKUP(AK66,$C$6:$F$1899,4,0)="一年一次","核符",IF(VLOOKUP(AK66,$C$6:$F$1899,4,0)="二年一次",IF(IFERROR(VLOOKUP(AK66,AF$5:AF$1899,1,0),"")=AK66,"前一年申請有案","核符"),IF(VLOOKUP(AK66,$C$6:$F$1899,4,0)="三年一次",IF(IFERROR(VLOOKUP(AK66,AF$5:AF$1899,1,0),"")&IFERROR(VLOOKUP(AK66,AA$5:AA$1899,1,0),"")=AK66,"前二年申請有案","核符")))))) ->  | AQ66: =IF(AP66="","",IFERROR(AP$4-LEFT(VLOOKUP(AP66,$C$6:$D$1899,2,0),2)-1,"未建檔")) ->  | AS66: =IF(AP66="","",IF(VLOOKUP(AP66,$C$6:$F$1899,4,0)="未符資格","未符資格",IF(VLOOKUP(AP66,$C$6:$F$1899,4,0)="一年一次","核符",IF(VLOOKUP(AP66,$C$6:$F$1899,4,0)="二年一次",IF(IFERROR(VLOOKUP(AP66,AK$5:AK$1899,1,0),"")=AP66,"前一年申請有案","核符"),IF(VLOOKUP(AP66,$C$6:$F$1899,4,0)="三年一次",IF(IFERROR(VLOOKUP(AP66,AK$5:AK$1899,1,0),"")&IFERROR(VLOOKUP(AP66,AF$5:AF$1899,1,0),"")=AP66,"前二年申請有案","核符")))))) ->  | AV66: =IF(AU66="","",IFERROR(AU$4-LEFT(VLOOKUP(AU66,$C$6:$D$1899,2,0),2)-1,"未建檔")) ->  | AX66: =IF(AU66="","",IF(VLOOKUP(AU66,$C$6:$F$1899,4,0)="未符資格","未符資格",IF(VLOOKUP(AU66,$C$6:$F$1899,4,0)="一年一次","核符",IF(VLOOKUP(AU66,$C$6:$F$1899,4,0)="二年一次",IF(IFERROR(VLOOKUP(AU66,AP$5:AP$1899,1,0),"")=AU66,"前一年申請有案","核符"),IF(VLOOKUP(AU66,$C$6:$F$1899,4,0)="三年一次",IF(IFERROR(VLOOKUP(AU66,AP$5:AP$1899,1,0),"")&IFERROR(VLOOKUP(AU66,AK$5:AK$1899,1,0),"")=AU66,"前二年申請有案","核符")))))) ->  | BA66: =IF(AZ66="","",IFERROR(AZ$4-LEFT(VLOOKUP(AZ66,$C$6:$D$1899,2,0),2)-1,"未建檔")) ->  | BC66: =IF(AZ66="","",IF(VLOOKUP(AZ66,$C$6:$F$1899,4,0)="未符資格","未符資格",IF(VLOOKUP(AZ66,$C$6:$F$1899,4,0)="一年一次","核符",IF(VLOOKUP(AZ66,$C$6:$F$1899,4,0)="二年一次",IF(IFERROR(VLOOKUP(AZ66,AU$5:AU$1899,1,0),"")=AZ66,"前一年申請有案","核符"),IF(VLOOKUP(AZ66,$C$6:$F$1899,4,0)="三年一次",IF(IFERROR(VLOOKUP(AZ66,AU$5:AU$1899,1,0),"")&IFERROR(VLOOKUP(AZ66,AP$5:AP$1899,1,0),"")=AZ66,"前二年申請有案","核符")))))) -> 
A67: 62 | E67: =IF(C67="","",$Q$4-LEFT(D67,2)-1) ->  | H67: =IF(G67="","",IFERROR(G$4-LEFT(VLOOKUP(G67,$C$6:$D$1899,2,0),2)-1,"未建檔")) ->  | M67: =IF(L67="","",IFERROR(L$4-LEFT(VLOOKUP(L67,$C$6:$D$1899,2,0),2)-1,"未建檔")) ->  | R67: =IF(Q67="","",IFERROR(Q$4-LEFT(VLOOKUP(Q67,$C$6:$D$1899,2,0),2)-1,"未建檔")) ->  | T67: =IF(Q67="","",IF(VLOOKUP(Q67,$C$6:$F$1899,4,0)="未符資格","未符資格",IF(VLOOKUP(Q67,$C$6:$F$1899,4,0)="一年一次","核符",IF(VLOOKUP(Q67,$C$6:$F$1899,4,0)="二年一次",IF(IFERROR(VLOOKUP(Q67,L$5:L$1899,1,0),"")=Q67,"前一年申請有案","核符"),IF(VLOOKUP(Q67,$C$6:$F$1899,4,0)="三年一次",IF(IFERROR(VLOOKUP(Q67,L$5:L$1899,1,0),"")&IFERROR(VLOOKUP(Q67,G$5:G$1899,1,0),"")=Q67,"前二年申請有案","核符")))))) ->  | W67: =IF(V67="","",IFERROR(V$4-LEFT(VLOOKUP(V67,$C$6:$D$1899,2,0),2)-1,"未建檔")) ->  | Y67: =IF(V67="","",IF(VLOOKUP(V67,$C$6:$F$1899,4,0)="未符資格","未符資格",IF(VLOOKUP(V67,$C$6:$F$1899,4,0)="一年一次","核符",IF(VLOOKUP(V67,$C$6:$F$1899,4,0)="二年一次",IF(IFERROR(VLOOKUP(V67,Q$5:Q$1899,1,0),"")=V67,"前一年申請有案","核符"),IF(VLOOKUP(V67,$C$6:$F$1899,4,0)="三年一次",IF(IFERROR(VLOOKUP(V67,Q$5:Q$1899,1,0),"")&IFERROR(VLOOKUP(V67,L$5:L$1899,1,0),"")=V67,"前二年申請有案","核符")))))) ->  | AB67: =IF(AA67="","",IFERROR(AA$4-LEFT(VLOOKUP(AA67,$C$6:$D$1899,2,0),2)-1,"未建檔")) ->  | AD67: =IF(AA67="","",IF(VLOOKUP(AA67,$C$6:$F$1899,4,0)="未符資格","未符資格",IF(VLOOKUP(AA67,$C$6:$F$1899,4,0)="一年一次","核符",IF(VLOOKUP(AA67,$C$6:$F$1899,4,0)="二年一次",IF(IFERROR(VLOOKUP(AA67,V$5:V$1899,1,0),"")=AA67,"前一年申請有案","核符"),IF(VLOOKUP(AA67,$C$6:$F$1899,4,0)="三年一次",IF(IFERROR(VLOOKUP(AA67,V$5:V$1899,1,0),"")&IFERROR(VLOOKUP(AA67,Q$5:Q$1899,1,0),"")=AA67,"前二年申請有案","核符")))))) ->  | AG67: =IF(AF67="","",IFERROR(AF$4-LEFT(VLOOKUP(AF67,$C$6:$D$1899,2,0),2)-1,"未建檔")) ->  | AI67: =IF(AF67="","",IF(VLOOKUP(AF67,$C$6:$F$1899,4,0)="未符資格","未符資格",IF(VLOOKUP(AF67,$C$6:$F$1899,4,0)="一年一次","核符",IF(VLOOKUP(AF67,$C$6:$F$1899,4,0)="二年一次",IF(IFERROR(VLOOKUP(AF67,AA$5:AA$1899,1,0),"")=AF67,"前一年申請有案","核符"),IF(VLOOKUP(AF67,$C$6:$F$1899,4,0)="三年一次",IF(IFERROR(VLOOKUP(AF67,AA$5:AA$1899,1,0),"")&IFERROR(VLOOKUP(AF67,V$5:V$1899,1,0),"")=AF67,"前二年申請有案","核符")))))) ->  | AL67: =IF(AK67="","",IFERROR(AK$4-LEFT(VLOOKUP(AK67,$C$6:$D$1899,2,0),2)-1,"未建檔")) ->  | AN67: =IF(AK67="","",IF(VLOOKUP(AK67,$C$6:$F$1899,4,0)="未符資格","未符資格",IF(VLOOKUP(AK67,$C$6:$F$1899,4,0)="一年一次","核符",IF(VLOOKUP(AK67,$C$6:$F$1899,4,0)="二年一次",IF(IFERROR(VLOOKUP(AK67,AF$5:AF$1899,1,0),"")=AK67,"前一年申請有案","核符"),IF(VLOOKUP(AK67,$C$6:$F$1899,4,0)="三年一次",IF(IFERROR(VLOOKUP(AK67,AF$5:AF$1899,1,0),"")&IFERROR(VLOOKUP(AK67,AA$5:AA$1899,1,0),"")=AK67,"前二年申請有案","核符")))))) ->  | AQ67: =IF(AP67="","",IFERROR(AP$4-LEFT(VLOOKUP(AP67,$C$6:$D$1899,2,0),2)-1,"未建檔")) ->  | AS67: =IF(AP67="","",IF(VLOOKUP(AP67,$C$6:$F$1899,4,0)="未符資格","未符資格",IF(VLOOKUP(AP67,$C$6:$F$1899,4,0)="一年一次","核符",IF(VLOOKUP(AP67,$C$6:$F$1899,4,0)="二年一次",IF(IFERROR(VLOOKUP(AP67,AK$5:AK$1899,1,0),"")=AP67,"前一年申請有案","核符"),IF(VLOOKUP(AP67,$C$6:$F$1899,4,0)="三年一次",IF(IFERROR(VLOOKUP(AP67,AK$5:AK$1899,1,0),"")&IFERROR(VLOOKUP(AP67,AF$5:AF$1899,1,0),"")=AP67,"前二年申請有案","核符")))))) ->  | AV67: =IF(AU67="","",IFERROR(AU$4-LEFT(VLOOKUP(AU67,$C$6:$D$1899,2,0),2)-1,"未建檔")) ->  | AX67: =IF(AU67="","",IF(VLOOKUP(AU67,$C$6:$F$1899,4,0)="未符資格","未符資格",IF(VLOOKUP(AU67,$C$6:$F$1899,4,0)="一年一次","核符",IF(VLOOKUP(AU67,$C$6:$F$1899,4,0)="二年一次",IF(IFERROR(VLOOKUP(AU67,AP$5:AP$1899,1,0),"")=AU67,"前一年申請有案","核符"),IF(VLOOKUP(AU67,$C$6:$F$1899,4,0)="三年一次",IF(IFERROR(VLOOKUP(AU67,AP$5:AP$1899,1,0),"")&IFERROR(VLOOKUP(AU67,AK$5:AK$1899,1,0),"")=AU67,"前二年申請有案","核符")))))) ->  | BA67: =IF(AZ67="","",IFERROR(AZ$4-LEFT(VLOOKUP(AZ67,$C$6:$D$1899,2,0),2)-1,"未建檔")) ->  | BC67: =IF(AZ67="","",IF(VLOOKUP(AZ67,$C$6:$F$1899,4,0)="未符資格","未符資格",IF(VLOOKUP(AZ67,$C$6:$F$1899,4,0)="一年一次","核符",IF(VLOOKUP(AZ67,$C$6:$F$1899,4,0)="二年一次",IF(IFERROR(VLOOKUP(AZ67,AU$5:AU$1899,1,0),"")=AZ67,"前一年申請有案","核符"),IF(VLOOKUP(AZ67,$C$6:$F$1899,4,0)="三年一次",IF(IFERROR(VLOOKUP(AZ67,AU$5:AU$1899,1,0),"")&IFERROR(VLOOKUP(AZ67,AP$5:AP$1899,1,0),"")=AZ67,"前二年申請有案","核符")))))) -> 
A68: 63 | E68: =IF(C68="","",$Q$4-LEFT(D68,2)-1) ->  | H68: =IF(G68="","",IFERROR(G$4-LEFT(VLOOKUP(G68,$C$6:$D$1899,2,0),2)-1,"未建檔")) ->  | M68: =IF(L68="","",IFERROR(L$4-LEFT(VLOOKUP(L68,$C$6:$D$1899,2,0),2)-1,"未建檔")) ->  | R68: =IF(Q68="","",IFERROR(Q$4-LEFT(VLOOKUP(Q68,$C$6:$D$1899,2,0),2)-1,"未建檔")) ->  | T68: =IF(Q68="","",IF(VLOOKUP(Q68,$C$6:$F$1899,4,0)="未符資格","未符資格",IF(VLOOKUP(Q68,$C$6:$F$1899,4,0)="一年一次","核符",IF(VLOOKUP(Q68,$C$6:$F$1899,4,0)="二年一次",IF(IFERROR(VLOOKUP(Q68,L$5:L$1899,1,0),"")=Q68,"前一年申請有案","核符"),IF(VLOOKUP(Q68,$C$6:$F$1899,4,0)="三年一次",IF(IFERROR(VLOOKUP(Q68,L$5:L$1899,1,0),"")&IFERROR(VLOOKUP(Q68,G$5:G$1899,1,0),"")=Q68,"前二年申請有案","核符")))))) ->  | W68: =IF(V68="","",IFERROR(V$4-LEFT(VLOOKUP(V68,$C$6:$D$1899,2,0),2)-1,"未建檔")) ->  | Y68: =IF(V68="","",IF(VLOOKUP(V68,$C$6:$F$1899,4,0)="未符資格","未符資格",IF(VLOOKUP(V68,$C$6:$F$1899,4,0)="一年一次","核符",IF(VLOOKUP(V68,$C$6:$F$1899,4,0)="二年一次",IF(IFERROR(VLOOKUP(V68,Q$5:Q$1899,1,0),"")=V68,"前一年申請有案","核符"),IF(VLOOKUP(V68,$C$6:$F$1899,4,0)="三年一次",IF(IFERROR(VLOOKUP(V68,Q$5:Q$1899,1,0),"")&IFERROR(VLOOKUP(V68,L$5:L$1899,1,0),"")=V68,"前二年申請有案","核符")))))) ->  | AB68: =IF(AA68="","",IFERROR(AA$4-LEFT(VLOOKUP(AA68,$C$6:$D$1899,2,0),2)-1,"未建檔")) ->  | AD68: =IF(AA68="","",IF(VLOOKUP(AA68,$C$6:$F$1899,4,0)="未符資格","未符資格",IF(VLOOKUP(AA68,$C$6:$F$1899,4,0)="一年一次","核符",IF(VLOOKUP(AA68,$C$6:$F$1899,4,0)="二年一次",IF(IFERROR(VLOOKUP(AA68,V$5:V$1899,1,0),"")=AA68,"前一年申請有案","核符"),IF(VLOOKUP(AA68,$C$6:$F$1899,4,0)="三年一次",IF(IFERROR(VLOOKUP(AA68,V$5:V$1899,1,0),"")&IFERROR(VLOOKUP(AA68,Q$5:Q$1899,1,0),"")=AA68,"前二年申請有案","核符")))))) ->  | AG68: =IF(AF68="","",IFERROR(AF$4-LEFT(VLOOKUP(AF68,$C$6:$D$1899,2,0),2)-1,"未建檔")) ->  | AI68: =IF(AF68="","",IF(VLOOKUP(AF68,$C$6:$F$1899,4,0)="未符資格","未符資格",IF(VLOOKUP(AF68,$C$6:$F$1899,4,0)="一年一次","核符",IF(VLOOKUP(AF68,$C$6:$F$1899,4,0)="二年一次",IF(IFERROR(VLOOKUP(AF68,AA$5:AA$1899,1,0),"")=AF68,"前一年申請有案","核符"),IF(VLOOKUP(AF68,$C$6:$F$1899,4,0)="三年一次",IF(IFERROR(VLOOKUP(AF68,AA$5:AA$1899,1,0),"")&IFERROR(VLOOKUP(AF68,V$5:V$1899,1,0),"")=AF68,"前二年申請有案","核符")))))) ->  | AL68: =IF(AK68="","",IFERROR(AK$4-LEFT(VLOOKUP(AK68,$C$6:$D$1899,2,0),2)-1,"未建檔")) ->  | AN68: =IF(AK68="","",IF(VLOOKUP(AK68,$C$6:$F$1899,4,0)="未符資格","未符資格",IF(VLOOKUP(AK68,$C$6:$F$1899,4,0)="一年一次","核符",IF(VLOOKUP(AK68,$C$6:$F$1899,4,0)="二年一次",IF(IFERROR(VLOOKUP(AK68,AF$5:AF$1899,1,0),"")=AK68,"前一年申請有案","核符"),IF(VLOOKUP(AK68,$C$6:$F$1899,4,0)="三年一次",IF(IFERROR(VLOOKUP(AK68,AF$5:AF$1899,1,0),"")&IFERROR(VLOOKUP(AK68,AA$5:AA$1899,1,0),"")=AK68,"前二年申請有案","核符")))))) ->  | AQ68: =IF(AP68="","",IFERROR(AP$4-LEFT(VLOOKUP(AP68,$C$6:$D$1899,2,0),2)-1,"未建檔")) ->  | AS68: =IF(AP68="","",IF(VLOOKUP(AP68,$C$6:$F$1899,4,0)="未符資格","未符資格",IF(VLOOKUP(AP68,$C$6:$F$1899,4,0)="一年一次","核符",IF(VLOOKUP(AP68,$C$6:$F$1899,4,0)="二年一次",IF(IFERROR(VLOOKUP(AP68,AK$5:AK$1899,1,0),"")=AP68,"前一年申請有案","核符"),IF(VLOOKUP(AP68,$C$6:$F$1899,4,0)="三年一次",IF(IFERROR(VLOOKUP(AP68,AK$5:AK$1899,1,0),"")&IFERROR(VLOOKUP(AP68,AF$5:AF$1899,1,0),"")=AP68,"前二年申請有案","核符")))))) ->  | AV68: =IF(AU68="","",IFERROR(AU$4-LEFT(VLOOKUP(AU68,$C$6:$D$1899,2,0),2)-1,"未建檔")) ->  | AX68: =IF(AU68="","",IF(VLOOKUP(AU68,$C$6:$F$1899,4,0)="未符資格","未符資格",IF(VLOOKUP(AU68,$C$6:$F$1899,4,0)="一年一次","核符",IF(VLOOKUP(AU68,$C$6:$F$1899,4,0)="二年一次",IF(IFERROR(VLOOKUP(AU68,AP$5:AP$1899,1,0),"")=AU68,"前一年申請有案","核符"),IF(VLOOKUP(AU68,$C$6:$F$1899,4,0)="三年一次",IF(IFERROR(VLOOKUP(AU68,AP$5:AP$1899,1,0),"")&IFERROR(VLOOKUP(AU68,AK$5:AK$1899,1,0),"")=AU68,"前二年申請有案","核符")))))) ->  | BA68: =IF(AZ68="","",IFERROR(AZ$4-LEFT(VLOOKUP(AZ68,$C$6:$D$1899,2,0),2)-1,"未建檔")) ->  | BC68: =IF(AZ68="","",IF(VLOOKUP(AZ68,$C$6:$F$1899,4,0)="未符資格","未符資格",IF(VLOOKUP(AZ68,$C$6:$F$1899,4,0)="一年一次","核符",IF(VLOOKUP(AZ68,$C$6:$F$1899,4,0)="二年一次",IF(IFERROR(VLOOKUP(AZ68,AU$5:AU$1899,1,0),"")=AZ68,"前一年申請有案","核符"),IF(VLOOKUP(AZ68,$C$6:$F$1899,4,0)="三年一次",IF(IFERROR(VLOOKUP(AZ68,AU$5:AU$1899,1,0),"")&IFERROR(VLOOKUP(AZ68,AP$5:AP$1899,1,0),"")=AZ68,"前二年申請有案","核符")))))) -> 
A69: 64 | E69: =IF(C69="","",$Q$4-LEFT(D69,2)-1) ->  | H69: =IF(G69="","",IFERROR(G$4-LEFT(VLOOKUP(G69,$C$6:$D$1899,2,0),2)-1,"未建檔")) ->  | M69: =IF(L69="","",IFERROR(L$4-LEFT(VLOOKUP(L69,$C$6:$D$1899,2,0),2)-1,"未建檔")) ->  | R69: =IF(Q69="","",IFERROR(Q$4-LEFT(VLOOKUP(Q69,$C$6:$D$1899,2,0),2)-1,"未建檔")) ->  | T69: =IF(Q69="","",IF(VLOOKUP(Q69,$C$6:$F$1899,4,0)="未符資格","未符資格",IF(VLOOKUP(Q69,$C$6:$F$1899,4,0)="一年一次","核符",IF(VLOOKUP(Q69,$C$6:$F$1899,4,0)="二年一次",IF(IFERROR(VLOOKUP(Q69,L$5:L$1899,1,0),"")=Q69,"前一年申請有案","核符"),IF(VLOOKUP(Q69,$C$6:$F$1899,4,0)="三年一次",IF(IFERROR(VLOOKUP(Q69,L$5:L$1899,1,0),"")&IFERROR(VLOOKUP(Q69,G$5:G$1899,1,0),"")=Q69,"前二年申請有案","核符")))))) ->  | W69: =IF(V69="","",IFERROR(V$4-LEFT(VLOOKUP(V69,$C$6:$D$1899,2,0),2)-1,"未建檔")) ->  | Y69: =IF(V69="","",IF(VLOOKUP(V69,$C$6:$F$1899,4,0)="未符資格","未符資格",IF(VLOOKUP(V69,$C$6:$F$1899,4,0)="一年一次","核符",IF(VLOOKUP(V69,$C$6:$F$1899,4,0)="二年一次",IF(IFERROR(VLOOKUP(V69,Q$5:Q$1899,1,0),"")=V69,"前一年申請有案","核符"),IF(VLOOKUP(V69,$C$6:$F$1899,4,0)="三年一次",IF(IFERROR(VLOOKUP(V69,Q$5:Q$1899,1,0),"")&IFERROR(VLOOKUP(V69,L$5:L$1899,1,0),"")=V69,"前二年申請有案","核符")))))) ->  | AB69: =IF(AA69="","",IFERROR(AA$4-LEFT(VLOOKUP(AA69,$C$6:$D$1899,2,0),2)-1,"未建檔")) ->  | AD69: =IF(AA69="","",IF(VLOOKUP(AA69,$C$6:$F$1899,4,0)="未符資格","未符資格",IF(VLOOKUP(AA69,$C$6:$F$1899,4,0)="一年一次","核符",IF(VLOOKUP(AA69,$C$6:$F$1899,4,0)="二年一次",IF(IFERROR(VLOOKUP(AA69,V$5:V$1899,1,0),"")=AA69,"前一年申請有案","核符"),IF(VLOOKUP(AA69,$C$6:$F$1899,4,0)="三年一次",IF(IFERROR(VLOOKUP(AA69,V$5:V$1899,1,0),"")&IFERROR(VLOOKUP(AA69,Q$5:Q$1899,1,0),"")=AA69,"前二年申請有案","核符")))))) ->  | AG69: =IF(AF69="","",IFERROR(AF$4-LEFT(VLOOKUP(AF69,$C$6:$D$1899,2,0),2)-1,"未建檔")) ->  | AI69: =IF(AF69="","",IF(VLOOKUP(AF69,$C$6:$F$1899,4,0)="未符資格","未符資格",IF(VLOOKUP(AF69,$C$6:$F$1899,4,0)="一年一次","核符",IF(VLOOKUP(AF69,$C$6:$F$1899,4,0)="二年一次",IF(IFERROR(VLOOKUP(AF69,AA$5:AA$1899,1,0),"")=AF69,"前一年申請有案","核符"),IF(VLOOKUP(AF69,$C$6:$F$1899,4,0)="三年一次",IF(IFERROR(VLOOKUP(AF69,AA$5:AA$1899,1,0),"")&IFERROR(VLOOKUP(AF69,V$5:V$1899,1,0),"")=AF69,"前二年申請有案","核符")))))) ->  | AL69: =IF(AK69="","",IFERROR(AK$4-LEFT(VLOOKUP(AK69,$C$6:$D$1899,2,0),2)-1,"未建檔")) ->  | AN69: =IF(AK69="","",IF(VLOOKUP(AK69,$C$6:$F$1899,4,0)="未符資格","未符資格",IF(VLOOKUP(AK69,$C$6:$F$1899,4,0)="一年一次","核符",IF(VLOOKUP(AK69,$C$6:$F$1899,4,0)="二年一次",IF(IFERROR(VLOOKUP(AK69,AF$5:AF$1899,1,0),"")=AK69,"前一年申請有案","核符"),IF(VLOOKUP(AK69,$C$6:$F$1899,4,0)="三年一次",IF(IFERROR(VLOOKUP(AK69,AF$5:AF$1899,1,0),"")&IFERROR(VLOOKUP(AK69,AA$5:AA$1899,1,0),"")=AK69,"前二年申請有案","核符")))))) ->  | AQ69: =IF(AP69="","",IFERROR(AP$4-LEFT(VLOOKUP(AP69,$C$6:$D$1899,2,0),2)-1,"未建檔")) ->  | AS69: =IF(AP69="","",IF(VLOOKUP(AP69,$C$6:$F$1899,4,0)="未符資格","未符資格",IF(VLOOKUP(AP69,$C$6:$F$1899,4,0)="一年一次","核符",IF(VLOOKUP(AP69,$C$6:$F$1899,4,0)="二年一次",IF(IFERROR(VLOOKUP(AP69,AK$5:AK$1899,1,0),"")=AP69,"前一年申請有案","核符"),IF(VLOOKUP(AP69,$C$6:$F$1899,4,0)="三年一次",IF(IFERROR(VLOOKUP(AP69,AK$5:AK$1899,1,0),"")&IFERROR(VLOOKUP(AP69,AF$5:AF$1899,1,0),"")=AP69,"前二年申請有案","核符")))))) ->  | AV69: =IF(AU69="","",IFERROR(AU$4-LEFT(VLOOKUP(AU69,$C$6:$D$1899,2,0),2)-1,"未建檔")) ->  | AX69: =IF(AU69="","",IF(VLOOKUP(AU69,$C$6:$F$1899,4,0)="未符資格","未符資格",IF(VLOOKUP(AU69,$C$6:$F$1899,4,0)="一年一次","核符",IF(VLOOKUP(AU69,$C$6:$F$1899,4,0)="二年一次",IF(IFERROR(VLOOKUP(AU69,AP$5:AP$1899,1,0),"")=AU69,"前一年申請有案","核符"),IF(VLOOKUP(AU69,$C$6:$F$1899,4,0)="三年一次",IF(IFERROR(VLOOKUP(AU69,AP$5:AP$1899,1,0),"")&IFERROR(VLOOKUP(AU69,AK$5:AK$1899,1,0),"")=AU69,"前二年申請有案","核符")))))) ->  | BA69: =IF(AZ69="","",IFERROR(AZ$4-LEFT(VLOOKUP(AZ69,$C$6:$D$1899,2,0),2)-1,"未建檔")) ->  | BC69: =IF(AZ69="","",IF(VLOOKUP(AZ69,$C$6:$F$1899,4,0)="未符資格","未符資格",IF(VLOOKUP(AZ69,$C$6:$F$1899,4,0)="一年一次","核符",IF(VLOOKUP(AZ69,$C$6:$F$1899,4,0)="二年一次",IF(IFERROR(VLOOKUP(AZ69,AU$5:AU$1899,1,0),"")=AZ69,"前一年申請有案","核符"),IF(VLOOKUP(AZ69,$C$6:$F$1899,4,0)="三年一次",IF(IFERROR(VLOOKUP(AZ69,AU$5:AU$1899,1,0),"")&IFERROR(VLOOKUP(AZ69,AP$5:AP$1899,1,0),"")=AZ69,"前二年申請有案","核符")))))) -> 
A70: 65 | E70: =IF(C70="","",$Q$4-LEFT(D70,2)-1) ->  | H70: =IF(G70="","",IFERROR(G$4-LEFT(VLOOKUP(G70,$C$6:$D$1899,2,0),2)-1,"未建檔")) ->  | M70: =IF(L70="","",IFERROR(L$4-LEFT(VLOOKUP(L70,$C$6:$D$1899,2,0),2)-1,"未建檔")) ->  | R70: =IF(Q70="","",IFERROR(Q$4-LEFT(VLOOKUP(Q70,$C$6:$D$1899,2,0),2)-1,"未建檔")) ->  | T70: =IF(Q70="","",IF(VLOOKUP(Q70,$C$6:$F$1899,4,0)="未符資格","未符資格",IF(VLOOKUP(Q70,$C$6:$F$1899,4,0)="一年一次","核符",IF(VLOOKUP(Q70,$C$6:$F$1899,4,0)="二年一次",IF(IFERROR(VLOOKUP(Q70,L$5:L$1899,1,0),"")=Q70,"前一年申請有案","核符"),IF(VLOOKUP(Q70,$C$6:$F$1899,4,0)="三年一次",IF(IFERROR(VLOOKUP(Q70,L$5:L$1899,1,0),"")&IFERROR(VLOOKUP(Q70,G$5:G$1899,1,0),"")=Q70,"前二年申請有案","核符")))))) ->  | W70: =IF(V70="","",IFERROR(V$4-LEFT(VLOOKUP(V70,$C$6:$D$1899,2,0),2)-1,"未建檔")) ->  | Y70: =IF(V70="","",IF(VLOOKUP(V70,$C$6:$F$1899,4,0)="未符資格","未符資格",IF(VLOOKUP(V70,$C$6:$F$1899,4,0)="一年一次","核符",IF(VLOOKUP(V70,$C$6:$F$1899,4,0)="二年一次",IF(IFERROR(VLOOKUP(V70,Q$5:Q$1899,1,0),"")=V70,"前一年申請有案","核符"),IF(VLOOKUP(V70,$C$6:$F$1899,4,0)="三年一次",IF(IFERROR(VLOOKUP(V70,Q$5:Q$1899,1,0),"")&IFERROR(VLOOKUP(V70,L$5:L$1899,1,0),"")=V70,"前二年申請有案","核符")))))) ->  | AB70: =IF(AA70="","",IFERROR(AA$4-LEFT(VLOOKUP(AA70,$C$6:$D$1899,2,0),2)-1,"未建檔")) ->  | AD70: =IF(AA70="","",IF(VLOOKUP(AA70,$C$6:$F$1899,4,0)="未符資格","未符資格",IF(VLOOKUP(AA70,$C$6:$F$1899,4,0)="一年一次","核符",IF(VLOOKUP(AA70,$C$6:$F$1899,4,0)="二年一次",IF(IFERROR(VLOOKUP(AA70,V$5:V$1899,1,0),"")=AA70,"前一年申請有案","核符"),IF(VLOOKUP(AA70,$C$6:$F$1899,4,0)="三年一次",IF(IFERROR(VLOOKUP(AA70,V$5:V$1899,1,0),"")&IFERROR(VLOOKUP(AA70,Q$5:Q$1899,1,0),"")=AA70,"前二年申請有案","核符")))))) ->  | AG70: =IF(AF70="","",IFERROR(AF$4-LEFT(VLOOKUP(AF70,$C$6:$D$1899,2,0),2)-1,"未建檔")) ->  | AI70: =IF(AF70="","",IF(VLOOKUP(AF70,$C$6:$F$1899,4,0)="未符資格","未符資格",IF(VLOOKUP(AF70,$C$6:$F$1899,4,0)="一年一次","核符",IF(VLOOKUP(AF70,$C$6:$F$1899,4,0)="二年一次",IF(IFERROR(VLOOKUP(AF70,AA$5:AA$1899,1,0),"")=AF70,"前一年申請有案","核符"),IF(VLOOKUP(AF70,$C$6:$F$1899,4,0)="三年一次",IF(IFERROR(VLOOKUP(AF70,AA$5:AA$1899,1,0),"")&IFERROR(VLOOKUP(AF70,V$5:V$1899,1,0),"")=AF70,"前二年申請有案","核符")))))) ->  | AL70: =IF(AK70="","",IFERROR(AK$4-LEFT(VLOOKUP(AK70,$C$6:$D$1899,2,0),2)-1,"未建檔")) ->  | AN70: =IF(AK70="","",IF(VLOOKUP(AK70,$C$6:$F$1899,4,0)="未符資格","未符資格",IF(VLOOKUP(AK70,$C$6:$F$1899,4,0)="一年一次","核符",IF(VLOOKUP(AK70,$C$6:$F$1899,4,0)="二年一次",IF(IFERROR(VLOOKUP(AK70,AF$5:AF$1899,1,0),"")=AK70,"前一年申請有案","核符"),IF(VLOOKUP(AK70,$C$6:$F$1899,4,0)="三年一次",IF(IFERROR(VLOOKUP(AK70,AF$5:AF$1899,1,0),"")&IFERROR(VLOOKUP(AK70,AA$5:AA$1899,1,0),"")=AK70,"前二年申請有案","核符")))))) ->  | AQ70: =IF(AP70="","",IFERROR(AP$4-LEFT(VLOOKUP(AP70,$C$6:$D$1899,2,0),2)-1,"未建檔")) ->  | AS70: =IF(AP70="","",IF(VLOOKUP(AP70,$C$6:$F$1899,4,0)="未符資格","未符資格",IF(VLOOKUP(AP70,$C$6:$F$1899,4,0)="一年一次","核符",IF(VLOOKUP(AP70,$C$6:$F$1899,4,0)="二年一次",IF(IFERROR(VLOOKUP(AP70,AK$5:AK$1899,1,0),"")=AP70,"前一年申請有案","核符"),IF(VLOOKUP(AP70,$C$6:$F$1899,4,0)="三年一次",IF(IFERROR(VLOOKUP(AP70,AK$5:AK$1899,1,0),"")&IFERROR(VLOOKUP(AP70,AF$5:AF$1899,1,0),"")=AP70,"前二年申請有案","核符")))))) ->  | AV70: =IF(AU70="","",IFERROR(AU$4-LEFT(VLOOKUP(AU70,$C$6:$D$1899,2,0),2)-1,"未建檔")) ->  | AX70: =IF(AU70="","",IF(VLOOKUP(AU70,$C$6:$F$1899,4,0)="未符資格","未符資格",IF(VLOOKUP(AU70,$C$6:$F$1899,4,0)="一年一次","核符",IF(VLOOKUP(AU70,$C$6:$F$1899,4,0)="二年一次",IF(IFERROR(VLOOKUP(AU70,AP$5:AP$1899,1,0),"")=AU70,"前一年申請有案","核符"),IF(VLOOKUP(AU70,$C$6:$F$1899,4,0)="三年一次",IF(IFERROR(VLOOKUP(AU70,AP$5:AP$1899,1,0),"")&IFERROR(VLOOKUP(AU70,AK$5:AK$1899,1,0),"")=AU70,"前二年申請有案","核符")))))) ->  | BA70: =IF(AZ70="","",IFERROR(AZ$4-LEFT(VLOOKUP(AZ70,$C$6:$D$1899,2,0),2)-1,"未建檔")) ->  | BC70: =IF(AZ70="","",IF(VLOOKUP(AZ70,$C$6:$F$1899,4,0)="未符資格","未符資格",IF(VLOOKUP(AZ70,$C$6:$F$1899,4,0)="一年一次","核符",IF(VLOOKUP(AZ70,$C$6:$F$1899,4,0)="二年一次",IF(IFERROR(VLOOKUP(AZ70,AU$5:AU$1899,1,0),"")=AZ70,"前一年申請有案","核符"),IF(VLOOKUP(AZ70,$C$6:$F$1899,4,0)="三年一次",IF(IFERROR(VLOOKUP(AZ70,AU$5:AU$1899,1,0),"")&IFERROR(VLOOKUP(AZ70,AP$5:AP$1899,1,0),"")=AZ70,"前二年申請有案","核符")))))) -> 
A71: 66 | E71: =IF(C71="","",$Q$4-LEFT(D71,2)-1) ->  | H71: =IF(G71="","",IFERROR(G$4-LEFT(VLOOKUP(G71,$C$6:$D$1899,2,0),2)-1,"未建檔")) ->  | M71: =IF(L71="","",IFERROR(L$4-LEFT(VLOOKUP(L71,$C$6:$D$1899,2,0),2)-1,"未建檔")) ->  | R71: =IF(Q71="","",IFERROR(Q$4-LEFT(VLOOKUP(Q71,$C$6:$D$1899,2,0),2)-1,"未建檔")) ->  | T71: =IF(Q71="","",IF(VLOOKUP(Q71,$C$6:$F$1899,4,0)="未符資格","未符資格",IF(VLOOKUP(Q71,$C$6:$F$1899,4,0)="一年一次","核符",IF(VLOOKUP(Q71,$C$6:$F$1899,4,0)="二年一次",IF(IFERROR(VLOOKUP(Q71,L$5:L$1899,1,0),"")=Q71,"前一年申請有案","核符"),IF(VLOOKUP(Q71,$C$6:$F$1899,4,0)="三年一次",IF(IFERROR(VLOOKUP(Q71,L$5:L$1899,1,0),"")&IFERROR(VLOOKUP(Q71,G$5:G$1899,1,0),"")=Q71,"前二年申請有案","核符")))))) ->  | W71: =IF(V71="","",IFERROR(V$4-LEFT(VLOOKUP(V71,$C$6:$D$1899,2,0),2)-1,"未建檔")) ->  | Y71: =IF(V71="","",IF(VLOOKUP(V71,$C$6:$F$1899,4,0)="未符資格","未符資格",IF(VLOOKUP(V71,$C$6:$F$1899,4,0)="一年一次","核符",IF(VLOOKUP(V71,$C$6:$F$1899,4,0)="二年一次",IF(IFERROR(VLOOKUP(V71,Q$5:Q$1899,1,0),"")=V71,"前一年申請有案","核符"),IF(VLOOKUP(V71,$C$6:$F$1899,4,0)="三年一次",IF(IFERROR(VLOOKUP(V71,Q$5:Q$1899,1,0),"")&IFERROR(VLOOKUP(V71,L$5:L$1899,1,0),"")=V71,"前二年申請有案","核符")))))) ->  | AB71: =IF(AA71="","",IFERROR(AA$4-LEFT(VLOOKUP(AA71,$C$6:$D$1899,2,0),2)-1,"未建檔")) ->  | AD71: =IF(AA71="","",IF(VLOOKUP(AA71,$C$6:$F$1899,4,0)="未符資格","未符資格",IF(VLOOKUP(AA71,$C$6:$F$1899,4,0)="一年一次","核符",IF(VLOOKUP(AA71,$C$6:$F$1899,4,0)="二年一次",IF(IFERROR(VLOOKUP(AA71,V$5:V$1899,1,0),"")=AA71,"前一年申請有案","核符"),IF(VLOOKUP(AA71,$C$6:$F$1899,4,0)="三年一次",IF(IFERROR(VLOOKUP(AA71,V$5:V$1899,1,0),"")&IFERROR(VLOOKUP(AA71,Q$5:Q$1899,1,0),"")=AA71,"前二年申請有案","核符")))))) ->  | AG71: =IF(AF71="","",IFERROR(AF$4-LEFT(VLOOKUP(AF71,$C$6:$D$1899,2,0),2)-1,"未建檔")) ->  | AI71: =IF(AF71="","",IF(VLOOKUP(AF71,$C$6:$F$1899,4,0)="未符資格","未符資格",IF(VLOOKUP(AF71,$C$6:$F$1899,4,0)="一年一次","核符",IF(VLOOKUP(AF71,$C$6:$F$1899,4,0)="二年一次",IF(IFERROR(VLOOKUP(AF71,AA$5:AA$1899,1,0),"")=AF71,"前一年申請有案","核符"),IF(VLOOKUP(AF71,$C$6:$F$1899,4,0)="三年一次",IF(IFERROR(VLOOKUP(AF71,AA$5:AA$1899,1,0),"")&IFERROR(VLOOKUP(AF71,V$5:V$1899,1,0),"")=AF71,"前二年申請有案","核符")))))) ->  | AL71: =IF(AK71="","",IFERROR(AK$4-LEFT(VLOOKUP(AK71,$C$6:$D$1899,2,0),2)-1,"未建檔")) ->  | AN71: =IF(AK71="","",IF(VLOOKUP(AK71,$C$6:$F$1899,4,0)="未符資格","未符資格",IF(VLOOKUP(AK71,$C$6:$F$1899,4,0)="一年一次","核符",IF(VLOOKUP(AK71,$C$6:$F$1899,4,0)="二年一次",IF(IFERROR(VLOOKUP(AK71,AF$5:AF$1899,1,0),"")=AK71,"前一年申請有案","核符"),IF(VLOOKUP(AK71,$C$6:$F$1899,4,0)="三年一次",IF(IFERROR(VLOOKUP(AK71,AF$5:AF$1899,1,0),"")&IFERROR(VLOOKUP(AK71,AA$5:AA$1899,1,0),"")=AK71,"前二年申請有案","核符")))))) ->  | AQ71: =IF(AP71="","",IFERROR(AP$4-LEFT(VLOOKUP(AP71,$C$6:$D$1899,2,0),2)-1,"未建檔")) ->  | AS71: =IF(AP71="","",IF(VLOOKUP(AP71,$C$6:$F$1899,4,0)="未符資格","未符資格",IF(VLOOKUP(AP71,$C$6:$F$1899,4,0)="一年一次","核符",IF(VLOOKUP(AP71,$C$6:$F$1899,4,0)="二年一次",IF(IFERROR(VLOOKUP(AP71,AK$5:AK$1899,1,0),"")=AP71,"前一年申請有案","核符"),IF(VLOOKUP(AP71,$C$6:$F$1899,4,0)="三年一次",IF(IFERROR(VLOOKUP(AP71,AK$5:AK$1899,1,0),"")&IFERROR(VLOOKUP(AP71,AF$5:AF$1899,1,0),"")=AP71,"前二年申請有案","核符")))))) ->  | AV71: =IF(AU71="","",IFERROR(AU$4-LEFT(VLOOKUP(AU71,$C$6:$D$1899,2,0),2)-1,"未建檔")) ->  | AX71: =IF(AU71="","",IF(VLOOKUP(AU71,$C$6:$F$1899,4,0)="未符資格","未符資格",IF(VLOOKUP(AU71,$C$6:$F$1899,4,0)="一年一次","核符",IF(VLOOKUP(AU71,$C$6:$F$1899,4,0)="二年一次",IF(IFERROR(VLOOKUP(AU71,AP$5:AP$1899,1,0),"")=AU71,"前一年申請有案","核符"),IF(VLOOKUP(AU71,$C$6:$F$1899,4,0)="三年一次",IF(IFERROR(VLOOKUP(AU71,AP$5:AP$1899,1,0),"")&IFERROR(VLOOKUP(AU71,AK$5:AK$1899,1,0),"")=AU71,"前二年申請有案","核符")))))) ->  | BA71: =IF(AZ71="","",IFERROR(AZ$4-LEFT(VLOOKUP(AZ71,$C$6:$D$1899,2,0),2)-1,"未建檔")) ->  | BC71: =IF(AZ71="","",IF(VLOOKUP(AZ71,$C$6:$F$1899,4,0)="未符資格","未符資格",IF(VLOOKUP(AZ71,$C$6:$F$1899,4,0)="一年一次","核符",IF(VLOOKUP(AZ71,$C$6:$F$1899,4,0)="二年一次",IF(IFERROR(VLOOKUP(AZ71,AU$5:AU$1899,1,0),"")=AZ71,"前一年申請有案","核符"),IF(VLOOKUP(AZ71,$C$6:$F$1899,4,0)="三年一次",IF(IFERROR(VLOOKUP(AZ71,AU$5:AU$1899,1,0),"")&IFERROR(VLOOKUP(AZ71,AP$5:AP$1899,1,0),"")=AZ71,"前二年申請有案","核符")))))) -> 
A72: 67 | E72: =IF(C72="","",$Q$4-LEFT(D72,2)-1) ->  | H72: =IF(G72="","",IFERROR(G$4-LEFT(VLOOKUP(G72,$C$6:$D$1899,2,0),2)-1,"未建檔")) ->  | M72: =IF(L72="","",IFERROR(L$4-LEFT(VLOOKUP(L72,$C$6:$D$1899,2,0),2)-1,"未建檔")) ->  | R72: =IF(Q72="","",IFERROR(Q$4-LEFT(VLOOKUP(Q72,$C$6:$D$1899,2,0),2)-1,"未建檔")) ->  | T72: =IF(Q72="","",IF(VLOOKUP(Q72,$C$6:$F$1899,4,0)="未符資格","未符資格",IF(VLOOKUP(Q72,$C$6:$F$1899,4,0)="一年一次","核符",IF(VLOOKUP(Q72,$C$6:$F$1899,4,0)="二年一次",IF(IFERROR(VLOOKUP(Q72,L$5:L$1899,1,0),"")=Q72,"前一年申請有案","核符"),IF(VLOOKUP(Q72,$C$6:$F$1899,4,0)="三年一次",IF(IFERROR(VLOOKUP(Q72,L$5:L$1899,1,0),"")&IFERROR(VLOOKUP(Q72,G$5:G$1899,1,0),"")=Q72,"前二年申請有案","核符")))))) ->  | W72: =IF(V72="","",IFERROR(V$4-LEFT(VLOOKUP(V72,$C$6:$D$1899,2,0),2)-1,"未建檔")) ->  | Y72: =IF(V72="","",IF(VLOOKUP(V72,$C$6:$F$1899,4,0)="未符資格","未符資格",IF(VLOOKUP(V72,$C$6:$F$1899,4,0)="一年一次","核符",IF(VLOOKUP(V72,$C$6:$F$1899,4,0)="二年一次",IF(IFERROR(VLOOKUP(V72,Q$5:Q$1899,1,0),"")=V72,"前一年申請有案","核符"),IF(VLOOKUP(V72,$C$6:$F$1899,4,0)="三年一次",IF(IFERROR(VLOOKUP(V72,Q$5:Q$1899,1,0),"")&IFERROR(VLOOKUP(V72,L$5:L$1899,1,0),"")=V72,"前二年申請有案","核符")))))) ->  | AB72: =IF(AA72="","",IFERROR(AA$4-LEFT(VLOOKUP(AA72,$C$6:$D$1899,2,0),2)-1,"未建檔")) ->  | AD72: =IF(AA72="","",IF(VLOOKUP(AA72,$C$6:$F$1899,4,0)="未符資格","未符資格",IF(VLOOKUP(AA72,$C$6:$F$1899,4,0)="一年一次","核符",IF(VLOOKUP(AA72,$C$6:$F$1899,4,0)="二年一次",IF(IFERROR(VLOOKUP(AA72,V$5:V$1899,1,0),"")=AA72,"前一年申請有案","核符"),IF(VLOOKUP(AA72,$C$6:$F$1899,4,0)="三年一次",IF(IFERROR(VLOOKUP(AA72,V$5:V$1899,1,0),"")&IFERROR(VLOOKUP(AA72,Q$5:Q$1899,1,0),"")=AA72,"前二年申請有案","核符")))))) ->  | AG72: =IF(AF72="","",IFERROR(AF$4-LEFT(VLOOKUP(AF72,$C$6:$D$1899,2,0),2)-1,"未建檔")) ->  | AI72: =IF(AF72="","",IF(VLOOKUP(AF72,$C$6:$F$1899,4,0)="未符資格","未符資格",IF(VLOOKUP(AF72,$C$6:$F$1899,4,0)="一年一次","核符",IF(VLOOKUP(AF72,$C$6:$F$1899,4,0)="二年一次",IF(IFERROR(VLOOKUP(AF72,AA$5:AA$1899,1,0),"")=AF72,"前一年申請有案","核符"),IF(VLOOKUP(AF72,$C$6:$F$1899,4,0)="三年一次",IF(IFERROR(VLOOKUP(AF72,AA$5:AA$1899,1,0),"")&IFERROR(VLOOKUP(AF72,V$5:V$1899,1,0),"")=AF72,"前二年申請有案","核符")))))) ->  | AL72: =IF(AK72="","",IFERROR(AK$4-LEFT(VLOOKUP(AK72,$C$6:$D$1899,2,0),2)-1,"未建檔")) ->  | AN72: =IF(AK72="","",IF(VLOOKUP(AK72,$C$6:$F$1899,4,0)="未符資格","未符資格",IF(VLOOKUP(AK72,$C$6:$F$1899,4,0)="一年一次","核符",IF(VLOOKUP(AK72,$C$6:$F$1899,4,0)="二年一次",IF(IFERROR(VLOOKUP(AK72,AF$5:AF$1899,1,0),"")=AK72,"前一年申請有案","核符"),IF(VLOOKUP(AK72,$C$6:$F$1899,4,0)="三年一次",IF(IFERROR(VLOOKUP(AK72,AF$5:AF$1899,1,0),"")&IFERROR(VLOOKUP(AK72,AA$5:AA$1899,1,0),"")=AK72,"前二年申請有案","核符")))))) ->  | AQ72: =IF(AP72="","",IFERROR(AP$4-LEFT(VLOOKUP(AP72,$C$6:$D$1899,2,0),2)-1,"未建檔")) ->  | AS72: =IF(AP72="","",IF(VLOOKUP(AP72,$C$6:$F$1899,4,0)="未符資格","未符資格",IF(VLOOKUP(AP72,$C$6:$F$1899,4,0)="一年一次","核符",IF(VLOOKUP(AP72,$C$6:$F$1899,4,0)="二年一次",IF(IFERROR(VLOOKUP(AP72,AK$5:AK$1899,1,0),"")=AP72,"前一年申請有案","核符"),IF(VLOOKUP(AP72,$C$6:$F$1899,4,0)="三年一次",IF(IFERROR(VLOOKUP(AP72,AK$5:AK$1899,1,0),"")&IFERROR(VLOOKUP(AP72,AF$5:AF$1899,1,0),"")=AP72,"前二年申請有案","核符")))))) ->  | AV72: =IF(AU72="","",IFERROR(AU$4-LEFT(VLOOKUP(AU72,$C$6:$D$1899,2,0),2)-1,"未建檔")) ->  | AX72: =IF(AU72="","",IF(VLOOKUP(AU72,$C$6:$F$1899,4,0)="未符資格","未符資格",IF(VLOOKUP(AU72,$C$6:$F$1899,4,0)="一年一次","核符",IF(VLOOKUP(AU72,$C$6:$F$1899,4,0)="二年一次",IF(IFERROR(VLOOKUP(AU72,AP$5:AP$1899,1,0),"")=AU72,"前一年申請有案","核符"),IF(VLOOKUP(AU72,$C$6:$F$1899,4,0)="三年一次",IF(IFERROR(VLOOKUP(AU72,AP$5:AP$1899,1,0),"")&IFERROR(VLOOKUP(AU72,AK$5:AK$1899,1,0),"")=AU72,"前二年申請有案","核符")))))) ->  | BA72: =IF(AZ72="","",IFERROR(AZ$4-LEFT(VLOOKUP(AZ72,$C$6:$D$1899,2,0),2)-1,"未建檔")) ->  | BC72: =IF(AZ72="","",IF(VLOOKUP(AZ72,$C$6:$F$1899,4,0)="未符資格","未符資格",IF(VLOOKUP(AZ72,$C$6:$F$1899,4,0)="一年一次","核符",IF(VLOOKUP(AZ72,$C$6:$F$1899,4,0)="二年一次",IF(IFERROR(VLOOKUP(AZ72,AU$5:AU$1899,1,0),"")=AZ72,"前一年申請有案","核符"),IF(VLOOKUP(AZ72,$C$6:$F$1899,4,0)="三年一次",IF(IFERROR(VLOOKUP(AZ72,AU$5:AU$1899,1,0),"")&IFERROR(VLOOKUP(AZ72,AP$5:AP$1899,1,0),"")=AZ72,"前二年申請有案","核符")))))) -> 
A73: 68 | E73: =IF(C73="","",$Q$4-LEFT(D73,2)-1) ->  | H73: =IF(G73="","",IFERROR(G$4-LEFT(VLOOKUP(G73,$C$6:$D$1899,2,0),2)-1,"未建檔")) ->  | M73: =IF(L73="","",IFERROR(L$4-LEFT(VLOOKUP(L73,$C$6:$D$1899,2,0),2)-1,"未建檔")) ->  | R73: =IF(Q73="","",IFERROR(Q$4-LEFT(VLOOKUP(Q73,$C$6:$D$1899,2,0),2)-1,"未建檔")) ->  | T73: =IF(Q73="","",IF(VLOOKUP(Q73,$C$6:$F$1899,4,0)="未符資格","未符資格",IF(VLOOKUP(Q73,$C$6:$F$1899,4,0)="一年一次","核符",IF(VLOOKUP(Q73,$C$6:$F$1899,4,0)="二年一次",IF(IFERROR(VLOOKUP(Q73,L$5:L$1899,1,0),"")=Q73,"前一年申請有案","核符"),IF(VLOOKUP(Q73,$C$6:$F$1899,4,0)="三年一次",IF(IFERROR(VLOOKUP(Q73,L$5:L$1899,1,0),"")&IFERROR(VLOOKUP(Q73,G$5:G$1899,1,0),"")=Q73,"前二年申請有案","核符")))))) ->  | W73: =IF(V73="","",IFERROR(V$4-LEFT(VLOOKUP(V73,$C$6:$D$1899,2,0),2)-1,"未建檔")) ->  | Y73: =IF(V73="","",IF(VLOOKUP(V73,$C$6:$F$1899,4,0)="未符資格","未符資格",IF(VLOOKUP(V73,$C$6:$F$1899,4,0)="一年一次","核符",IF(VLOOKUP(V73,$C$6:$F$1899,4,0)="二年一次",IF(IFERROR(VLOOKUP(V73,Q$5:Q$1899,1,0),"")=V73,"前一年申請有案","核符"),IF(VLOOKUP(V73,$C$6:$F$1899,4,0)="三年一次",IF(IFERROR(VLOOKUP(V73,Q$5:Q$1899,1,0),"")&IFERROR(VLOOKUP(V73,L$5:L$1899,1,0),"")=V73,"前二年申請有案","核符")))))) ->  | AB73: =IF(AA73="","",IFERROR(AA$4-LEFT(VLOOKUP(AA73,$C$6:$D$1899,2,0),2)-1,"未建檔")) ->  | AD73: =IF(AA73="","",IF(VLOOKUP(AA73,$C$6:$F$1899,4,0)="未符資格","未符資格",IF(VLOOKUP(AA73,$C$6:$F$1899,4,0)="一年一次","核符",IF(VLOOKUP(AA73,$C$6:$F$1899,4,0)="二年一次",IF(IFERROR(VLOOKUP(AA73,V$5:V$1899,1,0),"")=AA73,"前一年申請有案","核符"),IF(VLOOKUP(AA73,$C$6:$F$1899,4,0)="三年一次",IF(IFERROR(VLOOKUP(AA73,V$5:V$1899,1,0),"")&IFERROR(VLOOKUP(AA73,Q$5:Q$1899,1,0),"")=AA73,"前二年申請有案","核符")))))) ->  | AG73: =IF(AF73="","",IFERROR(AF$4-LEFT(VLOOKUP(AF73,$C$6:$D$1899,2,0),2)-1,"未建檔")) ->  | AI73: =IF(AF73="","",IF(VLOOKUP(AF73,$C$6:$F$1899,4,0)="未符資格","未符資格",IF(VLOOKUP(AF73,$C$6:$F$1899,4,0)="一年一次","核符",IF(VLOOKUP(AF73,$C$6:$F$1899,4,0)="二年一次",IF(IFERROR(VLOOKUP(AF73,AA$5:AA$1899,1,0),"")=AF73,"前一年申請有案","核符"),IF(VLOOKUP(AF73,$C$6:$F$1899,4,0)="三年一次",IF(IFERROR(VLOOKUP(AF73,AA$5:AA$1899,1,0),"")&IFERROR(VLOOKUP(AF73,V$5:V$1899,1,0),"")=AF73,"前二年申請有案","核符")))))) ->  | AL73: =IF(AK73="","",IFERROR(AK$4-LEFT(VLOOKUP(AK73,$C$6:$D$1899,2,0),2)-1,"未建檔")) ->  | AN73: =IF(AK73="","",IF(VLOOKUP(AK73,$C$6:$F$1899,4,0)="未符資格","未符資格",IF(VLOOKUP(AK73,$C$6:$F$1899,4,0)="一年一次","核符",IF(VLOOKUP(AK73,$C$6:$F$1899,4,0)="二年一次",IF(IFERROR(VLOOKUP(AK73,AF$5:AF$1899,1,0),"")=AK73,"前一年申請有案","核符"),IF(VLOOKUP(AK73,$C$6:$F$1899,4,0)="三年一次",IF(IFERROR(VLOOKUP(AK73,AF$5:AF$1899,1,0),"")&IFERROR(VLOOKUP(AK73,AA$5:AA$1899,1,0),"")=AK73,"前二年申請有案","核符")))))) ->  | AQ73: =IF(AP73="","",IFERROR(AP$4-LEFT(VLOOKUP(AP73,$C$6:$D$1899,2,0),2)-1,"未建檔")) ->  | AS73: =IF(AP73="","",IF(VLOOKUP(AP73,$C$6:$F$1899,4,0)="未符資格","未符資格",IF(VLOOKUP(AP73,$C$6:$F$1899,4,0)="一年一次","核符",IF(VLOOKUP(AP73,$C$6:$F$1899,4,0)="二年一次",IF(IFERROR(VLOOKUP(AP73,AK$5:AK$1899,1,0),"")=AP73,"前一年申請有案","核符"),IF(VLOOKUP(AP73,$C$6:$F$1899,4,0)="三年一次",IF(IFERROR(VLOOKUP(AP73,AK$5:AK$1899,1,0),"")&IFERROR(VLOOKUP(AP73,AF$5:AF$1899,1,0),"")=AP73,"前二年申請有案","核符")))))) ->  | AV73: =IF(AU73="","",IFERROR(AU$4-LEFT(VLOOKUP(AU73,$C$6:$D$1899,2,0),2)-1,"未建檔")) ->  | AX73: =IF(AU73="","",IF(VLOOKUP(AU73,$C$6:$F$1899,4,0)="未符資格","未符資格",IF(VLOOKUP(AU73,$C$6:$F$1899,4,0)="一年一次","核符",IF(VLOOKUP(AU73,$C$6:$F$1899,4,0)="二年一次",IF(IFERROR(VLOOKUP(AU73,AP$5:AP$1899,1,0),"")=AU73,"前一年申請有案","核符"),IF(VLOOKUP(AU73,$C$6:$F$1899,4,0)="三年一次",IF(IFERROR(VLOOKUP(AU73,AP$5:AP$1899,1,0),"")&IFERROR(VLOOKUP(AU73,AK$5:AK$1899,1,0),"")=AU73,"前二年申請有案","核符")))))) ->  | BA73: =IF(AZ73="","",IFERROR(AZ$4-LEFT(VLOOKUP(AZ73,$C$6:$D$1899,2,0),2)-1,"未建檔")) ->  | BC73: =IF(AZ73="","",IF(VLOOKUP(AZ73,$C$6:$F$1899,4,0)="未符資格","未符資格",IF(VLOOKUP(AZ73,$C$6:$F$1899,4,0)="一年一次","核符",IF(VLOOKUP(AZ73,$C$6:$F$1899,4,0)="二年一次",IF(IFERROR(VLOOKUP(AZ73,AU$5:AU$1899,1,0),"")=AZ73,"前一年申請有案","核符"),IF(VLOOKUP(AZ73,$C$6:$F$1899,4,0)="三年一次",IF(IFERROR(VLOOKUP(AZ73,AU$5:AU$1899,1,0),"")&IFERROR(VLOOKUP(AZ73,AP$5:AP$1899,1,0),"")=AZ73,"前二年申請有案","核符")))))) -> 
A74: 69 | E74: =IF(C74="","",$Q$4-LEFT(D74,2)-1) ->  | H74: =IF(G74="","",IFERROR(G$4-LEFT(VLOOKUP(G74,$C$6:$D$1899,2,0),2)-1,"未建檔")) ->  | M74: =IF(L74="","",IFERROR(L$4-LEFT(VLOOKUP(L74,$C$6:$D$1899,2,0),2)-1,"未建檔")) ->  | R74: =IF(Q74="","",IFERROR(Q$4-LEFT(VLOOKUP(Q74,$C$6:$D$1899,2,0),2)-1,"未建檔")) ->  | T74: =IF(Q74="","",IF(VLOOKUP(Q74,$C$6:$F$1899,4,0)="未符資格","未符資格",IF(VLOOKUP(Q74,$C$6:$F$1899,4,0)="一年一次","核符",IF(VLOOKUP(Q74,$C$6:$F$1899,4,0)="二年一次",IF(IFERROR(VLOOKUP(Q74,L$5:L$1899,1,0),"")=Q74,"前一年申請有案","核符"),IF(VLOOKUP(Q74,$C$6:$F$1899,4,0)="三年一次",IF(IFERROR(VLOOKUP(Q74,L$5:L$1899,1,0),"")&IFERROR(VLOOKUP(Q74,G$5:G$1899,1,0),"")=Q74,"前二年申請有案","核符")))))) ->  | W74: =IF(V74="","",IFERROR(V$4-LEFT(VLOOKUP(V74,$C$6:$D$1899,2,0),2)-1,"未建檔")) ->  | Y74: =IF(V74="","",IF(VLOOKUP(V74,$C$6:$F$1899,4,0)="未符資格","未符資格",IF(VLOOKUP(V74,$C$6:$F$1899,4,0)="一年一次","核符",IF(VLOOKUP(V74,$C$6:$F$1899,4,0)="二年一次",IF(IFERROR(VLOOKUP(V74,Q$5:Q$1899,1,0),"")=V74,"前一年申請有案","核符"),IF(VLOOKUP(V74,$C$6:$F$1899,4,0)="三年一次",IF(IFERROR(VLOOKUP(V74,Q$5:Q$1899,1,0),"")&IFERROR(VLOOKUP(V74,L$5:L$1899,1,0),"")=V74,"前二年申請有案","核符")))))) ->  | AB74: =IF(AA74="","",IFERROR(AA$4-LEFT(VLOOKUP(AA74,$C$6:$D$1899,2,0),2)-1,"未建檔")) ->  | AD74: =IF(AA74="","",IF(VLOOKUP(AA74,$C$6:$F$1899,4,0)="未符資格","未符資格",IF(VLOOKUP(AA74,$C$6:$F$1899,4,0)="一年一次","核符",IF(VLOOKUP(AA74,$C$6:$F$1899,4,0)="二年一次",IF(IFERROR(VLOOKUP(AA74,V$5:V$1899,1,0),"")=AA74,"前一年申請有案","核符"),IF(VLOOKUP(AA74,$C$6:$F$1899,4,0)="三年一次",IF(IFERROR(VLOOKUP(AA74,V$5:V$1899,1,0),"")&IFERROR(VLOOKUP(AA74,Q$5:Q$1899,1,0),"")=AA74,"前二年申請有案","核符")))))) ->  | AG74: =IF(AF74="","",IFERROR(AF$4-LEFT(VLOOKUP(AF74,$C$6:$D$1899,2,0),2)-1,"未建檔")) ->  | AI74: =IF(AF74="","",IF(VLOOKUP(AF74,$C$6:$F$1899,4,0)="未符資格","未符資格",IF(VLOOKUP(AF74,$C$6:$F$1899,4,0)="一年一次","核符",IF(VLOOKUP(AF74,$C$6:$F$1899,4,0)="二年一次",IF(IFERROR(VLOOKUP(AF74,AA$5:AA$1899,1,0),"")=AF74,"前一年申請有案","核符"),IF(VLOOKUP(AF74,$C$6:$F$1899,4,0)="三年一次",IF(IFERROR(VLOOKUP(AF74,AA$5:AA$1899,1,0),"")&IFERROR(VLOOKUP(AF74,V$5:V$1899,1,0),"")=AF74,"前二年申請有案","核符")))))) ->  | AL74: =IF(AK74="","",IFERROR(AK$4-LEFT(VLOOKUP(AK74,$C$6:$D$1899,2,0),2)-1,"未建檔")) ->  | AN74: =IF(AK74="","",IF(VLOOKUP(AK74,$C$6:$F$1899,4,0)="未符資格","未符資格",IF(VLOOKUP(AK74,$C$6:$F$1899,4,0)="一年一次","核符",IF(VLOOKUP(AK74,$C$6:$F$1899,4,0)="二年一次",IF(IFERROR(VLOOKUP(AK74,AF$5:AF$1899,1,0),"")=AK74,"前一年申請有案","核符"),IF(VLOOKUP(AK74,$C$6:$F$1899,4,0)="三年一次",IF(IFERROR(VLOOKUP(AK74,AF$5:AF$1899,1,0),"")&IFERROR(VLOOKUP(AK74,AA$5:AA$1899,1,0),"")=AK74,"前二年申請有案","核符")))))) ->  | AQ74: =IF(AP74="","",IFERROR(AP$4-LEFT(VLOOKUP(AP74,$C$6:$D$1899,2,0),2)-1,"未建檔")) ->  | AS74: =IF(AP74="","",IF(VLOOKUP(AP74,$C$6:$F$1899,4,0)="未符資格","未符資格",IF(VLOOKUP(AP74,$C$6:$F$1899,4,0)="一年一次","核符",IF(VLOOKUP(AP74,$C$6:$F$1899,4,0)="二年一次",IF(IFERROR(VLOOKUP(AP74,AK$5:AK$1899,1,0),"")=AP74,"前一年申請有案","核符"),IF(VLOOKUP(AP74,$C$6:$F$1899,4,0)="三年一次",IF(IFERROR(VLOOKUP(AP74,AK$5:AK$1899,1,0),"")&IFERROR(VLOOKUP(AP74,AF$5:AF$1899,1,0),"")=AP74,"前二年申請有案","核符")))))) ->  | AV74: =IF(AU74="","",IFERROR(AU$4-LEFT(VLOOKUP(AU74,$C$6:$D$1899,2,0),2)-1,"未建檔")) ->  | AX74: =IF(AU74="","",IF(VLOOKUP(AU74,$C$6:$F$1899,4,0)="未符資格","未符資格",IF(VLOOKUP(AU74,$C$6:$F$1899,4,0)="一年一次","核符",IF(VLOOKUP(AU74,$C$6:$F$1899,4,0)="二年一次",IF(IFERROR(VLOOKUP(AU74,AP$5:AP$1899,1,0),"")=AU74,"前一年申請有案","核符"),IF(VLOOKUP(AU74,$C$6:$F$1899,4,0)="三年一次",IF(IFERROR(VLOOKUP(AU74,AP$5:AP$1899,1,0),"")&IFERROR(VLOOKUP(AU74,AK$5:AK$1899,1,0),"")=AU74,"前二年申請有案","核符")))))) ->  | BA74: =IF(AZ74="","",IFERROR(AZ$4-LEFT(VLOOKUP(AZ74,$C$6:$D$1899,2,0),2)-1,"未建檔")) ->  | BC74: =IF(AZ74="","",IF(VLOOKUP(AZ74,$C$6:$F$1899,4,0)="未符資格","未符資格",IF(VLOOKUP(AZ74,$C$6:$F$1899,4,0)="一年一次","核符",IF(VLOOKUP(AZ74,$C$6:$F$1899,4,0)="二年一次",IF(IFERROR(VLOOKUP(AZ74,AU$5:AU$1899,1,0),"")=AZ74,"前一年申請有案","核符"),IF(VLOOKUP(AZ74,$C$6:$F$1899,4,0)="三年一次",IF(IFERROR(VLOOKUP(AZ74,AU$5:AU$1899,1,0),"")&IFERROR(VLOOKUP(AZ74,AP$5:AP$1899,1,0),"")=AZ74,"前二年申請有案","核符")))))) -> 
A75: 70 | E75: =IF(C75="","",$Q$4-LEFT(D75,2)-1) ->  | H75: =IF(G75="","",IFERROR(G$4-LEFT(VLOOKUP(G75,$C$6:$D$1899,2,0),2)-1,"未建檔")) ->  | M75: =IF(L75="","",IFERROR(L$4-LEFT(VLOOKUP(L75,$C$6:$D$1899,2,0),2)-1,"未建檔")) ->  | R75: =IF(Q75="","",IFERROR(Q$4-LEFT(VLOOKUP(Q75,$C$6:$D$1899,2,0),2)-1,"未建檔")) ->  | T75: =IF(Q75="","",IF(VLOOKUP(Q75,$C$6:$F$1899,4,0)="未符資格","未符資格",IF(VLOOKUP(Q75,$C$6:$F$1899,4,0)="一年一次","核符",IF(VLOOKUP(Q75,$C$6:$F$1899,4,0)="二年一次",IF(IFERROR(VLOOKUP(Q75,L$5:L$1899,1,0),"")=Q75,"前一年申請有案","核符"),IF(VLOOKUP(Q75,$C$6:$F$1899,4,0)="三年一次",IF(IFERROR(VLOOKUP(Q75,L$5:L$1899,1,0),"")&IFERROR(VLOOKUP(Q75,G$5:G$1899,1,0),"")=Q75,"前二年申請有案","核符")))))) ->  | W75: =IF(V75="","",IFERROR(V$4-LEFT(VLOOKUP(V75,$C$6:$D$1899,2,0),2)-1,"未建檔")) ->  | Y75: =IF(V75="","",IF(VLOOKUP(V75,$C$6:$F$1899,4,0)="未符資格","未符資格",IF(VLOOKUP(V75,$C$6:$F$1899,4,0)="一年一次","核符",IF(VLOOKUP(V75,$C$6:$F$1899,4,0)="二年一次",IF(IFERROR(VLOOKUP(V75,Q$5:Q$1899,1,0),"")=V75,"前一年申請有案","核符"),IF(VLOOKUP(V75,$C$6:$F$1899,4,0)="三年一次",IF(IFERROR(VLOOKUP(V75,Q$5:Q$1899,1,0),"")&IFERROR(VLOOKUP(V75,L$5:L$1899,1,0),"")=V75,"前二年申請有案","核符")))))) ->  | AB75: =IF(AA75="","",IFERROR(AA$4-LEFT(VLOOKUP(AA75,$C$6:$D$1899,2,0),2)-1,"未建檔")) ->  | AD75: =IF(AA75="","",IF(VLOOKUP(AA75,$C$6:$F$1899,4,0)="未符資格","未符資格",IF(VLOOKUP(AA75,$C$6:$F$1899,4,0)="一年一次","核符",IF(VLOOKUP(AA75,$C$6:$F$1899,4,0)="二年一次",IF(IFERROR(VLOOKUP(AA75,V$5:V$1899,1,0),"")=AA75,"前一年申請有案","核符"),IF(VLOOKUP(AA75,$C$6:$F$1899,4,0)="三年一次",IF(IFERROR(VLOOKUP(AA75,V$5:V$1899,1,0),"")&IFERROR(VLOOKUP(AA75,Q$5:Q$1899,1,0),"")=AA75,"前二年申請有案","核符")))))) ->  | AG75: =IF(AF75="","",IFERROR(AF$4-LEFT(VLOOKUP(AF75,$C$6:$D$1899,2,0),2)-1,"未建檔")) ->  | AI75: =IF(AF75="","",IF(VLOOKUP(AF75,$C$6:$F$1899,4,0)="未符資格","未符資格",IF(VLOOKUP(AF75,$C$6:$F$1899,4,0)="一年一次","核符",IF(VLOOKUP(AF75,$C$6:$F$1899,4,0)="二年一次",IF(IFERROR(VLOOKUP(AF75,AA$5:AA$1899,1,0),"")=AF75,"前一年申請有案","核符"),IF(VLOOKUP(AF75,$C$6:$F$1899,4,0)="三年一次",IF(IFERROR(VLOOKUP(AF75,AA$5:AA$1899,1,0),"")&IFERROR(VLOOKUP(AF75,V$5:V$1899,1,0),"")=AF75,"前二年申請有案","核符")))))) ->  | AL75: =IF(AK75="","",IFERROR(AK$4-LEFT(VLOOKUP(AK75,$C$6:$D$1899,2,0),2)-1,"未建檔")) ->  | AN75: =IF(AK75="","",IF(VLOOKUP(AK75,$C$6:$F$1899,4,0)="未符資格","未符資格",IF(VLOOKUP(AK75,$C$6:$F$1899,4,0)="一年一次","核符",IF(VLOOKUP(AK75,$C$6:$F$1899,4,0)="二年一次",IF(IFERROR(VLOOKUP(AK75,AF$5:AF$1899,1,0),"")=AK75,"前一年申請有案","核符"),IF(VLOOKUP(AK75,$C$6:$F$1899,4,0)="三年一次",IF(IFERROR(VLOOKUP(AK75,AF$5:AF$1899,1,0),"")&IFERROR(VLOOKUP(AK75,AA$5:AA$1899,1,0),"")=AK75,"前二年申請有案","核符")))))) ->  | AQ75: =IF(AP75="","",IFERROR(AP$4-LEFT(VLOOKUP(AP75,$C$6:$D$1899,2,0),2)-1,"未建檔")) ->  | AS75: =IF(AP75="","",IF(VLOOKUP(AP75,$C$6:$F$1899,4,0)="未符資格","未符資格",IF(VLOOKUP(AP75,$C$6:$F$1899,4,0)="一年一次","核符",IF(VLOOKUP(AP75,$C$6:$F$1899,4,0)="二年一次",IF(IFERROR(VLOOKUP(AP75,AK$5:AK$1899,1,0),"")=AP75,"前一年申請有案","核符"),IF(VLOOKUP(AP75,$C$6:$F$1899,4,0)="三年一次",IF(IFERROR(VLOOKUP(AP75,AK$5:AK$1899,1,0),"")&IFERROR(VLOOKUP(AP75,AF$5:AF$1899,1,0),"")=AP75,"前二年申請有案","核符")))))) ->  | AV75: =IF(AU75="","",IFERROR(AU$4-LEFT(VLOOKUP(AU75,$C$6:$D$1899,2,0),2)-1,"未建檔")) ->  | AX75: =IF(AU75="","",IF(VLOOKUP(AU75,$C$6:$F$1899,4,0)="未符資格","未符資格",IF(VLOOKUP(AU75,$C$6:$F$1899,4,0)="一年一次","核符",IF(VLOOKUP(AU75,$C$6:$F$1899,4,0)="二年一次",IF(IFERROR(VLOOKUP(AU75,AP$5:AP$1899,1,0),"")=AU75,"前一年申請有案","核符"),IF(VLOOKUP(AU75,$C$6:$F$1899,4,0)="三年一次",IF(IFERROR(VLOOKUP(AU75,AP$5:AP$1899,1,0),"")&IFERROR(VLOOKUP(AU75,AK$5:AK$1899,1,0),"")=AU75,"前二年申請有案","核符")))))) ->  | BA75: =IF(AZ75="","",IFERROR(AZ$4-LEFT(VLOOKUP(AZ75,$C$6:$D$1899,2,0),2)-1,"未建檔")) ->  | BC75: =IF(AZ75="","",IF(VLOOKUP(AZ75,$C$6:$F$1899,4,0)="未符資格","未符資格",IF(VLOOKUP(AZ75,$C$6:$F$1899,4,0)="一年一次","核符",IF(VLOOKUP(AZ75,$C$6:$F$1899,4,0)="二年一次",IF(IFERROR(VLOOKUP(AZ75,AU$5:AU$1899,1,0),"")=AZ75,"前一年申請有案","核符"),IF(VLOOKUP(AZ75,$C$6:$F$1899,4,0)="三年一次",IF(IFERROR(VLOOKUP(AZ75,AU$5:AU$1899,1,0),"")&IFERROR(VLOOKUP(AZ75,AP$5:AP$1899,1,0),"")=AZ75,"前二年申請有案","核符")))))) -> 
A76: 71 | E76: =IF(C76="","",$Q$4-LEFT(D76,2)-1) ->  | H76: =IF(G76="","",IFERROR(G$4-LEFT(VLOOKUP(G76,$C$6:$D$1899,2,0),2)-1,"未建檔")) ->  | M76: =IF(L76="","",IFERROR(L$4-LEFT(VLOOKUP(L76,$C$6:$D$1899,2,0),2)-1,"未建檔")) ->  | R76: =IF(Q76="","",IFERROR(Q$4-LEFT(VLOOKUP(Q76,$C$6:$D$1899,2,0),2)-1,"未建檔")) ->  | T76: =IF(Q76="","",IF(VLOOKUP(Q76,$C$6:$F$1899,4,0)="未符資格","未符資格",IF(VLOOKUP(Q76,$C$6:$F$1899,4,0)="一年一次","核符",IF(VLOOKUP(Q76,$C$6:$F$1899,4,0)="二年一次",IF(IFERROR(VLOOKUP(Q76,L$5:L$1899,1,0),"")=Q76,"前一年申請有案","核符"),IF(VLOOKUP(Q76,$C$6:$F$1899,4,0)="三年一次",IF(IFERROR(VLOOKUP(Q76,L$5:L$1899,1,0),"")&IFERROR(VLOOKUP(Q76,G$5:G$1899,1,0),"")=Q76,"前二年申請有案","核符")))))) ->  | W76: =IF(V76="","",IFERROR(V$4-LEFT(VLOOKUP(V76,$C$6:$D$1899,2,0),2)-1,"未建檔")) ->  | Y76: =IF(V76="","",IF(VLOOKUP(V76,$C$6:$F$1899,4,0)="未符資格","未符資格",IF(VLOOKUP(V76,$C$6:$F$1899,4,0)="一年一次","核符",IF(VLOOKUP(V76,$C$6:$F$1899,4,0)="二年一次",IF(IFERROR(VLOOKUP(V76,Q$5:Q$1899,1,0),"")=V76,"前一年申請有案","核符"),IF(VLOOKUP(V76,$C$6:$F$1899,4,0)="三年一次",IF(IFERROR(VLOOKUP(V76,Q$5:Q$1899,1,0),"")&IFERROR(VLOOKUP(V76,L$5:L$1899,1,0),"")=V76,"前二年申請有案","核符")))))) ->  | AB76: =IF(AA76="","",IFERROR(AA$4-LEFT(VLOOKUP(AA76,$C$6:$D$1899,2,0),2)-1,"未建檔")) ->  | AD76: =IF(AA76="","",IF(VLOOKUP(AA76,$C$6:$F$1899,4,0)="未符資格","未符資格",IF(VLOOKUP(AA76,$C$6:$F$1899,4,0)="一年一次","核符",IF(VLOOKUP(AA76,$C$6:$F$1899,4,0)="二年一次",IF(IFERROR(VLOOKUP(AA76,V$5:V$1899,1,0),"")=AA76,"前一年申請有案","核符"),IF(VLOOKUP(AA76,$C$6:$F$1899,4,0)="三年一次",IF(IFERROR(VLOOKUP(AA76,V$5:V$1899,1,0),"")&IFERROR(VLOOKUP(AA76,Q$5:Q$1899,1,0),"")=AA76,"前二年申請有案","核符")))))) ->  | AG76: =IF(AF76="","",IFERROR(AF$4-LEFT(VLOOKUP(AF76,$C$6:$D$1899,2,0),2)-1,"未建檔")) ->  | AI76: =IF(AF76="","",IF(VLOOKUP(AF76,$C$6:$F$1899,4,0)="未符資格","未符資格",IF(VLOOKUP(AF76,$C$6:$F$1899,4,0)="一年一次","核符",IF(VLOOKUP(AF76,$C$6:$F$1899,4,0)="二年一次",IF(IFERROR(VLOOKUP(AF76,AA$5:AA$1899,1,0),"")=AF76,"前一年申請有案","核符"),IF(VLOOKUP(AF76,$C$6:$F$1899,4,0)="三年一次",IF(IFERROR(VLOOKUP(AF76,AA$5:AA$1899,1,0),"")&IFERROR(VLOOKUP(AF76,V$5:V$1899,1,0),"")=AF76,"前二年申請有案","核符")))))) ->  | AL76: =IF(AK76="","",IFERROR(AK$4-LEFT(VLOOKUP(AK76,$C$6:$D$1899,2,0),2)-1,"未建檔")) ->  | AN76: =IF(AK76="","",IF(VLOOKUP(AK76,$C$6:$F$1899,4,0)="未符資格","未符資格",IF(VLOOKUP(AK76,$C$6:$F$1899,4,0)="一年一次","核符",IF(VLOOKUP(AK76,$C$6:$F$1899,4,0)="二年一次",IF(IFERROR(VLOOKUP(AK76,AF$5:AF$1899,1,0),"")=AK76,"前一年申請有案","核符"),IF(VLOOKUP(AK76,$C$6:$F$1899,4,0)="三年一次",IF(IFERROR(VLOOKUP(AK76,AF$5:AF$1899,1,0),"")&IFERROR(VLOOKUP(AK76,AA$5:AA$1899,1,0),"")=AK76,"前二年申請有案","核符")))))) ->  | AQ76: =IF(AP76="","",IFERROR(AP$4-LEFT(VLOOKUP(AP76,$C$6:$D$1899,2,0),2)-1,"未建檔")) ->  | AS76: =IF(AP76="","",IF(VLOOKUP(AP76,$C$6:$F$1899,4,0)="未符資格","未符資格",IF(VLOOKUP(AP76,$C$6:$F$1899,4,0)="一年一次","核符",IF(VLOOKUP(AP76,$C$6:$F$1899,4,0)="二年一次",IF(IFERROR(VLOOKUP(AP76,AK$5:AK$1899,1,0),"")=AP76,"前一年申請有案","核符"),IF(VLOOKUP(AP76,$C$6:$F$1899,4,0)="三年一次",IF(IFERROR(VLOOKUP(AP76,AK$5:AK$1899,1,0),"")&IFERROR(VLOOKUP(AP76,AF$5:AF$1899,1,0),"")=AP76,"前二年申請有案","核符")))))) ->  | AV76: =IF(AU76="","",IFERROR(AU$4-LEFT(VLOOKUP(AU76,$C$6:$D$1899,2,0),2)-1,"未建檔")) ->  | AX76: =IF(AU76="","",IF(VLOOKUP(AU76,$C$6:$F$1899,4,0)="未符資格","未符資格",IF(VLOOKUP(AU76,$C$6:$F$1899,4,0)="一年一次","核符",IF(VLOOKUP(AU76,$C$6:$F$1899,4,0)="二年一次",IF(IFERROR(VLOOKUP(AU76,AP$5:AP$1899,1,0),"")=AU76,"前一年申請有案","核符"),IF(VLOOKUP(AU76,$C$6:$F$1899,4,0)="三年一次",IF(IFERROR(VLOOKUP(AU76,AP$5:AP$1899,1,0),"")&IFERROR(VLOOKUP(AU76,AK$5:AK$1899,1,0),"")=AU76,"前二年申請有案","核符")))))) ->  | BA76: =IF(AZ76="","",IFERROR(AZ$4-LEFT(VLOOKUP(AZ76,$C$6:$D$1899,2,0),2)-1,"未建檔")) ->  | BC76: =IF(AZ76="","",IF(VLOOKUP(AZ76,$C$6:$F$1899,4,0)="未符資格","未符資格",IF(VLOOKUP(AZ76,$C$6:$F$1899,4,0)="一年一次","核符",IF(VLOOKUP(AZ76,$C$6:$F$1899,4,0)="二年一次",IF(IFERROR(VLOOKUP(AZ76,AU$5:AU$1899,1,0),"")=AZ76,"前一年申請有案","核符"),IF(VLOOKUP(AZ76,$C$6:$F$1899,4,0)="三年一次",IF(IFERROR(VLOOKUP(AZ76,AU$5:AU$1899,1,0),"")&IFERROR(VLOOKUP(AZ76,AP$5:AP$1899,1,0),"")=AZ76,"前二年申請有案","核符")))))) -> 
A77: 72 | E77: =IF(C77="","",$Q$4-LEFT(D77,2)-1) ->  | H77: =IF(G77="","",IFERROR(G$4-LEFT(VLOOKUP(G77,$C$6:$D$1899,2,0),2)-1,"未建檔")) ->  | M77: =IF(L77="","",IFERROR(L$4-LEFT(VLOOKUP(L77,$C$6:$D$1899,2,0),2)-1,"未建檔")) ->  | R77: =IF(Q77="","",IFERROR(Q$4-LEFT(VLOOKUP(Q77,$C$6:$D$1899,2,0),2)-1,"未建檔")) ->  | T77: =IF(Q77="","",IF(VLOOKUP(Q77,$C$6:$F$1899,4,0)="未符資格","未符資格",IF(VLOOKUP(Q77,$C$6:$F$1899,4,0)="一年一次","核符",IF(VLOOKUP(Q77,$C$6:$F$1899,4,0)="二年一次",IF(IFERROR(VLOOKUP(Q77,L$5:L$1899,1,0),"")=Q77,"前一年申請有案","核符"),IF(VLOOKUP(Q77,$C$6:$F$1899,4,0)="三年一次",IF(IFERROR(VLOOKUP(Q77,L$5:L$1899,1,0),"")&IFERROR(VLOOKUP(Q77,G$5:G$1899,1,0),"")=Q77,"前二年申請有案","核符")))))) ->  | W77: =IF(V77="","",IFERROR(V$4-LEFT(VLOOKUP(V77,$C$6:$D$1899,2,0),2)-1,"未建檔")) ->  | Y77: =IF(V77="","",IF(VLOOKUP(V77,$C$6:$F$1899,4,0)="未符資格","未符資格",IF(VLOOKUP(V77,$C$6:$F$1899,4,0)="一年一次","核符",IF(VLOOKUP(V77,$C$6:$F$1899,4,0)="二年一次",IF(IFERROR(VLOOKUP(V77,Q$5:Q$1899,1,0),"")=V77,"前一年申請有案","核符"),IF(VLOOKUP(V77,$C$6:$F$1899,4,0)="三年一次",IF(IFERROR(VLOOKUP(V77,Q$5:Q$1899,1,0),"")&IFERROR(VLOOKUP(V77,L$5:L$1899,1,0),"")=V77,"前二年申請有案","核符")))))) ->  | AB77: =IF(AA77="","",IFERROR(AA$4-LEFT(VLOOKUP(AA77,$C$6:$D$1899,2,0),2)-1,"未建檔")) ->  | AD77: =IF(AA77="","",IF(VLOOKUP(AA77,$C$6:$F$1899,4,0)="未符資格","未符資格",IF(VLOOKUP(AA77,$C$6:$F$1899,4,0)="一年一次","核符",IF(VLOOKUP(AA77,$C$6:$F$1899,4,0)="二年一次",IF(IFERROR(VLOOKUP(AA77,V$5:V$1899,1,0),"")=AA77,"前一年申請有案","核符"),IF(VLOOKUP(AA77,$C$6:$F$1899,4,0)="三年一次",IF(IFERROR(VLOOKUP(AA77,V$5:V$1899,1,0),"")&IFERROR(VLOOKUP(AA77,Q$5:Q$1899,1,0),"")=AA77,"前二年申請有案","核符")))))) ->  | AG77: =IF(AF77="","",IFERROR(AF$4-LEFT(VLOOKUP(AF77,$C$6:$D$1899,2,0),2)-1,"未建檔")) ->  | AI77: =IF(AF77="","",IF(VLOOKUP(AF77,$C$6:$F$1899,4,0)="未符資格","未符資格",IF(VLOOKUP(AF77,$C$6:$F$1899,4,0)="一年一次","核符",IF(VLOOKUP(AF77,$C$6:$F$1899,4,0)="二年一次",IF(IFERROR(VLOOKUP(AF77,AA$5:AA$1899,1,0),"")=AF77,"前一年申請有案","核符"),IF(VLOOKUP(AF77,$C$6:$F$1899,4,0)="三年一次",IF(IFERROR(VLOOKUP(AF77,AA$5:AA$1899,1,0),"")&IFERROR(VLOOKUP(AF77,V$5:V$1899,1,0),"")=AF77,"前二年申請有案","核符")))))) ->  | AL77: =IF(AK77="","",IFERROR(AK$4-LEFT(VLOOKUP(AK77,$C$6:$D$1899,2,0),2)-1,"未建檔")) ->  | AN77: =IF(AK77="","",IF(VLOOKUP(AK77,$C$6:$F$1899,4,0)="未符資格","未符資格",IF(VLOOKUP(AK77,$C$6:$F$1899,4,0)="一年一次","核符",IF(VLOOKUP(AK77,$C$6:$F$1899,4,0)="二年一次",IF(IFERROR(VLOOKUP(AK77,AF$5:AF$1899,1,0),"")=AK77,"前一年申請有案","核符"),IF(VLOOKUP(AK77,$C$6:$F$1899,4,0)="三年一次",IF(IFERROR(VLOOKUP(AK77,AF$5:AF$1899,1,0),"")&IFERROR(VLOOKUP(AK77,AA$5:AA$1899,1,0),"")=AK77,"前二年申請有案","核符")))))) ->  | AQ77: =IF(AP77="","",IFERROR(AP$4-LEFT(VLOOKUP(AP77,$C$6:$D$1899,2,0),2)-1,"未建檔")) ->  | AS77: =IF(AP77="","",IF(VLOOKUP(AP77,$C$6:$F$1899,4,0)="未符資格","未符資格",IF(VLOOKUP(AP77,$C$6:$F$1899,4,0)="一年一次","核符",IF(VLOOKUP(AP77,$C$6:$F$1899,4,0)="二年一次",IF(IFERROR(VLOOKUP(AP77,AK$5:AK$1899,1,0),"")=AP77,"前一年申請有案","核符"),IF(VLOOKUP(AP77,$C$6:$F$1899,4,0)="三年一次",IF(IFERROR(VLOOKUP(AP77,AK$5:AK$1899,1,0),"")&IFERROR(VLOOKUP(AP77,AF$5:AF$1899,1,0),"")=AP77,"前二年申請有案","核符")))))) ->  | AV77: =IF(AU77="","",IFERROR(AU$4-LEFT(VLOOKUP(AU77,$C$6:$D$1899,2,0),2)-1,"未建檔")) ->  | AX77: =IF(AU77="","",IF(VLOOKUP(AU77,$C$6:$F$1899,4,0)="未符資格","未符資格",IF(VLOOKUP(AU77,$C$6:$F$1899,4,0)="一年一次","核符",IF(VLOOKUP(AU77,$C$6:$F$1899,4,0)="二年一次",IF(IFERROR(VLOOKUP(AU77,AP$5:AP$1899,1,0),"")=AU77,"前一年申請有案","核符"),IF(VLOOKUP(AU77,$C$6:$F$1899,4,0)="三年一次",IF(IFERROR(VLOOKUP(AU77,AP$5:AP$1899,1,0),"")&IFERROR(VLOOKUP(AU77,AK$5:AK$1899,1,0),"")=AU77,"前二年申請有案","核符")))))) ->  | BA77: =IF(AZ77="","",IFERROR(AZ$4-LEFT(VLOOKUP(AZ77,$C$6:$D$1899,2,0),2)-1,"未建檔")) ->  | BC77: =IF(AZ77="","",IF(VLOOKUP(AZ77,$C$6:$F$1899,4,0)="未符資格","未符資格",IF(VLOOKUP(AZ77,$C$6:$F$1899,4,0)="一年一次","核符",IF(VLOOKUP(AZ77,$C$6:$F$1899,4,0)="二年一次",IF(IFERROR(VLOOKUP(AZ77,AU$5:AU$1899,1,0),"")=AZ77,"前一年申請有案","核符"),IF(VLOOKUP(AZ77,$C$6:$F$1899,4,0)="三年一次",IF(IFERROR(VLOOKUP(AZ77,AU$5:AU$1899,1,0),"")&IFERROR(VLOOKUP(AZ77,AP$5:AP$1899,1,0),"")=AZ77,"前二年申請有案","核符")))))) -> 
A78: 73 | E78: =IF(C78="","",$Q$4-LEFT(D78,2)-1) ->  | H78: =IF(G78="","",IFERROR(G$4-LEFT(VLOOKUP(G78,$C$6:$D$1899,2,0),2)-1,"未建檔")) ->  | M78: =IF(L78="","",IFERROR(L$4-LEFT(VLOOKUP(L78,$C$6:$D$1899,2,0),2)-1,"未建檔")) ->  | R78: =IF(Q78="","",IFERROR(Q$4-LEFT(VLOOKUP(Q78,$C$6:$D$1899,2,0),2)-1,"未建檔")) ->  | T78: =IF(Q78="","",IF(VLOOKUP(Q78,$C$6:$F$1899,4,0)="未符資格","未符資格",IF(VLOOKUP(Q78,$C$6:$F$1899,4,0)="一年一次","核符",IF(VLOOKUP(Q78,$C$6:$F$1899,4,0)="二年一次",IF(IFERROR(VLOOKUP(Q78,L$5:L$1899,1,0),"")=Q78,"前一年申請有案","核符"),IF(VLOOKUP(Q78,$C$6:$F$1899,4,0)="三年一次",IF(IFERROR(VLOOKUP(Q78,L$5:L$1899,1,0),"")&IFERROR(VLOOKUP(Q78,G$5:G$1899,1,0),"")=Q78,"前二年申請有案","核符")))))) ->  | W78: =IF(V78="","",IFERROR(V$4-LEFT(VLOOKUP(V78,$C$6:$D$1899,2,0),2)-1,"未建檔")) ->  | Y78: =IF(V78="","",IF(VLOOKUP(V78,$C$6:$F$1899,4,0)="未符資格","未符資格",IF(VLOOKUP(V78,$C$6:$F$1899,4,0)="一年一次","核符",IF(VLOOKUP(V78,$C$6:$F$1899,4,0)="二年一次",IF(IFERROR(VLOOKUP(V78,Q$5:Q$1899,1,0),"")=V78,"前一年申請有案","核符"),IF(VLOOKUP(V78,$C$6:$F$1899,4,0)="三年一次",IF(IFERROR(VLOOKUP(V78,Q$5:Q$1899,1,0),"")&IFERROR(VLOOKUP(V78,L$5:L$1899,1,0),"")=V78,"前二年申請有案","核符")))))) ->  | AB78: =IF(AA78="","",IFERROR(AA$4-LEFT(VLOOKUP(AA78,$C$6:$D$1899,2,0),2)-1,"未建檔")) ->  | AD78: =IF(AA78="","",IF(VLOOKUP(AA78,$C$6:$F$1899,4,0)="未符資格","未符資格",IF(VLOOKUP(AA78,$C$6:$F$1899,4,0)="一年一次","核符",IF(VLOOKUP(AA78,$C$6:$F$1899,4,0)="二年一次",IF(IFERROR(VLOOKUP(AA78,V$5:V$1899,1,0),"")=AA78,"前一年申請有案","核符"),IF(VLOOKUP(AA78,$C$6:$F$1899,4,0)="三年一次",IF(IFERROR(VLOOKUP(AA78,V$5:V$1899,1,0),"")&IFERROR(VLOOKUP(AA78,Q$5:Q$1899,1,0),"")=AA78,"前二年申請有案","核符")))))) ->  | AG78: =IF(AF78="","",IFERROR(AF$4-LEFT(VLOOKUP(AF78,$C$6:$D$1899,2,0),2)-1,"未建檔")) ->  | AI78: =IF(AF78="","",IF(VLOOKUP(AF78,$C$6:$F$1899,4,0)="未符資格","未符資格",IF(VLOOKUP(AF78,$C$6:$F$1899,4,0)="一年一次","核符",IF(VLOOKUP(AF78,$C$6:$F$1899,4,0)="二年一次",IF(IFERROR(VLOOKUP(AF78,AA$5:AA$1899,1,0),"")=AF78,"前一年申請有案","核符"),IF(VLOOKUP(AF78,$C$6:$F$1899,4,0)="三年一次",IF(IFERROR(VLOOKUP(AF78,AA$5:AA$1899,1,0),"")&IFERROR(VLOOKUP(AF78,V$5:V$1899,1,0),"")=AF78,"前二年申請有案","核符")))))) ->  | AL78: =IF(AK78="","",IFERROR(AK$4-LEFT(VLOOKUP(AK78,$C$6:$D$1899,2,0),2)-1,"未建檔")) ->  | AN78: =IF(AK78="","",IF(VLOOKUP(AK78,$C$6:$F$1899,4,0)="未符資格","未符資格",IF(VLOOKUP(AK78,$C$6:$F$1899,4,0)="一年一次","核符",IF(VLOOKUP(AK78,$C$6:$F$1899,4,0)="二年一次",IF(IFERROR(VLOOKUP(AK78,AF$5:AF$1899,1,0),"")=AK78,"前一年申請有案","核符"),IF(VLOOKUP(AK78,$C$6:$F$1899,4,0)="三年一次",IF(IFERROR(VLOOKUP(AK78,AF$5:AF$1899,1,0),"")&IFERROR(VLOOKUP(AK78,AA$5:AA$1899,1,0),"")=AK78,"前二年申請有案","核符")))))) ->  | AQ78: =IF(AP78="","",IFERROR(AP$4-LEFT(VLOOKUP(AP78,$C$6:$D$1899,2,0),2)-1,"未建檔")) ->  | AS78: =IF(AP78="","",IF(VLOOKUP(AP78,$C$6:$F$1899,4,0)="未符資格","未符資格",IF(VLOOKUP(AP78,$C$6:$F$1899,4,0)="一年一次","核符",IF(VLOOKUP(AP78,$C$6:$F$1899,4,0)="二年一次",IF(IFERROR(VLOOKUP(AP78,AK$5:AK$1899,1,0),"")=AP78,"前一年申請有案","核符"),IF(VLOOKUP(AP78,$C$6:$F$1899,4,0)="三年一次",IF(IFERROR(VLOOKUP(AP78,AK$5:AK$1899,1,0),"")&IFERROR(VLOOKUP(AP78,AF$5:AF$1899,1,0),"")=AP78,"前二年申請有案","核符")))))) ->  | AV78: =IF(AU78="","",IFERROR(AU$4-LEFT(VLOOKUP(AU78,$C$6:$D$1899,2,0),2)-1,"未建檔")) ->  | AX78: =IF(AU78="","",IF(VLOOKUP(AU78,$C$6:$F$1899,4,0)="未符資格","未符資格",IF(VLOOKUP(AU78,$C$6:$F$1899,4,0)="一年一次","核符",IF(VLOOKUP(AU78,$C$6:$F$1899,4,0)="二年一次",IF(IFERROR(VLOOKUP(AU78,AP$5:AP$1899,1,0),"")=AU78,"前一年申請有案","核符"),IF(VLOOKUP(AU78,$C$6:$F$1899,4,0)="三年一次",IF(IFERROR(VLOOKUP(AU78,AP$5:AP$1899,1,0),"")&IFERROR(VLOOKUP(AU78,AK$5:AK$1899,1,0),"")=AU78,"前二年申請有案","核符")))))) ->  | BA78: =IF(AZ78="","",IFERROR(AZ$4-LEFT(VLOOKUP(AZ78,$C$6:$D$1899,2,0),2)-1,"未建檔")) ->  | BC78: =IF(AZ78="","",IF(VLOOKUP(AZ78,$C$6:$F$1899,4,0)="未符資格","未符資格",IF(VLOOKUP(AZ78,$C$6:$F$1899,4,0)="一年一次","核符",IF(VLOOKUP(AZ78,$C$6:$F$1899,4,0)="二年一次",IF(IFERROR(VLOOKUP(AZ78,AU$5:AU$1899,1,0),"")=AZ78,"前一年申請有案","核符"),IF(VLOOKUP(AZ78,$C$6:$F$1899,4,0)="三年一次",IF(IFERROR(VLOOKUP(AZ78,AU$5:AU$1899,1,0),"")&IFERROR(VLOOKUP(AZ78,AP$5:AP$1899,1,0),"")=AZ78,"前二年申請有案","核符")))))) -> 
A79: 74 | E79: =IF(C79="","",$Q$4-LEFT(D79,2)-1) ->  | H79: =IF(G79="","",IFERROR(G$4-LEFT(VLOOKUP(G79,$C$6:$D$1899,2,0),2)-1,"未建檔")) ->  | M79: =IF(L79="","",IFERROR(L$4-LEFT(VLOOKUP(L79,$C$6:$D$1899,2,0),2)-1,"未建檔")) ->  | R79: =IF(Q79="","",IFERROR(Q$4-LEFT(VLOOKUP(Q79,$C$6:$D$1899,2,0),2)-1,"未建檔")) ->  | T79: =IF(Q79="","",IF(VLOOKUP(Q79,$C$6:$F$1899,4,0)="未符資格","未符資格",IF(VLOOKUP(Q79,$C$6:$F$1899,4,0)="一年一次","核符",IF(VLOOKUP(Q79,$C$6:$F$1899,4,0)="二年一次",IF(IFERROR(VLOOKUP(Q79,L$5:L$1899,1,0),"")=Q79,"前一年申請有案","核符"),IF(VLOOKUP(Q79,$C$6:$F$1899,4,0)="三年一次",IF(IFERROR(VLOOKUP(Q79,L$5:L$1899,1,0),"")&IFERROR(VLOOKUP(Q79,G$5:G$1899,1,0),"")=Q79,"前二年申請有案","核符")))))) ->  | W79: =IF(V79="","",IFERROR(V$4-LEFT(VLOOKUP(V79,$C$6:$D$1899,2,0),2)-1,"未建檔")) ->  | Y79: =IF(V79="","",IF(VLOOKUP(V79,$C$6:$F$1899,4,0)="未符資格","未符資格",IF(VLOOKUP(V79,$C$6:$F$1899,4,0)="一年一次","核符",IF(VLOOKUP(V79,$C$6:$F$1899,4,0)="二年一次",IF(IFERROR(VLOOKUP(V79,Q$5:Q$1899,1,0),"")=V79,"前一年申請有案","核符"),IF(VLOOKUP(V79,$C$6:$F$1899,4,0)="三年一次",IF(IFERROR(VLOOKUP(V79,Q$5:Q$1899,1,0),"")&IFERROR(VLOOKUP(V79,L$5:L$1899,1,0),"")=V79,"前二年申請有案","核符")))))) ->  | AB79: =IF(AA79="","",IFERROR(AA$4-LEFT(VLOOKUP(AA79,$C$6:$D$1899,2,0),2)-1,"未建檔")) ->  | AD79: =IF(AA79="","",IF(VLOOKUP(AA79,$C$6:$F$1899,4,0)="未符資格","未符資格",IF(VLOOKUP(AA79,$C$6:$F$1899,4,0)="一年一次","核符",IF(VLOOKUP(AA79,$C$6:$F$1899,4,0)="二年一次",IF(IFERROR(VLOOKUP(AA79,V$5:V$1899,1,0),"")=AA79,"前一年申請有案","核符"),IF(VLOOKUP(AA79,$C$6:$F$1899,4,0)="三年一次",IF(IFERROR(VLOOKUP(AA79,V$5:V$1899,1,0),"")&IFERROR(VLOOKUP(AA79,Q$5:Q$1899,1,0),"")=AA79,"前二年申請有案","核符")))))) ->  | AG79: =IF(AF79="","",IFERROR(AF$4-LEFT(VLOOKUP(AF79,$C$6:$D$1899,2,0),2)-1,"未建檔")) ->  | AI79: =IF(AF79="","",IF(VLOOKUP(AF79,$C$6:$F$1899,4,0)="未符資格","未符資格",IF(VLOOKUP(AF79,$C$6:$F$1899,4,0)="一年一次","核符",IF(VLOOKUP(AF79,$C$6:$F$1899,4,0)="二年一次",IF(IFERROR(VLOOKUP(AF79,AA$5:AA$1899,1,0),"")=AF79,"前一年申請有案","核符"),IF(VLOOKUP(AF79,$C$6:$F$1899,4,0)="三年一次",IF(IFERROR(VLOOKUP(AF79,AA$5:AA$1899,1,0),"")&IFERROR(VLOOKUP(AF79,V$5:V$1899,1,0),"")=AF79,"前二年申請有案","核符")))))) ->  | AL79: =IF(AK79="","",IFERROR(AK$4-LEFT(VLOOKUP(AK79,$C$6:$D$1899,2,0),2)-1,"未建檔")) ->  | AN79: =IF(AK79="","",IF(VLOOKUP(AK79,$C$6:$F$1899,4,0)="未符資格","未符資格",IF(VLOOKUP(AK79,$C$6:$F$1899,4,0)="一年一次","核符",IF(VLOOKUP(AK79,$C$6:$F$1899,4,0)="二年一次",IF(IFERROR(VLOOKUP(AK79,AF$5:AF$1899,1,0),"")=AK79,"前一年申請有案","核符"),IF(VLOOKUP(AK79,$C$6:$F$1899,4,0)="三年一次",IF(IFERROR(VLOOKUP(AK79,AF$5:AF$1899,1,0),"")&IFERROR(VLOOKUP(AK79,AA$5:AA$1899,1,0),"")=AK79,"前二年申請有案","核符")))))) ->  | AQ79: =IF(AP79="","",IFERROR(AP$4-LEFT(VLOOKUP(AP79,$C$6:$D$1899,2,0),2)-1,"未建檔")) ->  | AS79: =IF(AP79="","",IF(VLOOKUP(AP79,$C$6:$F$1899,4,0)="未符資格","未符資格",IF(VLOOKUP(AP79,$C$6:$F$1899,4,0)="一年一次","核符",IF(VLOOKUP(AP79,$C$6:$F$1899,4,0)="二年一次",IF(IFERROR(VLOOKUP(AP79,AK$5:AK$1899,1,0),"")=AP79,"前一年申請有案","核符"),IF(VLOOKUP(AP79,$C$6:$F$1899,4,0)="三年一次",IF(IFERROR(VLOOKUP(AP79,AK$5:AK$1899,1,0),"")&IFERROR(VLOOKUP(AP79,AF$5:AF$1899,1,0),"")=AP79,"前二年申請有案","核符")))))) ->  | AV79: =IF(AU79="","",IFERROR(AU$4-LEFT(VLOOKUP(AU79,$C$6:$D$1899,2,0),2)-1,"未建檔")) ->  | AX79: =IF(AU79="","",IF(VLOOKUP(AU79,$C$6:$F$1899,4,0)="未符資格","未符資格",IF(VLOOKUP(AU79,$C$6:$F$1899,4,0)="一年一次","核符",IF(VLOOKUP(AU79,$C$6:$F$1899,4,0)="二年一次",IF(IFERROR(VLOOKUP(AU79,AP$5:AP$1899,1,0),"")=AU79,"前一年申請有案","核符"),IF(VLOOKUP(AU79,$C$6:$F$1899,4,0)="三年一次",IF(IFERROR(VLOOKUP(AU79,AP$5:AP$1899,1,0),"")&IFERROR(VLOOKUP(AU79,AK$5:AK$1899,1,0),"")=AU79,"前二年申請有案","核符")))))) ->  | BA79: =IF(AZ79="","",IFERROR(AZ$4-LEFT(VLOOKUP(AZ79,$C$6:$D$1899,2,0),2)-1,"未建檔")) ->  | BC79: =IF(AZ79="","",IF(VLOOKUP(AZ79,$C$6:$F$1899,4,0)="未符資格","未符資格",IF(VLOOKUP(AZ79,$C$6:$F$1899,4,0)="一年一次","核符",IF(VLOOKUP(AZ79,$C$6:$F$1899,4,0)="二年一次",IF(IFERROR(VLOOKUP(AZ79,AU$5:AU$1899,1,0),"")=AZ79,"前一年申請有案","核符"),IF(VLOOKUP(AZ79,$C$6:$F$1899,4,0)="三年一次",IF(IFERROR(VLOOKUP(AZ79,AU$5:AU$1899,1,0),"")&IFERROR(VLOOKUP(AZ79,AP$5:AP$1899,1,0),"")=AZ79,"前二年申請有案","核符")))))) -> 
A80: 75 | E80: =IF(C80="","",$Q$4-LEFT(D80,2)-1) ->  | H80: =IF(G80="","",IFERROR(G$4-LEFT(VLOOKUP(G80,$C$6:$D$1899,2,0),2)-1,"未建檔")) ->  | M80: =IF(L80="","",IFERROR(L$4-LEFT(VLOOKUP(L80,$C$6:$D$1899,2,0),2)-1,"未建檔")) ->  | R80: =IF(Q80="","",IFERROR(Q$4-LEFT(VLOOKUP(Q80,$C$6:$D$1899,2,0),2)-1,"未建檔")) ->  | T80: =IF(Q80="","",IF(VLOOKUP(Q80,$C$6:$F$1899,4,0)="未符資格","未符資格",IF(VLOOKUP(Q80,$C$6:$F$1899,4,0)="一年一次","核符",IF(VLOOKUP(Q80,$C$6:$F$1899,4,0)="二年一次",IF(IFERROR(VLOOKUP(Q80,L$5:L$1899,1,0),"")=Q80,"前一年申請有案","核符"),IF(VLOOKUP(Q80,$C$6:$F$1899,4,0)="三年一次",IF(IFERROR(VLOOKUP(Q80,L$5:L$1899,1,0),"")&IFERROR(VLOOKUP(Q80,G$5:G$1899,1,0),"")=Q80,"前二年申請有案","核符")))))) ->  | W80: =IF(V80="","",IFERROR(V$4-LEFT(VLOOKUP(V80,$C$6:$D$1899,2,0),2)-1,"未建檔")) ->  | Y80: =IF(V80="","",IF(VLOOKUP(V80,$C$6:$F$1899,4,0)="未符資格","未符資格",IF(VLOOKUP(V80,$C$6:$F$1899,4,0)="一年一次","核符",IF(VLOOKUP(V80,$C$6:$F$1899,4,0)="二年一次",IF(IFERROR(VLOOKUP(V80,Q$5:Q$1899,1,0),"")=V80,"前一年申請有案","核符"),IF(VLOOKUP(V80,$C$6:$F$1899,4,0)="三年一次",IF(IFERROR(VLOOKUP(V80,Q$5:Q$1899,1,0),"")&IFERROR(VLOOKUP(V80,L$5:L$1899,1,0),"")=V80,"前二年申請有案","核符")))))) ->  | AB80: =IF(AA80="","",IFERROR(AA$4-LEFT(VLOOKUP(AA80,$C$6:$D$1899,2,0),2)-1,"未建檔")) ->  | AD80: =IF(AA80="","",IF(VLOOKUP(AA80,$C$6:$F$1899,4,0)="未符資格","未符資格",IF(VLOOKUP(AA80,$C$6:$F$1899,4,0)="一年一次","核符",IF(VLOOKUP(AA80,$C$6:$F$1899,4,0)="二年一次",IF(IFERROR(VLOOKUP(AA80,V$5:V$1899,1,0),"")=AA80,"前一年申請有案","核符"),IF(VLOOKUP(AA80,$C$6:$F$1899,4,0)="三年一次",IF(IFERROR(VLOOKUP(AA80,V$5:V$1899,1,0),"")&IFERROR(VLOOKUP(AA80,Q$5:Q$1899,1,0),"")=AA80,"前二年申請有案","核符")))))) ->  | AG80: =IF(AF80="","",IFERROR(AF$4-LEFT(VLOOKUP(AF80,$C$6:$D$1899,2,0),2)-1,"未建檔")) ->  | AI80: =IF(AF80="","",IF(VLOOKUP(AF80,$C$6:$F$1899,4,0)="未符資格","未符資格",IF(VLOOKUP(AF80,$C$6:$F$1899,4,0)="一年一次","核符",IF(VLOOKUP(AF80,$C$6:$F$1899,4,0)="二年一次",IF(IFERROR(VLOOKUP(AF80,AA$5:AA$1899,1,0),"")=AF80,"前一年申請有案","核符"),IF(VLOOKUP(AF80,$C$6:$F$1899,4,0)="三年一次",IF(IFERROR(VLOOKUP(AF80,AA$5:AA$1899,1,0),"")&IFERROR(VLOOKUP(AF80,V$5:V$1899,1,0),"")=AF80,"前二年申請有案","核符")))))) ->  | AL80: =IF(AK80="","",IFERROR(AK$4-LEFT(VLOOKUP(AK80,$C$6:$D$1899,2,0),2)-1,"未建檔")) ->  | AN80: =IF(AK80="","",IF(VLOOKUP(AK80,$C$6:$F$1899,4,0)="未符資格","未符資格",IF(VLOOKUP(AK80,$C$6:$F$1899,4,0)="一年一次","核符",IF(VLOOKUP(AK80,$C$6:$F$1899,4,0)="二年一次",IF(IFERROR(VLOOKUP(AK80,AF$5:AF$1899,1,0),"")=AK80,"前一年申請有案","核符"),IF(VLOOKUP(AK80,$C$6:$F$1899,4,0)="三年一次",IF(IFERROR(VLOOKUP(AK80,AF$5:AF$1899,1,0),"")&IFERROR(VLOOKUP(AK80,AA$5:AA$1899,1,0),"")=AK80,"前二年申請有案","核符")))))) ->  | AQ80: =IF(AP80="","",IFERROR(AP$4-LEFT(VLOOKUP(AP80,$C$6:$D$1899,2,0),2)-1,"未建檔")) ->  | AS80: =IF(AP80="","",IF(VLOOKUP(AP80,$C$6:$F$1899,4,0)="未符資格","未符資格",IF(VLOOKUP(AP80,$C$6:$F$1899,4,0)="一年一次","核符",IF(VLOOKUP(AP80,$C$6:$F$1899,4,0)="二年一次",IF(IFERROR(VLOOKUP(AP80,AK$5:AK$1899,1,0),"")=AP80,"前一年申請有案","核符"),IF(VLOOKUP(AP80,$C$6:$F$1899,4,0)="三年一次",IF(IFERROR(VLOOKUP(AP80,AK$5:AK$1899,1,0),"")&IFERROR(VLOOKUP(AP80,AF$5:AF$1899,1,0),"")=AP80,"前二年申請有案","核符")))))) ->  | AV80: =IF(AU80="","",IFERROR(AU$4-LEFT(VLOOKUP(AU80,$C$6:$D$1899,2,0),2)-1,"未建檔")) ->  | AX80: =IF(AU80="","",IF(VLOOKUP(AU80,$C$6:$F$1899,4,0)="未符資格","未符資格",IF(VLOOKUP(AU80,$C$6:$F$1899,4,0)="一年一次","核符",IF(VLOOKUP(AU80,$C$6:$F$1899,4,0)="二年一次",IF(IFERROR(VLOOKUP(AU80,AP$5:AP$1899,1,0),"")=AU80,"前一年申請有案","核符"),IF(VLOOKUP(AU80,$C$6:$F$1899,4,0)="三年一次",IF(IFERROR(VLOOKUP(AU80,AP$5:AP$1899,1,0),"")&IFERROR(VLOOKUP(AU80,AK$5:AK$1899,1,0),"")=AU80,"前二年申請有案","核符")))))) ->  | BA80: =IF(AZ80="","",IFERROR(AZ$4-LEFT(VLOOKUP(AZ80,$C$6:$D$1899,2,0),2)-1,"未建檔")) ->  | BC80: =IF(AZ80="","",IF(VLOOKUP(AZ80,$C$6:$F$1899,4,0)="未符資格","未符資格",IF(VLOOKUP(AZ80,$C$6:$F$1899,4,0)="一年一次","核符",IF(VLOOKUP(AZ80,$C$6:$F$1899,4,0)="二年一次",IF(IFERROR(VLOOKUP(AZ80,AU$5:AU$1899,1,0),"")=AZ80,"前一年申請有案","核符"),IF(VLOOKUP(AZ80,$C$6:$F$1899,4,0)="三年一次",IF(IFERROR(VLOOKUP(AZ80,AU$5:AU$1899,1,0),"")&IFERROR(VLOOKUP(AZ80,AP$5:AP$1899,1,0),"")=AZ80,"前二年申請有案","核符")))))) -> 
